Workbook

Sheet NOTES
A2: The model has actual and test data to illustrate the workings of the model.
A4: Issue | B4: Location | C4: Item | D4: Comment
A6: 1 | B6: Model update'!G37:G41 | C6: Real Vanilla WACC (rvw) | D6: Values updated for 2019 cost of debt and inflation correction
A8: =A6+1 -> 2 | B8: Model update'!G54:G58 | C8: DuoS Xt for2019 | D8: Values updated for 2019 cost of debt and inflation correction
A10: =A8+1 -> 3 | B10: Model update'!G66:G70 | C10: Metering Xt for2019 | D10: Values updated for 2019 cost of debt
A12: =A10+1 -> 4 | B12: Model update'!G94:G98 | C12: Ifactor (t) 2019 | D12: Values may require updating
A14: =A12+1 -> 5 | B14: Model update'!G105:G109 | C14: S factor (t) 2019 | D14: Values may require updating
A16: =A14+1 -> 6 | B16: Model update'!G116:G120 | C16: Pass through amounts (t) 2019 | D16: NIL for 2019
A18: =A16+1 -> 7 | B18: Model update'!G127:G131 | C18: Licence Fee (t-1) 2017-18 | D18: Values updated
A20: =A18+1 -> 8 | B20: Metering!D32 | C20: B factor for year t | D20: Formula modified
A22: =A20+1 -> 9 | B22: Metering!E31 and I27 | C22: T - factor | D22: Added Tt-1 and adjusted formula in I27 so that it is (Tt-Tt-1)/R
A24: =A22+1 -> 10 | B24: Metering!E32 and I28 | C24: B - factor | D24: Added Bt-1 and adjusted formula in I28 so that it is (Bt-Bt-1)/R
A26: =A24+1 -> 11 | B26: 2019DistRevCapForm'!C28 | C26: B - factor | D26: Formula modified
A28: =A26+1 -> 12 | B28: 2019TransRevCont'!C15 | C28: DPPC revenue under/over recovery approved | D28: Formula modified
A30: =A28+1 -> 13 | B30: 2019JSRevCont'!B15 | C30: JSA revenue under/over recovery approved | D30: Formula modified
A32: =A30+1 -> 14 | B32: Indicative prices for 2020'!A1:O65 | C32: TSS indicative prices for 2020 | D32: DNSP required to populate with relevant data
A34: =A32+1 -> 15 | B34: The following is test data to illustrate the workings of the model. | D34: Input data required from DNSPs
B35: Metering!D8:D10 | C35: Proposed Metering Tariffs P(t) for 2019
B36: Metering!F8:F10 | C36: Forecast Quantities (Qt) for 2019
B37: Metering!D80:D82 | C37: Estimated Quantities (Qt-1) for 2018
B39: Prop2019DistTar!D7:W42 | C39: Proposed Distribution Tariffs (Pt) for 2019
B40: Prop2019DistTar!AV7:BO42 | C40: Forecast Quantities (Qt) for 2019
B41: Est2018DistRev!Z7:AS42 | C41: Estimated Distribution Quantities for 2018 (Qt-1)
B43: Prop2018TransTar!D7:W42 | C43: Proposed Transmission Tariffs (Pt) for 2019
B44: 2019TransRevCont'!C20:C23 | C44: Table 3 - Transmission charges for year t
B45: 2019TransRevCont'!D42:D45 | C45: Transmission charges for year t-1
B47: Prop2019JSTar!D7:W42 | C47: Proposed Jurisdictional scheme Tariffs (Pt) for 2019
B48: 2019JSRevCont'!C20:C21 | C48: Table 3 - PFIT & TFIT charges for year t
B49: 2019JSRevCont'!D40:D41 | C49: PFIT & TFIT charges for year t-1

Sheet Formulae
B2: DUoS
B3: Figure 14.1 Revenue cap formulae
B4: (1) | H4: i=1,..,n and j=1,..,m and t=1,..,5
B5: (2) | H5: t = 1,2,…,5
B6: (3) | H6: t = 1
B7: (4) | H7: t = 2,…,5
B9: where;
C10: is the total annual revenue in year t.
D11: is the price of component 'j' of tariff 'i' in year t.
D12: is the forecast quantity of component 'j' of tariff 'i' in year t.
C13: is the adjusted annual smoothed revenue requirement for year t.
D14: is the annual adjustment f–factor scheme amount in year t. This amount will be calculated as per the method set out in the relevant f–factor scheme.
D15: is the sum of:
B16: · the final carryover amount from the application of the DMIS from the 2011–15 regulatory control period. This amount will be calculated using the method set out in the DMIS and will be deducted from/added to allowed revenue in the 2017 pricing proposal.
D17: is the sum of:
B18: · the recovery of license fee charges by the Victorian Essential Services Commission indexed by one and a half years of interest, calculated using the following method:
B20: where:
C21: are the licence fees paid by DNSP to the Victorian Essential Services Commission in the financial year ending in June of regulatory year t–1,
C22: is the approved nominal weighted average cost of capital (WACC) for the relevant regulatory year using the following method:
B25: · any under or over recovery of actual revenue collected through DUoS charges in regulatory year t–2 as calculated using the method in appendix A,
B26: · the AER approved pass through amounts (positive or negative) with respect to regulatory year t.
C27: is the annual smoothed revenue requirement as stated in the Post Tax Revenue Model (PTRM) for year t (when year t is the first year of the 2016–20 regulatory control period).[43]
C28: is the s‑factor determined in accordance with the service target performance incentive scheme (STPIS) for regulatory year t.[44]
C29: is the annual percentage change in the ABS CPI All Groups, Weighted Average of Eight Capital Cities[45] from the June quarter in year t–2 to the June quarter in year t–1, calculated using the following method :
B30: The ABS CPI All Groups, Weighted Average of Eight Capital Cities for the June quarter in regulatory year t–1
B31: divided by
B32: The ABS CPI All Groups, Weighted Average of Eight Capital Cities for the June quarter in regulatory year t–2
B33: minus one.
B34: For example, for the 2017 regulatory year, t–2 is June quarter 2015 and t–1 is June quarter 2016 and for the 2018 regulatory year, t–2 is June quarter 2016 and t–1 is June quarter 2017 and so on.
C35: is the X factor for each year of the 2016–20 regulatory control period as determined in the PTRM, and annually revised for the return on debt update in accordance with the formula specified in attachment 3—rate of return—calculated for the relevant year.
B38: [43] | C38: Our final F&A stated that if necessary an adjustment for inflation may be required to the annual smoothed revenue requirement for year t. However, as the annual smoothed revenue requirement for year t as stated in our preliminary decision PTRM is in nominal dollars there is no need to adjust it for inflation. This approach is consistent with past regulatory practice.
B39: [44] | C39: For the first two regulatory years of the 2016–20 regulatory control period, the value of St is to be adjusted to account for the change in revenue requirements between the regulatory control periods, as explained in attachment 11. In the formulas in the STPIS, the AR(t+1) is equivalent to ARt in this formula. Calculations of the S factor adjustment are to be made accordingly.
B40: [45] | C40: If the ABS does not or ceases to publish the index, then CPI will mean an index which the AER considers is the best available alternative index
B44: Figure 14.2 Side constraints [46]
C50: where each tariff class has "n" tariffs, with each up to "m" components, and where:
D51: is the proposed price for component ‘j’ of tariff 'i' for year t.
C52: is the price charged for component ‘j’ of tariff 'i' in year t–1.
D53: is the forecast quantity of component ‘j’ of tariff 'i' in year t.
C54: is the annual percentage change in the ABS CPI All Groups, Weighted Average of Eight Capital Cities[4] from the June quarter in year t–2 to the June quarter in year t–1, calculated using the following method :
C55: The ABS CPI All Groups, Weighted Average of Eight Capital Cities[47] for the June quarter in regulatory year t–1
C56: divided by
C57: The ABS CPI All Groups, Weighted Average of Eight Capital Cities for the June quarter in regulatory year t–2
C58: minus one.
B59: For example, for the 2017 regulatory year, t–2 is June quarter 2015 and t–1 is June quarter 2016 and for the 2018 regulatory year, t–2 is June quarter 2016 and t–1 is June quarter 2017 and so on.
D60: is the X factor for each year of the 2016–20 regulatory control period as determined in the PTRM, and annually revised for the return on debt update in accordance with the formula specified in attachment 3—rate of return—calculated for the relevant year. If X>0, then X will be set equal to zero for the purposes of the side constraint formula.
C61: is the s‑factor determined in accordance with the STPIS for regulatory year t.[5]
D62: is the annual percentage change from the f–factor scheme amount in year t. This amount will be calculated as per the method set out in attachment 19—f–factor scheme.
D63: is the annual percentage change from the final carryover amount from the application of the DMIS from the 2011–15 regulatory control period. This amount will be calculated using the method set out in the DMIS and will be deducted from/added to allowed revenue in the 2017 pricing proposal.
D64: is annual percentage change from the sum of:
B65: · the recovery of license fee charges by the Victorian Essential Services Commission indexed by one and a half years of interest, calculated using the following method:
B67: where:
B68: are the licence fees paid byDNSP to the Victorian Essential Services Commission in the financial year ending in June of regulatory year t–1,
C69: is the approved nominal weighted average cost of capital (WACC) for the relevant regulatory year using the following method:
B72: where the
B73: is as set out in our final decision PTRM and updated annually
B74: · the AER approved pass through amounts (positive or negative) with respect to regulatory year t.
B75: With the exception of the CPI, X factor and S factor, the percentage for each of the other factors above can be calculated by dividing the incremental revenues (as used in the total annual revenue formula) for each factor by the expected revenues for regulatory year t–1 (based on the prices in year t–1 multiplied by the forecast quantities for year t).
B77: [46] | C77: All parameters are in nominal terms unless otherwise specified.
B78: [47] | C78: If the ABS does not or ceases to publish the index, then CPI will mean an index which the AER considers is the best available alternative index.
H83: Table 14.1 | I83: Example calculation of DUoS unders and overs account ($'000, nominal)
I84: Year t–2 | J84: Year t–1 | K84: Year t
I85: (actual) | J85: (estimate) | K85: (forecast)
H86: (A) Revenue from DUoS charges | I86: 46 779 | J86: 40 269 | K86: 39 510
H87: (B) Less TAR for regulatory year = | I87: 43 039 | J87: 41 427 | K87: 44 429
H88: + Adjusted annual smoothed revenues (AARt) | I88: 40 189 | J88: 41 393 | K88: 44 393
H89: + f–factor scheme amount (It) | I89: –12 | J89: 10 | K89: 14
H90: + DMIS carryover amount (Tt) | I90: 1013 | J90: 0 | K90: 0
H91: + Annual adjustments (Bt)a = | I91: 1849 | J91: 24 | K91: 22
H92: + License fee recovery | I92: 25 | J92: 24 | K92: 22
H93: + Approved pass through amounts | I93: 1824 | J93: 0 | K93: 0
H95: (A minus B) Under/over recovery of revenue for regulatory year | I95: 3740 | J95: –1158 | K95: –4919b
H97: DUoS unders and overs account
H98: Nominal WACC (per cent) | I98: 0.05 | J98: 0.055 | K98: 0.06
H99: Opening balance | I99: 1737 | J99: 5656c | K99: 4778
H100: Interest on opening balance | I100: 87 | J100: 311 | K100: 287
H101: Under/over recovery of revenue for regulatory year | I101: 3740 | J101: –1158 | K101: –4919b
H102: Interest on under/over recovery for regulatory year | I102: 92 | J102: –31 | K102: –145
H103: Closing balance | I103: 5656 | J103: 4778 | K103: 0d
G104: Notes: | H104: (a) Bt parameter calculations in the DUoS unders and overs account exclude approved DUoS revenue under/over recovery for regulatory year.
H105: (b) Approved DUoS revenue under/over recovery for regulatory year t.
H106: (c) Opening balance is the previous year's closing balance.
H107: (d) The DNSP is expected to achieve a closing balance as close to zero as practicable in its DUoS unders and overs account in each forecast year in its annual pricing proposals in the 2016–20 regulatory control period.
H113: Table 14.2 | I113: Example calculation of designated pricing proposal charges unders and overs account ($'000, nominal)
I114: Year t–2 | J114: Year t–1 | K114: Year t
I115: (actual) | J115: (estimate) | K115: (forecast)
H116: (A) Revenue from designated pricing proposal charges (DPPC) | I116: 40 077 | J116: 34 944 | K116: 36 609
H117: (B) Less DPPC related payments for regulatory year = | I117: 34 365 | J117: 38 734 | K117: 39 200
H118: + DPPC charges to be paid to TNSP | I118: 33 672 | J118: 37 933 | K118: 38 000
H119: + Avoided TUoS/DPPC payments | I119: 572 | J119: 734 | K119: 800
H120: + Inter–distributor payments | I120: 121 | J120: 67 | K120: 400
H122: (A minus B) Under/over recovery of revenue for regulatory year | I122: 5712 | J122: –3790 | K122: –2540a
H124: DPPC unders and overs account
H125: Nominal WACC (per cent) | I125: 0.05 | J125: 0.055 | K125: 0.06
H126: Opening balance | I126: 167 | J126: 6028b | K126: 2467
H127: Interest on opening balance | I127: 8 | J127: 332 | K127: 148
H128: Under/over recovery of revenue for regulatory year | I128: 5712 | J128: –3790 | K128: –2540a
H129: Interest on under/over recovery for regulatory year | I129: 141 | J129: –103 | K129: –75
H130: Closing balance | I130: 6028 | J130: 2467 | K130: 0c
G131: Notes: | H131: (a) Approved DPPC revenue under/over recovery for regulatory year t.
H132: (b) Opening balance is the previous year's closing balance.
H133: (c)The DNSP is expected to achieve a closing balance as close to zero as practicable in its DPPC unders and overs account in each forecast year in its annual pricing proposals in the 2016–20 regulatory control period.
H139: Table 14.3 Example calculation of jurisdictional scheme amounts unders and overs account ($'000, nominal)
I140: Year t–2 | J140: Year t–1 | K140: Year t
I141: (actual) | J141: (estimate) | K141: (forecast)
H142: (A) Revenue from jurisdictional schemes | I142: 19 777 | J142: 23 121 | K142: 26 965
H143: (B) Less jurisdictional scheme payments for regulatory year = | I143: 20 272 | J143: 20 959 | K143: 28 641
H144: + Jurisdictional scheme 1 payments | I144: 14 159 | J144: 13 954 | K144: 13 961
H145: + Jurisdictional scheme 2 payments | I145: 6113 | J145: 7005 | K145: 14 680
H147: (A minus B) Under/over recovery of revenue for regulatory year | I147: –495 | J147: 2162 | K147: –1676a
H149: Jurisdictional scheme amount unders and overs account
H150: Nominal WACC (per cent) | I150: 0.05 | J150: 0.055 | K150: 0.06
H151: Opening balance | I151: –52 | J151: –562b | K151: 1628
H152: Interest on opening balance | I152: –3 | J152: –31 | K152: 98
H153: Under/over recovery of revenue for regulatory year | I153: –495 | J153: 2162 | K153: –1676a
H154: Interest on under/over recovery for regulatory year | I154: –12 | J154: 59 | K154: –50
H155: Closing balance | I155: –562 | J155: 1628 | K155: 0c
G156: Notes: | H156: (a) Approved jurisdictional scheme amounts revenue under/over recovery for regulatory year t.
H157: (b) Opening balance is the previous year's closing balance.
H158: (c) The DNSP is expected to achieve a closing balance as close to zero as practicable in its jurisdictional scheme amount unders and overs account in each forecast year in its annual pricing proposals in the 2016–20 regulatory control period.
B166: Metering
B167: Figure 16.3 | C167: Annual metering charges revenue cap formula
A168: (1) | H168: i=1,..,n and j=1,..,m and t=1,..,5
A170: (2) | H170: t = 1,2,…,5
A172: (3) | H172: t = 1,2,…,5
B175: where;
C176: is the total annual revenue for annual metering charges in year t.
E177: is the price of component 'j' of metering service 'i' in year t.
E178: is the forecast quantity of component 'j' of metering service 'i' in year t.
D179: is the annual revenue requirement for year t. When year t is the first year of the 2016–20 regulatory control period,
D180: is the annual revenue requirement in the annual metering charges Post Tax Revenue Model (PTRM) for year t.
E181: is equal to zero for all years except 2017 and is a once off adjustment to 2017 charges for the unders and overs recoveries relating to Advanced Metering Infrastructure actual revenues and actual costs incurred in 2014 and 2015.
E182: is the sum of annual adjustment factors in year t as calculated in the unders and overs account in appendix C.
D184: is the annual revenue requirement for year t–1.
C185: is the annual percentage change in the ABS CPI All Groups, Weighted Average of Eight Capital Cities[39] from the June quarter in year t–2 to the June quarter in year t–1, calculated using the following method:
B186: The ABS CPI All Groups, Weighted Average of Eight Capital Cities for the June quarter in regulatory year t–1
B187: divided by
B188: The ABS CPI All Groups, Weighted Average of Eight Capital Cities for the June quarter in regulatory year t–2
B189: minus one.
B190: For example, for the 2017 regulatory year, t–2 is June quarter 2015 and t–1 is June quarter 2016 and for the 2018 regulatory year, t–2 is June quarter 2016 and t–1 is June quarter 2017 and so on.
D191: is the X factor for each year of the 2016–20 regulatory control period as determined in the annual metering charges PTRM.
B194: [39] | C194: If the ABS does not or ceases to publish the index, then CPI will mean an index which the AER considers is the best available alternative index
B199: Figure 16.4 Side constraints
B201: where:
E202: is the price of annual metering charges service 'i' in year t.
D203: is the price of annual metering charges service 'i' in year t–1.
C204: is the annual percentage change in the ABS CPI All Groups, Weighted Average of Eight Capital Cities from the June quarter in year t–2 to the June quarter in year t–1, calculated using the following method:
B205: The ABS CPI All Groups, Weighted Average of Eight Capital Cities[40] for the June quarter in regulatory year t–1
B206: divided by
B207: The ABS CPI All Groups, Weighted Average of Eight Capital Cities for the June quarter in regulatory year t–2
B208: minus one.
B209: For example, for the 2017 regulatory year, t–2 is June quarter 2015 and t–1 is June quarter 2016 and for the 2018 regulatory year, t–2 is June quarter 2016 and t–1 is June quarter 2017 and so on.
D210: is the X factor for each year of the 2016–20 regulatory control period as determined in the annual metering charges PTRM.
E211: is the annual percentage change for the unders and overs recoveries relating to Advanced Metering Infrastructure actual revenues and actual costs incurred in 2014 and 2015. It is equal to zero for all years except 2017 and is a once off adjustment to 2017 charges.
E212: is the annual percentage change from the sum of annual adjustment factors in year t as calculated in the unders and overs account in appendix C.
B213: With the exception of the CPI and the X factor, the percentage for each of the other factors above can be calculated by dividing the incremental revenues (as used in the total annual revenue formula) for each factor by the expected revenues for regulatory year t–1 (based on the prices in year t–1 multiplied by the forecast quantities for year t).
B215: [40] | C215: If the ABS does not or ceases to publish the index, then CPI will mean an index which the AER considers is the best available alternative index.
H220: Table 16.xx | I220: Example calculation of annual metering charges unders and overs account ($'000, nominal)
I221: Year t–2 | J221: Year t–1 | K221: Year t
I222: (actual) | J222: (estimate) | K222: (forecast)
H223: (A) Revenue from annual metering charges | I223: 8 449 | J223: 7 389 | K223: 6 460
H224: (B) Less TARM for regulatory year = | I224: 7 366 | J224: 7 422 | K224: 7 573
H225: + Annual revenue requirement (ARt) | I225: 7 349 | J225: 7 412 | K225: 7 559
H226: + T factor (Tt) – true‑ups relating to the AMI–Order in Council | I226: 17 | J226: 10 | K226: 14
H228: (A minus B) Under/over recovery of revenue for regulatory year | I228: 1 083 | J228: –33 | K228: –1 113a
H230: Annual metering charges unders and overs account
H231: Nominal WACC (per cent) | I231: 0.05 | J231: 0.055 | K231: 0.06
H232: Opening balance | I232: –50 | J232: 1 057b | K232: 1 081
H233: Interest on opening balance | I233: –3 | J233: 58 | K233: 65
H234: Under/over recovery of revenue for regulatory year | I234: 1 083 | J234: –33 | K234: –1 113b
H235: Interest on under/over recovery for regulatory year | I235: 27 | J235: –1 | K235: –33
H236: Closing balance | I236: 1 057 | J236: 1 081 | K236: 0c
G237: Notes: | H237: (a) Approved annual metering charges revenue under/over recovery for regulatory year t. This is the Bt parameter in the annual metering charges revenue cap formula.
H238: (b) Opening balance is the previous year's closing balance.
H239: (c) The DNSP is expected to achieve a closing balance as close to zero as practicable in its annual metering charges unders and overs account in each forecast year in its annual pricing proposals in the 2016–20 regulatory control period.

Sheet Model update
A3: Tariff Approval Template for | C3: =A55 -> CitiPower
A5: calendar year commencing | C5: 2019
A7: t | B7: = | C7: =C5 -> 2019
A8: t-1 | B8: = | C8: =C7-1 -> 2018
A9: t-2 | B9: = | C9: 2017
A10: t-3 | B10: = | C10: 2016
A11: t-4 | B11: = | C11: 2015
A13: Please fill in yellow highlighted cells where appropriate
A15: CPI | B15: The ABS changed the index reference base in September 2012 from 1989-90 to 2011-12.
A16: CPI Index Sept 2011 | C16: 99.8
A17: CPI Index Sept 2012 | C17: 101.8 | E17: CPI 2013 | F17: =C17/C16-1 -> 0.02004008016
A18: CPI Index Sept 2013 | C18: 104 | E18: CPI 2014 | F18: =C18/C17-1 -> 0.02161100196
A19: CPI Index Sept 2014 | C19: 106.4 | E19: CPI 2015 | F19: =C19/C18-1 -> 0.02307692308
A20: CPI Index Sept 2015 | C20: 108 | E20: CPI 2016 | F20: =C20/C19-1 -> 0.01503759398
A21: CPI Index June 2015 | C21: 107.5
A22: CPI Index June 2016 | C22: 108.6 | E22: CPI 2017 | F22: =IF(OR(C21="",C22=""),0,C22/C21-1) -> 0.01023255814
A23: CPI Index June 2017 | C23: 110.7 | E23: CPI 2018 | F23: =IF(OR(C22="",C23=""),0,C23/C22-1) -> 0.01933701657
A24: CPI Index June 2018 | C24: 113 | E24: CPI 2019 | F24: 0.02077687444
A25: CPI Index June 2019 | E25: CPI 2020 | F25: 0
A28: ="CPI " &$C$9 -> CPI 2017 | C28: =VLOOKUP(A28,E$17:F$25,2,FALSE) -> 0.01023255814 | D28: (t-2)
A29: ="CPI " &$C$8 -> CPI 2018 | C29: =VLOOKUP(A29,E$17:F$25,2,FALSE) -> 0.01933701657 | D29: (t-1)
A30: ="CPI " &$C$5 -> CPI 2019 | C30: 0.02077687444 | D30: (t)
A35: Real Vanilla WACC (rvw)
A36: ="rvw for "&C$5 -> rvw for 2019 | D36: rvw for 2016 | E36: rvw for 2017 | F36: rvw for 2018 | G36: rvw for 2019 | H36: rvw for 2020
A37: =$A$54 -> Jemena | B37: =HLOOKUP($A$36,$D$36:$H$41,2,FALSE) -> 0.03766911607 | D37: 0.03932862871 | E37: 0.03873057145 | F37: 0.03821466541 | G37: 0.03766911607 | H37: 0.03766911607
A38: =$A$55 -> CitiPower | B38: =HLOOKUP($A$36,$D$36:$H$41,3,FALSE) -> 0.03508047475 | D38: 0.0367000241 | E38: 0.03612756881 | F38: 0.03563047885 | G38: 0.03508047475 | H38: 0.03508047475
A39: =$A$56 -> Powercor | B39: =HLOOKUP($A$36,$D$36:$H$41,4,FALSE) -> 0.03508047475 | D39: 0.0367000241 | E39: 0.03612756881 | F39: 0.03563047885 | G39: 0.03508047475 | H39: 0.03508047475
A40: =$A$57 -> AusNet Services | B40: =HLOOKUP($A$36,$D$36:$H$41,5,FALSE) -> 0.03742733406 | D40: 0.03871679489 | E40: 0.03826233619 | F40: 0.03801328469 | G40: 0.03742733406 | H40: 0.03742733406
A41: =$A$58 -> United Energy | B41: =HLOOKUP($A$36,$D$36:$H$41,6,FALSE) -> 0.03751614965 | D41: 0.0393301904 | E41: 0.03869503169 | F41: 0.03812382202 | G41: 0.03751614965 | H41: 0.03751614965
A43: ="rvw (t) "&C$5 -> rvw (t) 2019 | B43: =VLOOKUP(C$3,A37:B41,2,FALSE) -> 0.03508047475 | C43: (t) | D43: =VLOOKUP($C$3,$A$37:$H$41,4,FALSE) -> 0.0367000241 | E43: =VLOOKUP($C$3,$A37:$H$41,5,FALSE) -> 0.03612756881 | F43: =VLOOKUP($C$3,$A$37:$H$41,6,FALSE) -> 0.03563047885 | G43: =VLOOKUP($C$3,$A$37:$H$41,7,FALSE) -> 0.03508047475 | H43: =VLOOKUP($C$3,$A$37:$H$41,8,FALSE) -> 0.03508047475
A45: ="rvw for "&C$5-1 -> rvw for 2018 | B45: =IF(C$5=2016,F$184,HLOOKUP($A45,D$36:H$43,8,FALSE)) -> 0.03563047885 | C45: (t-1)
A47: ="rvw for "&C$5-2 -> rvw for 2017 | B47: =IF(OR(C$5=2016,C$5=2017),F$183,HLOOKUP($A47,D$36:H$43,8,FALSE)) -> 0.03612756881 | C47: (t-2)
A52: DuoS
A53: ="Xt for "&C$5 -> Xt for 2019 | D53: AR for 2016 | E53: Xt for 2017 | F53: Xt for 2018 | G53: Xt for 2019 | H53: Xt for 2020
A54: Jemena | B54: =IF(C$5=2016,"n/a",HLOOKUP($A$53,$E$53:$H$58,2,FALSE)) -> -0.01194800863 | D54: 238498758 | E54: -0.0325 | F54: 0.0027 | G54: -0.01194800863 | H54: -0.02386245157
A55: CitiPower | B55: =IF(C$5=2016,"n/a",HLOOKUP($A$53,$E$53:$H$58,3,FALSE)) -> -0.001232459035 | D55: 282881283 | E55: 0.004 | F55: -0.0005 | G55: -0.001232459035 | H55: -0.02947637269
A56: Powercor | B56: =IF(C$5=2016,"n/a",HLOOKUP($A$53,$E$53:$H$58,4,FALSE)) -> -0.03021164125 | D56: 621773294 | E56: 0.0468 | F56: -0.0081 | G56: -0.03021164125 | H56: -0.03390125883
A57: AusNet Services | B57: =IF(C$5=2016,"n/a",HLOOKUP($A$53,$E$53:$H$58,5,FALSE)) -> -0.03013217637 | D57: 586045137 | E57: 0.003 | F57: -0.0184 | G57: -0.03013217637 | H57: -0.03013217637
A58: United Energy | B58: =IF(C$5=2016,"n/a",HLOOKUP($A$53,$E$53:$H$58,6,FALSE)) -> -0.02611202001 | D58: 375069867 | E58: -0.0383 | F58: -0.0316 | G58: -0.02611202001 | H58: -0.003957117526
A60: ="Xt for"&C$5 -> Xt for2019 | B60: =VLOOKUP(C$3,A54:B58,2,FALSE) -> -0.001232459035 | D60: =VLOOKUP($C$3,$A$54:$H$58,4,FALSE) -> 282881283 | E60: =VLOOKUP($C$3,$A$54:$H$58,5,FALSE) -> 0.004 | F60: =VLOOKUP($C$3,$A$54:$H$58,6,FALSE) -> -0.0005 | G60: =VLOOKUP($C$3,$A$54:$H$58,7,FALSE) -> -0.001232459035 | H60: =VLOOKUP($C$3,$A$54:$H$58,8,FALSE) -> -0.02947637269
A64: Metering
A65: ="Xt for "&C$5 -> Xt for 2019 | D65: AR for 2016 | E65: Xt for 2017 | F65: Xt for 2018 | G65: Xt for 2019 | H65: Xt for 2020
A66: Jemena | B66: =IF(C$5=2016,"n/a",HLOOKUP($A$65,$E$65:$H$70,2,FALSE)) -> -0.01181844246 | D66: 44212949.02 | E66: 0.3473 | F66: -0.0136 | G66: -0.01181844246 | H66: -0.015
A67: CitiPower | B67: =IF(C$5=2016,"n/a",HLOOKUP($A$65,$E$65:$H$70,3,FALSE)) -> 0.07936799905 | D67: 32973195.04 | E67: 0.1402 | F67: 0.0767 | G67: 0.07936799905 | H67: 0.075
A68: Powercor | B68: =IF(C$5=2016,"n/a",HLOOKUP($A$65,$E$65:$H$70,4,FALSE)) -> 0.08490086085 | D68: 79145313.2 | E68: 0.1096 | F68: 0.0819 | G68: 0.08490086085 | H68: 0.08
A69: AusNet Services | B69: =IF(C$5=2016,"n/a",HLOOKUP($A$65,$E$65:$H$70,5,FALSE)) -> 0.1693485927 | D69: 92754610.44 | E69: 0.0231 | F69: 0.1658 | G69: 0.1693485927 | H69: 0.165
A70: United Energy | B70: =IF(C$5=2016,"n/a",HLOOKUP($A$65,$E$65:$H$70,6,FALSE)) -> 0.05954200889 | D70: 62733316.95 | E70: 0.3081 | F70: 0.057 | G70: 0.05954200889 | H70: 0.055
A72: ="Xt for"&C$5 -> Xt for2019 | B72: =VLOOKUP(C$3,A66:B70,2,FALSE) -> 0.07936799905 | D72: =VLOOKUP($C$3,$A$66:$H$70,4,FALSE) -> 32973195.04 | E72: =VLOOKUP($C$3,$A$66:$H$70,5,FALSE) -> 0.1402 | F72: =VLOOKUP($C$3,$A$66:$H$70,6,FALSE) -> 0.0767 | G72: =VLOOKUP($C$3,$A$66:$H$70,7,FALSE) -> 0.07936799905 | H72: =VLOOKUP($C$3,$A$66:$H$70,8,FALSE) -> 0.075
A76: DuoS
A77: Real Pre-tax WACC (rptw)
A78: ="rptw for "&C$5 -> rptw for 2019 | D78: rptw for 2016 | E78: rptw for 2017 | F78: rptw for 2018 | G78: rptw for 2019 | H78: rptw for 2020
A79: =$A$54 -> Jemena | B79: =HLOOKUP($A$78,$D$78:$H$83,2,FALSE) -> 0.04530393293 | D79: 0.04723374708 | E79: 0.04663553542 | F79: 0.04611949618 | G79: 0.04530393293
A80: =$A$55 -> CitiPower | B80: =HLOOKUP($A$78,$D$78:$H$83,3,FALSE) -> 0.04257942963 | D80: 0.04696344556 | E80: 0.04636538831 | F80: 0.04584948227 | G80: 0.04257942963
A81: =$A$56 -> Powercor | B81: =HLOOKUP($A$78,$D$78:$H$83,4,FALSE) -> 0.04158200864 | D81: 0.04347088828 | E81: 0.0428982852 | F81: 0.0424010669 | G81: 0.04158200864
A82: =$A$57 -> AusNet Services | B82: =HLOOKUP($A$78,$D$78:$H$83,5,FALSE) -> 0.04377949723 | D82: 0.04533877046 | E82: 0.04488419444 | F82: 0.04463507863 | G82: 0.04377949723
A83: =$A$58 -> United Energy | B83: =HLOOKUP($A$78,$D$78:$H$83,6,FALSE) -> 0.04610722815 | D83: 0.04819181771 | E83: 0.04755649502 | F83: 0.04698513788 | G83: 0.04610722815
A85: ="rptw (t) "&C$5 -> rptw (t) 2019 | B85: =VLOOKUP(C$3,A79:B83,2,FALSE) -> 0.04257942963 | C85: (t) | D85: =VLOOKUP($C$3,$A$79:$H$83,4,FALSE) -> 0.04696344556 | E85: =VLOOKUP($C$3,$A79:$H$83,5,FALSE) -> 0.04636538831 | F85: =VLOOKUP($C$3,$A$79:$H$83,6,FALSE) -> 0.04584948227 | G85: =VLOOKUP($C$3,$A$79:$H$83,7,FALSE) -> 0.04257942963 | H85: =VLOOKUP($C$3,$A$79:$H$83,8,FALSE) -> 0
A87: ="rptw for "&C$5-1 -> rptw for 2018 | B87: =IF(C$5=2016,B$183,HLOOKUP($A87,D$78:H$85,8,FALSE)) -> 0.04584948227 | C87: (t-1)
A89: ="rptw for "&C$5-2 -> rptw for 2017 | B89: =IF(OR(C$5=2016,C$5=2017),B$183,HLOOKUP($A89,D$78:H$85,8,FALSE)) -> 0.04636538831 | C89: (t-2)
A93: F factor Scheme | B93: =$C$5 -> 2019 | D93: 2016 | E93: =+D93+1 -> 2017 | F93: =+E93+1 -> 2018 | G93: 2019 | H93: 2020
A94: =$A$54 -> Jemena | B94: =HLOOKUP($B$93,$D$93:$H$98,2,FALSE) -> 117300 | D94: -680000 | E94: 70000 | F94: 655000 | G94: 117300
A95: =$A$55 -> CitiPower | B95: =HLOOKUP($B$93,$D$93:$H$98,3,FALSE) -> 43200 | D95: -15000 | E95: 410000 | F95: 140000 | G95: 43200
A96: =$A$56 -> Powercor | B96: =HLOOKUP($B$93,$D$93:$H$98,4,FALSE) -> 4639200 | D96: -1530000 | E96: 1420000 | F96: 1755000 | G96: 4639200
A97: =$A$57 -> AusNet Services | B97: =HLOOKUP($B$93,$D$93:$H$98,5,FALSE) -> 1485000 | D97: 1870000 | E97: 3420000 | F97: 750000 | G97: 1485000
A98: =$A$58 -> United Energy | B98: =HLOOKUP($B$93,$D$93:$H$98,6,FALSE) -> 224400 | D98: -2245000 | E98: 555000 | F98: 1000000 | G98: 224400
A100: ="Ifactor (t) "&C$5 -> Ifactor (t) 2019 | B100: =VLOOKUP(C$3,A94:B98,2,FALSE) -> 43200 | D100: =VLOOKUP($C$3,$A$94:$H$98,4,FALSE) -> -15000 | E100: =VLOOKUP($C$3,$A$94:$H$98,5,FALSE) -> 410000 | F100: =VLOOKUP($C$3,$A$94:$H$98,6,FALSE) -> 140000 | G100: =VLOOKUP($C$3,$A$94:$H$98,7,FALSE) -> 43200 | H100: =VLOOKUP($C$3,$A$94:$H$98,8,FALSE) -> 0
A104: S factor Scheme | B104: =$C$5 -> 2019 | D104: 2016 | E104: =+D104+1 -> 2017 | F104: =+E104+1 -> 2018 | G104: 2019 | H104: 2020
A105: =$A$54 -> Jemena | B105: =HLOOKUP($B$104,$D$104:$H$109,2,FALSE) -> 0.006950679651 | D105: 0.03997406406 | E105: 0.01488310469 | F105: -0.03971153723 | G105: 0.006950679651
A106: =$A$55 -> CitiPower | B106: =HLOOKUP($B$104,$D$104:$H$109,3,FALSE) -> -0.009608708052 | D106: -0.01268789003 | E106: 0.004032145684 | F106: 0.01857052664 | G106: -0.009608708052 | I106: <---Banking applied
A107: =$A$56 -> Powercor | B107: =HLOOKUP($B$104,$D$104:$H$109,4,FALSE) -> 0.02521273932 | D107: -0.01184910821 | E107: 0.05100648542 | F107: -0.01384168227 | G107: 0.02521273932
A108: =$A$57 -> AusNet Services | B108: =HLOOKUP($B$104,$D$104:$H$109,5,FALSE) -> 0.03014790749 | D108: 0.03357397489 | E108: 0.03217876587 | F108: -0.06343364122 | G108: 0.03014790749
A109: =$A$58 -> United Energy | B109: =HLOOKUP($B$104,$D$104:$H$109,6,FALSE) -> 0.01682414399 | D109: -0.02947870448 | E109: 0.02836672327 | F109: 0.02276703882 | G109: 0.01682414399
A111: ="S factor (t) "&C$5 -> S factor (t) 2019 | B111: =VLOOKUP(C$3,A105:B109,2,FALSE) -> -0.009608708052 | D111: =VLOOKUP($C$3,$A$105:$H$109,4,FALSE) -> -0.01268789003 | E111: =VLOOKUP($C$3,$A$105:$H$109,5,FALSE) -> 0.004032145684 | F111: =VLOOKUP($C$3,$A$105:$H$109,6,FALSE) -> 0.01857052664 | G111: =VLOOKUP($C$3,$A$105:$H$109,7,FALSE) -> -0.009608708052 | H111: =VLOOKUP($C$3,$A$105:$H$109,8,FALSE) -> 0
A115: Pass through Amounts | B115: =$C$5 -> 2019 | D115: 2016 | E115: =+D115+1 -> 2017 | F115: =+E115+1 -> 2018 | G115: 2019 | H115: 2020
A116: =$A$54 -> Jemena | B116: =HLOOKUP($B$115,$D$115:$H$120,2,FALSE) -> 0 | D116: 0 | E116: 0 | F116: 0 | G116: 0
A117: =$A$55 -> CitiPower | B117: =HLOOKUP($B$115,$D$115:$H$120,3,FALSE) -> 0 | D117: 0 | E117: 0 | F117: 0 | G117: 0
A118: =$A$56 -> Powercor | B118: =HLOOKUP($B$115,$D$115:$H$120,4,FALSE) -> 0 | D118: 0 | E118: 0 | F118: 0 | G118: 0
A119: =$A$57 -> AusNet Services | B119: =HLOOKUP($B$115,$D$115:$H$120,5,FALSE) -> 0 | D119: =-(5723000*(1+0.0975)) -> -6280992.5 | E119: 0 | F119: 0 | G119: 0
A120: =$A$58 -> United Energy | B120: =HLOOKUP($B$115,$D$115:$H$120,6,FALSE) -> 0 | D120: 0 | E120: 0 | F120: 0 | G120: 0
A122: ="Pass through amounts (t) "&C$5 -> Pass through amounts (t) 2019 | B122: =VLOOKUP(C$3,A116:B120,2,FALSE) -> 0 | D122: =VLOOKUP($C$3,$A$116:$H$120,4,FALSE) -> 0 | E122: =VLOOKUP($C$3,$A$116:$H$120,5,FALSE) -> 0 | F122: =VLOOKUP($C$3,$A$116:$H$120,6,FALSE) -> 0 | G122: =VLOOKUP($C$3,$A$116:$H$120,7,FALSE) -> 0 | H122: =VLOOKUP($C$3,$A$116:$H$120,8,FALSE) -> 0
A126: License Fees | B126: =$C$5 -> 2019 | D126: 2016 | E126: =+D126+1 -> 2017 | F126: =+E126+1 -> 2018 | G126: 2019 | H126: 2020
A127: =$A$54 -> Jemena | B127: =HLOOKUP($B$126,$D$126:$H$131,2,FALSE) -> 77350 | D127: 36033 | E127: 39516 | F127: 76545 | G127: 77350
A128: =$A$55 -> CitiPower | B128: =HLOOKUP($B$126,$D$126:$H$131,3,FALSE) -> 78912 | D128: 36475 | E128: 40445 | F128: 78091 | G128: 78912
A129: =$A$56 -> Powercor | B129: =HLOOKUP($B$126,$D$126:$H$131,4,FALSE) -> 187026 | D129: 85205 | E129: 94964 | F129: 185081 | G129: 187026
A130: =$A$57 -> AusNet Services | B130: =HLOOKUP($B$126,$D$126:$H$131,5,FALSE) -> 170003 | D130: 74811 | E130: 85031 | F130: 168235 | G130: 170003
A131: =$A$58 -> United Energy | B131: =HLOOKUP($B$126,$D$126:$H$131,6,FALSE) -> 159925 | D131: 74197 | E131: 81712 | F131: 158262 | G131: 159925
A133: ="Licence Fee (t-1) "&TEXT(C$5-2,"####")&"-"&RIGHT(TEXT(C$5-1,"##"),2) -> Licence Fee (t-1) 2017-18 | B133: =VLOOKUP(C$3,A127:B131,2,FALSE) -> 78912 | D133: =VLOOKUP($C$3,$A$127:$H$131,4,FALSE) -> 36475 | E133: =VLOOKUP($C$3,$A$127:$H$131,5,FALSE) -> 40445 | F133: =VLOOKUP($C$3,$A$127:$H$131,6,FALSE) -> 78091 | G133: =VLOOKUP($C$3,$A$127:$H$131,7,FALSE) -> 78912 | H133: =VLOOKUP($C$3,$A$127:$H$131,8,FALSE) -> 0
A137: DMIA Carryover adjustment | B137: =$C$5 -> 2019 | D137: 2016 | E137: =+D137+1 -> 2017 | F137: =+E137+1 -> 2018 | G137: 2019 | H137: 2020
A138: =$A$54 -> Jemena | B138: =HLOOKUP($B$137,$D$137:$H$142,2,FALSE) -> 0 | E138: =H154 -> -91239.84446
A139: =$A$55 -> CitiPower | B139: =HLOOKUP($B$137,$D$137:$H$142,3,FALSE) -> 0
A140: =$A$56 -> Powercor | B140: =HLOOKUP($B$137,$D$137:$H$142,4,FALSE) -> 0
A141: =$A$57 -> AusNet Services | B141: =HLOOKUP($B$137,$D$137:$H$142,5,FALSE) -> 0
A142: =$A$58 -> United Energy | B142: =HLOOKUP($B$137,$D$137:$H$142,6,FALSE) -> 0 | E142: =H163 -> -479660.6938
A144: ="T factor (t) "&C$5 -> T factor (t) 2019 | B144: =VLOOKUP(C$3,A138:B142,2,FALSE) -> 0 | D144: =VLOOKUP($C$3,$A$138:$H$142,4,FALSE) -> 0 | E144: =VLOOKUP($C$3,$A$138:$H$142,5,FALSE) -> 0 | F144: =VLOOKUP($C$3,$A$138:$H$142,6,FALSE) -> 0 | G144: =VLOOKUP($C$3,$A$138:$H$142,7,FALSE) -> 0 | H144: =VLOOKUP($C$3,$A$138:$H$142,8,FALSE) -> 0
A147: DMIA Carryover adjustment
A148: Jemena | C148: 2011-15 | D148: 2016 | E148: 2017
A149: CPI - PTRM | D149: 0.02323079821 | E149: 0.02323079821
A150: Nominal Vanilla WACC - PTRM | C150: 0.1033058648 | D150: =(1+D149)*(1+D37)-1 -> 0.06347306235 | E150: =(1+E149)*(1+E37)-1 -> 0.06286111175
C152: 2011 | D152: 2012 | E152: 2013 | F152: 2014 | G152: 2015 | H152: Total
A153: Ex-ante revenue minus ex post expenditure ($nominal) | C153: -263938 | D153: -16375.4 | E153: 163676.6714 | F153: 153066.6261 | G153: 125690.5855 | H153: =SUM(C153:G153) -> 162120.4829
A154: DMIA Carryover adjustment | C154: =0-(C153/(1+$C150))*(1+$C150)^5*(1+$D150)*(1+$E150) -> 442067.5528 | D154: =C154-(D153/(1+$C150))*(1+$C150)^4*(1+$D150)*(1+$E150) -> 466926.4987 | E154: =D154-(E153/(1+$C150))*(1+$C150)^3*(1+$D150)*(1+$E150) -> 241719.6213 | F154: =E154-(F153/(1+$C150))*(1+$C150)^2*(1+$D150)*(1+$E150) -> 50831.26114 | G154: =F154-(G153/(1+$C150))*(1+$C150)^1*(1+$D150)*(1+$E150) -> -91239.84446 | H154: =G154 -> -91239.84446
A157: UED | C157: 2011-15 | D157: 2016 | E157: 2017
A158: CPI - PTRM | D158: 0.02323079821 | E158: 0.02323079821
A159: Nominal Vanilla WACC - PTRM | C159: 0.09489772882 | D159: =(1+D158)*(1+D41)-1 -> 0.06347466033 | E159: =(1+E158)*(1+E41)-1 -> 0.06282474637
C161: 2011 | D161: 2012 | E161: 2013 | F161: 2014 | G161: 2015 | H161: Total
A162: Ex-ante revenue minus ex post expenditure ($nominal) | C162: 406960 | D162: 327739.2 | E162: 91075.34272 | F162: -227853.7479 | G162: -450364.8291 | H162: =SUM(C162:G162) -> 147555.9658
A163: DMIA Carryover adjustment | C163: =0-(C162/(1+$C159))*(1+$C159)^5*(1+$D159)*(1+$E159) -> -661050.6678 | D163: =C163-(D162/(1+$C159))*(1+$C159)^4*(1+$D159)*(1+$E159) -> -1147276.309 | E163: =D163-(E162/(1+$C159))*(1+$C159)^3*(1+$D159)*(1+$E159) -> -1270682.438 | F163: =E163-(F162/(1+$C159))*(1+$C159)^2*(1+$D159)*(1+$E159) -> -988702.2892 | G163: =F163-(G162/(1+$C159))*(1+$C159)^1*(1+$D159)*(1+$E159) -> -479660.6938 | H163: =G163 -> -479660.6938
A172: Regulatory Period 2011-15
A174: DuoS
A175: Real Pre-tax WACC for distribution tariffs | D175: Real Vanilla WACC for distribution tariffs
A177: =$A$54 -> Jemena | B177: 0.087 | D177: =$A$54 -> Jemena | F177: 0.0756
A178: =$A$55 -> CitiPower | B178: 0.0786 | D178: =$A$55 -> CitiPower | F178: 0.0674
A179: =$A$56 -> Powercor | B179: 0.0776 | D179: =$A$56 -> Powercor | F179: 0.0674
A180: =$A$57 -> AusNet Services | B180: 0.078 | D180: =$A$57 -> AusNet Services | F180: 0.0699
A181: =$A$58 -> United Energy | B181: 0.0791 | D181: =$A$58 -> United Energy | F181: 0.0674
A183: pretax WACCD | B183: =VLOOKUP($C$3,A177:B181,2,FALSE) -> 0.0786 | D183: Real Vanilla WACCD | F183: =VLOOKUP($C$3,D177:F181,3,FALSE) -> 0.0674
A188: Pass Through Costs | E188: 2014 | F188: 2015
A190: =A204 -> F Factor pass through | E190: =B204 -> 10000 | F190: =C204 -> -65000
A191: VBRC | E191: =B215 -> 0 | F191: =C215 -> 0
A192: Powerline Replacement program | E192: =B226 -> 0 | F192: =C226 -> 0
A193: TOTAL PASS THROUGH AMOUNTS | E193: =SUM(E190:E192) -> 10000 | F193: =SUM(F190:F192) -> -65000
A197: F factor Scheme | B197: 2014 | C197: 2015
A198: =$A$54 -> Jemena | B198: 370000 | C198: -855000
A199: =$A$55 -> CitiPower | B199: 10000 | C199: -65000
A200: =$A$56 -> Powercor | B200: 2470000 | C200: -2405000
A201: =$A$57 -> AusNet Services | B201: 1970000 | C201: 2020000
A202: =$A$58 -> United Energy | B202: 980000 | C202: -70000
A204: F Factor pass through | B204: =VLOOKUP($C$3,$A$198:$C$202,2,FALSE) -> 10000 | C204: =VLOOKUP($C$3,$A$198:$C$202,3,FALSE) -> -65000
A208: VBRC | B208: 2014 | C208: 2015
A209: =$A$54 -> Jemena | B209: 0 | C209: 0
A210: =$A$55 -> CitiPower | B210: 0 | C210: 0
A211: =$A$56 -> Powercor | B211: =H245 -> 7193170.454 | C211: =I245 -> 8768550.378
A212: =$A$57 -> AusNet Services | B212: =H262 -> 6039778.158 | C212: =I262 -> 8341755.212
A213: =$A$58 -> United Energy | B213: 0 | C213: 0
A215: VBRC pass through | B215: =VLOOKUP($C$3,$A$209:$C$213,2,FALSE) -> 0 | C215: =VLOOKUP($C$3,$A$209:$C$213,3,FALSE) -> 0
A219: Powerline Replacement program | B219: 2014 | C219: 2015
A220: =$A$54 -> Jemena | B220: 0 | C220: 0
A221: =$A$55 -> CitiPower | B221: 0 | C221: 0
A222: =$A$56 -> Powercor | B222: =H249 -> 0 | C222: 8777690.455
A223: =$A$57 -> AusNet Services | B223: 0 | C223: 5723419.31
A224: =$A$58 -> United Energy | B224: 0 | C224: 0
A226: Powerline Replacement program | B226: =VLOOKUP($C$3,$A$219:$C$224,2,FALSE) -> 0 | C226: =VLOOKUP($C$3,$A$219:$C$224,3,FALSE) -> 0
A231: VBRC
A233: Powercor | E233: 2011 | F233: 2012 | G233: 2013 | H233: 2014 | I233: 2015
A234: Pass through amounts approved (Nominal $) - Forecast CPI | G234: 10270612 | H234: 7181525 | I234: 8777217
A235: (As per AER's Final Decision on Powercor's VBRC pass through, table 7.2, 7 March 2012)
A236: Forecast CPI in PTRM | E236: 0.0257487534 | F236: 0.0257487534 | G236: 0.0257487534 | H236: 0.0257487534 | I236: 0.0257487534
E237: =1+E236 -> 1.025748753 | F237: =E237*(1+F236) -> 1.052160505 | G237: =F237*(1+G236) -> 1.079252326 | H237: =G237*(1+H236) -> 1.107041729 | I237: =H237*(1+I236) -> 1.135546673
A239: Pass through amounts approved (Real $2010) | G239: =G234/G237 -> 9516414.047 | H239: =H234/H237 -> 6487131.257 | I239: =I234/I237 -> 7729507.918
A242: Actual CPI | E242: =173.3/168.6-1 -> 0.02787663108 | F242: =179.4/173.3-1 -> 0.03519907675 | G242: =C17/C16-1 -> 0.02004008016 | H242: =C18/C17-1 -> 0.02161100196 | I242: =C19/C18-1 -> 0.02307692308
E243: =1+E242 -> 1.027876631 | F243: =E243*(1+F242) -> 1.06405694 | G243: =F243*(1+G242) -> 1.085380726 | H243: =G243*(1+H242) -> 1.108836891 | I243: 1.134425434
A245: Pass through amounts approved (Nominal $) - Actual CPI | G245: =G239*G243 -> 10328932.39 | H245: =H239*H243 -> 7193170.454 | I245: =I239*I243 -> 8768550.378
A250: AusNet Services | E250: 2011 | F250: 2012 | G250: 2013 | H250: 2014 | I250: 2015
A251: Pass through amounts approved (Nominal $) - Forecast CPI | G251: 5790000 | H251: 6030000 | I251: 8350000
A252: As per AER's Final Decision on AusNet Services's VBRC pass through, table 1.3, 19 October 2012
A253: Forecast CPI in PTRM | E253: 0.0257487534 | F253: 0.0257487534 | G253: 0.0257487534 | H253: 0.0257487534 | I253: 0.0257487534
E254: =1+E253 -> 1.025748753 | F254: =E254*(1+F253) -> 1.052160505 | G254: =F254*(1+G253) -> 1.079252326 | H254: =G254*(1+H253) -> 1.107041729 | I254: =H254*(1+I253) -> 1.135546673
A256: Pass through amounts approved (Real $2010) | G256: =G251/G254 -> 5364825.127 | H256: =H251/H254 -> 5446949.148 | I256: =I251/I254 -> 7353286.482
A259: Actual CPI | E259: =173.3/168.6-1 -> 0.02787663108 | F259: =179.4/173.3-1 -> 0.03519907675 | G259: =C17/C16-1 -> 0.02004008016 | H259: =C18/C17-1 -> 0.02161100196 | I259: =C19/C18-1 -> 0.02307692308
E260: =1+E259 -> 1.027876631 | F260: =E260*(1+F259) -> 1.06405694 | G260: =F260*(1+G259) -> 1.085380726 | H260: =G260*(1+H259) -> 1.108836891 | I260: 1.134425434
A262: Pass through amounts approved (Nominal $) - Actual CPI | G262: =G256*G260 -> 5822877.791 | H262: =H256*H260 -> 6039778.158 | I262: =I256*I260 -> 8341755.212
A270: AMI Transitional Adjustment in 2018 prices ($)
A271: =C3 -> CitiPower
C272: 2009 | D272: 2010 | E272: 2011 | F272: 2012 | G272: 2013 | H272: 2014 | I272: 2015 | J272: 2016 | K272: 2017 | L272: 2018 | M272: 2019 | N272: 2020
A273: CPI | C273: 0.04981084489 | D273: 0.01261261261 | E273: 0.02787663108 | F273: 0.03519907675 | G273: =$F17 -> 0.02004008016 | H273: =$F18 -> 0.02161100196 | I273: =$F19 -> 0.02307692308 | J273: =$F20 -> 0.01503759398 | K273: =$F22 -> 0.01023255814 | L273: =$F23 -> 0.01933701657 | M273: =$F24 -> 0.02077687444 | N273: =$F25 -> 0
A275: Vanilla' WACC (Real) | C275: 0.06771645866 | D275: =$C275 -> 0.06771645866 | E275: =$C275 -> 0.06771645866 | F275: 0.06771645866 | G275: 0.06771645866 | H275: 0.05023909437 | I275: =H275 -> 0.05023909437 | J275: =D43 -> 0.0367000241 | K275: =E43 -> 0.03612756881 | L275: =F43 -> 0.03563047885 | M275: =G43 -> 0.03508047475 | N275: =H43 -> 0.03508047475
A276: Vanilla' WACC (nominal) | C276: =(1+C275)*(1+C273)-1 -> 0.1209003176 | D276: 0.08118315273 | E276: 0.09748079647 | F276: 0.1052990922 | G276: 0.08911358208 | H276: 0.0729358135 | I276: 0.07447538116 | J276: 0.05228949815 | K276: 0.0467298044 | L276: 0.05565648259 | M276: 0.0565862118 | N276: 0.03508047475
A278: Future value index | C278: =(1+C276)^0.5 -> 1.058725799 | D278: =C278*(D276+1) -> 1.144676497 | E278: 1.256260474 | F278: 1.388543561 | G278: 1.512281652 | H278: 1.622581145 | I278: 1.743423494 | J278: 1.834586233 | K278: 1.920316089 | L278: 2.027194128 | M278: =L278*(M276+1) -> 2.141905365 | N278: =M278*(N276+1) -> 2.217044422
A280: AMI Transitional Adjustment - Revenue and Costs 2009-2015
A281: Over \ (under) recovery of revenue and costs (000's)
A282: NPV at 1 January 2009 | D282: 296.8349907
A284: AMI Transitional Adjustment in 2018 prices ($) | D284: =-D282*L278*10^3 -> -601742.1501
A286: AMI Transitional Adjustment - Revenue 2016-2020
A287: Increase \ (Reduction) in revenue 2016-2020 (000's)
A288: NPV at 1 January 2016 | D288: -1035.544676
A290: AMI Transitional Adjustment in 2018 prices ($) | D290: =D288*L278/I278*10^3 -> -1204096.477
A292: Total AMI Transitional Adjustment in 2018 prices ($) | D292: =SUM(D284,D290) -> -1805838.627

Sheet Metering
B1: ="Tariff Approval - "&'Model update'!C3 -> Tariff Approval - CitiPower
B3: ="PROPOSED "&'Model update'!$C$5&" METERING TARIFFS AND REVENUE" -> PROPOSED 2019 METERING TARIFFS AND REVENUE
D5: ="Proposed Metering Tariffs P(t) for " &'Model update'!$C$5 -> Proposed Metering Tariffs P(t) for 2019 | E5: ="Current Metering Tariffs P(t-1) for" &'Model update'!$C$8 -> Current Metering Tariffs P(t-1) for2018 | F5: ="Forecast Quantities (Qt) for "&'Model update'!$C$5 -> Forecast Quantities (Qt) for 2019 | H5: ="Forecast Revenue (Pt "&'Model update'!$C$5&")*(Qt " &'Model update'!$C$5&")" -> Forecast Revenue (Pt 2019)*(Qt 2019) | I5: ="Revenue (Pt-1 "&'Model update'!$C$8&")*(Qt " &'Model update'!$C$5&")" -> Revenue (Pt-1 2018)*(Qt 2019) | K5: Movement | L5: Side Constraint
B6: Proposed tariff | C6: Existing tariff | D6: PropTar $/Cust/year | E6: ExistTar $/Cust/year | F6: FcastVol Cust # | H6: PropRev Fixed | I6: ExistRev Fixed
B8: Single phase | C8: Single phase | D8: 73 | E8: 73 | F8: 262817.0151 | H8: =D8*F8 -> 19185642.1 | I8: =E8*F8 -> 19185642.1 | K8: =IFERROR(H8/I8,"") -> 1 | L8: =IF(B8="","",IF(K8<$I$30,"COMPLIANT","BREACHED")) -> COMPLIANT
B9: Three phase direct connected meter | C9: Three phase direct connected meter | D9: 91.25 | E9: 91.25 | F9: 64015.14737 | H9: 5841382.198 | I9: 5841382.198 | K9: =IFERROR(H9/I9,"") -> 1 | L9: COMPLIANT
B10: Three phase CT connected meter | C10: Three phase CT connected meter | D10: 113.15 | E10: 113.15 | F10: 3075.247268 | H10: 347964.2284 | I10: 347964.2284 | K10: 1 | L10: COMPLIANT
H11: 0 | I11: 0
H12: 0 | I12: 0
H13: 0 | I13: 0
H14: 0 | I14: 0
H15: 0 | I15: 0
H16: 0 | I16: 0
H17: =SUM(H7:H16) -> 25374988.53 | I17: =SUM(I7:I16) -> 25374988.53
B22: Year (t) | D22: ='Model update'!C5 -> 2019 | E22: =D22-1 -> 2018
B24: Table 1- Compliance with AER Final Determination Total Metering Annual Revenue | H24: Metering tariff rebalancing control
B25: Revenue from Metering charges for year t | D25: =H17 -> 25374988.53 | H25: ="CPI "&'Model update'!$C$5 -> CPI 2019 | I25: =D37 -> 0.02077687444
B26: Total Annual Metering Revenue for year t | D26: =D33 -> 25450628.93 | H26: ="X "& 'Model update'!$C$5 -> X 2019 | I26: =MIN(D38,0) -> 0
D27: =IF(D25="","",IF(D26>=D25,"METERING REVENUE CAP FORMULA COMPLIANT","METERING REVENUE CAP FORMULA BREACHED")) -> METERING REVENUE CAP FORMULA COMPLIANT | H27: ="Tt "&'Model update'!$C$5 -> Tt 2019 | I27: =(D31-E31)/I$17 -> 0.07116608642
H28: ="Bt "&'Model update'!$C$5 -> Bt 2019 | I28: =(D32-E32)/I$17 -> 0.01288194299
B29: Table 2 - Total Annual Revenue for year t (TARMt)
B30: Adjusted Annual Smoothed Metering Revenue for year t | D30: =D39 -> 25331292.74 | I30: =(1+I25)*(1-I26)*(1+0.02)+SUM(I27:I28) -> 1.125240441
B31: T factor for year t | E31: ='Model update'!D292 -> -1805838.627
B32: B factor for year t | D32: =-F68*(1+F66)^0.5 -> 119336.1917 | E32: -207542.9639
B33: Total Annual Revenue for year t | D33: =SUM(D30:D32) -> 25450628.93
B35: Table 3 - Adjusted Annual Revenue for year t (ARt)
B36: Adjusted Annual Smoothed Revenue for year t-1 | D36: 26955070.03
B37: CPI for period t | D37: ='Model update'!C30 -> 0.02077687444
B38: X factor for period t | D38: ='Model update'!B72 -> 0.07936799905
B39: Adjusted Annual Smoothed Revenue for year t | D39: =IF(D22=2016,'Model update'!D72,(D36*(1+D37)*(1-D38))) -> 25331292.74
B44: Table 4 - Metering Services Recovery Arrangements
D45: Year t-2 | E45: Year t-1 | F45: Year t
D46: (actual) | E46: (estimate) | F46: (forecast)
D47: =E47-1 -> 2017 | E47: =F47-1 -> 2018 | F47: =D$22 -> 2019
B49: (A) Revenue from Metering proposal charges | D49: 29244493 | E49: =E89 -> 25073175 | F49: =D25 -> 25374988.53
B52: (B) Less TARM for regulatory year = | D52: =SUM(D53:D54) -> 28640449.73 | E52: =SUM(E53:E54) -> 25149231.4 | F52: =SUM(F53:F54) -> 25331292.74
B53: + Adjusted annual smoothed revenue | D53: 28640449.73 | E53: =D36 -> 26955070.03 | F53: =D30 -> 25331292.74
B54: + T factor | D54: 0 | E54: =E31 -> -1805838.627 | F54: =D31 -> 0
B57: (A minus B) Under/over recovery of revenue for regulatory year | D57: =D49-D52 -> 604043.2696 | E57: =E49-E52 -> -76056.40117 | F57: =F49-F52 -> 43695.79082
B61: Table 5 - Metering Services Unders and Overs Account
D62: Year t-2 | E62: Year t-1 | F62: Year t
D63: (actual) | E63: (estimate) | F63: (forecast)
B64: Calendar year | D64: =E64-1 -> 2017 | E64: =F64-1 -> 2018 | F64: =D$22 -> 2019
B66: Nominal WACC | D66: =(1+'Model update'!$B$47)*(1+'Model update'!$C$28)-1 -> 0.0467298044 | E66: =(1+'Model update'!$B$45)*(1+'Model update'!$C$29)-1 -> 0.05565648259 | F66: =(1+'Model update'!$B$43)*(1+'Model update'!$C$30)-1 -> 0.0565862118
B68: Opening balance | D68: -624752.4488 | E68: =D72 -> -35951.46284 | F68: =E72 -> -116096.6545
B69: Interest on Opening balance | D69: =D68*D66 -> -29194.55973 | E69: =E68*E66 -> -2000.931965 | F69: =F68*F66 -> -6569.46988
B70: Under/over recovery of revenue for regulatory year | D70: =D57 -> 604043.2696 | E70: =E57 -> -76056.40117 | F70: =F57 -> 43695.79082
B71: Interest on under/over recovery for regulatory year | D71: =D70*((1+D66)^0.5-1) -> 13952.27611 | E71: =E70*((1+E66)^0.5-1) -> -2087.858512 | F71: =F70*((1+F66)^0.5-1) -> 1219.27839
B72: Closing balance of Metering Services overs/ (unders) account | D72: =SUM(D68:D71) -> -35951.46284 | E72: =SUM(E68:E71) -> -116096.6545 | F72: -77751.05515
B74: The DNSP is expected to achieve a closing balance as close to zero as practicable in its annual metering charges unders and overs account in each forecast year in its annual pricing proposals in the 2016–20 regulatory control period.
C77: ="Current Metering Tariffs P(t-1) for " &'Model update'!$C$8 -> Current Metering Tariffs P(t-1) for 2018 | D77: ="Estimated Quantities (Qt-1) for "&'Model update'!$C$5-1 -> Estimated Quantities (Qt-1) for 2018 | E77: ="Revenue (Pt-1 "&'Model update'!$C$8&")*(Qt-1 " &'Model update'!$C$5-1&")" -> Revenue (Pt-1 2018)*(Qt-1 2018)
B78: Existing tariff | C78: ExistTar $/Cust/year | D78: FcastVol Cust # | E78: ExistRev Fixed
B80: Single phase | C80: =E8 -> 73 | D80: 260629.5997 | E80: =C80*D80 -> 19025960.78
B81: Three phase direct connected meter | C81: =E9 -> 91.25 | D81: 62562.99418 | E81: 5708873.219
B82: Three phase CT connected meter | C82: 113.15 | D82: 2990.198871 | E82: 338341.0023
E83: 0
E84: 0
E85: 0
E86: 0
E87: 0
E88: 0
E89: =SUM(E79:E88) -> 25073175

Sheet Prop2019DistTar
B1: ="Tariff Approval - "&'Model update'!$C$3 -> Tariff Approval - CitiPower
B3: ="PROPOSED "&'Model update'!$C$5&" DISTRIBUTION TARIFFS" -> PROPOSED 2019 DISTRIBUTION TARIFFS
D4: ="Proposed Distribution Tariffs (Pt) for "&'Model update'!$C$5 -> Proposed Distribution Tariffs (Pt) for 2019 | Z4: ="Current Distribution Tariffs (Pt-1) for "&'Model update'!$C$8 -> Current Distribution Tariffs (Pt-1) for 2018 | AV4: ="Forecast Quantities (Qt) for "&'Model update'!$C$5 -> Forecast Quantities (Qt) for 2019 | BR4: ="Forecast Revenue (Pt "&'Model update'!$C$5&")*(Qt " &'Model update'!$C$5&")" -> Forecast Revenue (Pt 2019)*(Qt 2019) | CO4: ="Revenue (Pt-1 "&'Model update'!$C$8&")*(Qt " &'Model update'!$C$5&")" -> Revenue (Pt-1 2018)*(Qt 2019)
B5: Proposed tariff | C5: Existing tariff | D5: PropTar Fixed | E5: PropTar Anytime | F5: PropTar PkBlk | I5: PropTar OPkBlk1 | M5: PropTar Dem kVA | N5: PropTar Dem kW | O5: PropTar Dem kW Sum | P5: PropTar Dem kW Win | Q5: PropTar SumBlk1 | R5: PropTar SumBlk2 | S5: PropTar SumBlk3 | U5: PropTar WtrBlk1 | V5: PropTar WtrBlk2 | W5: PropTar WtrBlk3 | Z5: ExistTar Fixed | AA5: ExistTar Anytime | AB5: ExistTar Pk | AE5: ExistTar OPkBlk | AI5: ExistTar Dem kVA | AJ5: ExistTar Dem kW | AK5: ExistTar Dem kW Sum | AL5: ExistTar Dem kW Win | AM5: ExistTar SumBlk1 | AN5: ExistTar SumBlk2 | AO5: ExistTar SumBlk3 | AQ5: ExistTar WtrBlk1 | AR5: ExistTar WtrBlk2 | AS5: ExistTar WtrBlk3 | AV5: FcastVol Fixed | AW5: FcastVol Anytime | AX5: FcastVol Pk | BA5: FcastVol Opk | BE5: FcastVol Dem kVA | BF5: FcastVol Dem kW | BG5: FcastVol Dem kW Sum | BH5: FcastVol Dem kW Win | BI5: FcastVol SumBlk1 | BJ5: FcastVol SumBlk2 | BK5: FcastVol SumBlk3 | BM5: FcastVol WtrBlk1 | BN5: FcastVol WtrBlk2 | BO5: FcastVol WtrBlk3 | BR5: PropRev Fixed | BS5: PropRev Anytime | BT5: PropRev Pk | BW5: PropRev Opk | CA5: PropRev Dem kVA | CB5: PropRev Dem kW | CC5: PropRev Dem kW Sum | CD5: PropRev Dem kW Win | CE5: PropRev SumBlk1 | CF5: PropRev SumBlk2 | CG5: PropRev SumBlk3 | CI5: PropRev WtrBlk1 | CJ5: PropRev WtrBlk2 | CK5: PropRev WtrBlk3 | CM5: PropRev Total | CO5: ExistRev Fixed | CP5: ExistRev Anytime | CQ5: ExistRev Pk | CT5: ExistRev Opk | CX5: ExistRev Dem kVA | CY5: ExistRev Dem kW | CZ5: ExistRev Dem kW Sum | DA5: ExistRev Dem kW Win | DB5: ExistRev SumBlk1 | DC5: ExistRev SumBlk2 | DD5: ExistRev SumBlk3 | DF5: ExistRev WtrBlk1 | DG5: ExistRev WtrBlk2 | DH5: ExistRev WtrBlk3 | DJ5: ExistRev Total
BR6: =D6*AV6 -> 0 | BS6: =E6/100*AW6 -> 0 | BT6: =F6/100*AX6 -> 0 | BU6: =G6/100*AY6 -> 0 | BV6: =H6/100*AZ6 -> 0 | BW6: =I6/100*BA6 -> 0 | BX6: =J6/100*BB6 -> 0 | BY6: =K6/100*BC6 -> 0 | BZ6: =L6/100*BD6 -> 0 | CA6: =M6*BE6 -> 0 | CB6: =N6*BF6 -> 0 | CC6: =O6*BG6 -> 0 | CD6: =P6*BH6 -> 0 | CE6: =Q6/100*BI6 -> 0 | CF6: =R6/100*BJ6 -> 0 | CG6: =S6/100*BK6 -> 0 | CH6: =T6/100*BL6 -> 0 | CI6: =U6/100*BM6 -> 0 | CJ6: =V6/100*BN6 -> 0 | CK6: =W6/100*BO6 -> 0 | CL6: =X6/100*BP6 -> 0 | CM6: =SUM(BR6:CL6) -> 0 | CO6: =Z6*AV6 -> 0 | CP6: =AA6/100*AW6 -> 0 | CQ6: =AB6/100*AX6 -> 0 | CR6: =AC6/100*AY6 -> 0 | CS6: =AD6/100*AZ6 -> 0 | CT6: =AE6/100*BA6 -> 0 | CU6: =AF6/100*BB6 -> 0 | CV6: =AG6/100*BC6 -> 0 | CW6: =AH6/100*BD6 -> 0 | CX6: =AI6*BE6 -> 0 | CY6: =AJ6*BF6 -> 0 | CZ6: =AK6*BG6 -> 0 | DA6: =AL6*BH6 -> 0 | DB6: =AM6/100*BI6 -> 0 | DC6: =AN6/100*BJ6 -> 0 | DD6: =AO6/100*BK6 -> 0 | DE6: =AP6/100*BL6 -> 0 | DF6: =AQ6/100*BM6 -> 0 | DG6: =AR6/100*BN6 -> 0 | DH6: =AS6/100*BO6 -> 0 | DI6: =AT6/100*BP6 -> 0 | DJ6: =SUM(CO6:DI6) -> 0
A7: =Est2018DistRev!A7 -> C1R | B7: =C7 -> Residential Single Rate | C7: =Est2018DistRev!B7 -> Residential Single Rate | D7: 90 | E7: 4.72 | F7: 0 | G7: 0 | H7: 0 | I7: 0 | J7: 0 | K7: 0 | L7: 0 | M7: 0 | N7: 0 | O7: 0 | P7: 0 | Q7: 0 | R7: 0 | S7: 0 | T7: 0 | U7: 0 | V7: 0 | W7: 0 | X7: 0 | Z7: =Est2018DistRev!D7 -> 85 | AA7: =Est2018DistRev!E7 -> 4.61 | AB7: =Est2018DistRev!F7 -> 0 | AC7: =Est2018DistRev!G7 -> 0 | AD7: =Est2018DistRev!H7 -> 0 | AE7: =Est2018DistRev!I7 -> 0 | AF7: =Est2018DistRev!J7 -> 0 | AG7: =Est2018DistRev!K7 -> 0 | AH7: =Est2018DistRev!L7 -> 0 | AI7: =Est2018DistRev!M7 -> 0 | AJ7: =Est2018DistRev!N7 -> 0 | AK7: =Est2018DistRev!O7 -> 0 | AL7: =Est2018DistRev!P7 -> 0 | AM7: =Est2018DistRev!Q7 -> 0 | AN7: =Est2018DistRev!R7 -> 0 | AO7: =Est2018DistRev!S7 -> 0 | AP7: =Est2018DistRev!T7 -> 0 | AQ7: =Est2018DistRev!U7 -> 0 | AR7: =Est2018DistRev!V7 -> 0 | AS7: =Est2018DistRev!W7 -> 0 | AT7: =Est2018DistRev!X7 -> 0 | AV7: 205044.5 | AW7: 853857291.2 | AX7: 0 | AY7: 0 | AZ7: 0 | BA7: 0 | BB7: 0 | BC7: 0 | BD7: 0 | BE7: 0 | BF7: 0 | BG7: 0 | BH7: 0 | BI7: 0 | BJ7: 0 | BK7: 0 | BL7: 0 | BM7: 0 | BN7: 0 | BO7: 0 | BP7: 0 | BR7: =D7*AV7 -> 18454005 | BS7: =E7/100*AW7 -> 40302064.14 | BT7: 0 | BU7: 0 | BV7: 0 | BW7: 0 | BX7: 0 | BY7: 0 | BZ7: 0 | CA7: =M7*BE7 -> 0 | CB7: 0 | CC7: 0 | CD7: 0 | CE7: =Q7/100*BI7 -> 0 | CF7: =R7/100*BJ7 -> 0 | CG7: 0 | CH7: 0 | CI7: 0 | CJ7: 0 | CK7: 0 | CL7: 0 | CM7: =SUM(BR7:CL7) -> 58756069.14 | CO7: =Z7*AV7 -> 17428782.5 | CP7: =AA7/100*AW7 -> 39362821.12 | CQ7: 0 | CR7: 0 | CS7: 0 | CT7: 0 | CU7: 0 | CV7: 0 | CW7: 0 | CX7: =AI7*BE7 -> 0 | CY7: 0 | CZ7: 0 | DA7: 0 | DB7: =AM7/100*BI7 -> 0 | DC7: =AN7/100*BJ7 -> 0 | DD7: 0 | DE7: 0 | DF7: 0 | DG7: 0 | DH7: 0 | DI7: 0 | DJ7: =SUM(CO7:DI7) -> 56791603.62
A8: =Est2018DistRev!A8 -> C1RB | B8: =C8 -> Residential Single Rate - Bulk | C8: =Est2018DistRev!B8 -> Residential Single Rate - Bulk | D8: 85 | E8: 4.15 | F8: 0 | G8: 0 | H8: 0 | I8: 0 | J8: 0 | K8: 0 | L8: 0 | M8: 0 | N8: 0 | O8: 0 | P8: 0 | Q8: 0 | R8: 0 | S8: 0 | T8: 0 | U8: 0 | V8: 0 | W8: 0 | X8: 0 | Z8: =Est2018DistRev!D8 -> 75 | AA8: =Est2018DistRev!E8 -> 3.95 | AB8: =Est2018DistRev!F8 -> 0 | AC8: =Est2018DistRev!G8 -> 0 | AD8: =Est2018DistRev!H8 -> 0 | AE8: =Est2018DistRev!I8 -> 0 | AF8: =Est2018DistRev!J8 -> 0 | AG8: =Est2018DistRev!K8 -> 0 | AH8: =Est2018DistRev!L8 -> 0 | AI8: =Est2018DistRev!M8 -> 0 | AJ8: =Est2018DistRev!N8 -> 0 | AK8: =Est2018DistRev!O8 -> 0 | AL8: =Est2018DistRev!P8 -> 0 | AM8: =Est2018DistRev!Q8 -> 0 | AN8: =Est2018DistRev!R8 -> 0 | AO8: =Est2018DistRev!S8 -> 0 | AP8: =Est2018DistRev!T8 -> 0 | AQ8: =Est2018DistRev!U8 -> 0 | AR8: =Est2018DistRev!V8 -> 0 | AS8: =Est2018DistRev!W8 -> 0 | AT8: =Est2018DistRev!X8 -> 0 | AV8: 31480.91667 | AW8: 106631799.4 | AX8: 0 | AY8: 0 | AZ8: 0 | BA8: 0 | BB8: 0 | BC8: 0 | BD8: 0 | BE8: 0 | BF8: 0 | BG8: 0 | BH8: 0 | BI8: 0 | BJ8: 0 | BK8: 0 | BL8: 0 | BM8: 0 | BN8: 0 | BO8: 0 | BP8: 0 | BR8: =D8*AV8 -> 2675877.917 | BS8: =E8/100*AW8 -> 4425219.675 | BT8: =F8/100*AX8 -> 0 | BU8: =G8/100*AY8 -> 0 | BV8: =H8/100*AZ8 -> 0 | BW8: =I8/100*BA8 -> 0 | BX8: =J8/100*BB8 -> 0 | BY8: =K8/100*BC8 -> 0 | BZ8: =L8/100*BD8 -> 0 | CA8: =M8*BE8 -> 0 | CB8: =N8*BF8 -> 0 | CC8: =O8*BG8 -> 0 | CD8: =P8*BH8 -> 0 | CE8: =Q8/100*BI8 -> 0 | CF8: =R8/100*BJ8 -> 0 | CG8: =S8/100*BK8 -> 0 | CH8: =T8/100*BL8 -> 0 | CI8: =U8/100*BM8 -> 0 | CJ8: =V8/100*BN8 -> 0 | CK8: =W8/100*BO8 -> 0 | CL8: =X8/100*BP8 -> 0 | CM8: 7101097.592 | CO8: =Z8*AV8 -> 2361068.75 | CP8: =AA8/100*AW8 -> 4211956.076 | CQ8: =AB8/100*AX8 -> 0 | CR8: =AC8/100*AY8 -> 0 | CS8: =AD8/100*AZ8 -> 0 | CT8: =AE8/100*BA8 -> 0 | CU8: =AF8/100*BB8 -> 0 | CV8: =AG8/100*BC8 -> 0 | CW8: =AH8/100*BD8 -> 0 | CX8: =AI8*BE8 -> 0 | CY8: =AJ8*BF8 -> 0 | CZ8: =AK8*BG8 -> 0 | DA8: =AL8*BH8 -> 0 | DB8: =AM8/100*BI8 -> 0 | DC8: =AN8/100*BJ8 -> 0 | DD8: =AO8/100*BK8 -> 0 | DE8: =AP8/100*BL8 -> 0 | DF8: =AQ8/100*BM8 -> 0 | DG8: =AR8/100*BN8 -> 0 | DH8: =AS8/100*BO8 -> 0 | DI8: =AT8/100*BP8 -> 0 | DJ8: 6573024.826
A9: =Est2018DistRev!A9 -> C13R | B9: Residential - flexible pricing | C9: =Est2018DistRev!B9 -> Residential - flexible pricing | D9: 90 | E9: 0 | F9: 0 | G9: 0 | H9: 0 | I9: 0 | J9: 0 | K9: 0 | L9: 0 | M9: 0 | N9: 0 | O9: 0 | P9: 0 | Q9: 10.79 | R9: 7.27 | S9: 2.86 | T9: 0 | U9: 10.79 | V9: 7.27 | W9: 2.86 | X9: 0 | Z9: =Est2018DistRev!D9 -> 85 | AA9: =Est2018DistRev!E9 -> 0 | AB9: =Est2018DistRev!F9 -> 0 | AC9: =Est2018DistRev!G9 -> 0 | AD9: =Est2018DistRev!H9 -> 0 | AE9: =Est2018DistRev!I9 -> 0 | AF9: =Est2018DistRev!J9 -> 0 | AG9: =Est2018DistRev!K9 -> 0 | AH9: =Est2018DistRev!L9 -> 0 | AI9: =Est2018DistRev!M9 -> 0 | AJ9: =Est2018DistRev!N9 -> 0 | AK9: =Est2018DistRev!O9 -> 0 | AL9: =Est2018DistRev!P9 -> 0 | AM9: =Est2018DistRev!Q9 -> 10.96 | AN9: =Est2018DistRev!R9 -> 7.38 | AO9: =Est2018DistRev!S9 -> 2.9 | AP9: =Est2018DistRev!T9 -> 0 | AQ9: =Est2018DistRev!U9 -> 10.96 | AR9: =Est2018DistRev!V9 -> 7.38 | AS9: =Est2018DistRev!W9 -> 2.9 | AT9: =Est2018DistRev!X9 -> 0 | AV9: 693.4166667 | AW9: 0 | AX9: 0 | AY9: 0 | AZ9: 0 | BA9: 0 | BB9: 0 | BC9: 0 | BD9: 0 | BE9: 0 | BF9: 0 | BG9: 0 | BH9: 0 | BI9: 205405.5214 | BJ9: 427210.1542 | BK9: 316794.3387 | BL9: 0 | BM9: 740099.6911 | BN9: 1539287.265 | BO9: 1141446.396 | BP9: 0 | BR9: 62407.5 | BS9: 0 | BT9: 0 | BU9: 0 | BV9: 0 | BW9: 0 | BX9: 0 | BY9: 0 | BZ9: 0 | CA9: 0 | CB9: 0 | CC9: 0 | CD9: 0 | CE9: 22163.25576 | CF9: 31058.17821 | CG9: 9060.318087 | CH9: 0 | CI9: 79856.75667 | CJ9: 111906.1841 | CK9: 32645.36694 | CL9: 0 | CM9: 349097.5598 | CO9: 58940.41667 | CP9: 0 | CQ9: 0 | CR9: 0 | CS9: 0 | CT9: 0 | CU9: 0 | CV9: 0 | CW9: 0 | CX9: 0 | CY9: 0 | CZ9: 0 | DA9: 0 | DB9: 22512.44514 | DC9: 31528.10938 | DD9: 9187.035822 | DE9: 0 | DF9: 81114.92614 | DG9: 113599.4001 | DH9: 33101.9455 | DI9: 0 | DJ9: 349984.2788
A10: =Est2018DistRev!A10 -> C13RB | B10: Residential - flexible pricing bulk | C10: =Est2018DistRev!B10 -> Residential - flexible pricing bulk | D10: 85 | E10: 0 | F10: 0 | G10: 0 | H10: 0 | I10: 0 | J10: 0 | K10: 0 | L10: 0 | M10: 0 | N10: 0 | O10: 0 | P10: 0 | Q10: 9.05 | R10: 6.1 | S10: 2.39 | T10: 0 | U10: 9.05 | V10: 6.1 | W10: 2.39 | X10: 0 | Z10: =Est2018DistRev!D10 -> 75 | AA10: =Est2018DistRev!E10 -> 0 | AB10: =Est2018DistRev!F10 -> 0 | AC10: =Est2018DistRev!G10 -> 0 | AD10: =Est2018DistRev!H10 -> 0 | AE10: =Est2018DistRev!I10 -> 0 | AF10: =Est2018DistRev!J10 -> 0 | AG10: =Est2018DistRev!K10 -> 0 | AH10: =Est2018DistRev!L10 -> 0 | AI10: =Est2018DistRev!M10 -> 0 | AJ10: =Est2018DistRev!N10 -> 0 | AK10: =Est2018DistRev!O10 -> 0 | AL10: =Est2018DistRev!P10 -> 0 | AM10: =Est2018DistRev!Q10 -> 8.76 | AN10: =Est2018DistRev!R10 -> 5.9 | AO10: =Est2018DistRev!S10 -> 2.32 | AP10: =Est2018DistRev!T10 -> 0 | AQ10: =Est2018DistRev!U10 -> 8.76 | AR10: =Est2018DistRev!V10 -> 5.9 | AS10: =Est2018DistRev!W10 -> 2.32 | AT10: =Est2018DistRev!X10 -> 0 | AV10: 90 | AW10: 0 | AX10: 0 | AY10: 0 | AZ10: 0 | BA10: 0 | BB10: 0 | BC10: 0 | BD10: 0 | BE10: 0 | BF10: 0 | BG10: 0 | BH10: 0 | BI10: 15231.12129 | BJ10: 32311.93005 | BK10: 23662.58093 | BL10: 0 | BM10: 55378.7842 | BN10: 117482.841 | BO10: 86034.70078 | BP10: 0 | BR10: 7650 | BS10: 0 | BT10: 0 | BU10: 0 | BV10: 0 | BW10: 0 | BX10: 0 | BY10: 0 | BZ10: 0 | CA10: 0 | CB10: 0 | CC10: 0 | CD10: 0 | CE10: 1378.416477 | CF10: 1971.027733 | CG10: 565.5356843 | CH10: 0 | CI10: 5011.77997 | CJ10: 7166.4533 | CK10: 2056.229349 | CL10: 0 | CM10: 25799.44251 | CO10: 6750 | CP10: 0 | CQ10: 0 | CR10: 0 | CS10: 0 | CT10: 0 | CU10: 0 | CV10: 0 | CW10: 0 | CX10: 0 | CY10: 0 | CZ10: 0 | DA10: 0 | DB10: 1334.246225 | DC10: 1906.403873 | DD10: 548.9718777 | DE10: 0 | DF10: 4851.181496 | DG10: 6931.487618 | DH10: 1996.005058 | DI10: 0 | DJ10: 24318.29615
A11: =Est2018DistRev!A11 -> C2R | B11: Residential Two Rate 5d | C11: =Est2018DistRev!B11 -> Residential Two Rate 5d | D11: 90 | E11: 0 | F11: 9.72 | G11: 0 | H11: 0 | I11: 2.31 | J11: 0 | K11: 0 | L11: 0 | M11: 0 | N11: 0 | O11: 0 | P11: 0 | Q11: 0 | R11: 0 | S11: 0 | T11: 0 | U11: 0 | V11: 0 | W11: 0 | X11: 0 | Z11: =Est2018DistRev!D11 -> 85 | AA11: =Est2018DistRev!E11 -> 0 | AB11: =Est2018DistRev!F11 -> 9.88 | AC11: =Est2018DistRev!G11 -> 0 | AD11: =Est2018DistRev!H11 -> 0 | AE11: =Est2018DistRev!I11 -> 2.11 | AF11: =Est2018DistRev!J11 -> 0 | AG11: =Est2018DistRev!K11 -> 0 | AH11: =Est2018DistRev!L11 -> 0 | AI11: =Est2018DistRev!M11 -> 0 | AJ11: =Est2018DistRev!N11 -> 0 | AK11: =Est2018DistRev!O11 -> 0 | AL11: =Est2018DistRev!P11 -> 0 | AM11: =Est2018DistRev!Q11 -> 0 | AN11: =Est2018DistRev!R11 -> 0 | AO11: =Est2018DistRev!S11 -> 0 | AP11: =Est2018DistRev!T11 -> 0 | AQ11: =Est2018DistRev!U11 -> 0 | AR11: =Est2018DistRev!V11 -> 0 | AS11: =Est2018DistRev!W11 -> 0 | AT11: =Est2018DistRev!X11 -> 0 | AV11: 10820.08333 | AW11: 0 | AX11: 35024034.5 | AY11: 0 | AZ11: 0 | BA11: 30157186.27 | BB11: 0 | BC11: 0 | BD11: 0 | BE11: 0 | BF11: 0 | BG11: 0 | BH11: 0 | BI11: 0 | BJ11: 0 | BK11: 0 | BL11: 0 | BM11: 0 | BN11: 0 | BO11: 0 | BP11: 0 | BR11: 973807.5 | BS11: 0 | BT11: 3404336.154 | BU11: 0 | BV11: 0 | BW11: 696631.0029 | BX11: 0 | BY11: 0 | BZ11: 0 | CA11: 0 | CB11: 0 | CC11: 0 | CD11: 0 | CE11: 0 | CF11: 0 | CG11: 0 | CH11: 0 | CI11: 0 | CJ11: 0 | CK11: 0 | CL11: 0 | CM11: 5074774.657 | CO11: 919707.0833 | CP11: 0 | CQ11: 3460374.609 | CR11: 0 | CS11: 0 | CT11: 636316.6304 | CU11: 0 | CV11: 0 | CW11: 0 | CX11: 0 | CY11: 0 | CZ11: 0 | DA11: 0 | DB11: 0 | DC11: 0 | DD11: 0 | DE11: 0 | DF11: 0 | DG11: 0 | DH11: 0 | DI11: 0 | DJ11: 5016398.323
A12: =Est2018DistRev!A12 -> C2RB | B12: Residential Two Rate 5d - Bulk | C12: =Est2018DistRev!B12 -> Residential Two Rate 5d - Bulk | D12: 85 | E12: 0 | F12: 8.56 | G12: 0 | H12: 0 | I12: 2.16 | J12: 0 | K12: 0 | L12: 0 | M12: 0 | N12: 0 | O12: 0 | P12: 0 | Q12: 0 | R12: 0 | S12: 0 | T12: 0 | U12: 0 | V12: 0 | W12: 0 | X12: 0 | Z12: =Est2018DistRev!D12 -> 75 | AA12: =Est2018DistRev!E12 -> 0 | AB12: =Est2018DistRev!F12 -> 8.41 | AC12: =Est2018DistRev!G12 -> 0 | AD12: =Est2018DistRev!H12 -> 0 | AE12: =Est2018DistRev!I12 -> 1.91 | AF12: =Est2018DistRev!J12 -> 0 | AG12: =Est2018DistRev!K12 -> 0 | AH12: =Est2018DistRev!L12 -> 0 | AI12: =Est2018DistRev!M12 -> 0 | AJ12: =Est2018DistRev!N12 -> 0 | AK12: =Est2018DistRev!O12 -> 0 | AL12: =Est2018DistRev!P12 -> 0 | AM12: =Est2018DistRev!Q12 -> 0 | AN12: =Est2018DistRev!R12 -> 0 | AO12: =Est2018DistRev!S12 -> 0 | AP12: =Est2018DistRev!T12 -> 0 | AQ12: =Est2018DistRev!U12 -> 0 | AR12: =Est2018DistRev!V12 -> 0 | AS12: =Est2018DistRev!W12 -> 0 | AT12: =Est2018DistRev!X12 -> 0 | AV12: 4352.5 | AW12: 0 | AX12: 12294584.52 | AY12: 0 | AZ12: 0 | BA12: 10585730.05 | BB12: 0 | BC12: 0 | BD12: 0 | BE12: 0 | BF12: 0 | BG12: 0 | BH12: 0 | BI12: 0 | BJ12: 0 | BK12: 0 | BL12: 0 | BM12: 0 | BN12: 0 | BO12: 0 | BP12: 0 | BR12: 369962.5 | BS12: 0 | BT12: 1052416.435 | BU12: 0 | BV12: 0 | BW12: 228651.769 | BX12: 0 | BY12: 0 | BZ12: 0 | CA12: 0 | CB12: 0 | CC12: 0 | CD12: 0 | CE12: 0 | CF12: 0 | CG12: 0 | CH12: 0 | CI12: 0 | CJ12: 0 | CK12: 0 | CL12: 0 | CM12: 1651030.704 | CO12: 326437.5 | CP12: 0 | CQ12: 1033974.558 | CR12: 0 | CS12: 0 | CT12: 202187.4439 | CU12: 0 | CV12: 0 | CW12: 0 | CX12: 0 | CY12: 0 | CZ12: 0 | DA12: 0 | DB12: 0 | DC12: 0 | DD12: 0 | DE12: 0 | DF12: 0 | DG12: 0 | DH12: 0 | DI12: 0 | DJ12: 1562599.502
A13: =Est2018DistRev!A13 -> C3R | B13: Residential Interval | C13: =Est2018DistRev!B13 -> Residential Interval | D13: 90 | E13: 0 | F13: 9.72 | G13: 0 | H13: 0 | I13: 2.31 | J13: 0 | K13: 0 | L13: 0 | M13: 0 | N13: 0 | O13: 0 | P13: 0 | Q13: 0 | R13: 0 | S13: 0 | T13: 0 | U13: 0 | V13: 0 | W13: 0 | X13: 0 | Z13: =Est2018DistRev!D13 -> 85 | AA13: =Est2018DistRev!E13 -> 0 | AB13: =Est2018DistRev!F13 -> 9.88 | AC13: =Est2018DistRev!G13 -> 0 | AD13: =Est2018DistRev!H13 -> 0 | AE13: =Est2018DistRev!I13 -> 2.11 | AF13: =Est2018DistRev!J13 -> 0 | AG13: =Est2018DistRev!K13 -> 0 | AH13: =Est2018DistRev!L13 -> 0 | AI13: =Est2018DistRev!M13 -> 0 | AJ13: =Est2018DistRev!N13 -> 0 | AK13: =Est2018DistRev!O13 -> 0 | AL13: =Est2018DistRev!P13 -> 0 | AM13: =Est2018DistRev!Q13 -> 0 | AN13: =Est2018DistRev!R13 -> 0 | AO13: =Est2018DistRev!S13 -> 0 | AP13: =Est2018DistRev!T13 -> 0 | AQ13: =Est2018DistRev!U13 -> 0 | AR13: =Est2018DistRev!V13 -> 0 | AS13: =Est2018DistRev!W13 -> 0 | AT13: =Est2018DistRev!X13 -> 0 | AV13: 17057.16667 | AW13: 0 | AX13: 60669728.28 | AY13: 0 | AZ13: 0 | BA13: 52545941.86 | BB13: 0 | BC13: 0 | BD13: 0 | BE13: 0 | BF13: 0 | BG13: 0 | BH13: 0 | BI13: 0 | BJ13: 0 | BK13: 0 | BL13: 0 | BM13: 0 | BN13: 0 | BO13: 0 | BP13: 0 | BR13: 1535145 | BS13: 0 | BT13: 5897097.588 | BU13: 0 | BV13: 0 | BW13: 1213811.257 | BX13: 0 | BY13: 0 | BZ13: 0 | CA13: 0 | CB13: 0 | CC13: 0 | CD13: 0 | CE13: 0 | CF13: 0 | CG13: 0 | CH13: 0 | CI13: 0 | CJ13: 0 | CK13: 0 | CL13: 0 | CM13: 8646053.845 | CO13: 1449859.167 | CP13: 0 | CQ13: 5994169.154 | CR13: 0 | CS13: 0 | CT13: 1108719.373 | CU13: 0 | CV13: 0 | CW13: 0 | CX13: 0 | CY13: 0 | CZ13: 0 | DA13: 0 | DB13: 0 | DC13: 0 | DD13: 0 | DE13: 0 | DF13: 0 | DG13: 0 | DH13: 0 | DI13: 0 | DJ13: 8552747.694
A14: =Est2018DistRev!A14 -> C3RB | B14: Residential Interval - Bulk | C14: =Est2018DistRev!B14 -> Residential Interval - Bulk | D14: 85 | E14: 0 | F14: 8.56 | G14: 0 | H14: 0 | I14: 2.16 | J14: 0 | K14: 0 | L14: 0 | M14: 0 | N14: 0 | O14: 0 | P14: 0 | Q14: 0 | R14: 0 | S14: 0 | T14: 0 | U14: 0 | V14: 0 | W14: 0 | X14: 0 | Z14: =Est2018DistRev!D14 -> 75 | AA14: =Est2018DistRev!E14 -> 0 | AB14: =Est2018DistRev!F14 -> 8.41 | AC14: =Est2018DistRev!G14 -> 0 | AD14: =Est2018DistRev!H14 -> 0 | AE14: =Est2018DistRev!I14 -> 1.91 | AF14: =Est2018DistRev!J14 -> 0 | AG14: =Est2018DistRev!K14 -> 0 | AH14: =Est2018DistRev!L14 -> 0 | AI14: =Est2018DistRev!M14 -> 0 | AJ14: =Est2018DistRev!N14 -> 0 | AK14: =Est2018DistRev!O14 -> 0 | AL14: =Est2018DistRev!P14 -> 0 | AM14: =Est2018DistRev!Q14 -> 0 | AN14: =Est2018DistRev!R14 -> 0 | AO14: =Est2018DistRev!S14 -> 0 | AP14: =Est2018DistRev!T14 -> 0 | AQ14: =Est2018DistRev!U14 -> 0 | AR14: =Est2018DistRev!V14 -> 0 | AS14: =Est2018DistRev!W14 -> 0 | AT14: =Est2018DistRev!X14 -> 0 | AV14: 8658 | AW14: 0 | AX14: 15600572.12 | AY14: 0 | AZ14: 0 | BA14: 14572772.14 | BB14: 0 | BC14: 0 | BD14: 0 | BE14: 0 | BF14: 0 | BG14: 0 | BH14: 0 | BI14: 0 | BJ14: 0 | BK14: 0 | BL14: 0 | BM14: 0 | BN14: 0 | BO14: 0 | BP14: 0 | BR14: 735930 | BS14: 0 | BT14: 1335408.973 | BU14: 0 | BV14: 0 | BW14: 314771.8783 | BX14: 0 | BY14: 0 | BZ14: 0 | CA14: 0 | CB14: 0 | CC14: 0 | CD14: 0 | CE14: 0 | CF14: 0 | CG14: 0 | CH14: 0 | CI14: 0 | CJ14: 0 | CK14: 0 | CL14: 0 | CM14: 2386110.852 | CO14: 649350 | CP14: 0 | CQ14: 1312008.115 | CR14: 0 | CS14: 0 | CT14: 278339.9479 | CU14: 0 | CV14: 0 | CW14: 0 | CX14: 0 | CY14: 0 | CZ14: 0 | DA14: 0 | DB14: 0 | DC14: 0 | DD14: 0 | DE14: 0 | DF14: 0 | DG14: 0 | DH14: 0 | DI14: 0 | DJ14: 2239698.063
A15: =Est2018DistRev!A15 -> C2ROP | B15: Residential Two Rate 5d - Controlled Load | C15: =Est2018DistRev!B15 -> Residential Two Rate 5d - Controlled Load | D15: 0 | E15: 0 | F15: 0 | G15: 0 | H15: 0 | I15: 1.76 | J15: 0 | K15: 0 | L15: 0 | M15: 0 | N15: 0 | O15: 0 | P15: 0 | Q15: 0 | R15: 0 | S15: 0 | T15: 0 | U15: 0 | V15: 0 | W15: 0 | X15: 0 | Z15: =Est2018DistRev!D15 -> 0 | AA15: =Est2018DistRev!E15 -> 0 | AB15: =Est2018DistRev!F15 -> 0 | AC15: =Est2018DistRev!G15 -> 0 | AD15: =Est2018DistRev!H15 -> 0 | AE15: =Est2018DistRev!I15 -> 1.78 | AF15: =Est2018DistRev!J15 -> 0 | AG15: =Est2018DistRev!K15 -> 0 | AH15: =Est2018DistRev!L15 -> 0 | AI15: =Est2018DistRev!M15 -> 0 | AJ15: =Est2018DistRev!N15 -> 0 | AK15: =Est2018DistRev!O15 -> 0 | AL15: =Est2018DistRev!P15 -> 0 | AM15: =Est2018DistRev!Q15 -> 0 | AN15: =Est2018DistRev!R15 -> 0 | AO15: =Est2018DistRev!S15 -> 0 | AP15: =Est2018DistRev!T15 -> 0 | AQ15: =Est2018DistRev!U15 -> 0 | AR15: =Est2018DistRev!V15 -> 0 | AS15: =Est2018DistRev!W15 -> 0 | AT15: =Est2018DistRev!X15 -> 0 | AV15: 9732.666667 | AW15: 0 | AX15: 0 | AY15: 0 | AZ15: 0 | BA15: 19246331.24 | BB15: 0 | BC15: 0 | BD15: 0 | BE15: 0 | BF15: 0 | BG15: 0 | BH15: 0 | BI15: 0 | BJ15: 0 | BK15: 0 | BL15: 0 | BM15: 0 | BN15: 0 | BO15: 0 | BP15: 0 | BR15: 0 | BS15: 0 | BT15: 0 | BU15: 0 | BV15: 0 | BW15: 338735.4298 | BX15: 0 | BY15: 0 | BZ15: 0 | CA15: 0 | CB15: 0 | CC15: 0 | CD15: 0 | CE15: 0 | CF15: 0 | CG15: 0 | CH15: 0 | CI15: 0 | CJ15: 0 | CK15: 0 | CL15: 0 | CM15: 338735.4298 | CO15: 0 | CP15: 0 | CQ15: 0 | CR15: 0 | CS15: 0 | CT15: 342584.696 | CU15: 0 | CV15: 0 | CW15: 0 | CX15: 0 | CY15: 0 | CZ15: 0 | DA15: 0 | DB15: 0 | DC15: 0 | DD15: 0 | DE15: 0 | DF15: 0 | DG15: 0 | DH15: 0 | DI15: 0 | DJ15: 342584.696
A16: =Est2018DistRev!A16 -> C2RBOP | B16: Residential Two Rate 5d - Bulk - Controlled Load | C16: =Est2018DistRev!B16 -> Residential Two Rate 5d - Bulk - Controlled Load | D16: 0 | E16: 0 | F16: 0 | G16: 0 | H16: 0 | I16: 1.44 | J16: 0 | K16: 0 | L16: 0 | M16: 0 | N16: 0 | O16: 0 | P16: 0 | Q16: 0 | R16: 0 | S16: 0 | T16: 0 | U16: 0 | V16: 0 | W16: 0 | X16: 0 | Z16: =Est2018DistRev!D16 -> 0 | AA16: =Est2018DistRev!E16 -> 0 | AB16: =Est2018DistRev!F16 -> 0 | AC16: =Est2018DistRev!G16 -> 0 | AD16: =Est2018DistRev!H16 -> 0 | AE16: =Est2018DistRev!I16 -> 1.38 | AF16: =Est2018DistRev!J16 -> 0 | AG16: =Est2018DistRev!K16 -> 0 | AH16: =Est2018DistRev!L16 -> 0 | AI16: =Est2018DistRev!M16 -> 0 | AJ16: =Est2018DistRev!N16 -> 0 | AK16: =Est2018DistRev!O16 -> 0 | AL16: =Est2018DistRev!P16 -> 0 | AM16: =Est2018DistRev!Q16 -> 0 | AN16: =Est2018DistRev!R16 -> 0 | AO16: =Est2018DistRev!S16 -> 0 | AP16: =Est2018DistRev!T16 -> 0 | AQ16: =Est2018DistRev!U16 -> 0 | AR16: =Est2018DistRev!V16 -> 0 | AS16: =Est2018DistRev!W16 -> 0 | AT16: =Est2018DistRev!X16 -> 0 | AV16: 3683.833333 | AW16: 0 | AX16: 0 | AY16: 0 | AZ16: 0 | BA16: 7176762.317 | BB16: 0 | BC16: 0 | BD16: 0 | BE16: 0 | BF16: 0 | BG16: 0 | BH16: 0 | BI16: 0 | BJ16: 0 | BK16: 0 | BL16: 0 | BM16: 0 | BN16: 0 | BO16: 0 | BP16: 0 | BR16: 0 | BS16: 0 | BT16: 0 | BU16: 0 | BV16: 0 | BW16: 103345.3774 | BX16: 0 | BY16: 0 | BZ16: 0 | CA16: 0 | CB16: 0 | CC16: 0 | CD16: 0 | CE16: 0 | CF16: 0 | CG16: 0 | CH16: 0 | CI16: 0 | CJ16: 0 | CK16: 0 | CL16: 0 | CM16: 103345.3774 | CO16: 0 | CP16: 0 | CQ16: 0 | CR16: 0 | CS16: 0 | CT16: 99039.31998 | CU16: 0 | CV16: 0 | CW16: 0 | CX16: 0 | CY16: 0 | CZ16: 0 | DA16: 0 | DB16: 0 | DC16: 0 | DD16: 0 | DE16: 0 | DF16: 0 | DG16: 0 | DH16: 0 | DI16: 0 | DJ16: 99039.31998
A17: =Est2018DistRev!A17 -> CDS | B17: Dedicated Circuit | C17: =Est2018DistRev!B17 -> Dedicated Circuit | D17: 0 | E17: 0 | F17: 0 | G17: 0 | H17: 0 | I17: 1.76 | J17: 0 | K17: 0 | L17: 0 | M17: 0 | N17: 0 | O17: 0 | P17: 0 | Q17: 0 | R17: 0 | S17: 0 | T17: 0 | U17: 0 | V17: 0 | W17: 0 | X17: 0 | Z17: =Est2018DistRev!D17 -> 0 | AA17: =Est2018DistRev!E17 -> 0 | AB17: =Est2018DistRev!F17 -> 0 | AC17: =Est2018DistRev!G17 -> 0 | AD17: =Est2018DistRev!H17 -> 0 | AE17: =Est2018DistRev!I17 -> 1.78 | AF17: =Est2018DistRev!J17 -> 0 | AG17: =Est2018DistRev!K17 -> 0 | AH17: =Est2018DistRev!L17 -> 0 | AI17: =Est2018DistRev!M17 -> 0 | AJ17: =Est2018DistRev!N17 -> 0 | AK17: =Est2018DistRev!O17 -> 0 | AL17: =Est2018DistRev!P17 -> 0 | AM17: =Est2018DistRev!Q17 -> 0 | AN17: =Est2018DistRev!R17 -> 0 | AO17: =Est2018DistRev!S17 -> 0 | AP17: =Est2018DistRev!T17 -> 0 | AQ17: =Est2018DistRev!U17 -> 0 | AR17: =Est2018DistRev!V17 -> 0 | AS17: =Est2018DistRev!W17 -> 0 | AT17: =Est2018DistRev!X17 -> 0 | AV17: 22825.5 | AW17: 0 | AX17: 0 | AY17: 0 | AZ17: 0 | BA17: 31802481.57 | BB17: 0 | BC17: 0 | BD17: 0 | BE17: 0 | BF17: 0 | BG17: 0 | BH17: 0 | BI17: 0 | BJ17: 0 | BK17: 0 | BL17: 0 | BM17: 0 | BN17: 0 | BO17: 0 | BP17: 0 | BR17: 0 | BS17: 0 | BT17: 0 | BU17: 0 | BV17: 0 | BW17: 559723.6757 | BX17: 0 | BY17: 0 | BZ17: 0 | CA17: 0 | CB17: 0 | CC17: 0 | CD17: 0 | CE17: 0 | CF17: 0 | CG17: 0 | CH17: 0 | CI17: 0 | CJ17: 0 | CK17: 0 | CL17: 0 | CM17: 559723.6757 | CO17: 0 | CP17: 0 | CQ17: 0 | CR17: 0 | CS17: 0 | CT17: 566084.172 | CU17: 0 | CV17: 0 | CW17: 0 | CX17: 0 | CY17: 0 | CZ17: 0 | DA17: 0 | DB17: 0 | DC17: 0 | DD17: 0 | DE17: 0 | DF17: 0 | DG17: 0 | DH17: 0 | DI17: 0 | DJ17: 566084.172
A18: =Est2018DistRev!A18 -> CDSB | B18: Dedicated Circuit - Bulk | C18: =Est2018DistRev!B18 -> Dedicated Circuit - Bulk | D18: 0 | E18: 0 | F18: 0 | G18: 0 | H18: 0 | I18: 1.44 | J18: 0 | K18: 0 | L18: 0 | M18: 0 | N18: 0 | O18: 0 | P18: 0 | Q18: 0 | R18: 0 | S18: 0 | T18: 0 | U18: 0 | V18: 0 | W18: 0 | X18: 0 | Z18: =Est2018DistRev!D18 -> 0 | AA18: =Est2018DistRev!E18 -> 0 | AB18: =Est2018DistRev!F18 -> 0 | AC18: =Est2018DistRev!G18 -> 0 | AD18: =Est2018DistRev!H18 -> 0 | AE18: =Est2018DistRev!I18 -> 1.38 | AF18: =Est2018DistRev!J18 -> 0 | AG18: =Est2018DistRev!K18 -> 0 | AH18: =Est2018DistRev!L18 -> 0 | AI18: =Est2018DistRev!M18 -> 0 | AJ18: =Est2018DistRev!N18 -> 0 | AK18: =Est2018DistRev!O18 -> 0 | AL18: =Est2018DistRev!P18 -> 0 | AM18: =Est2018DistRev!Q18 -> 0 | AN18: =Est2018DistRev!R18 -> 0 | AO18: =Est2018DistRev!S18 -> 0 | AP18: =Est2018DistRev!T18 -> 0 | AQ18: =Est2018DistRev!U18 -> 0 | AR18: =Est2018DistRev!V18 -> 0 | AS18: =Est2018DistRev!W18 -> 0 | AT18: =Est2018DistRev!X18 -> 0 | AV18: 1105.583333 | AW18: 0 | AX18: 0 | AY18: 0 | AZ18: 0 | BA18: 2202095.01 | BB18: 0 | BC18: 0 | BD18: 0 | BE18: 0 | BF18: 0 | BG18: 0 | BH18: 0 | BI18: 0 | BJ18: 0 | BK18: 0 | BL18: 0 | BM18: 0 | BN18: 0 | BO18: 0 | BP18: 0 | BR18: 0 | BS18: 0 | BT18: 0 | BU18: 0 | BV18: 0 | BW18: 31710.16815 | BX18: 0 | BY18: 0 | BZ18: 0 | CA18: 0 | CB18: 0 | CC18: 0 | CD18: 0 | CE18: 0 | CF18: 0 | CG18: 0 | CH18: 0 | CI18: 0 | CJ18: 0 | CK18: 0 | CL18: 0 | CM18: 31710.16815 | CO18: 0 | CP18: 0 | CQ18: 0 | CR18: 0 | CS18: 0 | CT18: 30388.91114 | CU18: 0 | CV18: 0 | CW18: 0 | CX18: 0 | CY18: 0 | CZ18: 0 | DA18: 0 | DB18: 0 | DC18: 0 | DD18: 0 | DE18: 0 | DF18: 0 | DG18: 0 | DH18: 0 | DI18: 0 | DJ18: 30388.91114
A19: =Est2018DistRev!A19 -> CR | B19: Residential Demand | C19: =Est2018DistRev!B19 -> Residential Demand | D19: 90 | E19: 2.89 | F19: 0 | G19: 0 | H19: 0 | I19: 0 | J19: 0 | K19: 0 | L19: 0 | M19: 0 | N19: 0 | O19: 7.04 | P19: 2.41 | Q19: 0 | R19: 0 | S19: 0 | T19: 0 | U19: 0 | V19: 0 | W19: 0 | X19: 0 | Z19: =Est2018DistRev!D19 -> 85 | AA19: =Est2018DistRev!E19 -> 2.93 | AB19: =Est2018DistRev!F19 -> 0 | AC19: =Est2018DistRev!G19 -> 0 | AD19: =Est2018DistRev!H19 -> 0 | AE19: =Est2018DistRev!I19 -> 0 | AF19: =Est2018DistRev!J19 -> 0 | AG19: =Est2018DistRev!K19 -> 0 | AH19: =Est2018DistRev!L19 -> 0 | AI19: =Est2018DistRev!M19 -> 0 | AJ19: =Est2018DistRev!N19 -> 0 | AK19: =Est2018DistRev!O19 -> 7.16 | AL19: =Est2018DistRev!P19 -> 2.45 | AM19: =Est2018DistRev!Q19 -> 0 | AN19: =Est2018DistRev!R19 -> 0 | AO19: =Est2018DistRev!S19 -> 0 | AP19: =Est2018DistRev!T19 -> 0 | AQ19: =Est2018DistRev!U19 -> 0 | AR19: =Est2018DistRev!V19 -> 0 | AS19: =Est2018DistRev!W19 -> 0 | AT19: =Est2018DistRev!X19 -> 0 | AV19: 4 | AW19: 14863.13851 | AX19: 0 | AY19: 0 | AZ19: 0 | BA19: 0 | BB19: 0 | BC19: 0 | BD19: 0 | BE19: 0 | BF19: 0 | BG19: 50.49333333 | BH19: 120.751 | BI19: 0 | BJ19: 0 | BK19: 0 | BL19: 0 | BM19: 0 | BN19: 0 | BO19: 0 | BP19: 0 | BR19: 360 | BS19: 429.5447029 | BT19: 0 | BU19: 0 | BV19: 0 | BW19: 0 | BX19: 0 | BY19: 0 | BZ19: 0 | CA19: 0 | CB19: 0 | CC19: 355.4730667 | CD19: 291.00991 | CE19: 0 | CF19: 0 | CG19: 0 | CH19: 0 | CI19: 0 | CJ19: 0 | CK19: 0 | CL19: 0 | CM19: 1436.02768 | CO19: 340 | CP19: 435.4899583 | CQ19: 0 | CR19: 0 | CS19: 0 | CT19: 0 | CU19: 0 | CV19: 0 | CW19: 0 | CX19: 0 | CY19: 0 | CZ19: 361.5322667 | DA19: 295.83995 | DB19: 0 | DC19: 0 | DD19: 0 | DE19: 0 | DF19: 0 | DG19: 0 | DH19: 0 | DI19: 0 | DJ19: 1432.862175
A20: =Est2018DistRev!A20 -> CRB | B20: Residential Bulk Demand | C20: =Est2018DistRev!B20 -> Residential Bulk Demand | D20: 85 | E20: 2.03 | F20: 0 | G20: 0 | H20: 0 | I20: 0 | J20: 0 | K20: 0 | L20: 0 | M20: 0 | N20: 0 | O20: 5.54 | P20: 1.86 | Q20: 0 | R20: 0 | S20: 0 | T20: 0 | U20: 0 | V20: 0 | W20: 0 | X20: 0 | Z20: =Est2018DistRev!D20 -> 75 | AA20: =Est2018DistRev!E20 -> 1.85 | AB20: =Est2018DistRev!F20 -> 0 | AC20: =Est2018DistRev!G20 -> 0 | AD20: =Est2018DistRev!H20 -> 0 | AE20: =Est2018DistRev!I20 -> 0 | AF20: =Est2018DistRev!J20 -> 0 | AG20: =Est2018DistRev!K20 -> 0 | AH20: =Est2018DistRev!L20 -> 0 | AI20: =Est2018DistRev!M20 -> 0 | AJ20: =Est2018DistRev!N20 -> 0 | AK20: =Est2018DistRev!O20 -> 5.24 | AL20: =Est2018DistRev!P20 -> 1.75 | AM20: =Est2018DistRev!Q20 -> 0 | AN20: =Est2018DistRev!R20 -> 0 | AO20: =Est2018DistRev!S20 -> 0 | AP20: =Est2018DistRev!T20 -> 0 | AQ20: =Est2018DistRev!U20 -> 0 | AR20: =Est2018DistRev!V20 -> 0 | AS20: =Est2018DistRev!W20 -> 0 | AT20: =Est2018DistRev!X20 -> 0 | AV20: 0 | AW20: 0 | AX20: 0 | AY20: 0 | AZ20: 0 | BA20: 0 | BB20: 0 | BC20: 0 | BD20: 0 | BE20: 0 | BF20: 0 | BG20: 0 | BH20: 0 | BI20: 0 | BJ20: 0 | BK20: 0 | BL20: 0 | BM20: 0 | BN20: 0 | BO20: 0 | BP20: 0 | BR20: 0 | BS20: 0 | BT20: 0 | BU20: 0 | BV20: 0 | BW20: 0 | BX20: 0 | BY20: 0 | BZ20: 0 | CA20: 0 | CB20: 0 | CC20: 0 | CD20: 0 | CE20: 0 | CF20: 0 | CG20: 0 | CH20: 0 | CI20: 0 | CJ20: 0 | CK20: 0 | CL20: 0 | CM20: 0 | CO20: 0 | CP20: 0 | CQ20: 0 | CR20: 0 | CS20: 0 | CT20: 0 | CU20: 0 | CV20: 0 | CW20: 0 | CX20: 0 | CY20: 0 | CZ20: 0 | DA20: 0 | DB20: 0 | DC20: 0 | DD20: 0 | DE20: 0 | DF20: 0 | DG20: 0 | DH20: 0 | DI20: 0 | DJ20: 0
A21: =Est2018DistRev!A21 -> C1G | B21: Non-Residential Single Rate | C21: =Est2018DistRev!B21 -> Non-Residential Single Rate | D21: 150 | E21: 5.96 | F21: 0 | G21: 0 | H21: 0 | I21: 0 | J21: 0 | K21: 0 | L21: 0 | M21: 0 | N21: 0 | O21: 0 | P21: 0 | Q21: 0 | R21: 0 | S21: 0 | T21: 0 | U21: 0 | V21: 0 | W21: 0 | X21: 0 | Z21: =Est2018DistRev!D21 -> 145 | AA21: =Est2018DistRev!E21 -> 6.05 | AB21: =Est2018DistRev!F21 -> 0 | AC21: =Est2018DistRev!G21 -> 0 | AD21: =Est2018DistRev!H21 -> 0 | AE21: =Est2018DistRev!I21 -> 0 | AF21: =Est2018DistRev!J21 -> 0 | AG21: =Est2018DistRev!K21 -> 0 | AH21: =Est2018DistRev!L21 -> 0 | AI21: =Est2018DistRev!M21 -> 0 | AJ21: =Est2018DistRev!N21 -> 0 | AK21: =Est2018DistRev!O21 -> 0 | AL21: =Est2018DistRev!P21 -> 0 | AM21: =Est2018DistRev!Q21 -> 0 | AN21: =Est2018DistRev!R21 -> 0 | AO21: =Est2018DistRev!S21 -> 0 | AP21: =Est2018DistRev!T21 -> 0 | AQ21: =Est2018DistRev!U21 -> 0 | AR21: =Est2018DistRev!V21 -> 0 | AS21: =Est2018DistRev!W21 -> 0 | AT21: =Est2018DistRev!X21 -> 0 | AV21: 20319.91667 | AW21: 233254649.1 | AX21: 0 | AY21: 0 | AZ21: 0 | BA21: 0 | BB21: 0 | BC21: 0 | BD21: 0 | BE21: 0 | BF21: 0 | BG21: 0 | BH21: 0 | BI21: 0 | BJ21: 0 | BK21: 0 | BL21: 0 | BM21: 0 | BN21: 0 | BO21: 0 | BP21: 0 | BR21: 3047987.5 | BS21: 13901977.09 | BT21: 0 | BU21: 0 | BV21: 0 | BW21: 0 | BX21: 0 | BY21: 0 | BZ21: 0 | CA21: 0 | CB21: 0 | CC21: 0 | CD21: 0 | CE21: 0 | CF21: 0 | CG21: 0 | CH21: 0 | CI21: 0 | CJ21: 0 | CK21: 0 | CL21: 0 | CM21: 16949964.59 | CO21: 2946387.917 | CP21: 14111906.27 | CQ21: 0 | CR21: 0 | CS21: 0 | CT21: 0 | CU21: 0 | CV21: 0 | CW21: 0 | CX21: 0 | CY21: 0 | CZ21: 0 | DA21: 0 | DB21: 0 | DC21: 0 | DD21: 0 | DE21: 0 | DF21: 0 | DG21: 0 | DH21: 0 | DI21: 0 | DJ21: 17058294.19
A22: =Est2018DistRev!A22 -> C1GB | B22: Non-Residential Single Rate - Bulk | C22: =Est2018DistRev!B22 -> Non-Residential Single Rate - Bulk | D22: 140 | E22: 4.84 | F22: 0 | G22: 0 | H22: 0 | I22: 0 | J22: 0 | K22: 0 | L22: 0 | M22: 0 | N22: 0 | O22: 0 | P22: 0 | Q22: 0 | R22: 0 | S22: 0 | T22: 0 | U22: 0 | V22: 0 | W22: 0 | X22: 0 | Z22: =Est2018DistRev!D22 -> 125 | AA22: =Est2018DistRev!E22 -> 4.64 | AB22: =Est2018DistRev!F22 -> 0 | AC22: =Est2018DistRev!G22 -> 0 | AD22: =Est2018DistRev!H22 -> 0 | AE22: =Est2018DistRev!I22 -> 0 | AF22: =Est2018DistRev!J22 -> 0 | AG22: =Est2018DistRev!K22 -> 0 | AH22: =Est2018DistRev!L22 -> 0 | AI22: =Est2018DistRev!M22 -> 0 | AJ22: =Est2018DistRev!N22 -> 0 | AK22: =Est2018DistRev!O22 -> 0 | AL22: =Est2018DistRev!P22 -> 0 | AM22: =Est2018DistRev!Q22 -> 0 | AN22: =Est2018DistRev!R22 -> 0 | AO22: =Est2018DistRev!S22 -> 0 | AP22: =Est2018DistRev!T22 -> 0 | AQ22: =Est2018DistRev!U22 -> 0 | AR22: =Est2018DistRev!V22 -> 0 | AS22: =Est2018DistRev!W22 -> 0 | AT22: =Est2018DistRev!X22 -> 0 | AV22: 5859.166667 | AW22: 77076676.16 | AX22: 0 | AY22: 0 | AZ22: 0 | BA22: 0 | BB22: 0 | BC22: 0 | BD22: 0 | BE22: 0 | BF22: 0 | BG22: 0 | BH22: 0 | BI22: 0 | BJ22: 0 | BK22: 0 | BL22: 0 | BM22: 0 | BN22: 0 | BO22: 0 | BP22: 0 | BR22: 820283.3333 | BS22: 3730511.126 | BT22: 0 | BU22: 0 | BV22: 0 | BW22: 0 | BX22: 0 | BY22: 0 | BZ22: 0 | CA22: 0 | CB22: 0 | CC22: 0 | CD22: 0 | CE22: 0 | CF22: 0 | CG22: 0 | CH22: 0 | CI22: 0 | CJ22: 0 | CK22: 0 | CL22: 0 | CM22: 4550794.46 | CO22: 732395.8333 | CP22: 3576357.774 | CQ22: 0 | CR22: 0 | CS22: 0 | CT22: 0 | CU22: 0 | CV22: 0 | CW22: 0 | CX22: 0 | CY22: 0 | CZ22: 0 | DA22: 0 | DB22: 0 | DC22: 0 | DD22: 0 | DE22: 0 | DF22: 0 | DG22: 0 | DH22: 0 | DI22: 0 | DJ22: 4308753.607
A23: =Est2018DistRev!A23 -> C2G5 | B23: Non-Residential Two Rate 5d | C23: =Est2018DistRev!B23 -> Non-Residential Two Rate 5d | D23: 150 | E23: 0 | F23: 8.96 | G23: 0 | H23: 0 | I23: 2.58 | J23: 0 | K23: 0 | L23: 0 | M23: 0 | N23: 0 | O23: 0 | P23: 0 | Q23: 0 | R23: 0 | S23: 0 | T23: 0 | U23: 0 | V23: 0 | W23: 0 | X23: 0 | Z23: =Est2018DistRev!D23 -> 145 | AA23: =Est2018DistRev!E23 -> 0 | AB23: =Est2018DistRev!F23 -> 9.1 | AC23: =Est2018DistRev!G23 -> 0 | AD23: =Est2018DistRev!H23 -> 0 | AE23: =Est2018DistRev!I23 -> 2.41 | AF23: =Est2018DistRev!J23 -> 0 | AG23: =Est2018DistRev!K23 -> 0 | AH23: =Est2018DistRev!L23 -> 0 | AI23: =Est2018DistRev!M23 -> 0 | AJ23: =Est2018DistRev!N23 -> 0 | AK23: =Est2018DistRev!O23 -> 0 | AL23: =Est2018DistRev!P23 -> 0 | AM23: =Est2018DistRev!Q23 -> 0 | AN23: =Est2018DistRev!R23 -> 0 | AO23: =Est2018DistRev!S23 -> 0 | AP23: =Est2018DistRev!T23 -> 0 | AQ23: =Est2018DistRev!U23 -> 0 | AR23: =Est2018DistRev!V23 -> 0 | AS23: =Est2018DistRev!W23 -> 0 | AT23: =Est2018DistRev!X23 -> 0 | AV23: 8457.416667 | AW23: 0 | AX23: 92130994.29 | AY23: 0 | AZ23: 0 | BA23: 57478450.85 | BB23: 0 | BC23: 0 | BD23: 0 | BE23: 0 | BF23: 0 | BG23: 0 | BH23: 0 | BI23: 0 | BJ23: 0 | BK23: 0 | BL23: 0 | BM23: 0 | BN23: 0 | BO23: 0 | BP23: 0 | BR23: 1268612.5 | BS23: 0 | BT23: 8254937.088 | BU23: 0 | BV23: 0 | BW23: 1482944.032 | BX23: 0 | BY23: 0 | BZ23: 0 | CA23: 0 | CB23: 0 | CC23: 0 | CD23: 0 | CE23: 0 | CF23: 0 | CG23: 0 | CH23: 0 | CI23: 0 | CJ23: 0 | CK23: 0 | CL23: 0 | CM23: 11006493.62 | CO23: 1226325.417 | CP23: 0 | CQ23: 8383920.48 | CR23: 0 | CS23: 0 | CT23: 1385230.666 | CU23: 0 | CV23: 0 | CW23: 0 | CX23: 0 | CY23: 0 | CZ23: 0 | DA23: 0 | DB23: 0 | DC23: 0 | DD23: 0 | DE23: 0 | DF23: 0 | DG23: 0 | DH23: 0 | DI23: 0 | DJ23: 10995476.56
A24: =Est2018DistRev!A24 -> C2G5B | B24: Non-Residential Two Rate 5d - Bulk | C24: =Est2018DistRev!B24 -> Non-Residential Two Rate 5d - Bulk | D24: 140 | E24: 0 | F24: 6.99 | G24: 0 | H24: 0 | I24: 2.11 | J24: 0 | K24: 0 | L24: 0 | M24: 0 | N24: 0 | O24: 0 | P24: 0 | Q24: 0 | R24: 0 | S24: 0 | T24: 0 | U24: 0 | V24: 0 | W24: 0 | X24: 0 | Z24: =Est2018DistRev!D24 -> 125 | AA24: =Est2018DistRev!E24 -> 0 | AB24: =Est2018DistRev!F24 -> 6.6 | AC24: =Est2018DistRev!G24 -> 0 | AD24: =Est2018DistRev!H24 -> 0 | AE24: =Est2018DistRev!I24 -> 1.8 | AF24: =Est2018DistRev!J24 -> 0 | AG24: =Est2018DistRev!K24 -> 0 | AH24: =Est2018DistRev!L24 -> 0 | AI24: =Est2018DistRev!M24 -> 0 | AJ24: =Est2018DistRev!N24 -> 0 | AK24: =Est2018DistRev!O24 -> 0 | AL24: =Est2018DistRev!P24 -> 0 | AM24: =Est2018DistRev!Q24 -> 0 | AN24: =Est2018DistRev!R24 -> 0 | AO24: =Est2018DistRev!S24 -> 0 | AP24: =Est2018DistRev!T24 -> 0 | AQ24: =Est2018DistRev!U24 -> 0 | AR24: =Est2018DistRev!V24 -> 0 | AS24: =Est2018DistRev!W24 -> 0 | AT24: =Est2018DistRev!X24 -> 0 | AV24: 1060 | AW24: 0 | AX24: 17530830.1 | AY24: 0 | AZ24: 0 | BA24: 10374374.19 | BB24: 0 | BC24: 0 | BD24: 0 | BE24: 0 | BF24: 0 | BG24: 0 | BH24: 0 | BI24: 0 | BJ24: 0 | BK24: 0 | BL24: 0 | BM24: 0 | BN24: 0 | BO24: 0 | BP24: 0 | BR24: 148400 | BS24: 0 | BT24: 1225405.024 | BU24: 0 | BV24: 0 | BW24: 218899.2955 | BX24: 0 | BY24: 0 | BZ24: 0 | CA24: 0 | CB24: 0 | CC24: 0 | CD24: 0 | CE24: 0 | CF24: 0 | CG24: 0 | CH24: 0 | CI24: 0 | CJ24: 0 | CK24: 0 | CL24: 0 | CM24: 1592704.319 | CO24: 132500 | CP24: 0 | CQ24: 1157034.787 | CR24: 0 | CS24: 0 | CT24: 186738.7355 | CU24: 0 | CV24: 0 | CW24: 0 | CX24: 0 | CY24: 0 | CZ24: 0 | DA24: 0 | DB24: 0 | DC24: 0 | DD24: 0 | DE24: 0 | DF24: 0 | DG24: 0 | DH24: 0 | DI24: 0 | DJ24: 1476273.522
A25: =Est2018DistRev!A25 -> C3G | B25: Non-Residential Interval | C25: =Est2018DistRev!B25 -> Non-Residential Interval | D25: 150 | E25: 0 | F25: 8.96 | G25: 0 | H25: 0 | I25: 2.37 | J25: 0 | K25: 0 | L25: 0 | M25: 0 | N25: 0 | O25: 0 | P25: 0 | Q25: 0 | R25: 0 | S25: 0 | T25: 0 | U25: 0 | V25: 0 | W25: 0 | X25: 0 | Z25: =Est2018DistRev!D25 -> 145 | AA25: =Est2018DistRev!E25 -> 0 | AB25: =Est2018DistRev!F25 -> 9.1 | AC25: =Est2018DistRev!G25 -> 0 | AD25: =Est2018DistRev!H25 -> 0 | AE25: =Est2018DistRev!I25 -> 2.41 | AF25: =Est2018DistRev!J25 -> 0 | AG25: =Est2018DistRev!K25 -> 0 | AH25: =Est2018DistRev!L25 -> 0 | AI25: =Est2018DistRev!M25 -> 0 | AJ25: =Est2018DistRev!N25 -> 0 | AK25: =Est2018DistRev!O25 -> 0 | AL25: =Est2018DistRev!P25 -> 0 | AM25: =Est2018DistRev!Q25 -> 0 | AN25: =Est2018DistRev!R25 -> 0 | AO25: =Est2018DistRev!S25 -> 0 | AP25: =Est2018DistRev!T25 -> 0 | AQ25: =Est2018DistRev!U25 -> 0 | AR25: =Est2018DistRev!V25 -> 0 | AS25: =Est2018DistRev!W25 -> 0 | AT25: =Est2018DistRev!X25 -> 0 | AV25: 3960.083333 | AW25: 0 | AX25: 45937500.62 | AY25: 0 | AZ25: 0 | BA25: 25953497.25 | BB25: 0 | BC25: 0 | BD25: 0 | BE25: 0 | BF25: 0 | BG25: 0 | BH25: 0 | BI25: 0 | BJ25: 0 | BK25: 0 | BL25: 0 | BM25: 0 | BN25: 0 | BO25: 0 | BP25: 0 | BR25: 594012.5 | BS25: 0 | BT25: 4116000.055 | BU25: 0 | BV25: 0 | BW25: 615097.8848 | BX25: 0 | BY25: 0 | BZ25: 0 | CA25: 0 | CB25: 0 | CC25: 0 | CD25: 0 | CE25: 0 | CF25: 0 | CG25: 0 | CH25: 0 | CI25: 0 | CJ25: 0 | CK25: 0 | CL25: 0 | CM25: 5325110.44 | CO25: 574212.0833 | CP25: 0 | CQ25: 4180312.556 | CR25: 0 | CS25: 0 | CT25: 625479.2837 | CU25: 0 | CV25: 0 | CW25: 0 | CX25: 0 | CY25: 0 | CZ25: 0 | DA25: 0 | DB25: 0 | DC25: 0 | DD25: 0 | DE25: 0 | DF25: 0 | DG25: 0 | DH25: 0 | DI25: 0 | DJ25: 5380003.923
A26: =Est2018DistRev!A26 -> C3GB | B26: Non-Residential Interval - Bulk | C26: =Est2018DistRev!B26 -> Non-Residential Interval - Bulk | D26: 140 | E26: 0 | F26: 6.99 | G26: 0 | H26: 0 | I26: 2.11 | J26: 0 | K26: 0 | L26: 0 | M26: 0 | N26: 0 | O26: 0 | P26: 0 | Q26: 0 | R26: 0 | S26: 0 | T26: 0 | U26: 0 | V26: 0 | W26: 0 | X26: 0 | Z26: =Est2018DistRev!D26 -> 125 | AA26: =Est2018DistRev!E26 -> 0 | AB26: =Est2018DistRev!F26 -> 6.6 | AC26: =Est2018DistRev!G26 -> 0 | AD26: =Est2018DistRev!H26 -> 0 | AE26: =Est2018DistRev!I26 -> 1.8 | AF26: =Est2018DistRev!J26 -> 0 | AG26: =Est2018DistRev!K26 -> 0 | AH26: =Est2018DistRev!L26 -> 0 | AI26: =Est2018DistRev!M26 -> 0 | AJ26: =Est2018DistRev!N26 -> 0 | AK26: =Est2018DistRev!O26 -> 0 | AL26: =Est2018DistRev!P26 -> 0 | AM26: =Est2018DistRev!Q26 -> 0 | AN26: =Est2018DistRev!R26 -> 0 | AO26: =Est2018DistRev!S26 -> 0 | AP26: =Est2018DistRev!T26 -> 0 | AQ26: =Est2018DistRev!U26 -> 0 | AR26: =Est2018DistRev!V26 -> 0 | AS26: =Est2018DistRev!W26 -> 0 | AT26: =Est2018DistRev!X26 -> 0 | AV26: 1945.083333 | AW26: 0 | AX26: 29899979.14 | AY26: 0 | AZ26: 0 | BA26: 15763990.48 | BB26: 0 | BC26: 0 | BD26: 0 | BE26: 0 | BF26: 0 | BG26: 0 | BH26: 0 | BI26: 0 | BJ26: 0 | BK26: 0 | BL26: 0 | BM26: 0 | BN26: 0 | BO26: 0 | BP26: 0 | BR26: 272311.6667 | BS26: 0 | BT26: 2090008.542 | BU26: 0 | BV26: 0 | BW26: 332620.1992 | BX26: 0 | BY26: 0 | BZ26: 0 | CA26: 0 | CB26: 0 | CC26: 0 | CD26: 0 | CE26: 0 | CF26: 0 | CG26: 0 | CH26: 0 | CI26: 0 | CJ26: 0 | CK26: 0 | CL26: 0 | CM26: 2694940.408 | CO26: 243135.4167 | CP26: 0 | CQ26: 1973398.623 | CR26: 0 | CS26: 0 | CT26: 283751.8287 | CU26: 0 | CV26: 0 | CW26: 0 | CX26: 0 | CY26: 0 | CZ26: 0 | DA26: 0 | DB26: 0 | DC26: 0 | DD26: 0 | DE26: 0 | DF26: 0 | DG26: 0 | DH26: 0 | DI26: 0 | DJ26: 2500285.869
A27: =Est2018DistRev!A27 -> C14G | B27: Non-Residential Flexible Pricing | C27: =Est2018DistRev!B27 -> Non-Residential Flexible Pricing | D27: 150 | E27: 0 | F27: 0 | G27: 0 | H27: 0 | I27: 0 | J27: 0 | K27: 0 | L27: 0 | M27: 0 | N27: 0 | O27: 0 | P27: 0 | Q27: 10.92 | R27: 7.63 | S27: 3 | T27: 0 | U27: 10.92 | V27: 7.63 | W27: 3 | X27: 0 | Z27: =Est2018DistRev!D27 -> 145 | AA27: =Est2018DistRev!E27 -> 0 | AB27: =Est2018DistRev!F27 -> 0 | AC27: =Est2018DistRev!G27 -> 0 | AD27: =Est2018DistRev!H27 -> 0 | AE27: =Est2018DistRev!I27 -> 0 | AF27: =Est2018DistRev!J27 -> 0 | AG27: =Est2018DistRev!K27 -> 0 | AH27: =Est2018DistRev!L27 -> 0 | AI27: =Est2018DistRev!M27 -> 0 | AJ27: =Est2018DistRev!N27 -> 0 | AK27: =Est2018DistRev!O27 -> 0 | AL27: =Est2018DistRev!P27 -> 0 | AM27: =Est2018DistRev!Q27 -> 11.09 | AN27: =Est2018DistRev!R27 -> 7.75 | AO27: =Est2018DistRev!S27 -> 3.06 | AP27: =Est2018DistRev!T27 -> 0 | AQ27: =Est2018DistRev!U27 -> 11.09 | AR27: =Est2018DistRev!V27 -> 7.75 | AS27: =Est2018DistRev!W27 -> 3.06 | AT27: =Est2018DistRev!X27 -> 0 | AV27: 22 | AW27: 0 | AX27: 0 | AY27: 0 | AZ27: 0 | BA27: 0 | BB27: 0 | BC27: 0 | BD27: 0 | BE27: 0 | BF27: 0 | BG27: 0 | BH27: 0 | BI27: 90532.51609 | BJ27: 28600.36374 | BK27: 77063.91457 | BL27: 0 | BM27: 309844.84 | BN27: 97883.8931 | BO27: 263748.9525 | BP27: 0 | BR27: 3300 | BS27: 0 | BT27: 0 | BU27: 0 | BV27: 0 | BW27: 0 | BX27: 0 | BY27: 0 | BZ27: 0 | CA27: 0 | CB27: 0 | CC27: 0 | CD27: 0 | CE27: 9886.150757 | CF27: 2182.207753 | CG27: 2311.917437 | CH27: 0 | CI27: 33835.05653 | CJ27: 7468.541043 | CK27: 7912.468574 | CL27: 0 | CM27: 66896.3421 | CO27: 3190 | CP27: 0 | CQ27: 0 | CR27: 0 | CS27: 0 | CT27: 0 | CU27: 0 | CV27: 0 | CW27: 0 | CX27: 0 | CY27: 0 | CZ27: 0 | DA27: 0 | DB27: 10040.05603 | DC27: 2216.528189 | DD27: 2358.155786 | DE27: 0 | DF27: 34361.79276 | DG27: 7586.001715 | DH27: 8070.717946 | DI27: 0 | DJ27: 67823.25243
A28: =Est2018DistRev!A28 -> C14GB | B28: Non-Residential - Flexible Pricing Bulk | C28: =Est2018DistRev!B28 -> Non-Residential - Flexible Pricing Bulk | D28: 140 | E28: 0 | F28: 0 | G28: 0 | H28: 0 | I28: 0 | J28: 0 | K28: 0 | L28: 0 | M28: 0 | N28: 0 | O28: 0 | P28: 0 | Q28: 9.6 | R28: 6.71 | S28: 2.64 | T28: 0 | U28: 9.6 | V28: 6.71 | W28: 2.64 | X28: 0 | Z28: =Est2018DistRev!D28 -> 125 | AA28: =Est2018DistRev!E28 -> 0 | AB28: =Est2018DistRev!F28 -> 0 | AC28: =Est2018DistRev!G28 -> 0 | AD28: =Est2018DistRev!H28 -> 0 | AE28: =Est2018DistRev!I28 -> 0 | AF28: =Est2018DistRev!J28 -> 0 | AG28: =Est2018DistRev!K28 -> 0 | AH28: =Est2018DistRev!L28 -> 0 | AI28: =Est2018DistRev!M28 -> 0 | AJ28: =Est2018DistRev!N28 -> 0 | AK28: =Est2018DistRev!O28 -> 0 | AL28: =Est2018DistRev!P28 -> 0 | AM28: =Est2018DistRev!Q28 -> 9.42 | AN28: =Est2018DistRev!R28 -> 6.58 | AO28: =Est2018DistRev!S28 -> 2.59 | AP28: =Est2018DistRev!T28 -> 0 | AQ28: =Est2018DistRev!U28 -> 9.42 | AR28: =Est2018DistRev!V28 -> 6.58 | AS28: =Est2018DistRev!W28 -> 2.59 | AT28: =Est2018DistRev!X28 -> 0 | AV28: 7 | AW28: 0 | AX28: 0 | AY28: 0 | AZ28: 0 | BA28: 0 | BB28: 0 | BC28: 0 | BD28: 0 | BE28: 0 | BF28: 0 | BG28: 0 | BH28: 0 | BI28: 103639.4071 | BJ28: 27419.30238 | BK28: 92664.29665 | BL28: 0 | BM28: 277642.3295 | BN28: 73454.2892 | BO28: 248240.8178 | BP28: 0 | BR28: 980 | BS28: 0 | BT28: 0 | BU28: 0 | BV28: 0 | BW28: 0 | BX28: 0 | BY28: 0 | BZ28: 0 | CA28: 0 | CB28: 0 | CC28: 0 | CD28: 0 | CE28: 9949.383086 | CF28: 1839.835189 | CG28: 2446.337432 | CH28: 0 | CI28: 26653.66363 | CJ28: 4928.782805 | CK28: 6553.557589 | CL28: 0 | CM28: 53351.55973 | CO28: 875 | CP28: 0 | CQ28: 0 | CR28: 0 | CS28: 0 | CT28: 0 | CU28: 0 | CV28: 0 | CW28: 0 | CX28: 0 | CY28: 0 | CZ28: 0 | DA28: 0 | DB28: 9762.832153 | DC28: 1804.190096 | DD28: 2400.005283 | DE28: 0 | DF28: 26153.90744 | DG28: 4833.292229 | DH28: 6429.43718 | DI28: 0 | DJ28: 52258.66438
A29: =Est2018DistRev!A29 -> C2G7 | B29: Non-Residential Two Rate 7d | C29: =Est2018DistRev!B29 -> Non-Residential Two Rate 7d | D29: 150 | E29: 0 | F29: 7.05 | G29: 0 | H29: 0 | I29: 2.37 | J29: 0 | K29: 0 | L29: 0 | M29: 0 | N29: 0 | O29: 0 | P29: 0 | Q29: 0 | R29: 0 | S29: 0 | T29: 0 | U29: 0 | V29: 0 | W29: 0 | X29: 0 | Z29: =Est2018DistRev!D29 -> 145 | AA29: =Est2018DistRev!E29 -> 0 | AB29: =Est2018DistRev!F29 -> 7.16 | AC29: =Est2018DistRev!G29 -> 0 | AD29: =Est2018DistRev!H29 -> 0 | AE29: =Est2018DistRev!I29 -> 2.41 | AF29: =Est2018DistRev!J29 -> 0 | AG29: =Est2018DistRev!K29 -> 0 | AH29: =Est2018DistRev!L29 -> 0 | AI29: =Est2018DistRev!M29 -> 0 | AJ29: =Est2018DistRev!N29 -> 0 | AK29: =Est2018DistRev!O29 -> 0 | AL29: =Est2018DistRev!P29 -> 0 | AM29: =Est2018DistRev!Q29 -> 0 | AN29: =Est2018DistRev!R29 -> 0 | AO29: =Est2018DistRev!S29 -> 0 | AP29: =Est2018DistRev!T29 -> 0 | AQ29: =Est2018DistRev!U29 -> 0 | AR29: =Est2018DistRev!V29 -> 0 | AS29: =Est2018DistRev!W29 -> 0 | AT29: =Est2018DistRev!X29 -> 0 | AV29: 2325 | AW29: 0 | AX29: 39141830.2 | AY29: 0 | AZ29: 0 | BA29: 9312690.059 | BB29: 0 | BC29: 0 | BD29: 0 | BE29: 0 | BF29: 0 | BG29: 0 | BH29: 0 | BI29: 0 | BJ29: 0 | BK29: 0 | BL29: 0 | BM29: 0 | BN29: 0 | BO29: 0 | BP29: 0 | BR29: 348750 | BS29: 0 | BT29: 2759499.029 | BU29: 0 | BV29: 0 | BW29: 220710.7544 | BX29: 0 | BY29: 0 | BZ29: 0 | CA29: 0 | CB29: 0 | CC29: 0 | CD29: 0 | CE29: 0 | CF29: 0 | CG29: 0 | CH29: 0 | CI29: 0 | CJ29: 0 | CK29: 0 | CL29: 0 | CM29: 3328959.783 | CO29: 337125 | CP29: 0 | CQ29: 2802555.042 | CR29: 0 | CS29: 0 | CT29: 224435.8304 | CU29: 0 | CV29: 0 | CW29: 0 | CX29: 0 | CY29: 0 | CZ29: 0 | DA29: 0 | DB29: 0 | DC29: 0 | DD29: 0 | DE29: 0 | DF29: 0 | DG29: 0 | DH29: 0 | DI29: 0 | DJ29: 3364115.872
A30: =Est2018DistRev!A30 -> C2G7B | B30: Non-Residential Two Rate 7d - Bulk | C30: =Est2018DistRev!B30 -> Non-Residential Two Rate 7d - Bulk | D30: 140 | E30: 0 | F30: 6.27 | G30: 0 | H30: 0 | I30: 2.11 | J30: 0 | K30: 0 | L30: 0 | M30: 0 | N30: 0 | O30: 0 | P30: 0 | Q30: 0 | R30: 0 | S30: 0 | T30: 0 | U30: 0 | V30: 0 | W30: 0 | X30: 0 | Z30: =Est2018DistRev!D30 -> 125 | AA30: =Est2018DistRev!E30 -> 0 | AB30: =Est2018DistRev!F30 -> 6.17 | AC30: =Est2018DistRev!G30 -> 0 | AD30: =Est2018DistRev!H30 -> 0 | AE30: =Est2018DistRev!I30 -> 1.8 | AF30: =Est2018DistRev!J30 -> 0 | AG30: =Est2018DistRev!K30 -> 0 | AH30: =Est2018DistRev!L30 -> 0 | AI30: =Est2018DistRev!M30 -> 0 | AJ30: =Est2018DistRev!N30 -> 0 | AK30: =Est2018DistRev!O30 -> 0 | AL30: =Est2018DistRev!P30 -> 0 | AM30: =Est2018DistRev!Q30 -> 0 | AN30: =Est2018DistRev!R30 -> 0 | AO30: =Est2018DistRev!S30 -> 0 | AP30: =Est2018DistRev!T30 -> 0 | AQ30: =Est2018DistRev!U30 -> 0 | AR30: =Est2018DistRev!V30 -> 0 | AS30: =Est2018DistRev!W30 -> 0 | AT30: =Est2018DistRev!X30 -> 0 | AV30: 253.0833333 | AW30: 0 | AX30: 5750711.727 | AY30: 0 | AZ30: 0 | BA30: 1391434.263 | BB30: 0 | BC30: 0 | BD30: 0 | BE30: 0 | BF30: 0 | BG30: 0 | BH30: 0 | BI30: 0 | BJ30: 0 | BK30: 0 | BL30: 0 | BM30: 0 | BN30: 0 | BO30: 0 | BP30: 0 | BR30: 35431.66667 | BS30: 0 | BT30: 360569.6253 | BU30: 0 | BV30: 0 | BW30: 29359.26294 | BX30: 0 | BY30: 0 | BZ30: 0 | CA30: 0 | CB30: 0 | CC30: 0 | CD30: 0 | CE30: 0 | CF30: 0 | CG30: 0 | CH30: 0 | CI30: 0 | CJ30: 0 | CK30: 0 | CL30: 0 | CM30: 425360.5549 | CO30: 31635.41667 | CP30: 0 | CQ30: 354818.9136 | CR30: 0 | CS30: 0 | CT30: 25045.81673 | CU30: 0 | CV30: 0 | CW30: 0 | CX30: 0 | CY30: 0 | CZ30: 0 | DA30: 0 | DB30: 0 | DC30: 0 | DD30: 0 | DE30: 0 | DF30: 0 | DG30: 0 | DH30: 0 | DI30: 0 | DJ30: 411500.147
A31: =Est2018DistRev!A31 -> C2L7 | B31: Large Two Rate 7d | C31: =Est2018DistRev!B31 -> Large Two Rate 7d | D31: 150 | E31: 0 | F31: 8.96 | G31: 0 | H31: 0 | I31: 2.58 | J31: 0 | K31: 0 | L31: 0 | M31: 0 | N31: 0 | O31: 0 | P31: 0 | Q31: 0 | R31: 0 | S31: 0 | T31: 0 | U31: 0 | V31: 0 | W31: 0 | X31: 0 | Z31: =Est2018DistRev!D31 -> 145 | AA31: =Est2018DistRev!E31 -> 0 | AB31: =Est2018DistRev!F31 -> 9.1 | AC31: =Est2018DistRev!G31 -> 0 | AD31: =Est2018DistRev!H31 -> 0 | AE31: =Est2018DistRev!I31 -> 2.41 | AF31: =Est2018DistRev!J31 -> 0 | AG31: =Est2018DistRev!K31 -> 0 | AH31: =Est2018DistRev!L31 -> 0 | AI31: =Est2018DistRev!M31 -> 0 | AJ31: =Est2018DistRev!N31 -> 0 | AK31: =Est2018DistRev!O31 -> 0 | AL31: =Est2018DistRev!P31 -> 0 | AM31: =Est2018DistRev!Q31 -> 0 | AN31: =Est2018DistRev!R31 -> 0 | AO31: =Est2018DistRev!S31 -> 0 | AP31: =Est2018DistRev!T31 -> 0 | AQ31: =Est2018DistRev!U31 -> 0 | AR31: =Est2018DistRev!V31 -> 0 | AS31: =Est2018DistRev!W31 -> 0 | AT31: =Est2018DistRev!X31 -> 0 | AV31: 4 | AW31: 0 | AX31: 168556.1792 | AY31: 0 | AZ31: 0 | BA31: 75139.00678 | BB31: 0 | BC31: 0 | BD31: 0 | BE31: 0 | BF31: 0 | BG31: 0 | BH31: 0 | BI31: 0 | BJ31: 0 | BK31: 0 | BL31: 0 | BM31: 0 | BN31: 0 | BO31: 0 | BP31: 0 | BR31: 600 | BS31: 0 | BT31: 15102.63366 | BU31: 0 | BV31: 0 | BW31: 1938.586375 | BX31: 0 | BY31: 0 | BZ31: 0 | CA31: 0 | CB31: 0 | CC31: 0 | CD31: 0 | CE31: 0 | CF31: 0 | CG31: 0 | CH31: 0 | CI31: 0 | CJ31: 0 | CK31: 0 | CL31: 0 | CM31: 17641.22003 | CO31: 580 | CP31: 0 | CQ31: 15338.61231 | CR31: 0 | CS31: 0 | CT31: 1810.850063 | CU31: 0 | CV31: 0 | CW31: 0 | CX31: 0 | CY31: 0 | CZ31: 0 | DA31: 0 | DB31: 0 | DC31: 0 | DD31: 0 | DE31: 0 | DF31: 0 | DG31: 0 | DH31: 0 | DI31: 0 | DJ31: 17729.46237
A32: =Est2018DistRev!A32 -> CG | B32: Non-Residential Demand Tariff | C32: =Est2018DistRev!B32 -> Non-Residential Demand Tariff | D32: 150 | E32: 3.27 | F32: 0 | G32: 0 | H32: 0 | I32: 0 | J32: 0 | K32: 0 | L32: 0 | M32: 0 | N32: 0 | O32: 10.43 | P32: 3.48 | Q32: 0 | R32: 0 | S32: 0 | T32: 0 | U32: 0 | V32: 0 | W32: 0 | X32: 0 | Z32: =Est2018DistRev!D32 -> 145 | AA32: =Est2018DistRev!E32 -> 3.32 | AB32: =Est2018DistRev!F32 -> 0 | AC32: =Est2018DistRev!G32 -> 0 | AD32: =Est2018DistRev!H32 -> 0 | AE32: =Est2018DistRev!I32 -> 0 | AF32: =Est2018DistRev!J32 -> 0 | AG32: =Est2018DistRev!K32 -> 0 | AH32: =Est2018DistRev!L32 -> 0 | AI32: =Est2018DistRev!M32 -> 0 | AJ32: =Est2018DistRev!N32 -> 0 | AK32: =Est2018DistRev!O32 -> 10.59 | AL32: =Est2018DistRev!P32 -> 3.53 | AM32: =Est2018DistRev!Q32 -> 0 | AN32: =Est2018DistRev!R32 -> 0 | AO32: =Est2018DistRev!S32 -> 0 | AP32: =Est2018DistRev!T32 -> 0 | AQ32: =Est2018DistRev!U32 -> 0 | AR32: =Est2018DistRev!V32 -> 0 | AS32: =Est2018DistRev!W32 -> 0 | AT32: =Est2018DistRev!X32 -> 0 | AV32: 8 | AW32: 717136.6155 | AX32: 0 | AY32: 0 | AZ32: 0 | BA32: 0 | BB32: 0 | BC32: 0 | BD32: 0 | BE32: 0 | BF32: 0 | BG32: 822.7376 | BH32: 1909.040695 | BI32: 0 | BJ32: 0 | BK32: 0 | BL32: 0 | BM32: 0 | BN32: 0 | BO32: 0 | BP32: 0 | BR32: 1200 | BS32: 23450.36733 | BT32: 0 | BU32: 0 | BV32: 0 | BW32: 0 | BX32: 0 | BY32: 0 | BZ32: 0 | CA32: 0 | CB32: 0 | CC32: 8581.153168 | CD32: 6643.461619 | CE32: 0 | CF32: 0 | CG32: 0 | CH32: 0 | CI32: 0 | CJ32: 0 | CK32: 0 | CL32: 0 | CM32: 39874.98212 | CO32: 1160 | CP32: 23808.93564 | CQ32: 0 | CR32: 0 | CS32: 0 | CT32: 0 | CU32: 0 | CV32: 0 | CW32: 0 | CX32: 0 | CY32: 0 | CZ32: 8712.791184 | DA32: 6738.913654 | DB32: 0 | DC32: 0 | DD32: 0 | DE32: 0 | DF32: 0 | DG32: 0 | DH32: 0 | DI32: 0 | DJ32: =SUM(CO32:DI32) -> 40420.64047
A33: =Est2018DistRev!A33 -> CGB | B33: Non-Residential Bulk Demand Tariff | C33: =Est2018DistRev!B33 -> Non-Residential Bulk Demand Tariff | D33: 140 | E33: 3 | F33: 0 | G33: 0 | H33: 0 | I33: 0 | J33: 0 | K33: 0 | L33: 0 | M33: 0 | N33: 0 | O33: 8.35 | P33: 2.78 | Q33: 0 | R33: 0 | S33: 0 | T33: 0 | U33: 0 | V33: 0 | W33: 0 | X33: 0 | Z33: =Est2018DistRev!D33 -> 125 | AA33: =Est2018DistRev!E33 -> 2.99 | AB33: =Est2018DistRev!F33 -> 0 | AC33: =Est2018DistRev!G33 -> 0 | AD33: =Est2018DistRev!H33 -> 0 | AE33: =Est2018DistRev!I33 -> 0 | AF33: =Est2018DistRev!J33 -> 0 | AG33: =Est2018DistRev!K33 -> 0 | AH33: =Est2018DistRev!L33 -> 0 | AI33: =Est2018DistRev!M33 -> 0 | AJ33: =Est2018DistRev!N33 -> 0 | AK33: =Est2018DistRev!O33 -> 7.94 | AL33: =Est2018DistRev!P33 -> 2.64 | AM33: =Est2018DistRev!Q33 -> 0 | AN33: =Est2018DistRev!R33 -> 0 | AO33: =Est2018DistRev!S33 -> 0 | AP33: =Est2018DistRev!T33 -> 0 | AQ33: =Est2018DistRev!U33 -> 0 | AR33: =Est2018DistRev!V33 -> 0 | AS33: =Est2018DistRev!W33 -> 0 | AT33: =Est2018DistRev!X33 -> 0 | AV33: 4 | AW33: 534045.0131 | AX33: 0 | AY33: 0 | AZ33: 0 | BA33: 0 | BB33: 0 | BC33: 0 | BD33: 0 | BE33: 0 | BF33: 0 | BG33: 411.3688 | BH33: 954.5203476 | BI33: 0 | BJ33: 0 | BK33: 0 | BL33: 0 | BM33: 0 | BN33: 0 | BO33: 0 | BP33: 0 | BR33: 560 | BS33: 16021.35039 | BT33: 0 | BU33: 0 | BV33: 0 | BW33: 0 | BX33: 0 | BY33: 0 | BZ33: 0 | CA33: 0 | CB33: 0 | CC33: 3434.92948 | CD33: 2653.566566 | CE33: 0 | CF33: 0 | CG33: 0 | CH33: 0 | CI33: 0 | CJ33: 0 | CK33: 0 | CL33: 0 | CM33: 22669.84644 | CO33: 500 | CP33: 15967.94589 | CQ33: 0 | CR33: 0 | CS33: 0 | CT33: 0 | CU33: 0 | CV33: 0 | CW33: 0 | CX33: 0 | CY33: 0 | CZ33: 3266.268272 | DA33: 2519.933718 | DB33: 0 | DC33: 0 | DD33: 0 | DE33: 0 | DF33: 0 | DG33: 0 | DH33: 0 | DI33: 0 | DJ33: 22254.14788
A34: =Est2018DistRev!A34 -> CMG | B34: Medium Business Demand | C34: =Est2018DistRev!B34 -> Medium Business Demand | D34: 1000 | E34: 0 | F34: 4.2 | G34: 0 | H34: 0 | I34: 3.21 | J34: 0 | K34: 0 | L34: 0 | M34: 0 | N34: 0 | O34: 5.69 | P34: 2.84 | Q34: 0 | R34: 0 | S34: 0 | T34: 0 | U34: 0 | V34: 0 | W34: 0 | X34: 0 | Z34: =Est2018DistRev!D34 -> 800 | AA34: =Est2018DistRev!E34 -> 0 | AB34: =Est2018DistRev!F34 -> 5.44 | AC34: =Est2018DistRev!G34 -> 0 | AD34: =Est2018DistRev!H34 -> 0 | AE34: =Est2018DistRev!I34 -> 3.21 | AF34: =Est2018DistRev!J34 -> 0 | AG34: =Est2018DistRev!K34 -> 0 | AH34: =Est2018DistRev!L34 -> 0 | AI34: =Est2018DistRev!M34 -> 0 | AJ34: =Est2018DistRev!N34 -> 0 | AK34: =Est2018DistRev!O34 -> 2.73 | AL34: =Est2018DistRev!P34 -> 1.37 | AM34: =Est2018DistRev!Q34 -> 0 | AN34: =Est2018DistRev!R34 -> 0 | AO34: =Est2018DistRev!S34 -> 0 | AP34: =Est2018DistRev!T34 -> 0 | AQ34: =Est2018DistRev!U34 -> 0 | AR34: =Est2018DistRev!V34 -> 0 | AS34: =Est2018DistRev!W34 -> 0 | AT34: =Est2018DistRev!X34 -> 0 | AV34: 4548 | AW34: 0 | AX34: 365166105 | AY34: 0 | AZ34: 0 | BA34: 263865736.5 | BB34: 0 | BC34: 0 | BD34: 0 | BE34: 0 | BF34: 0 | BG34: 730223.7714 | BH34: 1303005.77 | BI34: 0 | BJ34: 0 | BK34: 0 | BL34: 0 | BM34: 0 | BN34: 0 | BO34: 0 | BP34: 0 | BR34: 4548000 | BS34: 0 | BT34: 15336976.41 | BU34: 0 | BV34: 0 | BW34: 8470090.142 | BX34: 0 | BY34: 0 | BZ34: 0 | CA34: 0 | CB34: 0 | CC34: 4154973.259 | CD34: 3700536.388 | CE34: 0 | CF34: 0 | CG34: 0 | CH34: 0 | CI34: 0 | CJ34: 0 | CK34: 0 | CL34: 0 | CM34: 36210576.2 | CO34: 3638400 | CP34: 0 | CQ34: 19865036.11 | CR34: 0 | CS34: 0 | CT34: 8470090.142 | CU34: 0 | CV34: 0 | CW34: 0 | CX34: 0 | CY34: 0 | CZ34: 1993510.896 | DA34: 1785117.905 | DB34: 0 | DC34: 0 | DD34: 0 | DE34: 0 | DF34: 0 | DG34: 0 | DH34: 0 | DI34: 0 | DJ34: 35752155.06
A35: =Est2018DistRev!A35 -> CMGB | B35: Medium Business Bulk Demand | C35: =Est2018DistRev!B35 -> Medium Business Bulk Demand | D35: 975 | E35: 0 | F35: 3.33 | G35: 0 | H35: 0 | I35: 2.66 | J35: 0 | K35: 0 | L35: 0 | M35: 0 | N35: 0 | O35: 4.55 | P35: 2.28 | Q35: 0 | R35: 0 | S35: 0 | T35: 0 | U35: 0 | V35: 0 | W35: 0 | X35: 0 | Z35: =Est2018DistRev!D35 -> 800 | AA35: =Est2018DistRev!E35 -> 0 | AB35: =Est2018DistRev!F35 -> 3.99 | AC35: =Est2018DistRev!G35 -> 0 | AD35: =Est2018DistRev!H35 -> 0 | AE35: =Est2018DistRev!I35 -> 2.53 | AF35: =Est2018DistRev!J35 -> 0 | AG35: =Est2018DistRev!K35 -> 0 | AH35: =Est2018DistRev!L35 -> 0 | AI35: =Est2018DistRev!M35 -> 0 | AJ35: =Est2018DistRev!N35 -> 0 | AK35: =Est2018DistRev!O35 -> 2.05 | AL35: =Est2018DistRev!P35 -> 1.03 | AM35: =Est2018DistRev!Q35 -> 0 | AN35: =Est2018DistRev!R35 -> 0 | AO35: =Est2018DistRev!S35 -> 0 | AP35: =Est2018DistRev!T35 -> 0 | AQ35: =Est2018DistRev!U35 -> 0 | AR35: =Est2018DistRev!V35 -> 0 | AS35: =Est2018DistRev!W35 -> 0 | AT35: =Est2018DistRev!X35 -> 0 | AV35: 2221.916667 | AW35: 0 | AX35: 255479964.7 | AY35: 0 | AZ35: 0 | BA35: 173141256.8 | BB35: 0 | BC35: 0 | BD35: 0 | BE35: 0 | BF35: 0 | BG35: 520621.0765 | BH35: 868527.9127 | BI35: 0 | BJ35: 0 | BK35: 0 | BL35: 0 | BM35: 0 | BN35: 0 | BO35: 0 | BP35: 0 | BR35: 2166368.75 | BS35: 0 | BT35: 8507482.823 | BU35: 0 | BV35: 0 | BW35: 4605557.43 | BX35: 0 | BY35: 0 | BZ35: 0 | CA35: 0 | CB35: 0 | CC35: 2368825.898 | CD35: 1980243.641 | CE35: 0 | CF35: 0 | CG35: 0 | CH35: 0 | CI35: 0 | CJ35: 0 | CK35: 0 | CL35: 0 | CM35: 19628478.54 | CO35: 1777533.333 | CP35: 0 | CQ35: 10193650.59 | CR35: 0 | CS35: 0 | CT35: 4380473.796 | CU35: 0 | CV35: 0 | CW35: 0 | CX35: 0 | CY35: 0 | CZ35: 1067273.207 | DA35: 894583.7501 | DB35: 0 | DC35: 0 | DD35: 0 | DE35: 0 | DF35: 0 | DG35: 0 | DH35: 0 | DI35: 0 | DJ35: 18313514.68
A36: =Est2018DistRev!A36 -> CMGO | B36: Medium Business Opt-out | C36: =Est2018DistRev!B36 -> Medium Business Opt-out | D36: 1000 | E36: 0 | F36: 8.32 | G36: 0 | H36: 0 | I36: 3.32 | J36: 0 | K36: 0 | L36: 0 | M36: 0 | N36: 0 | O36: 0 | P36: 0 | Q36: 0 | R36: 0 | S36: 0 | T36: 0 | U36: 0 | V36: 0 | W36: 0 | X36: 0 | Z36: =Est2018DistRev!D36 -> 800 | AA36: =Est2018DistRev!E36 -> 0 | AB36: =Est2018DistRev!F36 -> 8.33 | AC36: =Est2018DistRev!G36 -> 0 | AD36: =Est2018DistRev!H36 -> 0 | AE36: =Est2018DistRev!I36 -> 3.34 | AF36: =Est2018DistRev!J36 -> 0 | AG36: =Est2018DistRev!K36 -> 0 | AH36: =Est2018DistRev!L36 -> 0 | AI36: =Est2018DistRev!M36 -> 0 | AJ36: =Est2018DistRev!N36 -> 0 | AK36: =Est2018DistRev!O36 -> 0 | AL36: =Est2018DistRev!P36 -> 0 | AM36: =Est2018DistRev!Q36 -> 0 | AN36: =Est2018DistRev!R36 -> 0 | AO36: =Est2018DistRev!S36 -> 0 | AP36: =Est2018DistRev!T36 -> 0 | AQ36: =Est2018DistRev!U36 -> 0 | AR36: =Est2018DistRev!V36 -> 0 | AS36: =Est2018DistRev!W36 -> 0 | AT36: =Est2018DistRev!X36 -> 0 | AV36: 7 | AW36: 0 | AX36: 296417.2537 | AY36: 0 | AZ36: 0 | BA36: 286499.7885 | BB36: 0 | BC36: 0 | BD36: 0 | BE36: 0 | BF36: 0 | BG36: 0 | BH36: 0 | BI36: 0 | BJ36: 0 | BK36: 0 | BL36: 0 | BM36: 0 | BN36: 0 | BO36: 0 | BP36: 0 | BR36: 7000 | BS36: 0 | BT36: 24661.91551 | BU36: 0 | BV36: 0 | BW36: 9511.792978 | BX36: 0 | BY36: 0 | BZ36: 0 | CA36: 0 | CB36: 0 | CC36: 0 | CD36: 0 | CE36: 0 | CF36: 0 | CG36: 0 | CH36: 0 | CI36: 0 | CJ36: 0 | CK36: 0 | CL36: 0 | CM36: 41173.70849 | CO36: 5600 | CP36: 0 | CQ36: 24691.55724 | CR36: 0 | CS36: 0 | CT36: 9569.092935 | CU36: 0 | CV36: 0 | CW36: 0 | CX36: 0 | CY36: 0 | CZ36: 0 | DA36: 0 | DB36: 0 | DC36: 0 | DD36: 0 | DE36: 0 | DF36: 0 | DG36: 0 | DH36: 0 | DI36: 0 | DJ36: 39860.65017
A37: =Est2018DistRev!A37 -> CMGBO | B37: Medium Business Bulk Opt-out | C37: =Est2018DistRev!B37 -> Medium Business Bulk Opt-out | D37: 975 | E37: 0 | F37: 6.54 | G37: 0 | H37: 0 | I37: 2.75 | J37: 0 | K37: 0 | L37: 0 | M37: 0 | N37: 0 | O37: 0 | P37: 0 | Q37: 0 | R37: 0 | S37: 0 | T37: 0 | U37: 0 | V37: 0 | W37: 0 | X37: 0 | Z37: =Est2018DistRev!D37 -> 800 | AA37: =Est2018DistRev!E37 -> 0 | AB37: =Est2018DistRev!F37 -> 6.11 | AC37: =Est2018DistRev!G37 -> 0 | AD37: =Est2018DistRev!H37 -> 0 | AE37: =Est2018DistRev!I37 -> 2.62 | AF37: =Est2018DistRev!J37 -> 0 | AG37: =Est2018DistRev!K37 -> 0 | AH37: =Est2018DistRev!L37 -> 0 | AI37: =Est2018DistRev!M37 -> 0 | AJ37: =Est2018DistRev!N37 -> 0 | AK37: =Est2018DistRev!O37 -> 0 | AL37: =Est2018DistRev!P37 -> 0 | AM37: =Est2018DistRev!Q37 -> 0 | AN37: =Est2018DistRev!R37 -> 0 | AO37: =Est2018DistRev!S37 -> 0 | AP37: =Est2018DistRev!T37 -> 0 | AQ37: =Est2018DistRev!U37 -> 0 | AR37: =Est2018DistRev!V37 -> 0 | AS37: =Est2018DistRev!W37 -> 0 | AT37: =Est2018DistRev!X37 -> 0 | AV37: 9 | AW37: 0 | AX37: 630002.2237 | AY37: 0 | AZ37: 0 | BA37: 505149.3518 | BB37: 0 | BC37: 0 | BD37: 0 | BE37: 0 | BF37: 0 | BG37: 0 | BH37: 0 | BI37: 0 | BJ37: 0 | BK37: 0 | BL37: 0 | BM37: 0 | BN37: 0 | BO37: 0 | BP37: 0 | BR37: 8775 | BS37: 0 | BT37: 41202.14543 | BU37: 0 | BV37: 0 | BW37: 13891.60718 | BX37: 0 | BY37: 0 | BZ37: 0 | CA37: 0 | CB37: 0 | CC37: 0 | CD37: 0 | CE37: 0 | CF37: 0 | CG37: 0 | CH37: 0 | CI37: 0 | CJ37: 0 | CK37: 0 | CL37: 0 | CM37: 63868.75261 | CO37: 7200 | CP37: 0 | CQ37: 38493.13587 | CR37: 0 | CS37: 0 | CT37: 13234.91302 | CU37: 0 | CV37: 0 | CW37: 0 | CX37: 0 | CY37: 0 | CZ37: 0 | DA37: 0 | DB37: 0 | DC37: 0 | DD37: 0 | DE37: 0 | DF37: 0 | DG37: 0 | DH37: 0 | DI37: 0 | DJ37: 58928.04889
A38: =Est2018DistRev!A38 -> C2U | B38: Unmetered Supplies / Public Lighting | C38: =Est2018DistRev!B38 -> Unmetered Supplies / Public Lighting | D38: 0 | E38: 0 | F38: 11.24 | G38: 0 | H38: 0 | I38: 3.15 | J38: 0 | K38: 0 | L38: 0 | M38: 0 | N38: 0 | O38: 0 | P38: 0 | Q38: 0 | R38: 0 | S38: 0 | T38: 0 | U38: 0 | V38: 0 | W38: 0 | X38: 0 | Z38: =Est2018DistRev!D38 -> 0 | AA38: =Est2018DistRev!E38 -> 0 | AB38: =Est2018DistRev!F38 -> 8.53 | AC38: =Est2018DistRev!G38 -> 0 | AD38: =Est2018DistRev!H38 -> 0 | AE38: =Est2018DistRev!I38 -> 2.36 | AF38: =Est2018DistRev!J38 -> 0 | AG38: =Est2018DistRev!K38 -> 0 | AH38: =Est2018DistRev!L38 -> 0 | AI38: =Est2018DistRev!M38 -> 0 | AJ38: =Est2018DistRev!N38 -> 0 | AK38: =Est2018DistRev!O38 -> 0 | AL38: =Est2018DistRev!P38 -> 0 | AM38: =Est2018DistRev!Q38 -> 0 | AN38: =Est2018DistRev!R38 -> 0 | AO38: =Est2018DistRev!S38 -> 0 | AP38: =Est2018DistRev!T38 -> 0 | AQ38: =Est2018DistRev!U38 -> 0 | AR38: =Est2018DistRev!V38 -> 0 | AS38: =Est2018DistRev!W38 -> 0 | AT38: =Est2018DistRev!X38 -> 0 | AV38: 4425.5 | AW38: 0 | AX38: 7430325.445 | AY38: 0 | AZ38: 0 | BA38: 18727648.89 | BB38: 0 | BC38: 0 | BD38: 0 | BE38: 0 | BF38: 0 | BG38: 0 | BH38: 0 | BI38: 0 | BJ38: 0 | BK38: 0 | BL38: 0 | BM38: 0 | BN38: 0 | BO38: 0 | BP38: 0 | BR38: 0 | BS38: 0 | BT38: 835168.58 | BU38: 0 | BV38: 0 | BW38: 589920.9402 | BX38: 0 | BY38: 0 | BZ38: 0 | CA38: 0 | CB38: 0 | CC38: 0 | CD38: 0 | CE38: 0 | CF38: 0 | CG38: 0 | CH38: 0 | CI38: 0 | CJ38: 0 | CK38: 0 | CL38: 0 | CM38: 1425089.52 | CO38: 0 | CP38: 0 | CQ38: 633806.7604 | CR38: 0 | CS38: 0 | CT38: 441972.5139 | CU38: 0 | CV38: 0 | CW38: 0 | CX38: 0 | CY38: 0 | CZ38: 0 | DA38: 0 | DB38: 0 | DC38: 0 | DD38: 0 | DE38: 0 | DF38: 0 | DG38: 0 | DH38: 0 | DI38: 0 | DJ38: 1075779.274
A39: =Est2018DistRev!A39 -> CLLV | B39: Large low Voltage | C39: =Est2018DistRev!B39 -> Large low Voltage | D39: 6200 | E39: 0 | F39: 2.33 | G39: 0 | H39: 0 | I39: 1.41 | J39: 0 | K39: 0 | L39: 0 | M39: 71.9 | N39: 0 | O39: 0 | P39: 0 | Q39: 0 | R39: 0 | S39: 0 | T39: 0 | U39: 0 | V39: 0 | W39: 0 | X39: 0 | Z39: =Est2018DistRev!D39 -> 6300 | AA39: =Est2018DistRev!E39 -> 0 | AB39: =Est2018DistRev!F39 -> 2.33 | AC39: =Est2018DistRev!G39 -> 0 | AD39: =Est2018DistRev!H39 -> 0 | AE39: =Est2018DistRev!I39 -> 1.41 | AF39: =Est2018DistRev!J39 -> 0 | AG39: =Est2018DistRev!K39 -> 0 | AH39: =Est2018DistRev!L39 -> 0 | AI39: =Est2018DistRev!M39 -> 72.02 | AJ39: =Est2018DistRev!N39 -> 0 | AK39: =Est2018DistRev!O39 -> 0 | AL39: =Est2018DistRev!P39 -> 0 | AM39: =Est2018DistRev!Q39 -> 0 | AN39: =Est2018DistRev!R39 -> 0 | AO39: =Est2018DistRev!S39 -> 0 | AP39: =Est2018DistRev!T39 -> 0 | AQ39: =Est2018DistRev!U39 -> 0 | AR39: =Est2018DistRev!V39 -> 0 | AS39: =Est2018DistRev!W39 -> 0 | AT39: =Est2018DistRev!X39 -> 0 | AV39: 334.3333333 | AW39: 0 | AX39: 103909055.5 | AY39: 0 | AZ39: 0 | BA39: 80266733.27 | BB39: 0 | BC39: 0 | BD39: 0 | BE39: 59781.40408 | BF39: 0 | BG39: 0 | BH39: 0 | BI39: 0 | BJ39: 0 | BK39: 0 | BL39: 0 | BM39: 0 | BN39: 0 | BO39: 0 | BP39: 0 | BR39: 2072866.667 | BS39: 0 | BT39: 2421080.993 | BU39: 0 | BV39: 0 | BW39: 1131760.939 | BX39: 0 | BY39: 0 | BZ39: 0 | CA39: 4298282.954 | CB39: 0 | CC39: 0 | CD39: 0 | CE39: 0 | CF39: 0 | CG39: 0 | CH39: 0 | CI39: 0 | CJ39: 0 | CK39: 0 | CL39: 0 | CM39: 9923991.553 | CO39: 2106300 | CP39: 0 | CQ39: 2421080.993 | CR39: 0 | CS39: 0 | CT39: 1131760.939 | CU39: 0 | CV39: 0 | CW39: 0 | CX39: 4305456.722 | CY39: 0 | CZ39: 0 | DA39: 0 | DB39: 0 | DC39: 0 | DD39: 0 | DE39: 0 | DF39: 0 | DG39: 0 | DH39: 0 | DI39: 0 | DJ39: 9964598.654
A40: =Est2018DistRev!A40 -> CLLVB | B40: Large low Voltage Bulk | C40: =Est2018DistRev!B40 -> Large low Voltage Bulk | D40: 6000 | E40: 0 | F40: 2.11 | G40: 0 | H40: 0 | I40: 1.31 | J40: 0 | K40: 0 | L40: 0 | M40: 66.14 | N40: 0 | O40: 0 | P40: 0 | Q40: 0 | R40: 0 | S40: 0 | T40: 0 | U40: 0 | V40: 0 | W40: 0 | X40: 0 | Z40: =Est2018DistRev!D40 -> 5850 | AA40: =Est2018DistRev!E40 -> 0 | AB40: =Est2018DistRev!F40 -> 2.07 | AC40: =Est2018DistRev!G40 -> 0 | AD40: =Est2018DistRev!H40 -> 0 | AE40: =Est2018DistRev!I40 -> 1.29 | AF40: =Est2018DistRev!J40 -> 0 | AG40: =Est2018DistRev!K40 -> 0 | AH40: =Est2018DistRev!L40 -> 0 | AI40: =Est2018DistRev!M40 -> 64.82 | AJ40: =Est2018DistRev!N40 -> 0 | AK40: =Est2018DistRev!O40 -> 0 | AL40: =Est2018DistRev!P40 -> 0 | AM40: =Est2018DistRev!Q40 -> 0 | AN40: =Est2018DistRev!R40 -> 0 | AO40: =Est2018DistRev!S40 -> 0 | AP40: =Est2018DistRev!T40 -> 0 | AQ40: =Est2018DistRev!U40 -> 0 | AR40: =Est2018DistRev!V40 -> 0 | AS40: =Est2018DistRev!W40 -> 0 | AT40: =Est2018DistRev!X40 -> 0 | AV40: 1731.166667 | AW40: 0 | AX40: 1101354717 | AY40: 0 | AZ40: 0 | BA40: 829525555.8 | BB40: 0 | BC40: 0 | BD40: 0 | BE40: 627630.9803 | BF40: 0 | BG40: 0 | BH40: 0 | BI40: 0 | BJ40: 0 | BK40: 0 | BL40: 0 | BM40: 0 | BN40: 0 | BO40: 0 | BP40: 0 | BR40: 10387000 | BS40: 0 | BT40: 23238584.53 | BU40: 0 | BV40: 0 | BW40: 10866784.78 | BX40: 0 | BY40: 0 | BZ40: 0 | CA40: 41511513.04 | CB40: 0 | CC40: 0 | CD40: 0 | CE40: 0 | CF40: 0 | CG40: 0 | CH40: 0 | CI40: 0 | CJ40: 0 | CK40: 0 | CL40: 0 | CM40: 86003882.36 | CO40: 10127325 | CP40: 0 | CQ40: 22798042.65 | CR40: 0 | CS40: 0 | CT40: 10700879.67 | CU40: 0 | CV40: 0 | CW40: 0 | CX40: 40683040.15 | CY40: 0 | CZ40: 0 | DA40: 0 | DB40: 0 | DC40: 0 | DD40: 0 | DE40: 0 | DF40: 0 | DG40: 0 | DH40: 0 | DI40: 0 | DJ40: 84309287.46
A41: =Est2018DistRev!A41 -> CHV | B41: High Voltage | C41: =Est2018DistRev!B41 -> High Voltage | D41: 31800 | E41: 0 | F41: 1.24 | G41: 0 | H41: 0 | I41: 0.64 | J41: 0 | K41: 0 | L41: 0 | M41: 35.02 | N41: 0 | O41: 0 | P41: 0 | Q41: 0 | R41: 0 | S41: 0 | T41: 0 | U41: 0 | V41: 0 | W41: 0 | X41: 0 | Z41: =Est2018DistRev!D41 -> 31200 | AA41: =Est2018DistRev!E41 -> 0 | AB41: =Est2018DistRev!F41 -> 1.18 | AC41: =Est2018DistRev!G41 -> 0 | AD41: =Est2018DistRev!H41 -> 0 | AE41: =Est2018DistRev!I41 -> 0.61 | AF41: =Est2018DistRev!J41 -> 0 | AG41: =Est2018DistRev!K41 -> 0 | AH41: =Est2018DistRev!L41 -> 0 | AI41: =Est2018DistRev!M41 -> 33.44 | AJ41: =Est2018DistRev!N41 -> 0 | AK41: =Est2018DistRev!O41 -> 0 | AL41: =Est2018DistRev!P41 -> 0 | AM41: =Est2018DistRev!Q41 -> 0 | AN41: =Est2018DistRev!R41 -> 0 | AO41: =Est2018DistRev!S41 -> 0 | AP41: =Est2018DistRev!T41 -> 0 | AQ41: =Est2018DistRev!U41 -> 0 | AR41: =Est2018DistRev!V41 -> 0 | AS41: =Est2018DistRev!W41 -> 0 | AT41: =Est2018DistRev!X41 -> 0 | AV41: 88 | AW41: 0 | AX41: 345704462.1 | AY41: 0 | AZ41: 0 | BA41: 319905209.4 | BB41: 0 | BC41: 0 | BD41: 0 | BE41: 191921.5767 | BF41: 0 | BG41: 0 | BH41: 0 | BI41: 0 | BJ41: 0 | BK41: 0 | BL41: 0 | BM41: 0 | BN41: 0 | BO41: 0 | BP41: 0 | BR41: 2798400 | BS41: 0 | BT41: 4286735.33 | BU41: 0 | BV41: 0 | BW41: 2047393.34 | BX41: 0 | BY41: 0 | BZ41: 0 | CA41: 6721093.618 | CB41: 0 | CC41: 0 | CD41: 0 | CE41: 0 | CF41: 0 | CG41: 0 | CH41: 0 | CI41: 0 | CJ41: 0 | CK41: 0 | CL41: 0 | CM41: 15853622.29 | CO41: 2745600 | CP41: 0 | CQ41: 4079312.653 | CR41: 0 | CS41: 0 | CT41: 1951421.777 | CU41: 0 | CV41: 0 | CW41: 0 | CX41: 6417857.527 | CY41: 0 | CZ41: 0 | DA41: 0 | DB41: 0 | DC41: 0 | DD41: 0 | DE41: 0 | DF41: 0 | DG41: 0 | DH41: 0 | DI41: 0 | DJ41: 15194191.96
A42: =Est2018DistRev!A42 -> CST | B42: Subtransmission | C42: =Est2018DistRev!B42 -> Subtransmission | D42: 146800 | E42: 0 | F42: 0.11 | G42: 0 | H42: 0 | I42: 0.04 | J42: 0 | K42: 0 | L42: 0 | M42: 0.86 | N42: 0 | O42: 0 | P42: 0 | Q42: 0 | R42: 0 | S42: 0 | T42: 0 | U42: 0 | V42: 0 | W42: 0 | X42: 0 | Z42: =Est2018DistRev!D42 -> 144000 | AA42: =Est2018DistRev!E42 -> 0 | AB42: =Est2018DistRev!F42 -> 0.1 | AC42: =Est2018DistRev!G42 -> 0 | AD42: =Est2018DistRev!H42 -> 0 | AE42: =Est2018DistRev!I42 -> 0.04 | AF42: =Est2018DistRev!J42 -> 0 | AG42: =Est2018DistRev!K42 -> 0 | AH42: =Est2018DistRev!L42 -> 0 | AI42: =Est2018DistRev!M42 -> 0.84 | AJ42: =Est2018DistRev!N42 -> 0 | AK42: =Est2018DistRev!O42 -> 0 | AL42: =Est2018DistRev!P42 -> 0 | AM42: =Est2018DistRev!Q42 -> 0 | AN42: =Est2018DistRev!R42 -> 0 | AO42: =Est2018DistRev!S42 -> 0 | AP42: =Est2018DistRev!T42 -> 0 | AQ42: =Est2018DistRev!U42 -> 0 | AR42: =Est2018DistRev!V42 -> 0 | AS42: =Est2018DistRev!W42 -> 0 | AT42: =Est2018DistRev!X42 -> 0 | AV42: 6 | AW42: 0 | AX42: 63161450.7 | AY42: 0 | AZ42: 0 | BA42: 37546309.72 | BB42: 0 | BC42: 0 | BD42: 0 | BE42: 35559.26992 | BF42: 0 | BG42: 0 | BH42: 0 | BI42: 0 | BJ42: 0 | BK42: 0 | BL42: 0 | BM42: 0 | BN42: 0 | BO42: 0 | BP42: 0 | BR42: 880800 | BS42: 0 | BT42: 69477.59577 | BU42: 0 | BV42: 0 | BW42: 15018.52389 | BX42: 0 | BY42: 0 | BZ42: 0 | CA42: 30580.97213 | CB42: 0 | CC42: 0 | CD42: 0 | CE42: 0 | CF42: 0 | CG42: 0 | CH42: 0 | CI42: 0 | CJ42: 0 | CK42: 0 | CL42: 0 | CM42: 995877.0918 | CO42: 864000 | CP42: 0 | CQ42: 63161.4507 | CR42: 0 | CS42: 0 | CT42: 15018.52389 | CU42: 0 | CV42: 0 | CW42: 0 | CX42: 29869.78673 | CY42: 0 | CZ42: 0 | DA42: 0 | DB42: 0 | DC42: 0 | DD42: 0 | DE42: 0 | DF42: 0 | DG42: 0 | DH42: 0 | DI42: 0 | DJ42: 972049.7613
BR43: 0 | BS43: 0 | BT43: 0 | BU43: 0 | BV43: 0 | BW43: 0 | BX43: 0 | BY43: 0 | BZ43: 0 | CA43: 0 | CB43: 0 | CC43: 0 | CD43: 0 | CE43: 0 | CF43: 0 | CG43: 0 | CH43: 0 | CI43: 0 | CJ43: 0 | CK43: 0 | CL43: 0 | CM43: 0 | CO43: 0 | CP43: 0 | CQ43: 0 | CR43: 0 | CS43: 0 | CT43: 0 | CU43: 0 | CV43: 0 | CW43: 0 | CX43: 0 | CY43: 0 | CZ43: 0 | DA43: 0 | DB43: 0 | DC43: 0 | DD43: 0 | DE43: 0 | DF43: 0 | DG43: 0 | DH43: 0 | DI43: 0 | DJ43: 0
BR44: 0 | BS44: 0 | BT44: 0 | BU44: 0 | BV44: 0 | BW44: 0 | BX44: 0 | BY44: 0 | BZ44: 0 | CA44: 0 | CB44: 0 | CC44: 0 | CD44: 0 | CE44: 0 | CF44: 0 | CG44: 0 | CH44: 0 | CI44: 0 | CJ44: 0 | CK44: 0 | CL44: 0 | CM44: 0 | CO44: 0 | CP44: 0 | CQ44: 0 | CR44: 0 | CS44: 0 | CT44: 0 | CU44: 0 | CV44: 0 | CW44: 0 | CX44: 0 | CY44: 0 | CZ44: 0 | DA44: 0 | DB44: 0 | DC44: 0 | DD44: 0 | DE44: 0 | DF44: 0 | DG44: 0 | DH44: 0 | DI44: 0 | DJ44: 0
BR45: 0 | BS45: 0 | BT45: 0 | BU45: 0 | BV45: 0 | BW45: 0 | BX45: 0 | BY45: 0 | BZ45: 0 | CA45: 0 | CB45: 0 | CC45: 0 | CD45: 0 | CE45: 0 | CF45: 0 | CG45: 0 | CH45: 0 | CI45: 0 | CJ45: 0 | CK45: 0 | CL45: 0 | CM45: 0 | CO45: 0 | CP45: 0 | CQ45: 0 | CR45: 0 | CS45: 0 | CT45: 0 | CU45: 0 | CV45: 0 | CW45: 0 | CX45: 0 | CY45: 0 | CZ45: 0 | DA45: 0 | DB45: 0 | DC45: 0 | DD45: 0 | DE45: 0 | DF45: 0 | DG45: 0 | DH45: 0 | DI45: 0 | DJ45: 0
BR46: 0 | BS46: 0 | BT46: 0 | BU46: 0 | BV46: 0 | BW46: 0 | BX46: 0 | BY46: 0 | BZ46: 0 | CA46: 0 | CB46: 0 | CC46: 0 | CD46: 0 | CE46: 0 | CF46: 0 | CG46: 0 | CH46: 0 | CI46: 0 | CJ46: 0 | CK46: 0 | CL46: 0 | CM46: 0 | CO46: 0 | CP46: 0 | CQ46: 0 | CR46: 0 | CS46: 0 | CT46: 0 | CU46: 0 | CV46: 0 | CW46: 0 | CX46: 0 | CY46: 0 | CZ46: 0 | DA46: 0 | DB46: 0 | DC46: 0 | DD46: 0 | DE46: 0 | DF46: 0 | DG46: 0 | DH46: 0 | DI46: 0 | DJ46: 0
BR47: 0 | BS47: 0 | BT47: 0 | BU47: 0 | BV47: 0 | BW47: 0 | BX47: 0 | BY47: 0 | BZ47: 0 | CA47: 0 | CB47: 0 | CC47: 0 | CD47: 0 | CE47: 0 | CF47: 0 | CG47: 0 | CH47: 0 | CI47: 0 | CJ47: 0 | CK47: 0 | CL47: 0 | CM47: 0 | CO47: 0 | CP47: 0 | CQ47: 0 | CR47: 0 | CS47: 0 | CT47: 0 | CU47: 0 | CV47: 0 | CW47: 0 | CX47: 0 | CY47: 0 | CZ47: 0 | DA47: 0 | DB47: 0 | DC47: 0 | DD47: 0 | DE47: 0 | DF47: 0 | DG47: 0 | DH47: 0 | DI47: 0 | DJ47: 0
BR48: 0 | BS48: 0 | BT48: 0 | BU48: 0 | BV48: 0 | BW48: 0 | BX48: 0 | BY48: 0 | BZ48: 0 | CA48: 0 | CB48: 0 | CC48: 0 | CD48: 0 | CE48: 0 | CF48: 0 | CG48: 0 | CH48: 0 | CI48: 0 | CJ48: 0 | CK48: 0 | CL48: 0 | CM48: 0 | CO48: 0 | CP48: 0 | CQ48: 0 | CR48: 0 | CS48: 0 | CT48: 0 | CU48: 0 | CV48: 0 | CW48: 0 | CX48: 0 | CY48: 0 | CZ48: 0 | DA48: 0 | DB48: 0 | DC48: 0 | DD48: 0 | DE48: 0 | DF48: 0 | DG48: 0 | DH48: 0 | DI48: 0 | DJ48: 0
BR49: 0 | BS49: 0 | BT49: 0 | BU49: 0 | BV49: 0 | BW49: 0 | BX49: 0 | BY49: 0 | BZ49: 0 | CA49: 0 | CB49: 0 | CC49: 0 | CD49: 0 | CE49: 0 | CF49: 0 | CG49: 0 | CH49: 0 | CI49: 0 | CJ49: 0 | CK49: 0 | CL49: 0 | CM49: 0 | CO49: 0 | CP49: 0 | CQ49: 0 | CR49: 0 | CS49: 0 | CT49: 0 | CU49: 0 | CV49: 0 | CW49: 0 | CX49: 0 | CY49: 0 | CZ49: 0 | DA49: 0 | DB49: 0 | DC49: 0 | DD49: 0 | DE49: 0 | DF49: 0 | DG49: 0 | DH49: 0 | DI49: 0 | DJ49: 0
BR50: 0 | BS50: 0 | BT50: 0 | BU50: 0 | BV50: 0 | BW50: 0 | BX50: 0 | BY50: 0 | BZ50: 0 | CA50: 0 | CB50: 0 | CC50: 0 | CD50: 0 | CE50: 0 | CF50: 0 | CG50: 0 | CH50: 0 | CI50: 0 | CJ50: 0 | CK50: 0 | CL50: 0 | CM50: 0 | CO50: 0 | CP50: 0 | CQ50: 0 | CR50: 0 | CS50: 0 | CT50: 0 | CU50: 0 | CV50: 0 | CW50: 0 | CX50: 0 | CY50: 0 | CZ50: 0 | DA50: 0 | DB50: 0 | DC50: 0 | DD50: 0 | DE50: 0 | DF50: 0 | DG50: 0 | DH50: 0 | DI50: 0 | DJ50: 0
BR51: 0 | BS51: 0 | BT51: 0 | BU51: 0 | BV51: 0 | BW51: 0 | BX51: 0 | BY51: 0 | BZ51: 0 | CA51: 0 | CB51: 0 | CC51: 0 | CD51: 0 | CE51: 0 | CF51: 0 | CG51: 0 | CH51: 0 | CI51: 0 | CJ51: 0 | CK51: 0 | CL51: 0 | CM51: 0 | CO51: 0 | CP51: 0 | CQ51: 0 | CR51: 0 | CS51: 0 | CT51: 0 | CU51: 0 | CV51: 0 | CW51: 0 | CX51: 0 | CY51: 0 | CZ51: 0 | DA51: 0 | DB51: 0 | DC51: 0 | DD51: 0 | DE51: 0 | DF51: 0 | DG51: 0 | DH51: 0 | DI51: 0 | DJ51: 0
BR52: 0 | BS52: 0 | BT52: 0 | BU52: 0 | BV52: 0 | BW52: 0 | BX52: 0 | BY52: 0 | BZ52: 0 | CA52: 0 | CB52: 0 | CC52: 0 | CD52: 0 | CE52: 0 | CF52: 0 | CG52: 0 | CH52: 0 | CI52: 0 | CJ52: 0 | CK52: 0 | CL52: 0 | CM52: 0 | CO52: 0 | CP52: 0 | CQ52: 0 | CR52: 0 | CS52: 0 | CT52: 0 | CU52: 0 | CV52: 0 | CW52: 0 | CX52: 0 | CY52: 0 | CZ52: 0 | DA52: 0 | DB52: 0 | DC52: 0 | DD52: 0 | DE52: 0 | DF52: 0 | DG52: 0 | DH52: 0 | DI52: 0 | DJ52: 0
BR53: 0 | BS53: 0 | BT53: 0 | BU53: 0 | BV53: 0 | BW53: 0 | BX53: 0 | BY53: 0 | BZ53: 0 | CA53: 0 | CB53: 0 | CC53: 0 | CD53: 0 | CE53: 0 | CF53: 0 | CG53: 0 | CH53: 0 | CI53: 0 | CJ53: 0 | CK53: 0 | CL53: 0 | CM53: 0 | CO53: 0 | CP53: 0 | CQ53: 0 | CR53: 0 | CS53: 0 | CT53: 0 | CU53: 0 | CV53: 0 | CW53: 0 | CX53: 0 | CY53: 0 | CZ53: 0 | DA53: 0 | DB53: 0 | DC53: 0 | DD53: 0 | DE53: 0 | DF53: 0 | DG53: 0 | DH53: 0 | DI53: 0 | DJ53: 0
BR54: 0 | BS54: 0 | BT54: 0 | BU54: 0 | BV54: 0 | BW54: 0 | BX54: 0 | BY54: 0 | BZ54: 0 | CA54: 0 | CB54: 0 | CC54: 0 | CD54: 0 | CE54: 0 | CF54: 0 | CG54: 0 | CH54: 0 | CI54: 0 | CJ54: 0 | CK54: 0 | CL54: 0 | CM54: 0 | CO54: 0 | CP54: 0 | CQ54: 0 | CR54: 0 | CS54: 0 | CT54: 0 | CU54: 0 | CV54: 0 | CW54: 0 | CX54: 0 | CY54: 0 | CZ54: 0 | DA54: 0 | DB54: 0 | DC54: 0 | DD54: 0 | DE54: 0 | DF54: 0 | DG54: 0 | DH54: 0 | DI54: 0 | DJ54: 0
BR55: 0 | BS55: 0 | BT55: 0 | BU55: 0 | BV55: 0 | BW55: 0 | BX55: 0 | BY55: 0 | BZ55: 0 | CA55: 0 | CB55: 0 | CC55: 0 | CD55: 0 | CE55: 0 | CF55: 0 | CG55: 0 | CH55: 0 | CI55: 0 | CJ55: 0 | CK55: 0 | CL55: 0 | CM55: 0 | CO55: 0 | CP55: 0 | CQ55: 0 | CR55: 0 | CS55: 0 | CT55: 0 | CU55: 0 | CV55: 0 | CW55: 0 | CX55: 0 | CY55: 0 | CZ55: 0 | DA55: 0 | DB55: 0 | DC55: 0 | DD55: 0 | DE55: 0 | DF55: 0 | DG55: 0 | DH55: 0 | DI55: 0 | DJ55: 0
BR56: 0 | BS56: 0 | BT56: 0 | BU56: 0 | BV56: 0 | BW56: 0 | BX56: 0 | BY56: 0 | BZ56: 0 | CA56: 0 | CB56: 0 | CC56: 0 | CD56: 0 | CE56: 0 | CF56: 0 | CG56: 0 | CH56: 0 | CI56: 0 | CJ56: 0 | CK56: 0 | CL56: 0 | CM56: 0 | CO56: 0 | CP56: 0 | CQ56: 0 | CR56: 0 | CS56: 0 | CT56: 0 | CU56: 0 | CV56: 0 | CW56: 0 | CX56: 0 | CY56: 0 | CZ56: 0 | DA56: 0 | DB56: 0 | DC56: 0 | DD56: 0 | DE56: 0 | DF56: 0 | DG56: 0 | DH56: 0 | DI56: 0 | DJ56: 0
BR57: 0 | BS57: 0 | BT57: 0 | BU57: 0 | BV57: 0 | BW57: 0 | BX57: 0 | BY57: 0 | BZ57: 0 | CA57: 0 | CB57: 0 | CC57: 0 | CD57: 0 | CE57: 0 | CF57: 0 | CG57: 0 | CH57: 0 | CI57: 0 | CJ57: 0 | CK57: 0 | CL57: 0 | CM57: 0 | CO57: 0 | CP57: 0 | CQ57: 0 | CR57: 0 | CS57: 0 | CT57: 0 | CU57: 0 | CV57: 0 | CW57: 0 | CX57: 0 | CY57: 0 | CZ57: 0 | DA57: 0 | DB57: 0 | DC57: 0 | DD57: 0 | DE57: 0 | DF57: 0 | DG57: 0 | DH57: 0 | DI57: 0 | DJ57: 0
BR58: 0 | BS58: 0 | BT58: 0 | BU58: 0 | BV58: 0 | BW58: 0 | BX58: 0 | BY58: 0 | BZ58: 0 | CA58: 0 | CB58: 0 | CC58: 0 | CD58: 0 | CE58: 0 | CF58: 0 | CG58: 0 | CH58: 0 | CI58: 0 | CJ58: 0 | CK58: 0 | CL58: 0 | CM58: 0 | CO58: 0 | CP58: 0 | CQ58: 0 | CR58: 0 | CS58: 0 | CT58: 0 | CU58: 0 | CV58: 0 | CW58: 0 | CX58: 0 | CY58: 0 | CZ58: 0 | DA58: 0 | DB58: 0 | DC58: 0 | DD58: 0 | DE58: 0 | DF58: 0 | DG58: 0 | DH58: 0 | DI58: 0 | DJ58: 0
BR59: 0 | BS59: 0 | BT59: 0 | BU59: 0 | BV59: 0 | BW59: 0 | BX59: 0 | BY59: 0 | BZ59: 0 | CA59: 0 | CB59: 0 | CC59: 0 | CD59: 0 | CE59: 0 | CF59: 0 | CG59: 0 | CH59: 0 | CI59: 0 | CJ59: 0 | CK59: 0 | CL59: 0 | CM59: 0 | CO59: 0 | CP59: 0 | CQ59: 0 | CR59: 0 | CS59: 0 | CT59: 0 | CU59: 0 | CV59: 0 | CW59: 0 | CX59: 0 | CY59: 0 | CZ59: 0 | DA59: 0 | DB59: 0 | DC59: 0 | DD59: 0 | DE59: 0 | DF59: 0 | DG59: 0 | DH59: 0 | DI59: 0 | DJ59: 0
BR60: 0 | BS60: 0 | BT60: 0 | BU60: 0 | BV60: 0 | BW60: 0 | BX60: 0 | BY60: 0 | BZ60: 0 | CA60: 0 | CB60: 0 | CC60: 0 | CD60: 0 | CE60: 0 | CF60: 0 | CG60: 0 | CH60: 0 | CI60: 0 | CJ60: 0 | CK60: 0 | CL60: 0 | CM60: 0 | CO60: 0 | CP60: 0 | CQ60: 0 | CR60: 0 | CS60: 0 | CT60: 0 | CU60: 0 | CV60: 0 | CW60: 0 | CX60: 0 | CY60: 0 | CZ60: 0 | DA60: 0 | DB60: 0 | DC60: 0 | DD60: 0 | DE60: 0 | DF60: 0 | DG60: 0 | DH60: 0 | DI60: 0 | DJ60: 0
BR61: 0 | BS61: 0 | BT61: 0 | BU61: 0 | BV61: 0 | BW61: 0 | BX61: 0 | BY61: 0 | BZ61: 0 | CA61: 0 | CB61: 0 | CC61: 0 | CD61: 0 | CE61: 0 | CF61: 0 | CG61: 0 | CH61: 0 | CI61: 0 | CJ61: 0 | CK61: 0 | CL61: 0 | CM61: 0 | CO61: 0 | CP61: 0 | CQ61: 0 | CR61: 0 | CS61: 0 | CT61: 0 | CU61: 0 | CV61: 0 | CW61: 0 | CX61: 0 | CY61: 0 | CZ61: 0 | DA61: 0 | DB61: 0 | DC61: 0 | DD61: 0 | DE61: 0 | DF61: 0 | DG61: 0 | DH61: 0 | DI61: 0 | DJ61: 0
BR62: 0 | BS62: 0 | BT62: 0 | BU62: 0 | BV62: 0 | BW62: 0 | BX62: 0 | BY62: 0 | BZ62: 0 | CA62: 0 | CB62: 0 | CC62: 0 | CD62: 0 | CE62: 0 | CF62: 0 | CG62: 0 | CH62: 0 | CI62: 0 | CJ62: 0 | CK62: 0 | CL62: 0 | CM62: 0 | CO62: 0 | CP62: 0 | CQ62: 0 | CR62: 0 | CS62: 0 | CT62: 0 | CU62: 0 | CV62: 0 | CW62: 0 | CX62: 0 | CY62: 0 | CZ62: 0 | DA62: 0 | DB62: 0 | DC62: 0 | DD62: 0 | DE62: 0 | DF62: 0 | DG62: 0 | DH62: 0 | DI62: 0 | DJ62: 0
BR63: 0 | BS63: 0 | BT63: 0 | BU63: 0 | BV63: 0 | BW63: 0 | BX63: 0 | BY63: 0 | BZ63: 0 | CA63: 0 | CB63: 0 | CC63: 0 | CD63: 0 | CE63: 0 | CF63: 0 | CG63: 0 | CH63: 0 | CI63: 0 | CJ63: 0 | CK63: 0 | CL63: 0 | CM63: 0 | CO63: 0 | CP63: 0 | CQ63: 0 | CR63: 0 | CS63: 0 | CT63: 0 | CU63: 0 | CV63: 0 | CW63: 0 | CX63: 0 | CY63: 0 | CZ63: 0 | DA63: 0 | DB63: 0 | DC63: 0 | DD63: 0 | DE63: 0 | DF63: 0 | DG63: 0 | DH63: 0 | DI63: 0 | DJ63: 0
BR64: 0 | BS64: 0 | BT64: 0 | BU64: 0 | BV64: 0 | BW64: 0 | BX64: 0 | BY64: 0 | BZ64: 0 | CA64: 0 | CB64: 0 | CC64: 0 | CD64: 0 | CE64: 0 | CF64: 0 | CG64: 0 | CH64: 0 | CI64: 0 | CJ64: 0 | CK64: 0 | CL64: 0 | CM64: 0 | CO64: 0 | CP64: 0 | CQ64: 0 | CR64: 0 | CS64: 0 | CT64: 0 | CU64: 0 | CV64: 0 | CW64: 0 | CX64: 0 | CY64: 0 | CZ64: 0 | DA64: 0 | DB64: 0 | DC64: 0 | DD64: 0 | DE64: 0 | DF64: 0 | DG64: 0 | DH64: 0 | DI64: 0 | DJ64: 0
BR65: 0 | BS65: 0 | BT65: 0 | BU65: 0 | BV65: 0 | BW65: 0 | BX65: 0 | BY65: 0 | BZ65: 0 | CA65: 0 | CB65: 0 | CC65: 0 | CD65: 0 | CE65: 0 | CF65: 0 | CG65: 0 | CH65: 0 | CI65: 0 | CJ65: 0 | CK65: 0 | CL65: 0 | CM65: 0 | CO65: 0 | CP65: 0 | CQ65: 0 | CR65: 0 | CS65: 0 | CT65: 0 | CU65: 0 | CV65: 0 | CW65: 0 | CX65: 0 | CY65: 0 | CZ65: 0 | DA65: 0 | DB65: 0 | DC65: 0 | DD65: 0 | DE65: 0 | DF65: 0 | DG65: 0 | DH65: 0 | DI65: 0 | DJ65: =SUM(CO65:DI65) -> 0
AV66: =SUM(AV6:AV65) -> 373143.8333 | AW66: 1272086461 | AX66: 2597281822 | AY66: 0 | AZ66: 0 | BA66: 2012408976 | BB66: 0 | BC66: 0 | BD66: 0 | BE66: 914893.2311 | BF66: 0 | BG66: 1252129.448 | BH66: 2174517.995 | BI66: 414808.5659 | BJ66: 515541.7504 | BK66: 510185.1308 | BL66: 0 | BM66: 1382965.645 | BN66: 1828108.288 | BO66: 1739470.868 | BP66: 0 | BR66: =SUM(BR6:BR65) -> 54226785 | BS66: 62399673.3 | BT66: 85272151.48 | BU66: 0 | BV66: 0 | BW66: 34138880.07 | BX66: 0 | BY66: 0 | BZ66: 0 | CA66: 52561470.58 | CB66: 0 | CC66: 6536170.713 | CD66: 5690368.067 | CE66: 43377.20608 | CF66: 37051.24889 | CG66: 14384.10864 | CH66: 0 | CI66: 145357.2568 | CJ66: 131469.9613 | CK66: 49167.62245 | CL66: 0 | CM66: 301246306.6 | CO66: =SUM(CO6:CO65) -> 50703215.83 | CP66: 61303253.62 | CQ66: 90785181.35 | CR66: 0 | CS66: 0 | CT66: 33110574.87 | CU66: 0 | CV66: 0 | CW66: 0 | CX66: 51436224.18 | CY66: 0 | CZ66: 3073124.695 | DA66: 2689256.343 | DB66: 43649.57956 | DC66: 37455.23154 | DD66: 14494.16877 | DE66: 0 | DF66: 146481.8078 | DG66: 132950.1817 | DH66: 49598.10568 | DI66: 0 | DJ66: 293525460

Sheet 2019DistRevCapForm
B2: ="Tariff Approval - "&'Model update'!$C$3 -> Tariff Approval - CitiPower
B4: DUoS
B6: Year (t) | C6: ='Model update'!C5 -> 2019 | H6: =C6-1 -> 2018
B8: Table 1- Compliance with AER Final Determination Total Annual Revenue
B9: Revenue from DUoS charges for year t | C9: =Prop2019DistTar!CM66 -> 301246306.6
B10: Total Annual Revenue for year t | C10: =C18 -> 301283646.5
C11: =IF(C9="","",IF(C10>=C9,"DUoS REVENUE CAP FORMULA COMPLIANT","DUoS REVENUE CAP FORMULA BREACHED")) -> DUoS REVENUE CAP FORMULA COMPLIANT
B13: Table 2 - Total Annual Revenue for year t (TARt)
B14: Adjusted Annual Smoothed Revenue for year t | C14: =C25 -> 296678137.8 | H14: =H25 -> 293098089.7
B15: I factor for year t (F factor Scheme) | C15: ='Model update'!B$100 -> 43200 | H15: =INDEX('Model update'!$D$100:$H$100,1,MATCH($H$6,'Model update'!$D$93:$H$93,0)) -> 140000
B16: T factor for year t (DMIS carry over amount) | C16: ='Model update'!B144 -> 0 | H16: =INDEX('Model update'!$D$144:$H$144,1,MATCH($H$6,'Model update'!$D$137:$H$137,0)) -> 0
B17: B factor for year t | C17: =C32 -> 4562308.778 | H17: =H32 -> 120264.5558
B18: Total Annual Revenue for year t | C18: =C14+C15+C16+C17 -> 301283646.5 | H18: =H14+H15+H16+H17 -> 293358354.3
B20: Table 3 - Adjusted Annual Revenue for year t (AARt)
B21: Adjusted Annual Smoothed Revenue for year t-1 | C21: =H25 -> 293098089.7 | H21: 282154508.4
B22: CPI for period t | C22: ='Model update'!C30 -> 0.02077687444 | H22: ='Model update'!C29 -> 0.01933701657
B23: X factor for period t | C23: ='Model update'!B60 -> -0.001232459035 | H23: =INDEX('Model update'!$E$60:$H$60,1,MATCH("Xt for "&$H$6,'Model update'!$E$53:$H$53,0)) -> -0.0005
B24: S factor for period t | C24: ='Model update'!B111 -> -0.009608708052 | H24: =INDEX('Model update'!$D$111:$H$111,1,MATCH($H$6,'Model update'!$D$104:$H$104,0)) -> 0.01857052664
B25: Adjusted Annual Smoothed Revenue for year t | C25: =IF(C6=2016,'Model update'!D60*(1+C24),(C21*(1+C22)*(1-C23)*(1+C24))) -> 296678137.8 | H25: =IF(H6=2016,'Model update'!D60*(1+H24),(H21*(1+H22)*(1-H23)*(1+H24))) -> 293098089.7
B27: Table 4- B factor for year t
B28: DUoS revenue under/over recovery approved | C28: =-E71*(1+E69)^0.5 -> 4476642.618 | H28: 35923.13782
B29: License Fee Recovery Amount for year t | C29: =C38 -> 85666.1598 | H29: =H38 -> 84341.41801
B30: Approved Pass through Amount for year t | C30: ='Model update'!B122 -> 0 | H30: =INDEX('Model update'!$D$122:$H$122,1,MATCH($H$6,'Model update'!$D$115:$H$115,0)) -> 0
B31: Pass Through revenue under/over recovery for years 2014 and 2015
B32: B factor for year t | C32: =SUM(C28:C31) -> 4562308.778 | H32: =SUM(H28:H31) -> 120264.5558
B34: Table 5 - License Fee Recovery Amount for year t
B35: Lt-1 | C35: ='Model update'!B133 -> 78912 | H35: =INDEX('Model update'!$D$133:$H$133,1,MATCH($H$6,'Model update'!$D$126:$H$126,0)) -> 78091
B36: Nominal WACC t | C36: =(1+'Model update'!$B$43)*(1+'Model update'!$C$30)-1 -> 0.0565862118 | H36: =(1+'Model update'!$B$45)*(1+'Model update'!$C$29)-1 -> 0.05565648259
B37: Nominal WACC t-1 | C37: =(1+'Model update'!$B$45)*(1+'Model update'!$C$29)-1 -> 0.05565648259 | H37: =(1+'Model update'!$B$47)*(1+'Model update'!$C$28)-1 -> 0.0467298044
B38: License Fee Recovery Amount for year t | C38: =C35*(1+C36)*(1+C37)^0.5 -> 85666.1598 | H38: =H35*(1+H36)*(1+H37)^0.5 -> 84341.41801
B42: Table 6 - DUoS Recovery Arrangements
C43: Year t-2 | D43: Year t-1 | E43: Year t
C44: (actual) | D44: (estimate) | E44: (forecast)
C45: =D45-1 -> 2017 | D45: =E45-1 -> 2018 | E45: =C$6 -> 2019
B47: (A) Revenue from DUoS Charges | C47: 278537163 | D47: =Est2018DistRev!BQ66 -> 293358387 | E47: =C9 -> 301246306.6
B50: (B) Less TAR for regulatory year = | C50: =SUM(C51:C54) -> 282608527.5 | D50: =SUM(D51:D54) -> 293322431.2 | E50: =SUM(E51:E54) -> 296807003.9
B51: + Adjusted annual smoothed revenue | C51: =H21 -> 282154508.4 | D51: =C21 -> 293098089.7 | E51: =C14 -> 296678137.8
B52: +It | C52: =INDEX('Model update'!$D$100:$H$100,1,MATCH($C$45,'Model update'!$D$93:$H$93,0)) -> 410000 | D52: =H15 -> 140000 | E52: =C15 -> 43200
B53: +Tt | C53: =INDEX('Model update'!$D$144:$H$144,1,MATCH($C$45,'Model update'!$D$137:$H$137,0)) -> 0 | D53: =H16 -> 0 | E53: =C16 -> 0
B54: +Bt = | C54: =SUM(C55:C57) -> 44019.0305 | D54: =SUM(D55:D57) -> 84341.41801 | E54: =SUM(E55:E57) -> 85666.1598
B55: +Licence fee recovery | C55: 43444.54104 | D55: =H29 -> 84341.41801 | E55: =C29 -> 85666.1598
B56: +Approved pass throughs | C56: =INDEX('Model update'!$D$122:$H$122,1,MATCH($C$45,'Model update'!$D$115:$H$115,0)) -> 0 | D56: =H30 -> 0 | E56: =C30 -> 0
B57: +Pass Through revenue under/over recovery for years 2014 and 2015 | C57: 574.4894635 | D57: =H31 -> 0
B60: (A minus B) Under/over recovery of revenue for regulatory year | C60: =C47-C50 -> -4071364.463 | D60: =D47-D50 -> 35955.80241 | E60: =E47-E50 -> 4439302.698
B64: Table 7 - DUoS Unders and Overs Account
C65: Year t-2 | D65: Year t-1 | E65: Year t
C66: (actual) | D66: (estimate) | E66: (forecast)
B67: Calendar year | C67: =D67-1 -> 2017 | D67: =E67-1 -> 2018 | E67: =C$6 -> 2019
B69: Nominal WACC | C69: =(1+'Model update'!$B$47)*(1+'Model update'!$C$28)-1 -> 0.0467298044 | D69: =(1+'Model update'!$B$45)*(1+'Model update'!$C$29)-1 -> 0.05565648259 | E69: =(1+'Model update'!$B$43)*(1+'Model update'!$C$30)-1 -> 0.0565862118
B71: Opening balance | C71: 4684.300603 | D71: =C75 -> -4160502.213 | E71: =D75 -> -4355118.29
B72: Interest on Opening balance | C72: =C71*C69 -> 218.8964509 | D72: =D71*D69 -> -231558.9189 | E72: =E71*E69 -> -246439.646
B73: Under/over recovery of revenue for regulatory year | C73: =C60 -> -4071364.463 | D73: =D60 -> 35955.80241 | E73: =E60 -> 4439302.698
B74: Interest on under/over recovery for regulatory year | C74: =C73*((1+C69)^0.5-1) -> -94040.94701 | D74: =D73*((1+D69)^0.5-1) -> 987.0389204 | E74: =E73*((1+E69)^0.5-1) -> 123873.3925
B75: Closing balance of DUoS overs/ (unders) account | C75: =SUM(C71:C74) -> -4160502.213 | D75: =SUM(D71:D74) -> -4355118.29 | E75: -38381.8461
B77: The DNSP is expected to achieve a closing balance as close to zero as practicable in its DUoS unders and overs account in each forecast year in its annual pricing proposals in the 2016–20 regulatory control period.

Sheet 2019DistTarRebalCont
B1: ="Tariff Approval - "&'Model update'!C3 -> Tariff Approval - CitiPower
B3: ='Model update'!C5&" DISTRIBUTION TARIFF REBALANCING CONTROL" -> 2019 DISTRIBUTION TARIFF REBALANCING CONTROL
B6: Distribution tariff rebalancing control
B8: ="CPI "&'Model update'!$C$5 -> CPI 2019 | C8: ='2019DistRevCapForm'!C22 -> 0.02077687444
B9: ="X "& 'Model update'!$C$5 -> X 2019 | C9: =MIN('2019DistRevCapForm'!C23,0) -> -0.001232459035
B10: ="St "&'Model update'!$C$5 -> St 2019 | C10: ='2019DistRevCapForm'!C24 -> -0.009608708052
B11: ="It "&'Model update'!$C$5 -> It 2019 | C11: =('2019DistRevCapForm'!C15-'2019DistRevCapForm'!H15)/Prop2019DistTar!DJ$66 -> -0.000329783999
B12: ="Tt "&'Model update'!$C$5 -> Tt 2019 | C12: =('2019DistRevCapForm'!C16-'2019DistRevCapForm'!H16)/Prop2019DistTar!DJ$66 -> 0
B13: ="Bt "&'Model update'!$C$5 -> Bt 2019 | C13: =('2019DistRevCapForm'!C17-'2019DistRevCapForm'!H17)/Prop2019DistTar!DJ$66 -> 0.01513342053
C16: =(1+C8)*(1-C9)*(1+0.02)*(1+C10)+SUM(C11:C13) -> 1.047262431
B20: Rebalancing control summary | C20: ="Pt-1*(Qt " &'Model update'!$C$5&")" -> Pt-1*(Qt 2019) | D20: ="Pt*(Qt " &'Model update'!$C$5&")" -> Pt*(Qt 2019)
B21: Tariff Class (Input Class Name) | C21: Existing ($) | D21: Proposed ($) | E21: Movement
B22: Residential | C22: =IF(B22="","",SUMIF($B$39:$B$98,$B22,$I$39:$I$98)) -> 82149904.57 | D22: =IF(B22="","",SUMIF($B$39:$B$98,$B22,$F$39:$F$98)) -> 85024984.47 | E22: =IF(B22="","",D22/C22) -> 1.03499797 | F22: =IF(B22="","",IF(E22<$C$16,"COMPLIANT","BREACHED")) -> COMPLIANT
B23: Small business | C23: 100935427.6 | D23: =IF(B23="","",SUMIF($B$39:$B$98,$B23,$F$39:$F$98)) -> 103443948.8 | E23: 1.024852733 | F23: =IF(B23="","",IF(E23<$C$16,"COMPLIANT","BREACHED")) -> COMPLIANT
B24: LLV | C24: 94273886.12 | D24: =IF(B24="","",SUMIF($B$39:$B$98,$B24,$F$39:$F$98)) -> 95927873.91 | E24: 1.017544496 | F24: COMPLIANT
B25: HV | C25: 15194191.96 | D25: =IF(B25="","",SUMIF($B$39:$B$98,$B25,$F$39:$F$98)) -> 15853622.29 | E25: 1.043400158 | F25: COMPLIANT
B26: SubTrans | C26: 972049.7613 | D26: =IF(B26="","",SUMIF($B$39:$B$98,$B26,$F$39:$F$98)) -> 995877.0918 | E26: 1.02451246 | F26: COMPLIANT
D27: =IF(B27="","",SUMIF($B$39:$B$98,$B27,$CO$39:$CO$98)) -> 
B34: Check Total | C34: =IF(ABS(SUM(C22:C33)-I99)<0.01,"Ok","Error") -> Ok | D34: =IF(ABS(SUM(D22:D33)-F99)<0.01,"Ok","Error") -> Ok
C35: =IF(ABS(SUM(C22:C33)-Prop2019DistTar!DJ66)<0.01,"Ok","Error") -> Ok | D35: =IF(ABS(SUM(D22:D33)-Prop2019DistTar!CM66)<0.01,"Ok","Error") -> Ok
F37: ="Revenue (Pt "&'Model update'!$C$5&")*(Qt " &'Model update'!$C$5&")" -> Revenue (Pt 2019)*(Qt 2019) | I37: ="Revenue (Pt-1 "&'Model update'!$C$8&")*(Qt " &'Model update'!$C$5&")" -> Revenue (Pt-1 2018)*(Qt 2019)
A38: New Tariff Test | B38: Destination tariff class | C38: Source tariff class | D38: Proposed tariff | E38: Existing tariff | F38: PropRev Total | I38: ExistRev Total
A39: =OR(EXACT(D39,Prop2019DistTar!C$6:C$65)) -> TRUE | D39: =IF(Prop2019DistTar!B6="","",Prop2019DistTar!B6) ->  | E39: =IF(Prop2019DistTar!C6="","",Prop2019DistTar!C6) ->  | F39: =Prop2019DistTar!CM6 -> 0 | I39: =Prop2019DistTar!DJ6 -> 0
A40: =OR(EXACT(D40,Prop2019DistTar!C$6:C$65)) -> TRUE | B40: Residential | C40: Residential | D40: =IF(Prop2019DistTar!B7="","",Prop2019DistTar!B7) -> Residential Single Rate | E40: =IF(Prop2019DistTar!C7="","",Prop2019DistTar!C7) -> Residential Single Rate | F40: =Prop2019DistTar!CM7 -> 58756069.14 | I40: =Prop2019DistTar!DJ7 -> 56791603.62
A41: =OR(EXACT(D41,Prop2019DistTar!C$6:C$65)) -> TRUE | B41: Residential | C41: Residential | D41: =IF(Prop2019DistTar!B8="","",Prop2019DistTar!B8) -> Residential Single Rate - Bulk | E41: =IF(Prop2019DistTar!C8="","",Prop2019DistTar!C8) -> Residential Single Rate - Bulk | F41: =Prop2019DistTar!CM8 -> 7101097.592 | I41: =Prop2019DistTar!DJ8 -> 6573024.826
A42: =OR(EXACT(D42,Prop2019DistTar!C$6:C$65)) -> TRUE | B42: Residential | C42: Residential | D42: =IF(Prop2019DistTar!B9="","",Prop2019DistTar!B9) -> Residential - flexible pricing | E42: =IF(Prop2019DistTar!C9="","",Prop2019DistTar!C9) -> Residential - flexible pricing | F42: =Prop2019DistTar!CM9 -> 349097.5598 | I42: =Prop2019DistTar!DJ9 -> 349984.2788
A43: =OR(EXACT(D43,Prop2019DistTar!C$6:C$65)) -> TRUE | B43: Residential | C43: Residential | D43: =IF(Prop2019DistTar!B10="","",Prop2019DistTar!B10) -> Residential - flexible pricing bulk | E43: =IF(Prop2019DistTar!C10="","",Prop2019DistTar!C10) -> Residential - flexible pricing bulk | F43: =Prop2019DistTar!CM10 -> 25799.44251 | I43: =Prop2019DistTar!DJ10 -> 24318.29615
A44: =OR(EXACT(D44,Prop2019DistTar!C$6:C$65)) -> TRUE | B44: Residential | C44: Residential | D44: =IF(Prop2019DistTar!B11="","",Prop2019DistTar!B11) -> Residential Two Rate 5d | E44: =IF(Prop2019DistTar!C11="","",Prop2019DistTar!C11) -> Residential Two Rate 5d | F44: =Prop2019DistTar!CM11 -> 5074774.657 | I44: =Prop2019DistTar!DJ11 -> 5016398.323
A45: =OR(EXACT(D45,Prop2019DistTar!C$6:C$65)) -> TRUE | B45: Residential | C45: Residential | D45: =IF(Prop2019DistTar!B12="","",Prop2019DistTar!B12) -> Residential Two Rate 5d - Bulk | E45: =IF(Prop2019DistTar!C12="","",Prop2019DistTar!C12) -> Residential Two Rate 5d - Bulk | F45: =Prop2019DistTar!CM12 -> 1651030.704 | I45: =Prop2019DistTar!DJ12 -> 1562599.502
A46: =OR(EXACT(D46,Prop2019DistTar!C$6:C$65)) -> TRUE | B46: Residential | C46: Residential | D46: =IF(Prop2019DistTar!B13="","",Prop2019DistTar!B13) -> Residential Interval | E46: =IF(Prop2019DistTar!C13="","",Prop2019DistTar!C13) -> Residential Interval | F46: =Prop2019DistTar!CM13 -> 8646053.845 | I46: =Prop2019DistTar!DJ13 -> 8552747.694
A47: =OR(EXACT(D47,Prop2019DistTar!C$6:C$65)) -> TRUE | B47: Residential | C47: Residential | D47: =IF(Prop2019DistTar!B14="","",Prop2019DistTar!B14) -> Residential Interval - Bulk | E47: =IF(Prop2019DistTar!C14="","",Prop2019DistTar!C14) -> Residential Interval - Bulk | F47: =Prop2019DistTar!CM14 -> 2386110.852 | I47: =Prop2019DistTar!DJ14 -> 2239698.063
A48: =OR(EXACT(D48,Prop2019DistTar!C$6:C$65)) -> TRUE | B48: Residential | C48: Residential | D48: =IF(Prop2019DistTar!B15="","",Prop2019DistTar!B15) -> Residential Two Rate 5d - Controlled Load | E48: =IF(Prop2019DistTar!C15="","",Prop2019DistTar!C15) -> Residential Two Rate 5d - Controlled Load | F48: =Prop2019DistTar!CM15 -> 338735.4298 | I48: =Prop2019DistTar!DJ15 -> 342584.696
A49: =OR(EXACT(D49,Prop2019DistTar!C$6:C$65)) -> TRUE | B49: Residential | C49: Residential | D49: =IF(Prop2019DistTar!B16="","",Prop2019DistTar!B16) -> Residential Two Rate 5d - Bulk - Controlled Load | E49: =IF(Prop2019DistTar!C16="","",Prop2019DistTar!C16) -> Residential Two Rate 5d - Bulk - Controlled Load | F49: =Prop2019DistTar!CM16 -> 103345.3774 | I49: =Prop2019DistTar!DJ16 -> 99039.31998
A50: =OR(EXACT(D50,Prop2019DistTar!C$6:C$65)) -> TRUE | B50: Residential | C50: Residential | D50: =IF(Prop2019DistTar!B17="","",Prop2019DistTar!B17) -> Dedicated Circuit | E50: =IF(Prop2019DistTar!C17="","",Prop2019DistTar!C17) -> Dedicated Circuit | F50: =Prop2019DistTar!CM17 -> 559723.6757 | I50: =Prop2019DistTar!DJ17 -> 566084.172
A51: =OR(EXACT(D51,Prop2019DistTar!C$6:C$65)) -> TRUE | B51: Residential | C51: Residential | D51: =IF(Prop2019DistTar!B18="","",Prop2019DistTar!B18) -> Dedicated Circuit - Bulk | E51: =IF(Prop2019DistTar!C18="","",Prop2019DistTar!C18) -> Dedicated Circuit - Bulk | F51: =Prop2019DistTar!CM18 -> 31710.16815 | I51: =Prop2019DistTar!DJ18 -> 30388.91114
A52: =OR(EXACT(D52,Prop2019DistTar!C$6:C$65)) -> TRUE | B52: Residential | C52: Residential | D52: =IF(Prop2019DistTar!B19="","",Prop2019DistTar!B19) -> Residential Demand | E52: =IF(Prop2019DistTar!C19="","",Prop2019DistTar!C19) -> Residential Demand | F52: =Prop2019DistTar!CM19 -> 1436.02768 | I52: =Prop2019DistTar!DJ19 -> 1432.862175
A53: =OR(EXACT(D53,Prop2019DistTar!C$6:C$65)) -> TRUE | B53: Residential | C53: Residential | D53: =IF(Prop2019DistTar!B20="","",Prop2019DistTar!B20) -> Residential Bulk Demand | E53: =IF(Prop2019DistTar!C20="","",Prop2019DistTar!C20) -> Residential Bulk Demand | F53: =Prop2019DistTar!CM20 -> 0 | I53: =Prop2019DistTar!DJ20 -> 0
A54: =OR(EXACT(D54,Prop2019DistTar!C$6:C$65)) -> TRUE | B54: Small business | C54: Small business | D54: =IF(Prop2019DistTar!B21="","",Prop2019DistTar!B21) -> Non-Residential Single Rate | E54: =IF(Prop2019DistTar!C21="","",Prop2019DistTar!C21) -> Non-Residential Single Rate | F54: =Prop2019DistTar!CM21 -> 16949964.59 | I54: =Prop2019DistTar!DJ21 -> 17058294.19
A55: =OR(EXACT(D55,Prop2019DistTar!C$6:C$65)) -> TRUE | B55: Small business | C55: Small business | D55: =IF(Prop2019DistTar!B22="","",Prop2019DistTar!B22) -> Non-Residential Single Rate - Bulk | E55: =IF(Prop2019DistTar!C22="","",Prop2019DistTar!C22) -> Non-Residential Single Rate - Bulk | F55: =Prop2019DistTar!CM22 -> 4550794.46 | I55: =Prop2019DistTar!DJ22 -> 4308753.607
A56: =OR(EXACT(D56,Prop2019DistTar!C$6:C$65)) -> TRUE | B56: Small business | C56: Small business | D56: =IF(Prop2019DistTar!B23="","",Prop2019DistTar!B23) -> Non-Residential Two Rate 5d | E56: =IF(Prop2019DistTar!C23="","",Prop2019DistTar!C23) -> Non-Residential Two Rate 5d | F56: =Prop2019DistTar!CM23 -> 11006493.62 | I56: =Prop2019DistTar!DJ23 -> 10995476.56
A57: =OR(EXACT(D57,Prop2019DistTar!C$6:C$65)) -> TRUE | B57: Small business | C57: Small business | D57: =IF(Prop2019DistTar!B24="","",Prop2019DistTar!B24) -> Non-Residential Two Rate 5d - Bulk | E57: =IF(Prop2019DistTar!C24="","",Prop2019DistTar!C24) -> Non-Residential Two Rate 5d - Bulk | F57: =Prop2019DistTar!CM24 -> 1592704.319 | I57: =Prop2019DistTar!DJ24 -> 1476273.522
A58: =OR(EXACT(D58,Prop2019DistTar!C$6:C$65)) -> TRUE | B58: Small business | C58: Small business | D58: =IF(Prop2019DistTar!B25="","",Prop2019DistTar!B25) -> Non-Residential Interval | E58: =IF(Prop2019DistTar!C25="","",Prop2019DistTar!C25) -> Non-Residential Interval | F58: =Prop2019DistTar!CM25 -> 5325110.44 | I58: =Prop2019DistTar!DJ25 -> 5380003.923
A59: =OR(EXACT(D59,Prop2019DistTar!C$6:C$65)) -> TRUE | B59: Small business | C59: Small business | D59: =IF(Prop2019DistTar!B26="","",Prop2019DistTar!B26) -> Non-Residential Interval - Bulk | E59: =IF(Prop2019DistTar!C26="","",Prop2019DistTar!C26) -> Non-Residential Interval - Bulk | F59: =Prop2019DistTar!CM26 -> 2694940.408 | I59: =Prop2019DistTar!DJ26 -> 2500285.869
A60: =OR(EXACT(D60,Prop2019DistTar!C$6:C$65)) -> TRUE | B60: Small business | C60: Small business | D60: =IF(Prop2019DistTar!B27="","",Prop2019DistTar!B27) -> Non-Residential Flexible Pricing | E60: =IF(Prop2019DistTar!C27="","",Prop2019DistTar!C27) -> Non-Residential Flexible Pricing | F60: =Prop2019DistTar!CM27 -> 66896.3421 | I60: =Prop2019DistTar!DJ27 -> 67823.25243
A61: =OR(EXACT(D61,Prop2019DistTar!C$6:C$65)) -> TRUE | B61: Small business | C61: Small business | D61: =IF(Prop2019DistTar!B28="","",Prop2019DistTar!B28) -> Non-Residential - Flexible Pricing Bulk | E61: =IF(Prop2019DistTar!C28="","",Prop2019DistTar!C28) -> Non-Residential - Flexible Pricing Bulk | F61: =Prop2019DistTar!CM28 -> 53351.55973 | I61: =Prop2019DistTar!DJ28 -> 52258.66438
A62: =OR(EXACT(D62,Prop2019DistTar!C$6:C$65)) -> TRUE | B62: Small business | C62: Small business | D62: =IF(Prop2019DistTar!B29="","",Prop2019DistTar!B29) -> Non-Residential Two Rate 7d | E62: =IF(Prop2019DistTar!C29="","",Prop2019DistTar!C29) -> Non-Residential Two Rate 7d | F62: =Prop2019DistTar!CM29 -> 3328959.783 | I62: =Prop2019DistTar!DJ29 -> 3364115.872
A63: =OR(EXACT(D63,Prop2019DistTar!C$6:C$65)) -> TRUE | B63: Small business | C63: Small business | D63: =IF(Prop2019DistTar!B30="","",Prop2019DistTar!B30) -> Non-Residential Two Rate 7d - Bulk | E63: =IF(Prop2019DistTar!C30="","",Prop2019DistTar!C30) -> Non-Residential Two Rate 7d - Bulk | F63: =Prop2019DistTar!CM30 -> 425360.5549 | I63: =Prop2019DistTar!DJ30 -> 411500.147
A64: =OR(EXACT(D64,Prop2019DistTar!C$6:C$65)) -> TRUE | B64: Small business | C64: Small business | D64: =IF(Prop2019DistTar!B31="","",Prop2019DistTar!B31) -> Large Two Rate 7d | E64: =IF(Prop2019DistTar!C31="","",Prop2019DistTar!C31) -> Large Two Rate 7d | F64: =Prop2019DistTar!CM31 -> 17641.22003 | I64: =Prop2019DistTar!DJ31 -> 17729.46237
A65: =OR(EXACT(D65,Prop2019DistTar!C$6:C$65)) -> TRUE | B65: Small business | C65: Small business | D65: =IF(Prop2019DistTar!B32="","",Prop2019DistTar!B32) -> Non-Residential Demand Tariff | E65: =IF(Prop2019DistTar!C32="","",Prop2019DistTar!C32) -> Non-Residential Demand Tariff | F65: =Prop2019DistTar!CM32 -> 39874.98212 | I65: =Prop2019DistTar!DJ32 -> 40420.64047
A66: =OR(EXACT(D66,Prop2019DistTar!C$6:C$65)) -> TRUE | B66: Small business | C66: Small business | D66: =IF(Prop2019DistTar!B33="","",Prop2019DistTar!B33) -> Non-Residential Bulk Demand Tariff | E66: =IF(Prop2019DistTar!C33="","",Prop2019DistTar!C33) -> Non-Residential Bulk Demand Tariff | F66: =Prop2019DistTar!CM33 -> 22669.84644 | I66: =Prop2019DistTar!DJ33 -> 22254.14788
A67: =OR(EXACT(D67,Prop2019DistTar!C$6:C$65)) -> TRUE | B67: Small business | C67: Small business | D67: =IF(Prop2019DistTar!B34="","",Prop2019DistTar!B34) -> Medium Business Demand | E67: =IF(Prop2019DistTar!C34="","",Prop2019DistTar!C34) -> Medium Business Demand | F67: =Prop2019DistTar!CM34 -> 36210576.2 | I67: =Prop2019DistTar!DJ34 -> 35752155.06
A68: =OR(EXACT(D68,Prop2019DistTar!C$6:C$65)) -> TRUE | B68: Small business | C68: Small business | D68: =IF(Prop2019DistTar!B35="","",Prop2019DistTar!B35) -> Medium Business Bulk Demand | E68: =IF(Prop2019DistTar!C35="","",Prop2019DistTar!C35) -> Medium Business Bulk Demand | F68: =Prop2019DistTar!CM35 -> 19628478.54 | I68: =Prop2019DistTar!DJ35 -> 18313514.68
A69: =OR(EXACT(D69,Prop2019DistTar!C$6:C$65)) -> TRUE | B69: Small business | C69: Small business | D69: =IF(Prop2019DistTar!B36="","",Prop2019DistTar!B36) -> Medium Business Opt-out | E69: =IF(Prop2019DistTar!C36="","",Prop2019DistTar!C36) -> Medium Business Opt-out | F69: =Prop2019DistTar!CM36 -> 41173.70849 | I69: =Prop2019DistTar!DJ36 -> 39860.65017
A70: =OR(EXACT(D70,Prop2019DistTar!C$6:C$65)) -> TRUE | B70: Small business | C70: Small business | D70: =IF(Prop2019DistTar!B37="","",Prop2019DistTar!B37) -> Medium Business Bulk Opt-out | E70: =IF(Prop2019DistTar!C37="","",Prop2019DistTar!C37) -> Medium Business Bulk Opt-out | F70: =Prop2019DistTar!CM37 -> 63868.75261 | I70: =Prop2019DistTar!DJ37 -> 58928.04889
A71: =OR(EXACT(D71,Prop2019DistTar!C$6:C$65)) -> TRUE | B71: Small business | C71: Small business | D71: =IF(Prop2019DistTar!B38="","",Prop2019DistTar!B38) -> Unmetered Supplies / Public Lighting | E71: =IF(Prop2019DistTar!C38="","",Prop2019DistTar!C38) -> Unmetered Supplies / Public Lighting | F71: =Prop2019DistTar!CM38 -> 1425089.52 | I71: =Prop2019DistTar!DJ38 -> 1075779.274
A72: =OR(EXACT(D72,Prop2019DistTar!C$6:C$65)) -> TRUE | B72: LLV | C72: LLV | D72: =IF(Prop2019DistTar!B39="","",Prop2019DistTar!B39) -> Large low Voltage | E72: =IF(Prop2019DistTar!C39="","",Prop2019DistTar!C39) -> Large low Voltage | F72: =Prop2019DistTar!CM39 -> 9923991.553 | I72: =Prop2019DistTar!DJ39 -> 9964598.654
A73: =OR(EXACT(D73,Prop2019DistTar!C$6:C$65)) -> TRUE | B73: LLV | C73: LLV | D73: =IF(Prop2019DistTar!B40="","",Prop2019DistTar!B40) -> Large low Voltage Bulk | E73: =IF(Prop2019DistTar!C40="","",Prop2019DistTar!C40) -> Large low Voltage Bulk | F73: =Prop2019DistTar!CM40 -> 86003882.36 | I73: =Prop2019DistTar!DJ40 -> 84309287.46
A74: =OR(EXACT(D74,Prop2019DistTar!C$6:C$65)) -> TRUE | B74: HV | C74: HV | D74: =IF(Prop2019DistTar!B41="","",Prop2019DistTar!B41) -> High Voltage | E74: =IF(Prop2019DistTar!C41="","",Prop2019DistTar!C41) -> High Voltage | F74: =Prop2019DistTar!CM41 -> 15853622.29 | I74: =Prop2019DistTar!DJ41 -> 15194191.96
A75: =OR(EXACT(D75,Prop2019DistTar!C$6:C$65)) -> TRUE | B75: SubTrans | C75: SubTrans | D75: =IF(Prop2019DistTar!B42="","",Prop2019DistTar!B42) -> Subtransmission | E75: =IF(Prop2019DistTar!C42="","",Prop2019DistTar!C42) -> Subtransmission | F75: =Prop2019DistTar!CM42 -> 995877.0918 | I75: =Prop2019DistTar!DJ42 -> 972049.7613
A76: =OR(EXACT(D76,Prop2019DistTar!C$6:C$65)) -> TRUE | D76: =IF(Prop2019DistTar!B43="","",Prop2019DistTar!B43) ->  | E76: =IF(Prop2019DistTar!C43="","",Prop2019DistTar!C43) ->  | F76: =Prop2019DistTar!CM43 -> 0 | I76: =Prop2019DistTar!DJ43 -> 0
A77: =OR(EXACT(D77,Prop2019DistTar!C$6:C$65)) -> TRUE | D77: =IF(Prop2019DistTar!B44="","",Prop2019DistTar!B44) ->  | E77: =IF(Prop2019DistTar!C44="","",Prop2019DistTar!C44) ->  | F77: =Prop2019DistTar!CM44 -> 0 | I77: =Prop2019DistTar!DJ44 -> 0
A78: =OR(EXACT(D78,Prop2019DistTar!C$6:C$65)) -> TRUE | D78: =IF(Prop2019DistTar!B45="","",Prop2019DistTar!B45) ->  | E78: =IF(Prop2019DistTar!C45="","",Prop2019DistTar!C45) ->  | F78: =Prop2019DistTar!CM45 -> 0 | I78: =Prop2019DistTar!DJ45 -> 0
A79: =OR(EXACT(D79,Prop2019DistTar!C$6:C$65)) -> TRUE | D79: =IF(Prop2019DistTar!B46="","",Prop2019DistTar!B46) ->  | E79: =IF(Prop2019DistTar!C46="","",Prop2019DistTar!C46) ->  | F79: =Prop2019DistTar!CM46 -> 0 | I79: =Prop2019DistTar!DJ46 -> 0
A80: =OR(EXACT(D80,Prop2019DistTar!C$6:C$65)) -> TRUE | D80: =IF(Prop2019DistTar!B47="","",Prop2019DistTar!B47) ->  | E80: =IF(Prop2019DistTar!C47="","",Prop2019DistTar!C47) ->  | F80: =Prop2019DistTar!CM47 -> 0 | I80: =Prop2019DistTar!DJ47 -> 0
A81: =OR(EXACT(D81,Prop2019DistTar!C$6:C$65)) -> TRUE | D81: =IF(Prop2019DistTar!B48="","",Prop2019DistTar!B48) ->  | E81: =IF(Prop2019DistTar!C48="","",Prop2019DistTar!C48) ->  | F81: =Prop2019DistTar!CM48 -> 0 | I81: =Prop2019DistTar!DJ48 -> 0
A82: =OR(EXACT(D82,Prop2019DistTar!C$6:C$65)) -> TRUE | D82: =IF(Prop2019DistTar!B49="","",Prop2019DistTar!B49) ->  | E82: =IF(Prop2019DistTar!C49="","",Prop2019DistTar!C49) ->  | F82: =Prop2019DistTar!CM49 -> 0 | I82: =Prop2019DistTar!DJ49 -> 0
A83: =OR(EXACT(D83,Prop2019DistTar!C$6:C$65)) -> TRUE | D83: =IF(Prop2019DistTar!B50="","",Prop2019DistTar!B50) ->  | E83: =IF(Prop2019DistTar!C50="","",Prop2019DistTar!C50) ->  | F83: =Prop2019DistTar!CM50 -> 0 | I83: =Prop2019DistTar!DJ50 -> 0
A84: =OR(EXACT(D84,Prop2019DistTar!C$6:C$65)) -> TRUE | D84: =IF(Prop2019DistTar!B51="","",Prop2019DistTar!B51) ->  | E84: =IF(Prop2019DistTar!C51="","",Prop2019DistTar!C51) ->  | F84: =Prop2019DistTar!CM51 -> 0 | I84: =Prop2019DistTar!DJ51 -> 0
A85: =OR(EXACT(D85,Prop2019DistTar!C$6:C$65)) -> TRUE | D85: =IF(Prop2019DistTar!B52="","",Prop2019DistTar!B52) ->  | E85: =IF(Prop2019DistTar!C52="","",Prop2019DistTar!C52) ->  | F85: =Prop2019DistTar!CM52 -> 0 | I85: =Prop2019DistTar!DJ52 -> 0
A86: =OR(EXACT(D86,Prop2019DistTar!C$6:C$65)) -> TRUE | D86: =IF(Prop2019DistTar!B53="","",Prop2019DistTar!B53) ->  | E86: =IF(Prop2019DistTar!C53="","",Prop2019DistTar!C53) ->  | F86: =Prop2019DistTar!CM53 -> 0 | I86: =Prop2019DistTar!DJ53 -> 0
A87: =OR(EXACT(D87,Prop2019DistTar!C$6:C$65)) -> TRUE | D87: =IF(Prop2019DistTar!B54="","",Prop2019DistTar!B54) ->  | E87: =IF(Prop2019DistTar!C54="","",Prop2019DistTar!C54) ->  | F87: =Prop2019DistTar!CM54 -> 0 | I87: =Prop2019DistTar!DJ54 -> 0
A88: =OR(EXACT(D88,Prop2019DistTar!C$6:C$65)) -> TRUE | D88: =IF(Prop2019DistTar!B55="","",Prop2019DistTar!B55) ->  | E88: =IF(Prop2019DistTar!C55="","",Prop2019DistTar!C55) ->  | F88: =Prop2019DistTar!CM55 -> 0 | I88: =Prop2019DistTar!DJ55 -> 0
A89: =OR(EXACT(D89,Prop2019DistTar!C$6:C$65)) -> TRUE | D89: =IF(Prop2019DistTar!B56="","",Prop2019DistTar!B56) ->  | E89: =IF(Prop2019DistTar!C56="","",Prop2019DistTar!C56) ->  | F89: =Prop2019DistTar!CM56 -> 0 | I89: =Prop2019DistTar!DJ56 -> 0
A90: =OR(EXACT(D90,Prop2019DistTar!C$6:C$65)) -> TRUE | D90: =IF(Prop2019DistTar!B57="","",Prop2019DistTar!B57) ->  | E90: =IF(Prop2019DistTar!C57="","",Prop2019DistTar!C57) ->  | F90: =Prop2019DistTar!CM57 -> 0 | I90: =Prop2019DistTar!DJ57 -> 0
A91: =OR(EXACT(D91,Prop2019DistTar!C$6:C$65)) -> TRUE | D91: =IF(Prop2019DistTar!B58="","",Prop2019DistTar!B58) ->  | E91: =IF(Prop2019DistTar!C58="","",Prop2019DistTar!C58) ->  | F91: =Prop2019DistTar!CM58 -> 0 | I91: =Prop2019DistTar!DJ58 -> 0
A92: =OR(EXACT(D92,Prop2019DistTar!C$6:C$65)) -> TRUE | D92: =IF(Prop2019DistTar!B59="","",Prop2019DistTar!B59) ->  | E92: =IF(Prop2019DistTar!C59="","",Prop2019DistTar!C59) ->  | F92: =Prop2019DistTar!CM59 -> 0 | I92: =Prop2019DistTar!DJ59 -> 0
A93: =OR(EXACT(D93,Prop2019DistTar!C$6:C$65)) -> TRUE | D93: =IF(Prop2019DistTar!B60="","",Prop2019DistTar!B60) ->  | E93: =IF(Prop2019DistTar!C60="","",Prop2019DistTar!C60) ->  | F93: =Prop2019DistTar!CM60 -> 0 | I93: =Prop2019DistTar!DJ60 -> 0
A94: =OR(EXACT(D94,Prop2019DistTar!C$6:C$65)) -> TRUE | D94: =IF(Prop2019DistTar!B61="","",Prop2019DistTar!B61) ->  | E94: =IF(Prop2019DistTar!C61="","",Prop2019DistTar!C61) ->  | F94: =Prop2019DistTar!CM61 -> 0 | I94: =Prop2019DistTar!DJ61 -> 0
A95: =OR(EXACT(D95,Prop2019DistTar!C$6:C$65)) -> TRUE | D95: =IF(Prop2019DistTar!B62="","",Prop2019DistTar!B62) ->  | E95: =IF(Prop2019DistTar!C62="","",Prop2019DistTar!C62) ->  | F95: =Prop2019DistTar!CM62 -> 0 | I95: =Prop2019DistTar!DJ62 -> 0
A96: =OR(EXACT(D96,Prop2019DistTar!C$6:C$65)) -> TRUE | D96: =IF(Prop2019DistTar!B63="","",Prop2019DistTar!B63) ->  | E96: =IF(Prop2019DistTar!C63="","",Prop2019DistTar!C63) ->  | F96: =Prop2019DistTar!CM63 -> 0 | I96: =Prop2019DistTar!DJ63 -> 0
A97: =OR(EXACT(D97,Prop2019DistTar!C$6:C$65)) -> TRUE | D97: =IF(Prop2019DistTar!B64="","",Prop2019DistTar!B64) ->  | E97: =IF(Prop2019DistTar!C64="","",Prop2019DistTar!C64) ->  | F97: =Prop2019DistTar!CM64 -> 0 | I97: =Prop2019DistTar!DJ64 -> 0
A98: =OR(EXACT(D98,Prop2019DistTar!C$6:C$65)) -> TRUE | D98: =IF(Prop2019DistTar!B65="","",Prop2019DistTar!B65) ->  | E98: =IF(Prop2019DistTar!C65="","",Prop2019DistTar!C65) ->  | F98: =Prop2019DistTar!CM65 -> 0 | I98: =Prop2019DistTar!DJ65 -> 0
F99: =SUM(F39:F98) -> 301246306.6 | I99: =SUM(I39:I98) -> 293525460

Sheet Est2018DistRev
B1: ="Tariff Approval - "&'Model update'!C3 -> Tariff Approval - CitiPower
B3: ="ESTIMATED "&'Model update'!$C$8&" Distribution Revenue" -> ESTIMATED 2018 Distribution Revenue
D4: ="Current Distribution Tariffs (Pt-1) for "&'Model update'!$C$8 -> Current Distribution Tariffs (Pt-1) for 2018 | Z4: =" Estimated Distribution Quantities for "&'Model update'!$C$8&" (Qt-1)" -> Estimated Distribution Quantities for 2018 (Qt-1) | AV4: ="Estimated Revenue (Pt-1 "&'Model update'!$C$8&")*(Qt-1 " &'Model update'!$C$8&")" -> Estimated Revenue (Pt-1 2018)*(Qt-1 2018)
B5: ="Tariffs "&'Model update'!C8 -> Tariffs 2018 | D5: CurrentTar Fixed | E5: CurrentTar Anytime | F5: CurrentTar PkBlk | I5: CurrentTar OPkBlk1 | M5: CurrentTar Dem kVA | N5: CurrentTar Dem kW | O5: CurrentTar Dem kW Sum | P5: CurrentTar Dem kW Win | Q5: CurrentTar SumBlk1 | R5: CurrentTar SumBlk2 | S5: CurrentTar SumBlk3 | U5: CurrentTar WtrBlk1 | V5: CurrentTar WtrBlk2 | W5: CurrentTar WtrBlk3 | Z5: EstVol Fixed | AA5: EstVol Anytime | AB5: EstVol Pk | AE5: EstVol Opk | AI5: EstVol Dem kVA | AJ5: EstVol Dem kW | AK5: EstVol Dem kW Sum | AL5: EstVol Dem kW Win | AM5: EstVol SumBlk1 | AN5: EstVol SumBlk2 | AO5: EstVol SumBlk3 | AQ5: EstVol WtrBlk1 | AR5: EstVol WtrBlk2 | AS5: EstVol WtrBlk3 | AV5: EstRev Fixed | AW5: EstRev Anytime | AX5: EstRev Pk | BA5: EstRev Opk | BE5: EstRev Dem kVA | BF5: EstRev Dem kW | BG5: EstRev Dem kW Sum | BH5: EstRev Dem kW Win | BI5: EstRev SumBlk1 | BJ5: EstRev SumBlk2 | BK5: EstRev SumBlk3 | BM5: EstRev WtrBlk1 | BN5: EstRev WtrBlk2 | BO5: EstRev WtrBlk3 | BQ5: EstRev Total
AV6: =D6*Z6 -> 0 | AW6: =E6/100*AA6 -> 0 | AX6: 0 | AY6: 0 | AZ6: 0 | BA6: 0 | BB6: 0 | BC6: 0 | BD6: 0 | BE6: =M6*AI6 -> 0 | BF6: 0 | BG6: 0 | BH6: 0 | BI6: =Q6/100*AM6 -> 0 | BJ6: 0 | BK6: 0 | BL6: 0 | BM6: 0 | BN6: 0 | BO6: 0 | BP6: 0 | BQ6: =SUM(AV6:BP6) -> 0
A7: C1R | B7: Residential Single Rate | D7: 85 | E7: 4.61 | F7: 0 | G7: 0 | H7: 0 | I7: 0 | J7: 0 | K7: 0 | L7: 0 | M7: 0 | N7: 0 | O7: 0 | P7: 0 | Q7: 0 | R7: 0 | S7: 0 | T7: 0 | U7: 0 | V7: 0 | W7: 0 | X7: 0 | Z7: 203567.5438 | AA7: 837924196.2 | AB7: 0 | AC7: 0 | AD7: 0 | AE7: 0 | AF7: 0 | AG7: 0 | AH7: 0 | AI7: 0 | AJ7: 0 | AK7: 0 | AL7: 0 | AM7: 0 | AN7: 0 | AO7: 0 | AP7: 0 | AQ7: 0 | AR7: 0 | AS7: 0 | AT7: 0 | AV7: 17303241.23 | AW7: 38628305.45 | AX7: 0 | AY7: =G7/100*AC7 -> 0 | AZ7: 0 | BA7: 0 | BB7: =J7/100*AF7 -> 0 | BC7: 0 | BD7: 0 | BE7: =M7*AI7 -> 0 | BF7: =N7*AJ7 -> 0 | BG7: =O7*AK7 -> 0 | BH7: =P7*AL7 -> 0 | BI7: =Q7/100*AM7 -> 0 | BJ7: =R7/100*AN7 -> 0 | BK7: =S7/100*AO7 -> 0 | BL7: =T7/100*AP7 -> 0 | BM7: =U7/100*AQ7 -> 0 | BN7: =V7/100*AR7 -> 0 | BO7: =W7/100*AS7 -> 0 | BP7: =X7/100*AT7 -> 0 | BQ7: =SUM(AV7:BP7) -> 55931546.67
A8: C1RB | B8: Residential Single Rate - Bulk | D8: 75 | E8: 3.95 | F8: 0 | G8: 0 | H8: 0 | I8: 0 | J8: 0 | K8: 0 | L8: 0 | M8: 0 | N8: 0 | O8: 0 | P8: 0 | Q8: 0 | R8: 0 | S8: 0 | T8: 0 | U8: 0 | V8: 0 | W8: 0 | X8: 0 | Z8: 30796.1653 | AA8: 103793921.8 | AB8: 0 | AC8: 0 | AD8: 0 | AE8: 0 | AF8: 0 | AG8: 0 | AH8: 0 | AI8: 0 | AJ8: 0 | AK8: 0 | AL8: 0 | AM8: 0 | AN8: 0 | AO8: 0 | AP8: 0 | AQ8: 0 | AR8: 0 | AS8: 0 | AT8: 0 | AV8: 2309712.397 | AW8: 4099859.912 | AX8: 0 | AY8: 0 | AZ8: 0 | BA8: 0 | BB8: 0 | BC8: 0 | BD8: 0 | BE8: 0 | BF8: 0 | BG8: 0 | BH8: 0 | BI8: 0 | BJ8: 0 | BK8: 0 | BL8: 0 | BM8: 0 | BN8: 0 | BO8: 0 | BP8: 0 | BQ8: 6409572.309
A9: C13R | B9: Residential - flexible pricing | D9: 85 | E9: 0 | F9: 0 | G9: 0 | H9: 0 | I9: 0 | J9: 0 | K9: 0 | L9: 0 | M9: 0 | N9: 0 | O9: 0 | P9: 0 | Q9: 10.96 | R9: 7.38 | S9: 2.9 | T9: 0 | U9: 10.96 | V9: 7.38 | W9: 2.9 | X9: 0 | Z9: 692.1990213 | AA9: 0 | AB9: 0 | AC9: 0 | AD9: 0 | AE9: 0 | AF9: 0 | AG9: 0 | AH9: 0 | AI9: 0 | AJ9: 0 | AK9: 0 | AL9: 0 | AM9: 209399.3886 | AN9: 421530.7094 | AO9: 295381.0238 | AP9: 0 | AQ9: 766444.7639 | AR9: 1512235.207 | AS9: 1077906.585 | AT9: 0 | AV9: 58836.91681 | AW9: 0 | AX9: 0 | AY9: 0 | AZ9: 0 | BA9: 0 | BB9: 0 | BC9: 0 | BD9: 0 | BE9: 0 | BF9: 0 | BG9: 0 | BH9: 0 | BI9: 22950.17299 | BJ9: 31108.96635 | BK9: 8566.04969 | BL9: 0 | BM9: 84002.34612 | BN9: 111602.9583 | BO9: 31259.29097 | BP9: 0 | BQ9: 348326.7012
A10: C13RB | B10: Residential - flexible pricing bulk | D10: 75 | E10: 0 | F10: 0 | G10: 0 | H10: 0 | I10: 0 | J10: 0 | K10: 0 | L10: 0 | M10: 0 | N10: 0 | O10: 0 | P10: 0 | Q10: 8.76 | R10: 5.9 | S10: 2.32 | T10: 0 | U10: 8.76 | V10: 5.9 | W10: 2.32 | X10: 0 | Z10: 86 | AA10: 0 | AB10: 0 | AC10: 0 | AD10: 0 | AE10: 0 | AF10: 0 | AG10: 0 | AH10: 0 | AI10: 0 | AJ10: 0 | AK10: 0 | AL10: 0 | AM10: 14822.46394 | AN10: 30911.09407 | AO10: 25018.29177 | AP10: 0 | AQ10: 55723.87165 | AR10: 110586.6363 | AS10: 89504.20804 | AT10: 0 | AV10: 6450 | AW10: 0 | AX10: 0 | AY10: 0 | AZ10: 0 | BA10: 0 | BB10: 0 | BC10: 0 | BD10: 0 | BE10: 0 | BF10: 0 | BG10: 0 | BH10: 0 | BI10: 1298.447841 | BJ10: 1823.75455 | BK10: 580.424369 | BL10: 0 | BM10: 4881.411157 | BN10: 6524.611544 | BO10: 2076.497626 | BP10: 0 | BQ10: 23635.14709
A11: C2R | B11: Residential Two Rate 5d | D11: 85 | E11: 0 | F11: 9.88 | G11: 0 | H11: 0 | I11: 2.11 | J11: 0 | K11: 0 | L11: 0 | M11: 0 | N11: 0 | O11: 0 | P11: 0 | Q11: 0 | R11: 0 | S11: 0 | T11: 0 | U11: 0 | V11: 0 | W11: 0 | X11: 0 | Z11: 10844.91892 | AA11: 0 | AB11: 34303841.22 | AC11: 0 | AD11: 0 | AE11: 29910228.53 | AF11: 0 | AG11: 0 | AH11: 0 | AI11: 0 | AJ11: 0 | AK11: 0 | AL11: 0 | AM11: 0 | AN11: 0 | AO11: 0 | AP11: 0 | AQ11: 0 | AR11: 0 | AS11: 0 | AT11: 0 | AV11: 921818.1078 | AW11: 0 | AX11: 3389219.512 | AY11: 0 | AZ11: 0 | BA11: 631105.8221 | BB11: 0 | BC11: 0 | BD11: 0 | BE11: 0 | BF11: 0 | BG11: 0 | BH11: 0 | BI11: 0 | BJ11: 0 | BK11: 0 | BL11: 0 | BM11: 0 | BN11: 0 | BO11: 0 | BP11: 0 | BQ11: 4942143.442
A12: C2RB | B12: Residential Two Rate 5d - Bulk | D12: 75 | E12: 0 | F12: 8.41 | G12: 0 | H12: 0 | I12: 1.91 | J12: 0 | K12: 0 | L12: 0 | M12: 0 | N12: 0 | O12: 0 | P12: 0 | Q12: 0 | R12: 0 | S12: 0 | T12: 0 | U12: 0 | V12: 0 | W12: 0 | X12: 0 | Z12: 4325.479896 | AA12: 0 | AB12: 11937966.33 | AC12: 0 | AD12: 0 | AE12: 10332699.16 | AF12: 0 | AG12: 0 | AH12: 0 | AI12: 0 | AJ12: 0 | AK12: 0 | AL12: 0 | AM12: 0 | AN12: 0 | AO12: 0 | AP12: 0 | AQ12: 0 | AR12: 0 | AS12: 0 | AT12: 0 | AV12: 324410.9922 | AW12: 0 | AX12: 1003982.969 | AY12: 0 | AZ12: 0 | BA12: 197354.5539 | BB12: 0 | BC12: 0 | BD12: 0 | BE12: 0 | BF12: 0 | BG12: 0 | BH12: 0 | BI12: 0 | BJ12: 0 | BK12: 0 | BL12: 0 | BM12: 0 | BN12: 0 | BO12: 0 | BP12: 0 | BQ12: 1525748.515
A13: C3R | B13: Residential Interval | D13: 85 | E13: 0 | F13: 9.88 | G13: 0 | H13: 0 | I13: 2.11 | J13: 0 | K13: 0 | L13: 0 | M13: 0 | N13: 0 | O13: 0 | P13: 0 | Q13: 0 | R13: 0 | S13: 0 | T13: 0 | U13: 0 | V13: 0 | W13: 0 | X13: 0 | Z13: 17220.89451 | AA13: 0 | AB13: 60059088.86 | AC13: 0 | AD13: 0 | AE13: 52811678.16 | AF13: 0 | AG13: 0 | AH13: 0 | AI13: 0 | AJ13: 0 | AK13: 0 | AL13: 0 | AM13: 0 | AN13: 0 | AO13: 0 | AP13: 0 | AQ13: 0 | AR13: 0 | AS13: 0 | AT13: 0 | AV13: 1463776.033 | AW13: 0 | AX13: 5933837.979 | AY13: 0 | AZ13: 0 | BA13: 1114326.409 | BB13: 0 | BC13: 0 | BD13: 0 | BE13: 0 | BF13: 0 | BG13: 0 | BH13: 0 | BI13: 0 | BJ13: 0 | BK13: 0 | BL13: 0 | BM13: 0 | BN13: 0 | BO13: 0 | BP13: 0 | BQ13: 8511940.422
A14: C3RB | B14: Residential Interval - Bulk | D14: 75 | E14: 0 | F14: 8.41 | G14: 0 | H14: 0 | I14: 1.91 | J14: 0 | K14: 0 | L14: 0 | M14: 0 | N14: 0 | O14: 0 | P14: 0 | Q14: 0 | R14: 0 | S14: 0 | T14: 0 | U14: 0 | V14: 0 | W14: 0 | X14: 0 | Z14: 8720.076186 | AA14: 0 | AB14: 14985083.09 | AC14: 0 | AD14: 0 | AE14: 14138212.66 | AF14: 0 | AG14: 0 | AH14: 0 | AI14: 0 | AJ14: 0 | AK14: 0 | AL14: 0 | AM14: 0 | AN14: 0 | AO14: 0 | AP14: 0 | AQ14: 0 | AR14: 0 | AS14: 0 | AT14: 0 | AV14: 654005.7139 | AW14: 0 | AX14: 1260245.488 | AY14: 0 | AZ14: 0 | BA14: 270039.8619 | BB14: 0 | BC14: 0 | BD14: 0 | BE14: 0 | BF14: 0 | BG14: 0 | BH14: 0 | BI14: 0 | BJ14: 0 | BK14: 0 | BL14: 0 | BM14: 0 | BN14: 0 | BO14: 0 | BP14: 0 | BQ14: 2184291.064
A15: C2ROP | B15: Residential Two Rate 5d - Controlled Load | D15: 0 | E15: 0 | F15: 0 | G15: 0 | H15: 0 | I15: 1.78 | J15: 0 | K15: 0 | L15: 0 | M15: 0 | N15: 0 | O15: 0 | P15: 0 | Q15: 0 | R15: 0 | S15: 0 | T15: 0 | U15: 0 | V15: 0 | W15: 0 | X15: 0 | Z15: 9721.635616 | AA15: 0 | AB15: 0 | AC15: 0 | AD15: 0 | AE15: 19909930.71 | AF15: 0 | AG15: 0 | AH15: 0 | AI15: 0 | AJ15: 0 | AK15: 0 | AL15: 0 | AM15: 0 | AN15: 0 | AO15: 0 | AP15: 0 | AQ15: 0 | AR15: 0 | AS15: 0 | AT15: 0 | AV15: 0 | AW15: 0 | AX15: =F15/100*AB15 -> 0 | AY15: 0 | AZ15: 0 | BA15: 354396.7666 | BB15: 0 | BC15: 0 | BD15: 0 | BE15: 0 | BF15: 0 | BG15: 0 | BH15: 0 | BI15: 0 | BJ15: 0 | BK15: 0 | BL15: 0 | BM15: 0 | BN15: 0 | BO15: 0 | BP15: 0 | BQ15: 354396.7666
A16: C2RBOP | B16: Residential Two Rate 5d - Bulk - Controlled Load | D16: 0 | E16: 0 | F16: 0 | G16: 0 | H16: 0 | I16: 1.38 | J16: 0 | K16: 0 | L16: 0 | M16: 0 | N16: 0 | O16: 0 | P16: 0 | Q16: 0 | R16: 0 | S16: 0 | T16: 0 | U16: 0 | V16: 0 | W16: 0 | X16: 0 | Z16: 3658.606663 | AA16: 0 | AB16: 0 | AC16: 0 | AD16: 0 | AE16: 7350471.826 | AF16: 0 | AG16: 0 | AH16: 0 | AI16: 0 | AJ16: 0 | AK16: 0 | AL16: 0 | AM16: 0 | AN16: 0 | AO16: 0 | AP16: 0 | AQ16: 0 | AR16: 0 | AS16: 0 | AT16: 0 | AV16: 0 | AW16: 0 | AX16: 0 | AY16: 0 | AZ16: 0 | BA16: 101436.5112 | BB16: 0 | BC16: 0 | BD16: 0 | BE16: 0 | BF16: 0 | BG16: 0 | BH16: 0 | BI16: 0 | BJ16: 0 | BK16: 0 | BL16: 0 | BM16: 0 | BN16: 0 | BO16: 0 | BP16: 0 | BQ16: 101436.5112
A17: CDS | B17: Dedicated Circuit | D17: 0 | E17: 0 | F17: 0 | G17: 0 | H17: 0 | I17: 1.78 | J17: 0 | K17: 0 | L17: 0 | M17: 0 | N17: 0 | O17: 0 | P17: 0 | Q17: 0 | R17: 0 | S17: 0 | T17: 0 | U17: 0 | V17: 0 | W17: 0 | X17: 0 | Z17: 22642.03058 | AA17: 0 | AB17: 0 | AC17: 0 | AD17: 0 | AE17: 33890069.86 | AF17: 0 | AG17: 0 | AH17: 0 | AI17: 0 | AJ17: 0 | AK17: 0 | AL17: 0 | AM17: 0 | AN17: 0 | AO17: 0 | AP17: 0 | AQ17: 0 | AR17: 0 | AS17: 0 | AT17: 0 | AV17: 0 | AW17: 0 | AX17: 0 | AY17: 0 | AZ17: 0 | BA17: 603243.2436 | BB17: 0 | BC17: 0 | BD17: 0 | BE17: 0 | BF17: 0 | BG17: 0 | BH17: 0 | BI17: 0 | BJ17: 0 | BK17: 0 | BL17: 0 | BM17: 0 | BN17: 0 | BO17: 0 | BP17: 0 | BQ17: 603243.2436
A18: CDSB | B18: Dedicated Circuit - Bulk | D18: 0 | E18: 0 | F18: 0 | G18: 0 | H18: 0 | I18: 1.38 | J18: 0 | K18: 0 | L18: 0 | M18: 0 | N18: 0 | O18: 0 | P18: 0 | Q18: 0 | R18: 0 | S18: 0 | T18: 0 | U18: 0 | V18: 0 | W18: 0 | X18: 0 | Z18: 1081.479218 | AA18: 0 | AB18: 0 | AC18: 0 | AD18: 0 | AE18: 2219211.192 | AF18: 0 | AG18: 0 | AH18: 0 | AI18: 0 | AJ18: 0 | AK18: 0 | AL18: 0 | AM18: 0 | AN18: 0 | AO18: 0 | AP18: 0 | AQ18: 0 | AR18: 0 | AS18: 0 | AT18: 0 | AV18: 0 | AW18: 0 | AX18: 0 | AY18: 0 | AZ18: 0 | BA18: 30625.11445 | BB18: 0 | BC18: 0 | BD18: 0 | BE18: 0 | BF18: 0 | BG18: 0 | BH18: 0 | BI18: 0 | BJ18: 0 | BK18: 0 | BL18: 0 | BM18: 0 | BN18: 0 | BO18: 0 | BP18: 0 | BQ18: 30625.11445
A19: CR | B19: Residential Demand | D19: 85 | E19: 2.93 | F19: 0 | G19: 0 | H19: 0 | I19: 0 | J19: 0 | K19: 0 | L19: 0 | M19: 0 | N19: 0 | O19: 7.16 | P19: 2.45 | Q19: 0 | R19: 0 | S19: 0 | T19: 0 | U19: 0 | V19: 0 | W19: 0 | X19: 0 | Z19: 5 | AA19: 27500 | AB19: 0 | AC19: 0 | AD19: 0 | AE19: 0 | AF19: 0 | AG19: 0 | AH19: 0 | AI19: 0 | AJ19: 0 | AK19: 62.78538813 | AL19: 100.456621 | AM19: 0 | AN19: 0 | AO19: 0 | AP19: 0 | AQ19: 0 | AR19: 0 | AS19: 0 | AT19: 0 | AV19: 425 | AW19: 805.75 | AX19: 0 | AY19: 0 | AZ19: 0 | BA19: 0 | BB19: 0 | BC19: 0 | BD19: 0 | BE19: 0 | BF19: 0 | BG19: 449.543379 | BH19: 246.1187215 | BI19: 0 | BJ19: 0 | BK19: 0 | BL19: 0 | BM19: 0 | BN19: 0 | BO19: 0 | BP19: 0 | BQ19: 1926.4121
A20: CRB | B20: Residential Bulk Demand | D20: 75 | E20: 1.85 | F20: 0 | G20: 0 | H20: 0 | I20: 0 | J20: 0 | K20: 0 | L20: 0 | M20: 0 | N20: 0 | O20: 5.24 | P20: 1.75 | Q20: 0 | R20: 0 | S20: 0 | T20: 0 | U20: 0 | V20: 0 | W20: 0 | X20: 0 | Z20: 1 | AA20: 5500 | AB20: 0 | AC20: 0 | AD20: 0 | AE20: 0 | AF20: 0 | AG20: 0 | AH20: 0 | AI20: 0 | AJ20: 0 | AK20: 12.55707763 | AL20: 20.0913242 | AM20: 0 | AN20: 0 | AO20: 0 | AP20: 0 | AQ20: 0 | AR20: 0 | AS20: 0 | AT20: 0 | AV20: 75 | AW20: 101.75 | AX20: 0 | AY20: 0 | AZ20: 0 | BA20: 0 | BB20: 0 | BC20: 0 | BD20: 0 | BE20: 0 | BF20: 0 | BG20: 65.79908676 | BH20: 35.15981735 | BI20: 0 | BJ20: 0 | BK20: 0 | BL20: 0 | BM20: 0 | BN20: 0 | BO20: 0 | BP20: 0 | BQ20: 277.7089041
A21: C1G | B21: Non-Residential Single Rate | D21: 145 | E21: 6.05 | F21: 0 | G21: 0 | H21: 0 | I21: 0 | J21: 0 | K21: 0 | L21: 0 | M21: 0 | N21: 0 | O21: 0 | P21: 0 | Q21: 0 | R21: 0 | S21: 0 | T21: 0 | U21: 0 | V21: 0 | W21: 0 | X21: 0 | Z21: 18214.93199 | AA21: 220224547 | AB21: 0 | AC21: 0 | AD21: 0 | AE21: 0 | AF21: 0 | AG21: 0 | AH21: 0 | AI21: 0 | AJ21: 0 | AK21: 0 | AL21: 0 | AM21: 0 | AN21: 0 | AO21: 0 | AP21: 0 | AQ21: 0 | AR21: 0 | AS21: 0 | AT21: 0 | AV21: 2641165.139 | AW21: 13323585.09 | AX21: 0 | AY21: 0 | AZ21: 0 | BA21: 0 | BB21: 0 | BC21: 0 | BD21: 0 | BE21: 0 | BF21: 0 | BG21: 0 | BH21: 0 | BI21: 0 | BJ21: 0 | BK21: 0 | BL21: 0 | BM21: 0 | BN21: 0 | BO21: 0 | BP21: 0 | BQ21: 15964750.23
A22: C1GB | B22: Non-Residential Single Rate - Bulk | D22: 125 | E22: 4.64 | F22: 0 | G22: 0 | H22: 0 | I22: 0 | J22: 0 | K22: 0 | L22: 0 | M22: 0 | N22: 0 | O22: 0 | P22: 0 | Q22: 0 | R22: 0 | S22: 0 | T22: 0 | U22: 0 | V22: 0 | W22: 0 | X22: 0 | Z22: 5599.005158 | AA22: 73848559.18 | AB22: 0 | AC22: 0 | AD22: 0 | AE22: 0 | AF22: 0 | AG22: 0 | AH22: 0 | AI22: 0 | AJ22: 0 | AK22: 0 | AL22: 0 | AM22: 0 | AN22: 0 | AO22: 0 | AP22: 0 | AQ22: 0 | AR22: 0 | AS22: 0 | AT22: 0 | AV22: 699875.6447 | AW22: 3426573.146 | AX22: 0 | AY22: 0 | AZ22: 0 | BA22: 0 | BB22: 0 | BC22: 0 | BD22: 0 | BE22: 0 | BF22: 0 | BG22: 0 | BH22: 0 | BI22: 0 | BJ22: 0 | BK22: 0 | BL22: 0 | BM22: 0 | BN22: 0 | BO22: 0 | BP22: 0 | BQ22: 4126448.79
A23: C2G5 | B23: Non-Residential Two Rate 5d | D23: 145 | E23: 0 | F23: 9.1 | G23: 0 | H23: 0 | I23: 2.41 | J23: 0 | K23: 0 | L23: 0 | M23: 0 | N23: 0 | O23: 0 | P23: 0 | Q23: 0 | R23: 0 | S23: 0 | T23: 0 | U23: 0 | V23: 0 | W23: 0 | X23: 0 | Z23: 6325.91212 | AA23: 0 | AB23: 90006939.07 | AC23: 0 | AD23: 0 | AE23: 56232415.07 | AF23: 0 | AG23: 0 | AH23: 0 | AI23: 0 | AJ23: 0 | AK23: 0 | AL23: 0 | AM23: 0 | AN23: 0 | AO23: 0 | AP23: 0 | AQ23: 0 | AR23: 0 | AS23: 0 | AT23: 0 | AV23: 917257.2574 | AW23: 0 | AX23: 8190631.455 | AY23: 0 | AZ23: 0 | BA23: 1355201.203 | BB23: 0 | BC23: 0 | BD23: 0 | BE23: 0 | BF23: 0 | BG23: 0 | BH23: 0 | BI23: 0 | BJ23: 0 | BK23: 0 | BL23: 0 | BM23: 0 | BN23: 0 | BO23: 0 | BP23: 0 | BQ23: 10463089.92
A24: C2G5B | B24: Non-Residential Two Rate 5d - Bulk | D24: 125 | E24: 0 | F24: 6.6 | G24: 0 | H24: 0 | I24: 1.8 | J24: 0 | K24: 0 | L24: 0 | M24: 0 | N24: 0 | O24: 0 | P24: 0 | Q24: 0 | R24: 0 | S24: 0 | T24: 0 | U24: 0 | V24: 0 | W24: 0 | X24: 0 | Z24: 1106.535597 | AA24: 0 | AB24: 16887632.07 | AC24: 0 | AD24: 0 | AE24: 9694170.346 | AF24: 0 | AG24: 0 | AH24: 0 | AI24: 0 | AJ24: 0 | AK24: 0 | AL24: 0 | AM24: 0 | AN24: 0 | AO24: 0 | AP24: 0 | AQ24: 0 | AR24: 0 | AS24: 0 | AT24: 0 | AV24: 138316.9496 | AW24: 0 | AX24: 1114583.716 | AY24: 0 | AZ24: 0 | BA24: 174495.0662 | BB24: 0 | BC24: 0 | BD24: 0 | BE24: 0 | BF24: 0 | BG24: 0 | BH24: 0 | BI24: 0 | BJ24: 0 | BK24: 0 | BL24: 0 | BM24: 0 | BN24: 0 | BO24: 0 | BP24: 0 | BQ24: 1427395.732
A25: C3G | B25: Non-Residential Interval | D25: 145 | E25: 0 | F25: 9.1 | G25: 0 | H25: 0 | I25: 2.41 | J25: 0 | K25: 0 | L25: 0 | M25: 0 | N25: 0 | O25: 0 | P25: 0 | Q25: 0 | R25: 0 | S25: 0 | T25: 0 | U25: 0 | V25: 0 | W25: 0 | X25: 0 | Z25: 4011.792454 | AA25: 0 | AB25: 44315700.54 | AC25: 0 | AD25: 0 | AE25: 25142157.46 | AF25: 0 | AG25: 0 | AH25: 0 | AI25: 0 | AJ25: 0 | AK25: 0 | AL25: 0 | AM25: 0 | AN25: 0 | AO25: 0 | AP25: 0 | AQ25: 0 | AR25: 0 | AS25: 0 | AT25: 0 | AV25: 581709.9058 | AW25: 0 | AX25: 4032728.749 | AY25: 0 | AZ25: 0 | BA25: 605925.9948 | BB25: 0 | BC25: 0 | BD25: 0 | BE25: 0 | BF25: 0 | BG25: 0 | BH25: 0 | BI25: 0 | BJ25: 0 | BK25: 0 | BL25: 0 | BM25: 0 | BN25: 0 | BO25: 0 | BP25: 0 | BQ25: 5220364.65
A26: C3GB | B26: Non-Residential Interval - Bulk | D26: 125 | E26: 0 | F26: 6.6 | G26: 0 | H26: 0 | I26: 1.8 | J26: 0 | K26: 0 | L26: 0 | M26: 0 | N26: 0 | O26: 0 | P26: 0 | Q26: 0 | R26: 0 | S26: 0 | T26: 0 | U26: 0 | V26: 0 | W26: 0 | X26: 0 | Z26: 1947.172824 | AA26: 0 | AB26: 28963727.79 | AC26: 0 | AD26: 0 | AE26: 15296835.41 | AF26: 0 | AG26: 0 | AH26: 0 | AI26: 0 | AJ26: 0 | AK26: 0 | AL26: 0 | AM26: 0 | AN26: 0 | AO26: 0 | AP26: 0 | AQ26: 0 | AR26: 0 | AS26: 0 | AT26: 0 | AV26: 243396.603 | AW26: 0 | AX26: 1911606.034 | AY26: 0 | AZ26: 0 | BA26: 275343.0374 | BB26: 0 | BC26: 0 | BD26: 0 | BE26: 0 | BF26: 0 | BG26: 0 | BH26: 0 | BI26: 0 | BJ26: 0 | BK26: 0 | BL26: 0 | BM26: 0 | BN26: 0 | BO26: 0 | BP26: 0 | BQ26: 2430345.675
A27: C14G | B27: Non-Residential Flexible Pricing | D27: 145 | E27: 0 | F27: 0 | G27: 0 | H27: 0 | I27: 0 | J27: 0 | K27: 0 | L27: 0 | M27: 0 | N27: 0 | O27: 0 | P27: 0 | Q27: 11.09 | R27: 7.75 | S27: 3.06 | T27: 0 | U27: 11.09 | V27: 7.75 | W27: 3.06 | X27: 0 | Z27: 21.10222788 | AA27: 0 | AB27: 0 | AC27: 0 | AD27: 0 | AE27: 0 | AF27: 0 | AG27: 0 | AH27: 0 | AI27: 0 | AJ27: 0 | AK27: 0 | AL27: 0 | AM27: 43821.56936 | AN27: 12365.14554 | AO27: 36868.09714 | AP27: 0 | AQ27: 161494.8713 | AR27: 41032.76051 | AS27: 110833.915 | AT27: 0 | AV27: 3059.823043 | AW27: 0 | AX27: 0 | AY27: 0 | AZ27: 0 | BA27: 0 | BB27: 0 | BC27: 0 | BD27: 0 | BE27: 0 | BF27: 0 | BG27: 0 | BH27: 0 | BI27: 4859.812042 | BJ27: 958.2987794 | BK27: 1128.163772 | BL27: 0 | BM27: 17909.78122 | BN27: 3180.03894 | BO27: 3391.517799 | BP27: 0 | BQ27: 34487.4356
A28: C14GB | B28: Non-Residential - Flexible Pricing Bulk | D28: 125 | E28: 0 | F28: 0 | G28: 0 | H28: 0 | I28: 0 | J28: 0 | K28: 0 | L28: 0 | M28: 0 | N28: 0 | O28: 0 | P28: 0 | Q28: 9.42 | R28: 6.58 | S28: 2.59 | T28: 0 | U28: 9.42 | V28: 6.58 | W28: 2.59 | X28: 0 | Z28: 5 | AA28: 0 | AB28: 0 | AC28: 0 | AD28: 0 | AE28: 0 | AF28: 0 | AG28: 0 | AH28: 0 | AI28: 0 | AJ28: 0 | AK28: 0 | AL28: 0 | AM28: 10467.50047 | AN28: 2361.846711 | AO28: 7699.32017 | AP28: 0 | AQ28: 30024.78157 | AR28: 6386.584144 | AS28: 20918.50232 | AT28: 0 | AV28: 625 | AW28: 0 | AX28: 0 | AY28: 0 | AZ28: 0 | BA28: 0 | BB28: 0 | BC28: 0 | BD28: 0 | BE28: 0 | BF28: 0 | BG28: 0 | BH28: 0 | BI28: 986.0385441 | BJ28: 155.4095136 | BK28: 199.4123924 | BL28: 0 | BM28: 2828.334424 | BN28: 420.2372366 | BO28: 541.78921 | BP28: 0 | BQ28: 5756.221321
A29: C2G7 | B29: Non-Residential Two Rate 7d | D29: 145 | E29: 0 | F29: 7.16 | G29: 0 | H29: 0 | I29: 2.41 | J29: 0 | K29: 0 | L29: 0 | M29: 0 | N29: 0 | O29: 0 | P29: 0 | Q29: 0 | R29: 0 | S29: 0 | T29: 0 | U29: 0 | V29: 0 | W29: 0 | X29: 0 | Z29: 2322.444207 | AA29: 0 | AB29: 37314656.19 | AC29: 0 | AD29: 0 | AE29: 8982959.302 | AF29: 0 | AG29: 0 | AH29: 0 | AI29: 0 | AJ29: 0 | AK29: 0 | AL29: 0 | AM29: 0 | AN29: 0 | AO29: 0 | AP29: 0 | AQ29: 0 | AR29: 0 | AS29: 0 | AT29: 0 | AV29: 336754.41 | AW29: 0 | AX29: 2671729.383 | AY29: 0 | AZ29: 0 | BA29: 216489.3192 | BB29: 0 | BC29: 0 | BD29: 0 | BE29: 0 | BF29: 0 | BG29: 0 | BH29: 0 | BI29: 0 | BJ29: 0 | BK29: 0 | BL29: 0 | BM29: 0 | BN29: 0 | BO29: 0 | BP29: 0 | BQ29: 3224973.112
A30: C2G7B | B30: Non-Residential Two Rate 7d - Bulk | D30: 125 | E30: 0 | F30: 6.17 | G30: 0 | H30: 0 | I30: 1.8 | J30: 0 | K30: 0 | L30: 0 | M30: 0 | N30: 0 | O30: 0 | P30: 0 | Q30: 0 | R30: 0 | S30: 0 | T30: 0 | U30: 0 | V30: 0 | W30: 0 | X30: 0 | Z30: 251.5269155 | AA30: 0 | AB30: 5172333.901 | AC30: 0 | AD30: 0 | AE30: 1298680.775 | AF30: 0 | AG30: 0 | AH30: 0 | AI30: 0 | AJ30: 0 | AK30: 0 | AL30: 0 | AM30: 0 | AN30: 0 | AO30: 0 | AP30: 0 | AQ30: 0 | AR30: 0 | AS30: 0 | AT30: 0 | AV30: 31440.86443 | AW30: 0 | AX30: 319133.0017 | AY30: 0 | AZ30: 0 | BA30: 23376.25396 | BB30: 0 | BC30: 0 | BD30: 0 | BE30: 0 | BF30: 0 | BG30: 0 | BH30: 0 | BI30: 0 | BJ30: 0 | BK30: 0 | BL30: 0 | BM30: 0 | BN30: 0 | BO30: 0 | BP30: 0 | BQ30: 373950.1201
A31: C2L7 | B31: Large Two Rate 7d | D31: 145 | E31: 0 | F31: 9.1 | G31: 0 | H31: 0 | I31: 2.41 | J31: 0 | K31: 0 | L31: 0 | M31: 0 | N31: 0 | O31: 0 | P31: 0 | Q31: 0 | R31: 0 | S31: 0 | T31: 0 | U31: 0 | V31: 0 | W31: 0 | X31: 0 | Z31: 4 | AA31: 0 | AB31: 224820.2679 | AC31: 0 | AD31: 0 | AE31: 61632.40762 | AF31: 0 | AG31: 0 | AH31: 0 | AI31: 0 | AJ31: 0 | AK31: 0 | AL31: 0 | AM31: 0 | AN31: 0 | AO31: 0 | AP31: 0 | AQ31: 0 | AR31: 0 | AS31: 0 | AT31: 0 | AV31: 580 | AW31: =E31/100*AA31 -> 0 | AX31: 20458.64438 | AY31: 0 | AZ31: 0 | BA31: =I31/100*AE31 -> 1485.341024 | BB31: 0 | BC31: 0 | BD31: 0 | BE31: 0 | BF31: 0 | BG31: 0 | BH31: 0 | BI31: 0 | BJ31: 0 | BK31: 0 | BL31: 0 | BM31: 0 | BN31: 0 | BO31: 0 | BP31: 0 | BQ31: 22523.9854
A32: CG | B32: Non-Residential Demand Tariff | D32: 145 | E32: 3.32 | F32: 0 | G32: 0 | H32: 0 | I32: 0 | J32: 0 | K32: 0 | L32: 0 | M32: 0 | N32: 0 | O32: 10.59 | P32: 3.53 | Q32: 0 | R32: 0 | S32: 0 | T32: 0 | U32: 0 | V32: 0 | W32: 0 | X32: 0 | Z32: 5 | AA32: 100000 | AB32: 0 | AC32: 0 | AD32: 0 | AE32: 0 | AF32: 0 | AG32: 0 | AH32: 0 | AI32: 0 | AJ32: 0 | AK32: 130.4631442 | AL32: 228.3105023 | AM32: 0 | AN32: 0 | AO32: 0 | AP32: 0 | AQ32: 0 | AR32: 0 | AS32: 0 | AT32: 0 | AV32: 725 | AW32: 3320 | AX32: 0 | AY32: 0 | AZ32: 0 | BA32: 0 | BB32: 0 | BC32: 0 | BD32: 0 | BE32: 0 | BF32: 0 | BG32: 1381.604697 | BH32: 805.9360731 | BI32: 0 | BJ32: 0 | BK32: 0 | BL32: 0 | BM32: 0 | BN32: 0 | BO32: 0 | BP32: 0 | BQ32: =SUM(AV32:BP32) -> 6232.54077
A33: CGB | B33: Non-Residential Bulk Demand Tariff | D33: 125 | E33: 2.99 | F33: 0 | G33: 0 | H33: 0 | I33: 0 | J33: 0 | K33: 0 | L33: 0 | M33: 0 | N33: 0 | O33: 7.94 | P33: 2.64 | Q33: 0 | R33: 0 | S33: 0 | T33: 0 | U33: 0 | V33: 0 | W33: 0 | X33: 0 | Z33: 1 | AA33: 16000 | AB33: 0 | AC33: 0 | AD33: 0 | AE33: 0 | AF33: 0 | AG33: 0 | AH33: 0 | AI33: 0 | AJ33: 0 | AK33: 20.87410307 | AL33: 36.52968037 | AM33: 0 | AN33: 0 | AO33: 0 | AP33: 0 | AQ33: 0 | AR33: 0 | AS33: 0 | AT33: 0 | AV33: 125 | AW33: 478.4 | AX33: 0 | AY33: 0 | AZ33: 0 | BA33: 0 | BB33: 0 | BC33: 0 | BD33: 0 | BE33: 0 | BF33: 0 | BG33: 165.7403783 | BH33: 96.43835616 | BI33: 0 | BJ33: 0 | BK33: 0 | BL33: 0 | BM33: 0 | BN33: 0 | BO33: 0 | BP33: 0 | BQ33: 865.5787345
A34: CMG | B34: Medium Business Demand | D34: 800 | E34: 0 | F34: 5.44 | G34: 0 | H34: 0 | I34: 3.21 | J34: 0 | K34: 0 | L34: 0 | M34: 0 | N34: 0 | O34: 2.73 | P34: 1.37 | Q34: 0 | R34: 0 | S34: 0 | T34: 0 | U34: 0 | V34: 0 | W34: 0 | X34: 0 | Z34: 4454.758429 | AA34: 0 | AB34: 385749824.5 | AC34: 0 | AD34: 0 | AE34: 237077602.3 | AF34: 0 | AG34: 0 | AH34: 0 | AI34: 0 | AJ34: 0 | AK34: 764494.4395 | AL34: 1326085.146 | AM34: 0 | AN34: 0 | AO34: 0 | AP34: 0 | AQ34: 0 | AR34: 0 | AS34: 0 | AT34: 0 | AV34: 3563806.743 | AW34: 0 | AX34: 20984790.45 | AY34: 0 | AZ34: 0 | BA34: 7610191.032 | BB34: 0 | BC34: 0 | BD34: 0 | BE34: 0 | BF34: 0 | BG34: 2087069.82 | BH34: 1816736.651 | BI34: 0 | BJ34: 0 | BK34: 0 | BL34: 0 | BM34: 0 | BN34: 0 | BO34: 0 | BP34: 0 | BQ34: 36062594.7
A35: CMGB | B35: Medium Business Bulk Demand | D35: 800 | E35: 0 | F35: 3.99 | G35: 0 | H35: 0 | I35: 2.53 | J35: 0 | K35: 0 | L35: 0 | M35: 0 | N35: 0 | O35: 2.05 | P35: 1.03 | Q35: 0 | R35: 0 | S35: 0 | T35: 0 | U35: 0 | V35: 0 | W35: 0 | X35: 0 | Z35: 2142.068209 | AA35: 0 | AB35: 263482333.8 | AC35: 0 | AD35: 0 | AE35: 158002594.6 | AF35: 0 | AG35: 0 | AH35: 0 | AI35: 0 | AJ35: 0 | AK35: 523965.0885 | AL35: 850358.3194 | AM35: 0 | AN35: 0 | AO35: 0 | AP35: 0 | AQ35: 0 | AR35: 0 | AS35: 0 | AT35: 0 | AV35: 1713654.567 | AW35: 0 | AX35: 10512945.12 | AY35: 0 | AZ35: 0 | BA35: 3997465.643 | BB35: 0 | BC35: 0 | BD35: 0 | BE35: 0 | BF35: 0 | BG35: 1074128.431 | BH35: 875869.069 | BI35: 0 | BJ35: 0 | BK35: 0 | BL35: 0 | BM35: 0 | BN35: 0 | BO35: 0 | BP35: 0 | BQ35: 18174062.83
A36: CMGO | B36: Medium Business Opt-out | D36: 800 | E36: 0 | F36: 8.33 | G36: 0 | H36: 0 | I36: 3.34 | J36: 0 | K36: 0 | L36: 0 | M36: 0 | N36: 0 | O36: 0 | P36: 0 | Q36: 0 | R36: 0 | S36: 0 | T36: 0 | U36: 0 | V36: 0 | W36: 0 | X36: 0 | Z36: 9 | AA36: 0 | AB36: 502552.9057 | AC36: 0 | AD36: 0 | AE36: 301011.2823 | AF36: 0 | AG36: 0 | AH36: 0 | AI36: 0 | AJ36: 0 | AK36: 0 | AL36: 0 | AM36: 0 | AN36: 0 | AO36: 0 | AP36: 0 | AQ36: 0 | AR36: 0 | AS36: 0 | AT36: 0 | AV36: 7200 | AW36: 0 | AX36: 41862.65705 | AY36: 0 | AZ36: 0 | BA36: 10053.77683 | BB36: 0 | BC36: 0 | BD36: 0 | BE36: 0 | BF36: 0 | BG36: 0 | BH36: 0 | BI36: 0 | BJ36: 0 | BK36: 0 | BL36: 0 | BM36: 0 | BN36: 0 | BO36: 0 | BP36: 0 | BQ36: 59116.43387
A37: CMGBO | B37: Medium Business Bulk Opt-out | D37: 800 | E37: 0 | F37: 6.11 | G37: 0 | H37: 0 | I37: 2.62 | J37: 0 | K37: 0 | L37: 0 | M37: 0 | N37: 0 | O37: 0 | P37: 0 | Q37: 0 | R37: 0 | S37: 0 | T37: 0 | U37: 0 | V37: 0 | W37: 0 | X37: 0 | Z37: 9 | AA37: 0 | AB37: 560828.8423 | AC37: 0 | AD37: 0 | AE37: 293112.8114 | AF37: 0 | AG37: 0 | AH37: 0 | AI37: 0 | AJ37: 0 | AK37: 0 | AL37: 0 | AM37: 0 | AN37: 0 | AO37: 0 | AP37: 0 | AQ37: 0 | AR37: 0 | AS37: 0 | AT37: 0 | AV37: 7200 | AW37: 0 | AX37: 34266.64226 | AY37: 0 | AZ37: 0 | BA37: 7679.555658 | BB37: 0 | BC37: 0 | BD37: 0 | BE37: 0 | BF37: 0 | BG37: 0 | BH37: 0 | BI37: 0 | BJ37: 0 | BK37: 0 | BL37: 0 | BM37: 0 | BN37: 0 | BO37: 0 | BP37: 0 | BQ37: 49146.19792
A38: C2U | B38: Unmetered Supplies / Public Lighting | D38: 0 | E38: 0 | F38: 8.53 | G38: 0 | H38: 0 | I38: 2.36 | J38: 0 | K38: 0 | L38: 0 | M38: 0 | N38: 0 | O38: 0 | P38: 0 | Q38: 0 | R38: 0 | S38: 0 | T38: 0 | U38: 0 | V38: 0 | W38: 0 | X38: 0 | Z38: 4063 | AA38: 0 | AB38: 14704755.16 | AC38: 0 | AD38: 0 | AE38: 24328971.64 | AF38: 0 | AG38: 0 | AH38: 0 | AI38: 0 | AJ38: 0 | AK38: 0 | AL38: 0 | AM38: 0 | AN38: 0 | AO38: 0 | AP38: 0 | AQ38: 0 | AR38: 0 | AS38: 0 | AT38: 0 | AV38: 0 | AW38: 0 | AX38: 1254315.615 | AY38: 0 | AZ38: 0 | BA38: 574163.7306 | BB38: 0 | BC38: 0 | BD38: 0 | BE38: 0 | BF38: 0 | BG38: 0 | BH38: 0 | BI38: 0 | BJ38: 0 | BK38: 0 | BL38: 0 | BM38: 0 | BN38: 0 | BO38: 0 | BP38: 0 | BQ38: 1828479.346
A39: CLLV | B39: Large low Voltage | D39: 6300 | E39: 0 | F39: 2.33 | G39: 0 | H39: 0 | I39: 1.41 | J39: 0 | K39: 0 | L39: 0 | M39: 72.02 | N39: 0 | O39: 0 | P39: 0 | Q39: 0 | R39: 0 | S39: 0 | T39: 0 | U39: 0 | V39: 0 | W39: 0 | X39: 0 | Z39: 330.0289578 | AA39: 0 | AB39: 112861608.3 | AC39: 0 | AD39: 0 | AE39: 88751320.91 | AF39: 0 | AG39: 0 | AH39: 0 | AI39: 64648.71038 | AJ39: 0 | AK39: 0 | AL39: 0 | AM39: 0 | AN39: 0 | AO39: 0 | AP39: 0 | AQ39: 0 | AR39: 0 | AS39: 0 | AT39: 0 | AV39: 2079182.434 | AW39: 0 | AX39: 2629675.474 | AY39: 0 | AZ39: 0 | BA39: 1251393.625 | BB39: 0 | BC39: 0 | BD39: 0 | BE39: 4656000.122 | BF39: 0 | BG39: 0 | BH39: 0 | BI39: 0 | BJ39: 0 | BK39: 0 | BL39: 0 | BM39: 0 | BN39: 0 | BO39: 0 | BP39: 0 | BQ39: 10616251.66
A40: CLLVB | B40: Large low Voltage Bulk | D40: 5850 | E40: 0 | F40: 2.07 | G40: 0 | H40: 0 | I40: 1.29 | J40: 0 | K40: 0 | L40: 0 | M40: 64.82 | N40: 0 | O40: 0 | P40: 0 | Q40: 0 | R40: 0 | S40: 0 | T40: 0 | U40: 0 | V40: 0 | W40: 0 | X40: 0 | Z40: 1655.625824 | AA40: 0 | AB40: 1130104579 | AC40: 0 | AD40: 0 | AE40: 843930303.7 | AF40: 0 | AG40: 0 | AH40: 0 | AI40: 645709.6081 | AJ40: 0 | AK40: 0 | AL40: 0 | AM40: 0 | AN40: 0 | AO40: 0 | AP40: 0 | AQ40: 0 | AR40: 0 | AS40: 0 | AT40: 0 | AV40: 9685411.07 | AW40: 0 | AX40: 23393164.78 | AY40: 0 | AZ40: 0 | BA40: 10886700.92 | BB40: 0 | BC40: 0 | BD40: 0 | BE40: 41854896.79 | BF40: 0 | BG40: 0 | BH40: 0 | BI40: 0 | BJ40: 0 | BK40: 0 | BL40: 0 | BM40: 0 | BN40: 0 | BO40: 0 | BP40: 0 | BQ40: 85820173.56
A41: CHV | B41: High Voltage | D41: 31200 | E41: 0 | F41: 1.18 | G41: 0 | H41: 0 | I41: 0.61 | J41: 0 | K41: 0 | L41: 0 | M41: 33.44 | N41: 0 | O41: 0 | P41: 0 | Q41: 0 | R41: 0 | S41: 0 | T41: 0 | U41: 0 | V41: 0 | W41: 0 | X41: 0 | Z41: 90.98255371 | AA41: 0 | AB41: 343486676.7 | AC41: 0 | AD41: 0 | AE41: 320752044.2 | AF41: 0 | AG41: 0 | AH41: 0 | AI41: 198974.4461 | AJ41: 0 | AK41: 0 | AL41: 0 | AM41: 0 | AN41: 0 | AO41: 0 | AP41: 0 | AQ41: 0 | AR41: 0 | AS41: 0 | AT41: 0 | AV41: 2838655.676 | AW41: 0 | AX41: 4053142.785 | AY41: 0 | AZ41: 0 | BA41: 1956587.47 | BB41: 0 | BC41: 0 | BD41: 0 | BE41: 6653705.479 | BF41: 0 | BG41: 0 | BH41: 0 | BI41: 0 | BJ41: 0 | BK41: 0 | BL41: 0 | BM41: 0 | BN41: 0 | BO41: 0 | BP41: 0 | BQ41: 15502091.41
A42: CST | B42: Subtransmission | D42: 144000 | E42: 0 | F42: 0.1 | G42: 0 | H42: 0 | I42: 0.04 | J42: 0 | K42: 0 | L42: 0 | M42: 0.84 | N42: 0 | O42: 0 | P42: 0 | Q42: 0 | R42: 0 | S42: 0 | T42: 0 | U42: 0 | V42: 0 | W42: 0 | X42: 0 | Z42: 6 | AA42: 0 | AB42: 65598744.88 | AC42: 0 | AD42: 0 | AE42: 37964642.61 | AF42: 0 | AG42: 0 | AH42: 0 | AI42: 37371.68517 | AJ42: 0 | AK42: 0 | AL42: 0 | AM42: 0 | AN42: 0 | AO42: 0 | AP42: 0 | AQ42: 0 | AR42: 0 | AS42: 0 | AT42: 0 | AV42: 864000 | AW42: 0 | AX42: 65598.74488 | AY42: 0 | AZ42: 0 | BA42: 15185.85704 | BB42: 0 | BC42: 0 | BD42: 0 | BE42: 31392.21554 | BF42: 0 | BG42: 0 | BH42: 0 | BI42: 0 | BJ42: 0 | BK42: 0 | BL42: 0 | BM42: 0 | BN42: 0 | BO42: 0 | BP42: 0 | BQ42: 976176.8175
AV43: =D43*Z43 -> 0 | AW43: =E43/100*AA43 -> 0 | AX43: =F43/100*AB43 -> 0 | AY43: =G43/100*AC43 -> 0 | AZ43: =H43/100*AD43 -> 0 | BA43: =I43/100*AE43 -> 0 | BB43: =J43/100*AF43 -> 0 | BC43: =K43/100*AG43 -> 0 | BD43: =L43/100*AH43 -> 0 | BE43: =M43*AI43 -> 0 | BF43: =N43*AJ43 -> 0 | BG43: =O43*AK43 -> 0 | BH43: =P43*AL43 -> 0 | BI43: =Q43/100*AM43 -> 0 | BJ43: =R43/100*AN43 -> 0 | BK43: =S43/100*AO43 -> 0 | BL43: =T43/100*AP43 -> 0 | BM43: =U43/100*AQ43 -> 0 | BN43: =V43/100*AR43 -> 0 | BO43: =W43/100*AS43 -> 0 | BP43: =X43/100*AT43 -> 0 | BQ43: =SUM(AV43:BP43) -> 0
AV44: 0 | AW44: 0 | AX44: 0 | AY44: 0 | AZ44: 0 | BA44: 0 | BB44: 0 | BC44: 0 | BD44: 0 | BE44: 0 | BF44: 0 | BG44: 0 | BH44: 0 | BI44: 0 | BJ44: 0 | BK44: 0 | BL44: 0 | BM44: 0 | BN44: 0 | BO44: 0 | BP44: 0 | BQ44: 0
AV45: 0 | AW45: 0 | AX45: 0 | AY45: 0 | AZ45: 0 | BA45: 0 | BB45: 0 | BC45: 0 | BD45: 0 | BE45: 0 | BF45: 0 | BG45: 0 | BH45: 0 | BI45: 0 | BJ45: 0 | BK45: 0 | BL45: 0 | BM45: 0 | BN45: 0 | BO45: 0 | BP45: 0 | BQ45: 0
AV46: 0 | AW46: 0 | AX46: 0 | AY46: 0 | AZ46: 0 | BA46: 0 | BB46: 0 | BC46: 0 | BD46: 0 | BE46: 0 | BF46: 0 | BG46: 0 | BH46: 0 | BI46: 0 | BJ46: 0 | BK46: 0 | BL46: 0 | BM46: 0 | BN46: 0 | BO46: 0 | BP46: 0 | BQ46: 0
AV47: 0 | AW47: 0 | AX47: 0 | AY47: 0 | AZ47: 0 | BA47: 0 | BB47: 0 | BC47: 0 | BD47: 0 | BE47: 0 | BF47: 0 | BG47: 0 | BH47: 0 | BI47: 0 | BJ47: 0 | BK47: 0 | BL47: 0 | BM47: 0 | BN47: 0 | BO47: 0 | BP47: 0 | BQ47: 0
AV48: 0 | AW48: 0 | AX48: 0 | AY48: 0 | AZ48: 0 | BA48: 0 | BB48: 0 | BC48: 0 | BD48: 0 | BE48: 0 | BF48: 0 | BG48: 0 | BH48: 0 | BI48: 0 | BJ48: 0 | BK48: 0 | BL48: 0 | BM48: 0 | BN48: 0 | BO48: 0 | BP48: 0 | BQ48: 0
AV49: 0 | AW49: 0 | AX49: 0 | AY49: 0 | AZ49: 0 | BA49: 0 | BB49: 0 | BC49: 0 | BD49: 0 | BE49: 0 | BF49: 0 | BG49: 0 | BH49: 0 | BI49: 0 | BJ49: 0 | BK49: 0 | BL49: 0 | BM49: 0 | BN49: 0 | BO49: 0 | BP49: 0 | BQ49: 0
AV50: 0 | AW50: 0 | AX50: 0 | AY50: 0 | AZ50: 0 | BA50: 0 | BB50: 0 | BC50: 0 | BD50: 0 | BE50: 0 | BF50: 0 | BG50: 0 | BH50: 0 | BI50: 0 | BJ50: 0 | BK50: 0 | BL50: 0 | BM50: 0 | BN50: 0 | BO50: 0 | BP50: 0 | BQ50: 0
AV51: 0 | AW51: 0 | AX51: 0 | AY51: 0 | AZ51: 0 | BA51: 0 | BB51: 0 | BC51: 0 | BD51: 0 | BE51: 0 | BF51: 0 | BG51: 0 | BH51: 0 | BI51: 0 | BJ51: 0 | BK51: 0 | BL51: 0 | BM51: 0 | BN51: 0 | BO51: 0 | BP51: 0 | BQ51: 0
AV52: 0 | AW52: 0 | AX52: 0 | AY52: 0 | AZ52: 0 | BA52: 0 | BB52: 0 | BC52: 0 | BD52: 0 | BE52: 0 | BF52: 0 | BG52: 0 | BH52: 0 | BI52: 0 | BJ52: 0 | BK52: 0 | BL52: 0 | BM52: 0 | BN52: 0 | BO52: 0 | BP52: 0 | BQ52: 0
AV53: 0 | AW53: 0 | AX53: 0 | AY53: 0 | AZ53: 0 | BA53: 0 | BB53: 0 | BC53: 0 | BD53: 0 | BE53: 0 | BF53: 0 | BG53: 0 | BH53: 0 | BI53: 0 | BJ53: 0 | BK53: 0 | BL53: 0 | BM53: 0 | BN53: 0 | BO53: 0 | BP53: 0 | BQ53: 0
AV54: 0 | AW54: 0 | AX54: 0 | AY54: 0 | AZ54: 0 | BA54: 0 | BB54: 0 | BC54: 0 | BD54: 0 | BE54: 0 | BF54: 0 | BG54: 0 | BH54: 0 | BI54: 0 | BJ54: 0 | BK54: 0 | BL54: 0 | BM54: 0 | BN54: 0 | BO54: 0 | BP54: 0 | BQ54: 0
AV55: 0 | AW55: 0 | AX55: 0 | AY55: 0 | AZ55: 0 | BA55: 0 | BB55: 0 | BC55: 0 | BD55: 0 | BE55: 0 | BF55: 0 | BG55: 0 | BH55: 0 | BI55: 0 | BJ55: 0 | BK55: 0 | BL55: 0 | BM55: 0 | BN55: 0 | BO55: 0 | BP55: 0 | BQ55: 0
AV56: 0 | AW56: 0 | AX56: 0 | AY56: 0 | AZ56: 0 | BA56: 0 | BB56: 0 | BC56: 0 | BD56: 0 | BE56: 0 | BF56: 0 | BG56: 0 | BH56: 0 | BI56: 0 | BJ56: 0 | BK56: 0 | BL56: 0 | BM56: 0 | BN56: 0 | BO56: 0 | BP56: 0 | BQ56: 0
AV57: 0 | AW57: 0 | AX57: 0 | AY57: 0 | AZ57: 0 | BA57: 0 | BB57: 0 | BC57: 0 | BD57: 0 | BE57: 0 | BF57: 0 | BG57: 0 | BH57: 0 | BI57: 0 | BJ57: 0 | BK57: 0 | BL57: 0 | BM57: 0 | BN57: 0 | BO57: 0 | BP57: 0 | BQ57: 0
AV58: 0 | AW58: 0 | AX58: 0 | AY58: 0 | AZ58: 0 | BA58: 0 | BB58: 0 | BC58: 0 | BD58: 0 | BE58: 0 | BF58: 0 | BG58: 0 | BH58: 0 | BI58: 0 | BJ58: 0 | BK58: 0 | BL58: 0 | BM58: 0 | BN58: 0 | BO58: 0 | BP58: 0 | BQ58: 0
AV59: 0 | AW59: 0 | AX59: 0 | AY59: 0 | AZ59: 0 | BA59: 0 | BB59: 0 | BC59: 0 | BD59: 0 | BE59: 0 | BF59: 0 | BG59: 0 | BH59: 0 | BI59: 0 | BJ59: 0 | BK59: 0 | BL59: 0 | BM59: 0 | BN59: 0 | BO59: 0 | BP59: 0 | BQ59: 0
AV60: 0 | AW60: 0 | AX60: 0 | AY60: 0 | AZ60: 0 | BA60: 0 | BB60: 0 | BC60: 0 | BD60: 0 | BE60: 0 | BF60: 0 | BG60: 0 | BH60: 0 | BI60: 0 | BJ60: 0 | BK60: 0 | BL60: 0 | BM60: 0 | BN60: 0 | BO60: 0 | BP60: 0 | BQ60: 0
AV61: 0 | AW61: 0 | AX61: 0 | AY61: 0 | AZ61: 0 | BA61: 0 | BB61: 0 | BC61: 0 | BD61: 0 | BE61: 0 | BF61: 0 | BG61: 0 | BH61: 0 | BI61: 0 | BJ61: 0 | BK61: 0 | BL61: 0 | BM61: 0 | BN61: 0 | BO61: 0 | BP61: 0 | BQ61: 0
AV62: 0 | AW62: 0 | AX62: 0 | AY62: 0 | AZ62: 0 | BA62: 0 | BB62: 0 | BC62: 0 | BD62: 0 | BE62: 0 | BF62: 0 | BG62: 0 | BH62: 0 | BI62: 0 | BJ62: 0 | BK62: 0 | BL62: 0 | BM62: 0 | BN62: 0 | BO62: 0 | BP62: 0 | BQ62: 0
AV63: 0 | AW63: 0 | AX63: 0 | AY63: 0 | AZ63: 0 | BA63: 0 | BB63: 0 | BC63: 0 | BD63: 0 | BE63: 0 | BF63: 0 | BG63: 0 | BH63: 0 | BI63: 0 | BJ63: 0 | BK63: 0 | BL63: 0 | BM63: 0 | BN63: 0 | BO63: 0 | BP63: 0 | BQ63: 0
AV64: 0 | AW64: 0 | AX64: 0 | AY64: 0 | AZ64: 0 | BA64: 0 | BB64: 0 | BC64: 0 | BD64: 0 | BE64: 0 | BF64: 0 | BG64: 0 | BH64: 0 | BI64: 0 | BJ64: 0 | BK64: 0 | BL64: 0 | BM64: 0 | BN64: 0 | BO64: 0 | BP64: 0 | BQ64: 0
AV65: 0 | AW65: 0 | AX65: 0 | AY65: 0 | AZ65: 0 | BA65: 0 | BB65: 0 | BC65: 0 | BD65: 0 | BE65: 0 | BF65: 0 | BG65: 0 | BH65: 0 | BI65: 0 | BJ65: 0 | BK65: 0 | BL65: 0 | BM65: 0 | BN65: 0 | BO65: 0 | BP65: 0 | BQ65: 0
Z66: =SUM(Z6:Z65) -> 365938.9172 | AA66: 1235940224 | AB66: 2661223693 | AC66: 0 | AD66: 0 | AE66: 1998672957 | AF66: 0 | AG66: 0 | AH66: 0 | AI66: 946704.4498 | AJ66: 0 | AK66: 1288686.208 | AL66: 2176828.854 | AM66: =SUM(AM6:AM65) -> 278510.9224 | AN66: 467168.7957 | AO66: 364966.7329 | AP66: 0 | AQ66: 1013688.288 | AR66: 1670241.188 | AS66: 1299163.21 | AT66: 0 | AV66: =SUM(AV6:AV65) -> 49396893.48 | AW66: 59483029.49 | AX66: 92817919.2 | AY66: 0 | AZ66: 0 | BA66: 32264266.11 | BB66: 0 | BC66: 0 | BD66: 0 | BE66: 53195994.61 | BF66: 0 | BG66: 3163260.939 | BH66: 2693789.373 | BI66: 30094.47142 | BJ66: 34046.42919 | BK66: 10474.05022 | BL66: 0 | BM66: 109621.8729 | BN66: 121727.846 | BO66: 37269.0956 | BP66: 0 | BQ66: 293358387

Sheet Prop2019TransTar
B1: ="Tariff Approval - "&'Model update'!C3 -> Tariff Approval - CitiPower
B3: ="PROPOSED "&'Model update'!$C$5&" TRANSMISSION TARIFFS" -> PROPOSED 2019 TRANSMISSION TARIFFS
D4: ="Proposed Transmission Tariffs (Pt) for "&'Model update'!$C$5 -> Proposed Transmission Tariffs (Pt) for 2019 | Z4: ="Forecast Quantities (Qt) for "&'Model update'!$C$5 -> Forecast Quantities (Qt) for 2019 | AV4: ="Forecast Revenue (Pt "&'Model update'!$C$5&")*(Qt " &'Model update'!$C$5&")" -> Forecast Revenue (Pt 2019)*(Qt 2019)
B5: Proposed tariff | D5: =Prop2019DistTar!D5 -> PropTar Fixed | E5: =Prop2019DistTar!E5 -> PropTar Anytime | F5: =Prop2019DistTar!F5 -> PropTar PkBlk | I5: =Prop2019DistTar!I5 -> PropTar OPkBlk1 | M5: =Prop2019DistTar!M5 -> PropTar Dem kVA | N5: =Prop2019DistTar!N5 -> PropTar Dem kW | O5: =Prop2019DistTar!O5 -> PropTar Dem kW Sum | P5: =Prop2019DistTar!P5 -> PropTar Dem kW Win | Q5: =Prop2019DistTar!Q5 -> PropTar SumBlk1 | R5: =Prop2019DistTar!R5 -> PropTar SumBlk2 | S5: =Prop2019DistTar!S5 -> PropTar SumBlk3 | U5: =Prop2019DistTar!U5 -> PropTar WtrBlk1 | V5: =Prop2019DistTar!V5 -> PropTar WtrBlk2 | W5: =Prop2019DistTar!W5 -> PropTar WtrBlk3 | Z5: =Prop2019DistTar!AV5 -> FcastVol Fixed | AA5: =Prop2019DistTar!AW5 -> FcastVol Anytime | AB5: =Prop2019DistTar!AX5 -> FcastVol Pk | AE5: =Prop2019DistTar!BA5 -> FcastVol Opk | AI5: =Prop2019DistTar!BE5 -> FcastVol Dem kVA | AJ5: =Prop2019DistTar!BF5 -> FcastVol Dem kW | AK5: =Prop2019DistTar!BG5 -> FcastVol Dem kW Sum | AL5: =Prop2019DistTar!BH5 -> FcastVol Dem kW Win | AM5: =Prop2019DistTar!BI5 -> FcastVol SumBlk1 | AN5: =Prop2019DistTar!BJ5 -> FcastVol SumBlk2 | AO5: =Prop2019DistTar!BK5 -> FcastVol SumBlk3 | AQ5: =Prop2019DistTar!BM5 -> FcastVol WtrBlk1 | AR5: =Prop2019DistTar!BN5 -> FcastVol WtrBlk2 | AS5: =Prop2019DistTar!BO5 -> FcastVol WtrBlk3 | AV5: =Prop2019DistTar!BR5 -> PropRev Fixed | AW5: =Prop2019DistTar!BS5 -> PropRev Anytime | AX5: =Prop2019DistTar!BT5 -> PropRev Pk | BA5: =Prop2019DistTar!BW5 -> PropRev Opk | BE5: =Prop2019DistTar!CA5 -> PropRev Dem kVA | BF5: =Prop2019DistTar!CB5 -> PropRev Dem kW | BG5: =Prop2019DistTar!CC5 -> PropRev Dem kW Sum | BH5: =Prop2019DistTar!CD5 -> PropRev Dem kW Win | BI5: =Prop2019DistTar!CE5 -> PropRev SumBlk1 | BJ5: =Prop2019DistTar!CF5 -> PropRev SumBlk2 | BK5: =Prop2019DistTar!CG5 -> PropRev SumBlk3 | BM5: =Prop2019DistTar!CI5 -> PropRev WtrBlk1 | BN5: =Prop2019DistTar!CJ5 -> PropRev WtrBlk2 | BO5: =Prop2019DistTar!CK5 -> PropRev WtrBlk3 | BQ5: =Prop2019DistTar!CM5 -> PropRev Total
AV6: =D6*Z6 -> 0 | AW6: =E6/100*AA6 -> 0 | AX6: 0 | AY6: 0 | AZ6: 0 | BA6: 0 | BB6: 0 | BC6: 0 | BD6: 0 | BE6: =M6*AI6 -> 0 | BF6: 0 | BG6: 0 | BH6: 0 | BI6: =Q6/100*AM6 -> 0 | BJ6: 0 | BK6: 0 | BL6: 0 | BM6: 0 | BN6: 0 | BO6: 0 | BP6: 0 | BQ6: =SUM(AV6:BP6) -> 0
B7: =Prop2019DistTar!B7 -> Residential Single Rate | D7: 0 | E7: 1.82 | F7: 0 | G7: 0 | H7: 0 | I7: 0 | J7: 0 | K7: 0 | L7: 0 | M7: 0 | N7: 0 | O7: 0 | P7: 0 | Q7: 0 | R7: 0 | S7: 0 | T7: 0 | U7: 0 | V7: 0 | W7: 0 | X7: 0 | Z7: =Prop2019DistTar!AV7 -> 205044.5 | AA7: =Prop2019DistTar!AW7 -> 853857291.2 | AB7: =Prop2019DistTar!AX7 -> 0 | AC7: =Prop2019DistTar!AY7 -> 0 | AD7: =Prop2019DistTar!AZ7 -> 0 | AE7: =Prop2019DistTar!BA7 -> 0 | AF7: =Prop2019DistTar!BB7 -> 0 | AG7: =Prop2019DistTar!BC7 -> 0 | AH7: =Prop2019DistTar!BD7 -> 0 | AI7: =Prop2019DistTar!BE7 -> 0 | AJ7: =Prop2019DistTar!BF7 -> 0 | AK7: =Prop2019DistTar!BG7 -> 0 | AL7: =Prop2019DistTar!BH7 -> 0 | AM7: =Prop2019DistTar!BI7 -> 0 | AN7: =Prop2019DistTar!BJ7 -> 0 | AO7: =Prop2019DistTar!BK7 -> 0 | AP7: =Prop2019DistTar!BL7 -> 0 | AQ7: =Prop2019DistTar!BM7 -> 0 | AR7: =Prop2019DistTar!BN7 -> 0 | AS7: =Prop2019DistTar!BO7 -> 0 | AT7: =Prop2019DistTar!BP7 -> 0 | AV7: =D7*Z7 -> 0 | AW7: =E7/100*AA7 -> 15540202.7 | AX7: =F7/100*AB7 -> 0 | AY7: =G7/100*AC7 -> 0 | AZ7: =H7/100*AD7 -> 0 | BA7: =I7/100*AE7 -> 0 | BB7: =J7/100*AF7 -> 0 | BC7: =K7/100*AG7 -> 0 | BD7: =L7/100*AH7 -> 0 | BE7: =M7*AI7 -> 0 | BF7: =N7*AJ7 -> 0 | BG7: =O7*AK7 -> 0 | BH7: =P7*AL7 -> 0 | BI7: =Q7/100*AM7 -> 0 | BJ7: =R7/100*AN7 -> 0 | BK7: =S7/100*AO7 -> 0 | BL7: =T7/100*AP7 -> 0 | BM7: =U7/100*AQ7 -> 0 | BN7: =V7/100*AR7 -> 0 | BO7: =W7/100*AS7 -> 0 | BP7: =X7/100*AT7 -> 0 | BQ7: =SUM(AV7:BP7) -> 15540202.7
B8: =Prop2019DistTar!B8 -> Residential Single Rate - Bulk | D8: 0 | E8: 0.84 | F8: 0 | G8: 0 | H8: 0 | I8: 0 | J8: 0 | K8: 0 | L8: 0 | M8: 0 | N8: 0 | O8: 0 | P8: 0 | Q8: 0 | R8: 0 | S8: 0 | T8: 0 | U8: 0 | V8: 0 | W8: 0 | X8: 0 | Z8: =Prop2019DistTar!AV8 -> 31480.91667 | AA8: =Prop2019DistTar!AW8 -> 106631799.4 | AB8: =Prop2019DistTar!AX8 -> 0 | AC8: =Prop2019DistTar!AY8 -> 0 | AD8: =Prop2019DistTar!AZ8 -> 0 | AE8: =Prop2019DistTar!BA8 -> 0 | AF8: =Prop2019DistTar!BB8 -> 0 | AG8: =Prop2019DistTar!BC8 -> 0 | AH8: =Prop2019DistTar!BD8 -> 0 | AI8: =Prop2019DistTar!BE8 -> 0 | AJ8: =Prop2019DistTar!BF8 -> 0 | AK8: =Prop2019DistTar!BG8 -> 0 | AL8: =Prop2019DistTar!BH8 -> 0 | AM8: =Prop2019DistTar!BI8 -> 0 | AN8: =Prop2019DistTar!BJ8 -> 0 | AO8: =Prop2019DistTar!BK8 -> 0 | AP8: =Prop2019DistTar!BL8 -> 0 | AQ8: =Prop2019DistTar!BM8 -> 0 | AR8: =Prop2019DistTar!BN8 -> 0 | AS8: =Prop2019DistTar!BO8 -> 0 | AT8: =Prop2019DistTar!BP8 -> 0 | AV8: 0 | AW8: 895707.115 | AX8: 0 | AY8: 0 | AZ8: 0 | BA8: 0 | BB8: 0 | BC8: 0 | BD8: 0 | BE8: 0 | BF8: 0 | BG8: 0 | BH8: 0 | BI8: 0 | BJ8: 0 | BK8: 0 | BL8: 0 | BM8: 0 | BN8: 0 | BO8: 0 | BP8: 0 | BQ8: 895707.115
B9: =Prop2019DistTar!B9 -> Residential - flexible pricing | D9: 0 | E9: 0 | F9: 0 | G9: 0 | H9: 0 | I9: 0 | J9: 0 | K9: 0 | L9: 0 | M9: 0 | N9: 0 | O9: 0 | P9: 0 | Q9: 2.17 | R9: 1.46 | S9: 0.57 | T9: 0 | U9: 2.17 | V9: 1.46 | W9: 0.57 | X9: 0 | Z9: =Prop2019DistTar!AV9 -> 693.4166667 | AA9: =Prop2019DistTar!AW9 -> 0 | AB9: =Prop2019DistTar!AX9 -> 0 | AC9: =Prop2019DistTar!AY9 -> 0 | AD9: =Prop2019DistTar!AZ9 -> 0 | AE9: =Prop2019DistTar!BA9 -> 0 | AF9: =Prop2019DistTar!BB9 -> 0 | AG9: =Prop2019DistTar!BC9 -> 0 | AH9: =Prop2019DistTar!BD9 -> 0 | AI9: =Prop2019DistTar!BE9 -> 0 | AJ9: =Prop2019DistTar!BF9 -> 0 | AK9: =Prop2019DistTar!BG9 -> 0 | AL9: =Prop2019DistTar!BH9 -> 0 | AM9: =Prop2019DistTar!BI9 -> 205405.5214 | AN9: =Prop2019DistTar!BJ9 -> 427210.1542 | AO9: =Prop2019DistTar!BK9 -> 316794.3387 | AP9: =Prop2019DistTar!BL9 -> 0 | AQ9: =Prop2019DistTar!BM9 -> 740099.6911 | AR9: =Prop2019DistTar!BN9 -> 1539287.265 | AS9: =Prop2019DistTar!BO9 -> 1141446.396 | AT9: =Prop2019DistTar!BP9 -> 0 | AV9: 0 | AW9: 0 | AX9: 0 | AY9: 0 | AZ9: 0 | BA9: 0 | BB9: 0 | BC9: 0 | BD9: 0 | BE9: 0 | BF9: 0 | BG9: 0 | BH9: 0 | BI9: 4457.299814 | BJ9: 6237.268252 | BK9: 1805.727731 | BL9: 0 | BM9: 16060.1633 | BN9: 22473.59406 | BO9: 6506.24446 | BP9: 0 | BQ9: 57540.29762
B10: =Prop2019DistTar!B10 -> Residential - flexible pricing bulk | D10: 0 | E10: 0 | F10: 0 | G10: 0 | H10: 0 | I10: 0 | J10: 0 | K10: 0 | L10: 0 | M10: 0 | N10: 0 | O10: 0 | P10: 0 | Q10: 1.82 | R10: 1.22 | S10: 0.48 | T10: 0 | U10: 1.82 | V10: 1.22 | W10: 0.48 | X10: 0 | Z10: =Prop2019DistTar!AV10 -> 90 | AA10: =Prop2019DistTar!AW10 -> 0 | AB10: =Prop2019DistTar!AX10 -> 0 | AC10: =Prop2019DistTar!AY10 -> 0 | AD10: =Prop2019DistTar!AZ10 -> 0 | AE10: =Prop2019DistTar!BA10 -> 0 | AF10: =Prop2019DistTar!BB10 -> 0 | AG10: =Prop2019DistTar!BC10 -> 0 | AH10: =Prop2019DistTar!BD10 -> 0 | AI10: =Prop2019DistTar!BE10 -> 0 | AJ10: =Prop2019DistTar!BF10 -> 0 | AK10: =Prop2019DistTar!BG10 -> 0 | AL10: =Prop2019DistTar!BH10 -> 0 | AM10: =Prop2019DistTar!BI10 -> 15231.12129 | AN10: =Prop2019DistTar!BJ10 -> 32311.93005 | AO10: =Prop2019DistTar!BK10 -> 23662.58093 | AP10: =Prop2019DistTar!BL10 -> 0 | AQ10: =Prop2019DistTar!BM10 -> 55378.7842 | AR10: =Prop2019DistTar!BN10 -> 117482.841 | AS10: =Prop2019DistTar!BO10 -> 86034.70078 | AT10: =Prop2019DistTar!BP10 -> 0 | AV10: 0 | AW10: 0 | AX10: 0 | AY10: 0 | AZ10: 0 | BA10: 0 | BB10: 0 | BC10: 0 | BD10: 0 | BE10: 0 | BF10: 0 | BG10: 0 | BH10: 0 | BI10: 277.2064075 | BJ10: 394.2055466 | BK10: 113.5803885 | BL10: 0 | BM10: 1007.893872 | BN10: 1433.29066 | BO10: 412.9665638 | BP10: 0 | BQ10: 3639.143439
B11: =Prop2019DistTar!B11 -> Residential Two Rate 5d | D11: 0 | E11: 0 | F11: 1.95 | G11: 0 | H11: 0 | I11: 0.46 | J11: 0 | K11: 0 | L11: 0 | M11: 0 | N11: 0 | O11: 0 | P11: 0 | Q11: 0 | R11: 0 | S11: 0 | T11: 0 | U11: 0 | V11: 0 | W11: 0 | X11: 0 | Z11: =Prop2019DistTar!AV11 -> 10820.08333 | AA11: =Prop2019DistTar!AW11 -> 0 | AB11: =Prop2019DistTar!AX11 -> 35024034.5 | AC11: =Prop2019DistTar!AY11 -> 0 | AD11: =Prop2019DistTar!AZ11 -> 0 | AE11: =Prop2019DistTar!BA11 -> 30157186.27 | AF11: =Prop2019DistTar!BB11 -> 0 | AG11: =Prop2019DistTar!BC11 -> 0 | AH11: =Prop2019DistTar!BD11 -> 0 | AI11: =Prop2019DistTar!BE11 -> 0 | AJ11: =Prop2019DistTar!BF11 -> 0 | AK11: =Prop2019DistTar!BG11 -> 0 | AL11: =Prop2019DistTar!BH11 -> 0 | AM11: =Prop2019DistTar!BI11 -> 0 | AN11: =Prop2019DistTar!BJ11 -> 0 | AO11: =Prop2019DistTar!BK11 -> 0 | AP11: =Prop2019DistTar!BL11 -> 0 | AQ11: =Prop2019DistTar!BM11 -> 0 | AR11: =Prop2019DistTar!BN11 -> 0 | AS11: =Prop2019DistTar!BO11 -> 0 | AT11: =Prop2019DistTar!BP11 -> 0 | AV11: 0 | AW11: 0 | AX11: 682968.6728 | AY11: 0 | AZ11: 0 | BA11: 138723.0569 | BB11: 0 | BC11: 0 | BD11: 0 | BE11: 0 | BF11: 0 | BG11: 0 | BH11: 0 | BI11: 0 | BJ11: 0 | BK11: 0 | BL11: 0 | BM11: 0 | BN11: 0 | BO11: 0 | BP11: 0 | BQ11: 821691.7297
B12: =Prop2019DistTar!B12 -> Residential Two Rate 5d - Bulk | D12: 0 | E12: 0 | F12: 1.72 | G12: 0 | H12: 0 | I12: 0.43 | J12: 0 | K12: 0 | L12: 0 | M12: 0 | N12: 0 | O12: 0 | P12: 0 | Q12: 0 | R12: 0 | S12: 0 | T12: 0 | U12: 0 | V12: 0 | W12: 0 | X12: 0 | Z12: =Prop2019DistTar!AV12 -> 4352.5 | AA12: =Prop2019DistTar!AW12 -> 0 | AB12: =Prop2019DistTar!AX12 -> 12294584.52 | AC12: =Prop2019DistTar!AY12 -> 0 | AD12: =Prop2019DistTar!AZ12 -> 0 | AE12: =Prop2019DistTar!BA12 -> 10585730.05 | AF12: =Prop2019DistTar!BB12 -> 0 | AG12: =Prop2019DistTar!BC12 -> 0 | AH12: =Prop2019DistTar!BD12 -> 0 | AI12: =Prop2019DistTar!BE12 -> 0 | AJ12: =Prop2019DistTar!BF12 -> 0 | AK12: =Prop2019DistTar!BG12 -> 0 | AL12: =Prop2019DistTar!BH12 -> 0 | AM12: =Prop2019DistTar!BI12 -> 0 | AN12: =Prop2019DistTar!BJ12 -> 0 | AO12: =Prop2019DistTar!BK12 -> 0 | AP12: =Prop2019DistTar!BL12 -> 0 | AQ12: =Prop2019DistTar!BM12 -> 0 | AR12: =Prop2019DistTar!BN12 -> 0 | AS12: =Prop2019DistTar!BO12 -> 0 | AT12: =Prop2019DistTar!BP12 -> 0 | AV12: 0 | AW12: 0 | AX12: 211466.8538 | AY12: 0 | AZ12: 0 | BA12: 45518.6392 | BB12: 0 | BC12: 0 | BD12: 0 | BE12: 0 | BF12: 0 | BG12: 0 | BH12: 0 | BI12: 0 | BJ12: 0 | BK12: 0 | BL12: 0 | BM12: 0 | BN12: 0 | BO12: 0 | BP12: 0 | BQ12: 256985.493
B13: =Prop2019DistTar!B13 -> Residential Interval | D13: 0 | E13: 0 | F13: 1.95 | G13: 0 | H13: 0 | I13: 0.46 | J13: 0 | K13: 0 | L13: 0 | M13: 0 | N13: 0 | O13: 0 | P13: 0 | Q13: 0 | R13: 0 | S13: 0 | T13: 0 | U13: 0 | V13: 0 | W13: 0 | X13: 0 | Z13: =Prop2019DistTar!AV13 -> 17057.16667 | AA13: =Prop2019DistTar!AW13 -> 0 | AB13: =Prop2019DistTar!AX13 -> 60669728.28 | AC13: =Prop2019DistTar!AY13 -> 0 | AD13: =Prop2019DistTar!AZ13 -> 0 | AE13: =Prop2019DistTar!BA13 -> 52545941.86 | AF13: =Prop2019DistTar!BB13 -> 0 | AG13: =Prop2019DistTar!BC13 -> 0 | AH13: =Prop2019DistTar!BD13 -> 0 | AI13: =Prop2019DistTar!BE13 -> 0 | AJ13: =Prop2019DistTar!BF13 -> 0 | AK13: =Prop2019DistTar!BG13 -> 0 | AL13: =Prop2019DistTar!BH13 -> 0 | AM13: =Prop2019DistTar!BI13 -> 0 | AN13: =Prop2019DistTar!BJ13 -> 0 | AO13: =Prop2019DistTar!BK13 -> 0 | AP13: =Prop2019DistTar!BL13 -> 0 | AQ13: =Prop2019DistTar!BM13 -> 0 | AR13: =Prop2019DistTar!BN13 -> 0 | AS13: =Prop2019DistTar!BO13 -> 0 | AT13: =Prop2019DistTar!BP13 -> 0 | AV13: 0 | AW13: 0 | AX13: 1183059.701 | AY13: 0 | AZ13: 0 | BA13: 241711.3325 | BB13: 0 | BC13: 0 | BD13: 0 | BE13: 0 | BF13: 0 | BG13: 0 | BH13: 0 | BI13: 0 | BJ13: 0 | BK13: 0 | BL13: 0 | BM13: 0 | BN13: 0 | BO13: 0 | BP13: 0 | BQ13: 1424771.034
B14: =Prop2019DistTar!B14 -> Residential Interval - Bulk | D14: 0 | E14: 0 | F14: 1.72 | G14: 0 | H14: 0 | I14: 0.43 | J14: 0 | K14: 0 | L14: 0 | M14: 0 | N14: 0 | O14: 0 | P14: 0 | Q14: 0 | R14: 0 | S14: 0 | T14: 0 | U14: 0 | V14: 0 | W14: 0 | X14: 0 | Z14: =Prop2019DistTar!AV14 -> 8658 | AA14: =Prop2019DistTar!AW14 -> 0 | AB14: =Prop2019DistTar!AX14 -> 15600572.12 | AC14: =Prop2019DistTar!AY14 -> 0 | AD14: =Prop2019DistTar!AZ14 -> 0 | AE14: =Prop2019DistTar!BA14 -> 14572772.14 | AF14: =Prop2019DistTar!BB14 -> 0 | AG14: =Prop2019DistTar!BC14 -> 0 | AH14: =Prop2019DistTar!BD14 -> 0 | AI14: =Prop2019DistTar!BE14 -> 0 | AJ14: =Prop2019DistTar!BF14 -> 0 | AK14: =Prop2019DistTar!BG14 -> 0 | AL14: =Prop2019DistTar!BH14 -> 0 | AM14: =Prop2019DistTar!BI14 -> 0 | AN14: =Prop2019DistTar!BJ14 -> 0 | AO14: =Prop2019DistTar!BK14 -> 0 | AP14: =Prop2019DistTar!BL14 -> 0 | AQ14: =Prop2019DistTar!BM14 -> 0 | AR14: =Prop2019DistTar!BN14 -> 0 | AS14: =Prop2019DistTar!BO14 -> 0 | AT14: =Prop2019DistTar!BP14 -> 0 | AV14: 0 | AW14: 0 | AX14: 268329.8404 | AY14: 0 | AZ14: 0 | BA14: 62662.92021 | BB14: 0 | BC14: 0 | BD14: 0 | BE14: 0 | BF14: 0 | BG14: 0 | BH14: 0 | BI14: 0 | BJ14: 0 | BK14: 0 | BL14: 0 | BM14: 0 | BN14: 0 | BO14: 0 | BP14: 0 | BQ14: 330992.7607
B15: =Prop2019DistTar!B15 -> Residential Two Rate 5d - Controlled Load | D15: 0 | E15: 0 | F15: 0 | G15: 0 | H15: 0 | I15: 0.35 | J15: 0 | K15: 0 | L15: 0 | M15: 0 | N15: 0 | O15: 0 | P15: 0 | Q15: 0 | R15: 0 | S15: 0 | T15: 0 | U15: 0 | V15: 0 | W15: 0 | X15: 0 | Z15: =Prop2019DistTar!AV15 -> 9732.666667 | AA15: =Prop2019DistTar!AW15 -> 0 | AB15: =Prop2019DistTar!AX15 -> 0 | AC15: =Prop2019DistTar!AY15 -> 0 | AD15: =Prop2019DistTar!AZ15 -> 0 | AE15: =Prop2019DistTar!BA15 -> 19246331.24 | AF15: =Prop2019DistTar!BB15 -> 0 | AG15: =Prop2019DistTar!BC15 -> 0 | AH15: =Prop2019DistTar!BD15 -> 0 | AI15: =Prop2019DistTar!BE15 -> 0 | AJ15: =Prop2019DistTar!BF15 -> 0 | AK15: =Prop2019DistTar!BG15 -> 0 | AL15: =Prop2019DistTar!BH15 -> 0 | AM15: =Prop2019DistTar!BI15 -> 0 | AN15: =Prop2019DistTar!BJ15 -> 0 | AO15: =Prop2019DistTar!BK15 -> 0 | AP15: =Prop2019DistTar!BL15 -> 0 | AQ15: =Prop2019DistTar!BM15 -> 0 | AR15: =Prop2019DistTar!BN15 -> 0 | AS15: =Prop2019DistTar!BO15 -> 0 | AT15: =Prop2019DistTar!BP15 -> 0 | AV15: 0 | AW15: 0 | AX15: 0 | AY15: 0 | AZ15: 0 | BA15: 67362.15933 | BB15: 0 | BC15: 0 | BD15: 0 | BE15: 0 | BF15: 0 | BG15: 0 | BH15: 0 | BI15: 0 | BJ15: 0 | BK15: 0 | BL15: 0 | BM15: 0 | BN15: 0 | BO15: 0 | BP15: 0 | BQ15: 67362.15933
B16: =Prop2019DistTar!B16 -> Residential Two Rate 5d - Bulk - Controlled Load | D16: 0 | E16: 0 | F16: 0 | G16: 0 | H16: 0 | I16: 0.29 | J16: 0 | K16: 0 | L16: 0 | M16: 0 | N16: 0 | O16: 0 | P16: 0 | Q16: 0 | R16: 0 | S16: 0 | T16: 0 | U16: 0 | V16: 0 | W16: 0 | X16: 0 | Z16: =Prop2019DistTar!AV16 -> 3683.833333 | AA16: =Prop2019DistTar!AW16 -> 0 | AB16: =Prop2019DistTar!AX16 -> 0 | AC16: =Prop2019DistTar!AY16 -> 0 | AD16: =Prop2019DistTar!AZ16 -> 0 | AE16: =Prop2019DistTar!BA16 -> 7176762.317 | AF16: =Prop2019DistTar!BB16 -> 0 | AG16: =Prop2019DistTar!BC16 -> 0 | AH16: =Prop2019DistTar!BD16 -> 0 | AI16: =Prop2019DistTar!BE16 -> 0 | AJ16: =Prop2019DistTar!BF16 -> 0 | AK16: =Prop2019DistTar!BG16 -> 0 | AL16: =Prop2019DistTar!BH16 -> 0 | AM16: =Prop2019DistTar!BI16 -> 0 | AN16: =Prop2019DistTar!BJ16 -> 0 | AO16: =Prop2019DistTar!BK16 -> 0 | AP16: =Prop2019DistTar!BL16 -> 0 | AQ16: =Prop2019DistTar!BM16 -> 0 | AR16: =Prop2019DistTar!BN16 -> 0 | AS16: =Prop2019DistTar!BO16 -> 0 | AT16: =Prop2019DistTar!BP16 -> 0 | AV16: 0 | AW16: 0 | AX16: 0 | AY16: 0 | AZ16: 0 | BA16: 20812.61072 | BB16: 0 | BC16: 0 | BD16: 0 | BE16: 0 | BF16: 0 | BG16: 0 | BH16: 0 | BI16: 0 | BJ16: 0 | BK16: 0 | BL16: 0 | BM16: 0 | BN16: 0 | BO16: 0 | BP16: 0 | BQ16: 20812.61072
B17: =Prop2019DistTar!B17 -> Dedicated Circuit | D17: 0 | E17: 0 | F17: 0 | G17: 0 | H17: 0 | I17: 0.35 | J17: 0 | K17: 0 | L17: 0 | M17: 0 | N17: 0 | O17: 0 | P17: 0 | Q17: 0 | R17: 0 | S17: 0 | T17: 0 | U17: 0 | V17: 0 | W17: 0 | X17: 0 | Z17: =Prop2019DistTar!AV17 -> 22825.5 | AA17: =Prop2019DistTar!AW17 -> 0 | AB17: =Prop2019DistTar!AX17 -> 0 | AC17: =Prop2019DistTar!AY17 -> 0 | AD17: =Prop2019DistTar!AZ17 -> 0 | AE17: =Prop2019DistTar!BA17 -> 31802481.57 | AF17: =Prop2019DistTar!BB17 -> 0 | AG17: =Prop2019DistTar!BC17 -> 0 | AH17: =Prop2019DistTar!BD17 -> 0 | AI17: =Prop2019DistTar!BE17 -> 0 | AJ17: =Prop2019DistTar!BF17 -> 0 | AK17: =Prop2019DistTar!BG17 -> 0 | AL17: =Prop2019DistTar!BH17 -> 0 | AM17: =Prop2019DistTar!BI17 -> 0 | AN17: =Prop2019DistTar!BJ17 -> 0 | AO17: =Prop2019DistTar!BK17 -> 0 | AP17: =Prop2019DistTar!BL17 -> 0 | AQ17: =Prop2019DistTar!BM17 -> 0 | AR17: =Prop2019DistTar!BN17 -> 0 | AS17: =Prop2019DistTar!BO17 -> 0 | AT17: =Prop2019DistTar!BP17 -> 0 | AV17: 0 | AW17: 0 | AX17: 0 | AY17: 0 | AZ17: 0 | BA17: 111308.6855 | BB17: 0 | BC17: 0 | BD17: 0 | BE17: 0 | BF17: 0 | BG17: 0 | BH17: 0 | BI17: 0 | BJ17: 0 | BK17: 0 | BL17: 0 | BM17: 0 | BN17: 0 | BO17: 0 | BP17: 0 | BQ17: 111308.6855
B18: =Prop2019DistTar!B18 -> Dedicated Circuit - Bulk | D18: 0 | E18: 0 | F18: 0 | G18: 0 | H18: 0 | I18: 0.29 | J18: 0 | K18: 0 | L18: 0 | M18: 0 | N18: 0 | O18: 0 | P18: 0 | Q18: 0 | R18: 0 | S18: 0 | T18: 0 | U18: 0 | V18: 0 | W18: 0 | X18: 0 | Z18: =Prop2019DistTar!AV18 -> 1105.583333 | AA18: =Prop2019DistTar!AW18 -> 0 | AB18: =Prop2019DistTar!AX18 -> 0 | AC18: =Prop2019DistTar!AY18 -> 0 | AD18: =Prop2019DistTar!AZ18 -> 0 | AE18: =Prop2019DistTar!BA18 -> 2202095.01 | AF18: =Prop2019DistTar!BB18 -> 0 | AG18: =Prop2019DistTar!BC18 -> 0 | AH18: =Prop2019DistTar!BD18 -> 0 | AI18: =Prop2019DistTar!BE18 -> 0 | AJ18: =Prop2019DistTar!BF18 -> 0 | AK18: =Prop2019DistTar!BG18 -> 0 | AL18: =Prop2019DistTar!BH18 -> 0 | AM18: =Prop2019DistTar!BI18 -> 0 | AN18: =Prop2019DistTar!BJ18 -> 0 | AO18: =Prop2019DistTar!BK18 -> 0 | AP18: =Prop2019DistTar!BL18 -> 0 | AQ18: =Prop2019DistTar!BM18 -> 0 | AR18: =Prop2019DistTar!BN18 -> 0 | AS18: =Prop2019DistTar!BO18 -> 0 | AT18: =Prop2019DistTar!BP18 -> 0 | AV18: 0 | AW18: 0 | AX18: 0 | AY18: 0 | AZ18: 0 | BA18: 6386.07553 | BB18: 0 | BC18: 0 | BD18: 0 | BE18: 0 | BF18: 0 | BG18: 0 | BH18: 0 | BI18: 0 | BJ18: 0 | BK18: 0 | BL18: 0 | BM18: 0 | BN18: 0 | BO18: 0 | BP18: 0 | BQ18: 6386.07553
B19: =Prop2019DistTar!B19 -> Residential Demand | D19: 0 | E19: 0.58 | F19: 0 | G19: 0 | H19: 0 | I19: 0 | J19: 0 | K19: 0 | L19: 0 | M19: 0 | N19: 0 | O19: 1.42 | P19: 0.49 | Q19: 0 | R19: 0 | S19: 0 | T19: 0 | U19: 0 | V19: 0 | W19: 0 | X19: 0 | Z19: =Prop2019DistTar!AV19 -> 4 | AA19: =Prop2019DistTar!AW19 -> 14863.13851 | AB19: =Prop2019DistTar!AX19 -> 0 | AC19: =Prop2019DistTar!AY19 -> 0 | AD19: =Prop2019DistTar!AZ19 -> 0 | AE19: =Prop2019DistTar!BA19 -> 0 | AF19: =Prop2019DistTar!BB19 -> 0 | AG19: =Prop2019DistTar!BC19 -> 0 | AH19: =Prop2019DistTar!BD19 -> 0 | AI19: =Prop2019DistTar!BE19 -> 0 | AJ19: =Prop2019DistTar!BF19 -> 0 | AK19: =Prop2019DistTar!BG19 -> 50.49333333 | AL19: =Prop2019DistTar!BH19 -> 120.751 | AM19: =Prop2019DistTar!BI19 -> 0 | AN19: =Prop2019DistTar!BJ19 -> 0 | AO19: =Prop2019DistTar!BK19 -> 0 | AP19: =Prop2019DistTar!BL19 -> 0 | AQ19: =Prop2019DistTar!BM19 -> 0 | AR19: =Prop2019DistTar!BN19 -> 0 | AS19: =Prop2019DistTar!BO19 -> 0 | AT19: =Prop2019DistTar!BP19 -> 0 | AV19: 0 | AW19: 86.20620335 | AX19: 0 | AY19: 0 | AZ19: 0 | BA19: 0 | BB19: 0 | BC19: 0 | BD19: 0 | BE19: 0 | BF19: 0 | BG19: 71.70053333 | BH19: 59.16799 | BI19: 0 | BJ19: 0 | BK19: 0 | BL19: 0 | BM19: 0 | BN19: 0 | BO19: 0 | BP19: 0 | BQ19: 217.0747267
B20: =Prop2019DistTar!B20 -> Residential Bulk Demand | D20: 0 | E20: 0.41 | F20: 0 | G20: 0 | H20: 0 | I20: 0 | J20: 0 | K20: 0 | L20: 0 | M20: 0 | N20: 0 | O20: 1.11 | P20: 0.37 | Q20: 0 | R20: 0 | S20: 0 | T20: 0 | U20: 0 | V20: 0 | W20: 0 | X20: 0 | Z20: =Prop2019DistTar!AV20 -> 0 | AA20: =Prop2019DistTar!AW20 -> 0 | AB20: =Prop2019DistTar!AX20 -> 0 | AC20: =Prop2019DistTar!AY20 -> 0 | AD20: =Prop2019DistTar!AZ20 -> 0 | AE20: =Prop2019DistTar!BA20 -> 0 | AF20: =Prop2019DistTar!BB20 -> 0 | AG20: =Prop2019DistTar!BC20 -> 0 | AH20: =Prop2019DistTar!BD20 -> 0 | AI20: =Prop2019DistTar!BE20 -> 0 | AJ20: =Prop2019DistTar!BF20 -> 0 | AK20: =Prop2019DistTar!BG20 -> 0 | AL20: =Prop2019DistTar!BH20 -> 0 | AM20: =Prop2019DistTar!BI20 -> 0 | AN20: =Prop2019DistTar!BJ20 -> 0 | AO20: =Prop2019DistTar!BK20 -> 0 | AP20: =Prop2019DistTar!BL20 -> 0 | AQ20: =Prop2019DistTar!BM20 -> 0 | AR20: =Prop2019DistTar!BN20 -> 0 | AS20: =Prop2019DistTar!BO20 -> 0 | AT20: =Prop2019DistTar!BP20 -> 0 | AV20: 0 | AW20: 0 | AX20: 0 | AY20: 0 | AZ20: 0 | BA20: 0 | BB20: 0 | BC20: 0 | BD20: 0 | BE20: 0 | BF20: 0 | BG20: 0 | BH20: 0 | BI20: 0 | BJ20: 0 | BK20: 0 | BL20: 0 | BM20: 0 | BN20: 0 | BO20: 0 | BP20: 0 | BQ20: 0
B21: =Prop2019DistTar!B21 -> Non-Residential Single Rate | D21: 0 | E21: 1.99 | F21: 0 | G21: 0 | H21: 0 | I21: 0 | J21: 0 | K21: 0 | L21: 0 | M21: 0 | N21: 0 | O21: 0 | P21: 0 | Q21: 0 | R21: 0 | S21: 0 | T21: 0 | U21: 0 | V21: 0 | W21: 0 | X21: 0 | Z21: =Prop2019DistTar!AV21 -> 20319.91667 | AA21: =Prop2019DistTar!AW21 -> 233254649.1 | AB21: =Prop2019DistTar!AX21 -> 0 | AC21: =Prop2019DistTar!AY21 -> 0 | AD21: =Prop2019DistTar!AZ21 -> 0 | AE21: =Prop2019DistTar!BA21 -> 0 | AF21: =Prop2019DistTar!BB21 -> 0 | AG21: =Prop2019DistTar!BC21 -> 0 | AH21: =Prop2019DistTar!BD21 -> 0 | AI21: =Prop2019DistTar!BE21 -> 0 | AJ21: =Prop2019DistTar!BF21 -> 0 | AK21: =Prop2019DistTar!BG21 -> 0 | AL21: =Prop2019DistTar!BH21 -> 0 | AM21: =Prop2019DistTar!BI21 -> 0 | AN21: =Prop2019DistTar!BJ21 -> 0 | AO21: =Prop2019DistTar!BK21 -> 0 | AP21: =Prop2019DistTar!BL21 -> 0 | AQ21: =Prop2019DistTar!BM21 -> 0 | AR21: =Prop2019DistTar!BN21 -> 0 | AS21: =Prop2019DistTar!BO21 -> 0 | AT21: =Prop2019DistTar!BP21 -> 0 | AV21: 0 | AW21: 4641767.518 | AX21: 0 | AY21: 0 | AZ21: 0 | BA21: 0 | BB21: 0 | BC21: 0 | BD21: 0 | BE21: 0 | BF21: 0 | BG21: 0 | BH21: 0 | BI21: 0 | BJ21: 0 | BK21: 0 | BL21: 0 | BM21: 0 | BN21: 0 | BO21: 0 | BP21: 0 | BQ21: 4641767.518
B22: =Prop2019DistTar!B22 -> Non-Residential Single Rate - Bulk | D22: 0 | E22: 1.61 | F22: 0 | G22: 0 | H22: 0 | I22: 0 | J22: 0 | K22: 0 | L22: 0 | M22: 0 | N22: 0 | O22: 0 | P22: 0 | Q22: 0 | R22: 0 | S22: 0 | T22: 0 | U22: 0 | V22: 0 | W22: 0 | X22: 0 | Z22: =Prop2019DistTar!AV22 -> 5859.166667 | AA22: =Prop2019DistTar!AW22 -> 77076676.16 | AB22: =Prop2019DistTar!AX22 -> 0 | AC22: =Prop2019DistTar!AY22 -> 0 | AD22: =Prop2019DistTar!AZ22 -> 0 | AE22: =Prop2019DistTar!BA22 -> 0 | AF22: =Prop2019DistTar!BB22 -> 0 | AG22: =Prop2019DistTar!BC22 -> 0 | AH22: =Prop2019DistTar!BD22 -> 0 | AI22: =Prop2019DistTar!BE22 -> 0 | AJ22: =Prop2019DistTar!BF22 -> 0 | AK22: =Prop2019DistTar!BG22 -> 0 | AL22: =Prop2019DistTar!BH22 -> 0 | AM22: =Prop2019DistTar!BI22 -> 0 | AN22: =Prop2019DistTar!BJ22 -> 0 | AO22: =Prop2019DistTar!BK22 -> 0 | AP22: =Prop2019DistTar!BL22 -> 0 | AQ22: =Prop2019DistTar!BM22 -> 0 | AR22: =Prop2019DistTar!BN22 -> 0 | AS22: =Prop2019DistTar!BO22 -> 0 | AT22: =Prop2019DistTar!BP22 -> 0 | AV22: 0 | AW22: 1240934.486 | AX22: 0 | AY22: 0 | AZ22: 0 | BA22: 0 | BB22: 0 | BC22: 0 | BD22: 0 | BE22: 0 | BF22: 0 | BG22: 0 | BH22: 0 | BI22: 0 | BJ22: 0 | BK22: 0 | BL22: 0 | BM22: 0 | BN22: 0 | BO22: 0 | BP22: 0 | BQ22: 1240934.486
B23: =Prop2019DistTar!B23 -> Non-Residential Two Rate 5d | D23: 0 | E23: 0 | F23: 2.99 | G23: 0 | H23: 0 | I23: 0.86 | J23: 0 | K23: 0 | L23: 0 | M23: 0 | N23: 0 | O23: 0 | P23: 0 | Q23: 0 | R23: 0 | S23: 0 | T23: 0 | U23: 0 | V23: 0 | W23: 0 | X23: 0 | Z23: =Prop2019DistTar!AV23 -> 8457.416667 | AA23: =Prop2019DistTar!AW23 -> 0 | AB23: =Prop2019DistTar!AX23 -> 92130994.29 | AC23: =Prop2019DistTar!AY23 -> 0 | AD23: =Prop2019DistTar!AZ23 -> 0 | AE23: =Prop2019DistTar!BA23 -> 57478450.85 | AF23: =Prop2019DistTar!BB23 -> 0 | AG23: =Prop2019DistTar!BC23 -> 0 | AH23: =Prop2019DistTar!BD23 -> 0 | AI23: =Prop2019DistTar!BE23 -> 0 | AJ23: =Prop2019DistTar!BF23 -> 0 | AK23: =Prop2019DistTar!BG23 -> 0 | AL23: =Prop2019DistTar!BH23 -> 0 | AM23: =Prop2019DistTar!BI23 -> 0 | AN23: =Prop2019DistTar!BJ23 -> 0 | AO23: =Prop2019DistTar!BK23 -> 0 | AP23: =Prop2019DistTar!BL23 -> 0 | AQ23: =Prop2019DistTar!BM23 -> 0 | AR23: =Prop2019DistTar!BN23 -> 0 | AS23: =Prop2019DistTar!BO23 -> 0 | AT23: =Prop2019DistTar!BP23 -> 0 | AV23: 0 | AW23: 0 | AX23: 2754716.729 | AY23: 0 | AZ23: 0 | BA23: 494314.6773 | BB23: 0 | BC23: 0 | BD23: 0 | BE23: 0 | BF23: 0 | BG23: 0 | BH23: 0 | BI23: 0 | BJ23: 0 | BK23: 0 | BL23: 0 | BM23: 0 | BN23: 0 | BO23: 0 | BP23: 0 | BQ23: 3249031.407
B24: =Prop2019DistTar!B24 -> Non-Residential Two Rate 5d - Bulk | D24: 0 | E24: 0 | F24: 2.33 | G24: 0 | H24: 0 | I24: 0.7 | J24: 0 | K24: 0 | L24: 0 | M24: 0 | N24: 0 | O24: 0 | P24: 0 | Q24: 0 | R24: 0 | S24: 0 | T24: 0 | U24: 0 | V24: 0 | W24: 0 | X24: 0 | Z24: =Prop2019DistTar!AV24 -> 1060 | AA24: =Prop2019DistTar!AW24 -> 0 | AB24: =Prop2019DistTar!AX24 -> 17530830.1 | AC24: =Prop2019DistTar!AY24 -> 0 | AD24: =Prop2019DistTar!AZ24 -> 0 | AE24: =Prop2019DistTar!BA24 -> 10374374.19 | AF24: =Prop2019DistTar!BB24 -> 0 | AG24: =Prop2019DistTar!BC24 -> 0 | AH24: =Prop2019DistTar!BD24 -> 0 | AI24: =Prop2019DistTar!BE24 -> 0 | AJ24: =Prop2019DistTar!BF24 -> 0 | AK24: =Prop2019DistTar!BG24 -> 0 | AL24: =Prop2019DistTar!BH24 -> 0 | AM24: =Prop2019DistTar!BI24 -> 0 | AN24: =Prop2019DistTar!BJ24 -> 0 | AO24: =Prop2019DistTar!BK24 -> 0 | AP24: =Prop2019DistTar!BL24 -> 0 | AQ24: =Prop2019DistTar!BM24 -> 0 | AR24: =Prop2019DistTar!BN24 -> 0 | AS24: =Prop2019DistTar!BO24 -> 0 | AT24: =Prop2019DistTar!BP24 -> 0 | AV24: 0 | AW24: 0 | AX24: 408468.3413 | AY24: 0 | AZ24: 0 | BA24: 72620.61935 | BB24: 0 | BC24: 0 | BD24: 0 | BE24: 0 | BF24: 0 | BG24: 0 | BH24: 0 | BI24: 0 | BJ24: 0 | BK24: 0 | BL24: 0 | BM24: 0 | BN24: 0 | BO24: 0 | BP24: 0 | BQ24: 481088.9607
B25: =Prop2019DistTar!B25 -> Non-Residential Interval | D25: 0 | E25: 0 | F25: 2.99 | G25: 0 | H25: 0 | I25: 0.79 | J25: 0 | K25: 0 | L25: 0 | M25: 0 | N25: 0 | O25: 0 | P25: 0 | Q25: 0 | R25: 0 | S25: 0 | T25: 0 | U25: 0 | V25: 0 | W25: 0 | X25: 0 | Z25: =Prop2019DistTar!AV25 -> 3960.083333 | AA25: =Prop2019DistTar!AW25 -> 0 | AB25: =Prop2019DistTar!AX25 -> 45937500.62 | AC25: =Prop2019DistTar!AY25 -> 0 | AD25: =Prop2019DistTar!AZ25 -> 0 | AE25: =Prop2019DistTar!BA25 -> 25953497.25 | AF25: =Prop2019DistTar!BB25 -> 0 | AG25: =Prop2019DistTar!BC25 -> 0 | AH25: =Prop2019DistTar!BD25 -> 0 | AI25: =Prop2019DistTar!BE25 -> 0 | AJ25: =Prop2019DistTar!BF25 -> 0 | AK25: =Prop2019DistTar!BG25 -> 0 | AL25: =Prop2019DistTar!BH25 -> 0 | AM25: =Prop2019DistTar!BI25 -> 0 | AN25: =Prop2019DistTar!BJ25 -> 0 | AO25: =Prop2019DistTar!BK25 -> 0 | AP25: =Prop2019DistTar!BL25 -> 0 | AQ25: =Prop2019DistTar!BM25 -> 0 | AR25: =Prop2019DistTar!BN25 -> 0 | AS25: =Prop2019DistTar!BO25 -> 0 | AT25: =Prop2019DistTar!BP25 -> 0 | AV25: 0 | AW25: 0 | AX25: 1373531.268 | AY25: 0 | AZ25: 0 | BA25: 205032.6283 | BB25: 0 | BC25: 0 | BD25: 0 | BE25: 0 | BF25: 0 | BG25: 0 | BH25: 0 | BI25: 0 | BJ25: 0 | BK25: 0 | BL25: 0 | BM25: 0 | BN25: 0 | BO25: 0 | BP25: 0 | BQ25: 1578563.897
B26: =Prop2019DistTar!B26 -> Non-Residential Interval - Bulk | D26: 0 | E26: 0 | F26: 2.33 | G26: 0 | H26: 0 | I26: 0.7 | J26: 0 | K26: 0 | L26: 0 | M26: 0 | N26: 0 | O26: 0 | P26: 0 | Q26: 0 | R26: 0 | S26: 0 | T26: 0 | U26: 0 | V26: 0 | W26: 0 | X26: 0 | Z26: =Prop2019DistTar!AV26 -> 1945.083333 | AA26: =Prop2019DistTar!AW26 -> 0 | AB26: =Prop2019DistTar!AX26 -> 29899979.14 | AC26: =Prop2019DistTar!AY26 -> 0 | AD26: =Prop2019DistTar!AZ26 -> 0 | AE26: =Prop2019DistTar!BA26 -> 15763990.48 | AF26: =Prop2019DistTar!BB26 -> 0 | AG26: =Prop2019DistTar!BC26 -> 0 | AH26: =Prop2019DistTar!BD26 -> 0 | AI26: =Prop2019DistTar!BE26 -> 0 | AJ26: =Prop2019DistTar!BF26 -> 0 | AK26: =Prop2019DistTar!BG26 -> 0 | AL26: =Prop2019DistTar!BH26 -> 0 | AM26: =Prop2019DistTar!BI26 -> 0 | AN26: =Prop2019DistTar!BJ26 -> 0 | AO26: =Prop2019DistTar!BK26 -> 0 | AP26: =Prop2019DistTar!BL26 -> 0 | AQ26: =Prop2019DistTar!BM26 -> 0 | AR26: =Prop2019DistTar!BN26 -> 0 | AS26: =Prop2019DistTar!BO26 -> 0 | AT26: =Prop2019DistTar!BP26 -> 0 | AV26: 0 | AW26: 0 | AX26: 696669.514 | AY26: 0 | AZ26: 0 | BA26: 110347.9334 | BB26: 0 | BC26: 0 | BD26: 0 | BE26: 0 | BF26: 0 | BG26: 0 | BH26: 0 | BI26: 0 | BJ26: 0 | BK26: 0 | BL26: 0 | BM26: 0 | BN26: 0 | BO26: 0 | BP26: 0 | BQ26: 807017.4474
B27: =Prop2019DistTar!B27 -> Non-Residential Flexible Pricing | D27: 0 | E27: 0 | F27: 0 | G27: 0 | H27: 0 | I27: 0 | J27: 0 | K27: 0 | L27: 0 | M27: 0 | N27: 0 | O27: 0 | P27: 0 | Q27: 3.64 | R27: 2.54 | S27: 1 | T27: 0 | U27: 3.64 | V27: 2.54 | W27: 1 | X27: 0 | Z27: =Prop2019DistTar!AV27 -> 22 | AA27: =Prop2019DistTar!AW27 -> 0 | AB27: =Prop2019DistTar!AX27 -> 0 | AC27: =Prop2019DistTar!AY27 -> 0 | AD27: =Prop2019DistTar!AZ27 -> 0 | AE27: =Prop2019DistTar!BA27 -> 0 | AF27: =Prop2019DistTar!BB27 -> 0 | AG27: =Prop2019DistTar!BC27 -> 0 | AH27: =Prop2019DistTar!BD27 -> 0 | AI27: =Prop2019DistTar!BE27 -> 0 | AJ27: =Prop2019DistTar!BF27 -> 0 | AK27: =Prop2019DistTar!BG27 -> 0 | AL27: =Prop2019DistTar!BH27 -> 0 | AM27: =Prop2019DistTar!BI27 -> 90532.51609 | AN27: =Prop2019DistTar!BJ27 -> 28600.36374 | AO27: =Prop2019DistTar!BK27 -> 77063.91457 | AP27: =Prop2019DistTar!BL27 -> 0 | AQ27: =Prop2019DistTar!BM27 -> 309844.84 | AR27: =Prop2019DistTar!BN27 -> 97883.8931 | AS27: =Prop2019DistTar!BO27 -> 263748.9525 | AT27: =Prop2019DistTar!BP27 -> 0 | AV27: 0 | AW27: 0 | AX27: 0 | AY27: 0 | AZ27: 0 | BA27: 0 | BB27: 0 | BC27: 0 | BD27: 0 | BE27: 0 | BF27: 0 | BG27: 0 | BH27: 0 | BI27: 3295.383586 | BJ27: 726.4492389 | BK27: 770.6391457 | BL27: 0 | BM27: 11278.35218 | BN27: 2486.250885 | BO27: 2637.489525 | BP27: 0 | BQ27: 21194.56456
B28: =Prop2019DistTar!B28 -> Non-Residential - Flexible Pricing Bulk | D28: 0 | E28: 0 | F28: 0 | G28: 0 | H28: 0 | I28: 0 | J28: 0 | K28: 0 | L28: 0 | M28: 0 | N28: 0 | O28: 0 | P28: 0 | Q28: 3.2 | R28: 2.24 | S28: 0.88 | T28: 0 | U28: 3.2 | V28: 2.24 | W28: 0.88 | X28: 0 | Z28: =Prop2019DistTar!AV28 -> 7 | AA28: =Prop2019DistTar!AW28 -> 0 | AB28: =Prop2019DistTar!AX28 -> 0 | AC28: =Prop2019DistTar!AY28 -> 0 | AD28: =Prop2019DistTar!AZ28 -> 0 | AE28: =Prop2019DistTar!BA28 -> 0 | AF28: =Prop2019DistTar!BB28 -> 0 | AG28: =Prop2019DistTar!BC28 -> 0 | AH28: =Prop2019DistTar!BD28 -> 0 | AI28: =Prop2019DistTar!BE28 -> 0 | AJ28: =Prop2019DistTar!BF28 -> 0 | AK28: =Prop2019DistTar!BG28 -> 0 | AL28: =Prop2019DistTar!BH28 -> 0 | AM28: =Prop2019DistTar!BI28 -> 103639.4071 | AN28: =Prop2019DistTar!BJ28 -> 27419.30238 | AO28: =Prop2019DistTar!BK28 -> 92664.29665 | AP28: =Prop2019DistTar!BL28 -> 0 | AQ28: =Prop2019DistTar!BM28 -> 277642.3295 | AR28: =Prop2019DistTar!BN28 -> 73454.2892 | AS28: =Prop2019DistTar!BO28 -> 248240.8178 | AT28: =Prop2019DistTar!BP28 -> 0 | AV28: 0 | AW28: 0 | AX28: 0 | AY28: 0 | AZ28: 0 | BA28: 0 | BB28: 0 | BC28: 0 | BD28: 0 | BE28: 0 | BF28: 0 | BG28: 0 | BH28: 0 | BI28: 3316.461029 | BJ28: 614.1923732 | BK28: 815.4458105 | BL28: 0 | BM28: 8884.554544 | BN28: 1645.376078 | BO28: 2184.519196 | BP28: 0 | BQ28: 17460.54903
B29: =Prop2019DistTar!B29 -> Non-Residential Two Rate 7d | D29: 0 | E29: 0 | F29: 2.35 | G29: 0 | H29: 0 | I29: 0.79 | J29: 0 | K29: 0 | L29: 0 | M29: 0 | N29: 0 | O29: 0 | P29: 0 | Q29: 0 | R29: 0 | S29: 0 | T29: 0 | U29: 0 | V29: 0 | W29: 0 | X29: 0 | Z29: =Prop2019DistTar!AV29 -> 2325 | AA29: =Prop2019DistTar!AW29 -> 0 | AB29: =Prop2019DistTar!AX29 -> 39141830.2 | AC29: =Prop2019DistTar!AY29 -> 0 | AD29: =Prop2019DistTar!AZ29 -> 0 | AE29: =Prop2019DistTar!BA29 -> 9312690.059 | AF29: =Prop2019DistTar!BB29 -> 0 | AG29: =Prop2019DistTar!BC29 -> 0 | AH29: =Prop2019DistTar!BD29 -> 0 | AI29: =Prop2019DistTar!BE29 -> 0 | AJ29: =Prop2019DistTar!BF29 -> 0 | AK29: =Prop2019DistTar!BG29 -> 0 | AL29: =Prop2019DistTar!BH29 -> 0 | AM29: =Prop2019DistTar!BI29 -> 0 | AN29: =Prop2019DistTar!BJ29 -> 0 | AO29: =Prop2019DistTar!BK29 -> 0 | AP29: =Prop2019DistTar!BL29 -> 0 | AQ29: =Prop2019DistTar!BM29 -> 0 | AR29: =Prop2019DistTar!BN29 -> 0 | AS29: =Prop2019DistTar!BO29 -> 0 | AT29: =Prop2019DistTar!BP29 -> 0 | AV29: 0 | AW29: 0 | AX29: 919833.0096 | AY29: 0 | AZ29: 0 | BA29: 73570.25146 | BB29: 0 | BC29: 0 | BD29: 0 | BE29: 0 | BF29: 0 | BG29: 0 | BH29: 0 | BI29: 0 | BJ29: 0 | BK29: 0 | BL29: 0 | BM29: 0 | BN29: 0 | BO29: 0 | BP29: 0 | BQ29: 993403.2611
B30: =Prop2019DistTar!B30 -> Non-Residential Two Rate 7d - Bulk | D30: 0 | E30: 0 | F30: 2.09 | G30: 0 | H30: 0 | I30: 0.7 | J30: 0 | K30: 0 | L30: 0 | M30: 0 | N30: 0 | O30: 0 | P30: 0 | Q30: 0 | R30: 0 | S30: 0 | T30: 0 | U30: 0 | V30: 0 | W30: 0 | X30: 0 | Z30: =Prop2019DistTar!AV30 -> 253.0833333 | AA30: =Prop2019DistTar!AW30 -> 0 | AB30: =Prop2019DistTar!AX30 -> 5750711.727 | AC30: =Prop2019DistTar!AY30 -> 0 | AD30: =Prop2019DistTar!AZ30 -> 0 | AE30: =Prop2019DistTar!BA30 -> 1391434.263 | AF30: =Prop2019DistTar!BB30 -> 0 | AG30: =Prop2019DistTar!BC30 -> 0 | AH30: =Prop2019DistTar!BD30 -> 0 | AI30: =Prop2019DistTar!BE30 -> 0 | AJ30: =Prop2019DistTar!BF30 -> 0 | AK30: =Prop2019DistTar!BG30 -> 0 | AL30: =Prop2019DistTar!BH30 -> 0 | AM30: =Prop2019DistTar!BI30 -> 0 | AN30: =Prop2019DistTar!BJ30 -> 0 | AO30: =Prop2019DistTar!BK30 -> 0 | AP30: =Prop2019DistTar!BL30 -> 0 | AQ30: =Prop2019DistTar!BM30 -> 0 | AR30: =Prop2019DistTar!BN30 -> 0 | AS30: =Prop2019DistTar!BO30 -> 0 | AT30: =Prop2019DistTar!BP30 -> 0 | AV30: 0 | AW30: 0 | AX30: 120189.8751 | AY30: 0 | AZ30: 0 | BA30: 9740.039838 | BB30: 0 | BC30: 0 | BD30: 0 | BE30: 0 | BF30: 0 | BG30: 0 | BH30: 0 | BI30: 0 | BJ30: 0 | BK30: 0 | BL30: 0 | BM30: 0 | BN30: 0 | BO30: 0 | BP30: 0 | BQ30: 129929.9149
B31: =Prop2019DistTar!B31 -> Large Two Rate 7d | D31: 0 | E31: 0 | F31: 2.99 | G31: 0 | H31: 0 | I31: 0.86 | J31: 0 | K31: 0 | L31: 0 | M31: 0 | N31: 0 | O31: 0 | P31: 0 | Q31: 0 | R31: 0 | S31: 0 | T31: 0 | U31: 0 | V31: 0 | W31: 0 | X31: 0 | Z31: =Prop2019DistTar!AV31 -> 4 | AA31: =Prop2019DistTar!AW31 -> 0 | AB31: =Prop2019DistTar!AX31 -> 168556.1792 | AC31: =Prop2019DistTar!AY31 -> 0 | AD31: =Prop2019DistTar!AZ31 -> 0 | AE31: =Prop2019DistTar!BA31 -> 75139.00678 | AF31: =Prop2019DistTar!BB31 -> 0 | AG31: =Prop2019DistTar!BC31 -> 0 | AH31: =Prop2019DistTar!BD31 -> 0 | AI31: =Prop2019DistTar!BE31 -> 0 | AJ31: =Prop2019DistTar!BF31 -> 0 | AK31: =Prop2019DistTar!BG31 -> 0 | AL31: =Prop2019DistTar!BH31 -> 0 | AM31: =Prop2019DistTar!BI31 -> 0 | AN31: =Prop2019DistTar!BJ31 -> 0 | AO31: =Prop2019DistTar!BK31 -> 0 | AP31: =Prop2019DistTar!BL31 -> 0 | AQ31: =Prop2019DistTar!BM31 -> 0 | AR31: =Prop2019DistTar!BN31 -> 0 | AS31: =Prop2019DistTar!BO31 -> 0 | AT31: =Prop2019DistTar!BP31 -> 0 | AV31: 0 | AW31: 0 | AX31: 5039.829758 | AY31: 0 | AZ31: 0 | BA31: 646.1954583 | BB31: 0 | BC31: 0 | BD31: 0 | BE31: 0 | BF31: 0 | BG31: 0 | BH31: 0 | BI31: 0 | BJ31: 0 | BK31: 0 | BL31: 0 | BM31: 0 | BN31: 0 | BO31: 0 | BP31: 0 | BQ31: 5686.025216
B32: =Prop2019DistTar!B32 -> Non-Residential Demand Tariff | D32: 0 | E32: 1.09 | F32: 0 | G32: 0 | H32: 0 | I32: 0 | J32: 0 | K32: 0 | L32: 0 | M32: 0 | N32: 0 | O32: 3.48 | P32: 1.16 | Q32: 0 | R32: 0 | S32: 0 | T32: 0 | U32: 0 | V32: 0 | W32: 0 | X32: 0 | Z32: =Prop2019DistTar!AV32 -> 8 | AA32: =Prop2019DistTar!AW32 -> 717136.6155 | AB32: =Prop2019DistTar!AX32 -> 0 | AC32: =Prop2019DistTar!AY32 -> 0 | AD32: =Prop2019DistTar!AZ32 -> 0 | AE32: =Prop2019DistTar!BA32 -> 0 | AF32: =Prop2019DistTar!BB32 -> 0 | AG32: =Prop2019DistTar!BC32 -> 0 | AH32: =Prop2019DistTar!BD32 -> 0 | AI32: =Prop2019DistTar!BE32 -> 0 | AJ32: =Prop2019DistTar!BF32 -> 0 | AK32: =Prop2019DistTar!BG32 -> 822.7376 | AL32: =Prop2019DistTar!BH32 -> 1909.040695 | AM32: =Prop2019DistTar!BI32 -> 0 | AN32: =Prop2019DistTar!BJ32 -> 0 | AO32: =Prop2019DistTar!BK32 -> 0 | AP32: =Prop2019DistTar!BL32 -> 0 | AQ32: =Prop2019DistTar!BM32 -> 0 | AR32: =Prop2019DistTar!BN32 -> 0 | AS32: =Prop2019DistTar!BO32 -> 0 | AT32: =Prop2019DistTar!BP32 -> 0 | AV32: 0 | AW32: 7816.789109 | AX32: 0 | AY32: 0 | AZ32: 0 | BA32: 0 | BB32: 0 | BC32: 0 | BD32: 0 | BE32: 0 | BF32: 0 | BG32: 2863.126848 | BH32: 2214.487206 | BI32: 0 | BJ32: 0 | BK32: 0 | BL32: 0 | BM32: 0 | BN32: 0 | BO32: 0 | BP32: 0 | BQ32: 12894.40316
B33: =Prop2019DistTar!B33 -> Non-Residential Bulk Demand Tariff | D33: 0 | E33: 1 | F33: 0 | G33: 0 | H33: 0 | I33: 0 | J33: 0 | K33: 0 | L33: 0 | M33: 0 | N33: 0 | O33: 2.78 | P33: 0.93 | Q33: 0 | R33: 0 | S33: 0 | T33: 0 | U33: 0 | V33: 0 | W33: 0 | X33: 0 | Z33: =Prop2019DistTar!AV33 -> 4 | AA33: =Prop2019DistTar!AW33 -> 534045.0131 | AB33: =Prop2019DistTar!AX33 -> 0 | AC33: =Prop2019DistTar!AY33 -> 0 | AD33: =Prop2019DistTar!AZ33 -> 0 | AE33: =Prop2019DistTar!BA33 -> 0 | AF33: =Prop2019DistTar!BB33 -> 0 | AG33: =Prop2019DistTar!BC33 -> 0 | AH33: =Prop2019DistTar!BD33 -> 0 | AI33: =Prop2019DistTar!BE33 -> 0 | AJ33: =Prop2019DistTar!BF33 -> 0 | AK33: =Prop2019DistTar!BG33 -> 411.3688 | AL33: =Prop2019DistTar!BH33 -> 954.5203476 | AM33: =Prop2019DistTar!BI33 -> 0 | AN33: =Prop2019DistTar!BJ33 -> 0 | AO33: =Prop2019DistTar!BK33 -> 0 | AP33: =Prop2019DistTar!BL33 -> 0 | AQ33: =Prop2019DistTar!BM33 -> 0 | AR33: =Prop2019DistTar!BN33 -> 0 | AS33: =Prop2019DistTar!BO33 -> 0 | AT33: =Prop2019DistTar!BP33 -> 0 | AV33: 0 | AW33: 5340.450131 | AX33: 0 | AY33: 0 | AZ33: 0 | BA33: 0 | BB33: 0 | BC33: 0 | BD33: 0 | BE33: 0 | BF33: 0 | BG33: 1143.605264 | BH33: 887.7039233 | BI33: 0 | BJ33: 0 | BK33: 0 | BL33: 0 | BM33: 0 | BN33: 0 | BO33: 0 | BP33: 0 | BQ33: 7371.759318
B34: =Prop2019DistTar!B34 -> Medium Business Demand | D34: 0 | E34: 0 | F34: 1.54 | G34: 0 | H34: 0 | I34: 1.17 | J34: 0 | K34: 0 | L34: 0 | M34: 0 | N34: 0 | O34: 2.08 | P34: 1.04 | Q34: 0 | R34: 0 | S34: 0 | T34: 0 | U34: 0 | V34: 0 | W34: 0 | X34: 0 | Z34: =Prop2019DistTar!AV34 -> 4548 | AA34: =Prop2019DistTar!AW34 -> 0 | AB34: =Prop2019DistTar!AX34 -> 365166105 | AC34: =Prop2019DistTar!AY34 -> 0 | AD34: =Prop2019DistTar!AZ34 -> 0 | AE34: =Prop2019DistTar!BA34 -> 263865736.5 | AF34: =Prop2019DistTar!BB34 -> 0 | AG34: =Prop2019DistTar!BC34 -> 0 | AH34: =Prop2019DistTar!BD34 -> 0 | AI34: =Prop2019DistTar!BE34 -> 0 | AJ34: =Prop2019DistTar!BF34 -> 0 | AK34: =Prop2019DistTar!BG34 -> 730223.7714 | AL34: =Prop2019DistTar!BH34 -> 1303005.77 | AM34: =Prop2019DistTar!BI34 -> 0 | AN34: =Prop2019DistTar!BJ34 -> 0 | AO34: =Prop2019DistTar!BK34 -> 0 | AP34: =Prop2019DistTar!BL34 -> 0 | AQ34: =Prop2019DistTar!BM34 -> 0 | AR34: =Prop2019DistTar!BN34 -> 0 | AS34: =Prop2019DistTar!BO34 -> 0 | AT34: =Prop2019DistTar!BP34 -> 0 | AV34: 0 | AW34: 0 | AX34: 5623558.018 | AY34: 0 | AZ34: 0 | BA34: 3087229.117 | BB34: 0 | BC34: 0 | BD34: 0 | BE34: 0 | BF34: 0 | BG34: 1518865.445 | BH34: 1355126.001 | BI34: 0 | BJ34: 0 | BK34: 0 | BL34: 0 | BM34: 0 | BN34: 0 | BO34: 0 | BP34: 0 | BQ34: 11584778.58
B35: =Prop2019DistTar!B35 -> Medium Business Bulk Demand | D35: 0 | E35: 0 | F35: 1.22 | G35: 0 | H35: 0 | I35: 0.97 | J35: 0 | K35: 0 | L35: 0 | M35: 0 | N35: 0 | O35: 1.67 | P35: 0.83 | Q35: 0 | R35: 0 | S35: 0 | T35: 0 | U35: 0 | V35: 0 | W35: 0 | X35: 0 | Z35: =Prop2019DistTar!AV35 -> 2221.916667 | AA35: =Prop2019DistTar!AW35 -> 0 | AB35: =Prop2019DistTar!AX35 -> 255479964.7 | AC35: =Prop2019DistTar!AY35 -> 0 | AD35: =Prop2019DistTar!AZ35 -> 0 | AE35: =Prop2019DistTar!BA35 -> 173141256.8 | AF35: =Prop2019DistTar!BB35 -> 0 | AG35: =Prop2019DistTar!BC35 -> 0 | AH35: =Prop2019DistTar!BD35 -> 0 | AI35: =Prop2019DistTar!BE35 -> 0 | AJ35: =Prop2019DistTar!BF35 -> 0 | AK35: =Prop2019DistTar!BG35 -> 520621.0765 | AL35: =Prop2019DistTar!BH35 -> 868527.9127 | AM35: =Prop2019DistTar!BI35 -> 0 | AN35: =Prop2019DistTar!BJ35 -> 0 | AO35: =Prop2019DistTar!BK35 -> 0 | AP35: =Prop2019DistTar!BL35 -> 0 | AQ35: =Prop2019DistTar!BM35 -> 0 | AR35: =Prop2019DistTar!BN35 -> 0 | AS35: =Prop2019DistTar!BO35 -> 0 | AT35: =Prop2019DistTar!BP35 -> 0 | AV35: 0 | AW35: 0 | AX35: 3116855.569 | AY35: 0 | AZ35: 0 | BA35: 1679470.191 | BB35: 0 | BC35: 0 | BD35: 0 | BE35: 0 | BF35: 0 | BG35: 869437.1978 | BH35: 720878.1675 | BI35: 0 | BJ35: 0 | BK35: 0 | BL35: 0 | BM35: 0 | BN35: 0 | BO35: 0 | BP35: 0 | BQ35: 6386641.125
B36: =Prop2019DistTar!B36 -> Medium Business Opt-out | D36: 0 | E36: 0 | F36: 3.04 | G36: 0 | H36: 0 | I36: 1.22 | J36: 0 | K36: 0 | L36: 0 | M36: 0 | N36: 0 | O36: 0 | P36: 0 | Q36: 0 | R36: 0 | S36: 0 | T36: 0 | U36: 0 | V36: 0 | W36: 0 | X36: 0 | Z36: =Prop2019DistTar!AV36 -> 7 | AA36: =Prop2019DistTar!AW36 -> 0 | AB36: =Prop2019DistTar!AX36 -> 296417.2537 | AC36: =Prop2019DistTar!AY36 -> 0 | AD36: =Prop2019DistTar!AZ36 -> 0 | AE36: =Prop2019DistTar!BA36 -> 286499.7885 | AF36: =Prop2019DistTar!BB36 -> 0 | AG36: =Prop2019DistTar!BC36 -> 0 | AH36: =Prop2019DistTar!BD36 -> 0 | AI36: =Prop2019DistTar!BE36 -> 0 | AJ36: =Prop2019DistTar!BF36 -> 0 | AK36: =Prop2019DistTar!BG36 -> 0 | AL36: =Prop2019DistTar!BH36 -> 0 | AM36: =Prop2019DistTar!BI36 -> 0 | AN36: =Prop2019DistTar!BJ36 -> 0 | AO36: =Prop2019DistTar!BK36 -> 0 | AP36: =Prop2019DistTar!BL36 -> 0 | AQ36: =Prop2019DistTar!BM36 -> 0 | AR36: =Prop2019DistTar!BN36 -> 0 | AS36: =Prop2019DistTar!BO36 -> 0 | AT36: =Prop2019DistTar!BP36 -> 0 | AV36: 0 | AW36: 0 | AX36: 9011.084513 | AY36: 0 | AZ36: 0 | BA36: 3495.29742 | BB36: 0 | BC36: 0 | BD36: 0 | BE36: 0 | BF36: 0 | BG36: 0 | BH36: 0 | BI36: 0 | BJ36: 0 | BK36: 0 | BL36: 0 | BM36: 0 | BN36: 0 | BO36: 0 | BP36: 0 | BQ36: 12506.38193
B37: =Prop2019DistTar!B37 -> Medium Business Bulk Opt-out | D37: 0 | E37: 0 | F37: 2.39 | G37: 0 | H37: 0 | I37: 1.01 | J37: 0 | K37: 0 | L37: 0 | M37: 0 | N37: 0 | O37: 0 | P37: 0 | Q37: 0 | R37: 0 | S37: 0 | T37: 0 | U37: 0 | V37: 0 | W37: 0 | X37: 0 | Z37: =Prop2019DistTar!AV37 -> 9 | AA37: =Prop2019DistTar!AW37 -> 0 | AB37: =Prop2019DistTar!AX37 -> 630002.2237 | AC37: =Prop2019DistTar!AY37 -> 0 | AD37: =Prop2019DistTar!AZ37 -> 0 | AE37: =Prop2019DistTar!BA37 -> 505149.3518 | AF37: =Prop2019DistTar!BB37 -> 0 | AG37: =Prop2019DistTar!BC37 -> 0 | AH37: =Prop2019DistTar!BD37 -> 0 | AI37: =Prop2019DistTar!BE37 -> 0 | AJ37: =Prop2019DistTar!BF37 -> 0 | AK37: =Prop2019DistTar!BG37 -> 0 | AL37: =Prop2019DistTar!BH37 -> 0 | AM37: =Prop2019DistTar!BI37 -> 0 | AN37: =Prop2019DistTar!BJ37 -> 0 | AO37: =Prop2019DistTar!BK37 -> 0 | AP37: =Prop2019DistTar!BL37 -> 0 | AQ37: =Prop2019DistTar!BM37 -> 0 | AR37: =Prop2019DistTar!BN37 -> 0 | AS37: =Prop2019DistTar!BO37 -> 0 | AT37: =Prop2019DistTar!BP37 -> 0 | AV37: 0 | AW37: 0 | AX37: 15057.05315 | AY37: 0 | AZ37: 0 | BA37: 5102.008454 | BB37: 0 | BC37: 0 | BD37: 0 | BE37: 0 | BF37: 0 | BG37: 0 | BH37: 0 | BI37: 0 | BJ37: 0 | BK37: 0 | BL37: 0 | BM37: 0 | BN37: 0 | BO37: 0 | BP37: 0 | BQ37: 20159.0616
B38: =Prop2019DistTar!B38 -> Unmetered Supplies / Public Lighting | D38: 0 | E38: 0 | F38: 0 | G38: 0 | H38: 0 | I38: 0 | J38: 0 | K38: 0 | L38: 0 | M38: 0 | N38: 0 | O38: 0 | P38: 0 | Q38: 0 | R38: 0 | S38: 0 | T38: 0 | U38: 0 | V38: 0 | W38: 0 | X38: 0 | Z38: =Prop2019DistTar!AV38 -> 4425.5 | AA38: =Prop2019DistTar!AW38 -> 0 | AB38: =Prop2019DistTar!AX38 -> 7430325.445 | AC38: =Prop2019DistTar!AY38 -> 0 | AD38: =Prop2019DistTar!AZ38 -> 0 | AE38: =Prop2019DistTar!BA38 -> 18727648.89 | AF38: =Prop2019DistTar!BB38 -> 0 | AG38: =Prop2019DistTar!BC38 -> 0 | AH38: =Prop2019DistTar!BD38 -> 0 | AI38: =Prop2019DistTar!BE38 -> 0 | AJ38: =Prop2019DistTar!BF38 -> 0 | AK38: =Prop2019DistTar!BG38 -> 0 | AL38: =Prop2019DistTar!BH38 -> 0 | AM38: =Prop2019DistTar!BI38 -> 0 | AN38: =Prop2019DistTar!BJ38 -> 0 | AO38: =Prop2019DistTar!BK38 -> 0 | AP38: =Prop2019DistTar!BL38 -> 0 | AQ38: =Prop2019DistTar!BM38 -> 0 | AR38: =Prop2019DistTar!BN38 -> 0 | AS38: =Prop2019DistTar!BO38 -> 0 | AT38: =Prop2019DistTar!BP38 -> 0 | AV38: 0 | AW38: 0 | AX38: 0 | AY38: 0 | AZ38: 0 | BA38: 0 | BB38: 0 | BC38: 0 | BD38: 0 | BE38: 0 | BF38: 0 | BG38: 0 | BH38: 0 | BI38: 0 | BJ38: 0 | BK38: 0 | BL38: 0 | BM38: 0 | BN38: 0 | BO38: 0 | BP38: 0 | BQ38: 0
B39: =Prop2019DistTar!B39 -> Large low Voltage | D39: 0 | E39: 0 | F39: 1.09 | G39: 0 | H39: 0 | I39: 0.67 | J39: 0 | K39: 0 | L39: 0 | M39: 33.84 | N39: 0 | O39: 0 | P39: 0 | Q39: 0 | R39: 0 | S39: 0 | T39: 0 | U39: 0 | V39: 0 | W39: 0 | X39: 0 | Z39: =Prop2019DistTar!AV39 -> 334.3333333 | AA39: =Prop2019DistTar!AW39 -> 0 | AB39: =Prop2019DistTar!AX39 -> 103909055.5 | AC39: =Prop2019DistTar!AY39 -> 0 | AD39: =Prop2019DistTar!AZ39 -> 0 | AE39: =Prop2019DistTar!BA39 -> 80266733.27 | AF39: =Prop2019DistTar!BB39 -> 0 | AG39: =Prop2019DistTar!BC39 -> 0 | AH39: =Prop2019DistTar!BD39 -> 0 | AI39: =Prop2019DistTar!BE39 -> 59781.40408 | AJ39: =Prop2019DistTar!BF39 -> 0 | AK39: =Prop2019DistTar!BG39 -> 0 | AL39: =Prop2019DistTar!BH39 -> 0 | AM39: =Prop2019DistTar!BI39 -> 0 | AN39: =Prop2019DistTar!BJ39 -> 0 | AO39: =Prop2019DistTar!BK39 -> 0 | AP39: =Prop2019DistTar!BL39 -> 0 | AQ39: =Prop2019DistTar!BM39 -> 0 | AR39: =Prop2019DistTar!BN39 -> 0 | AS39: =Prop2019DistTar!BO39 -> 0 | AT39: =Prop2019DistTar!BP39 -> 0 | AV39: 0 | AW39: 0 | AX39: 1132608.705 | AY39: 0 | AZ39: 0 | BA39: 537787.1129 | BB39: 0 | BC39: 0 | BD39: 0 | BE39: 2023002.714 | BF39: 0 | BG39: 0 | BH39: 0 | BI39: 0 | BJ39: 0 | BK39: 0 | BL39: 0 | BM39: 0 | BN39: 0 | BO39: 0 | BP39: 0 | BQ39: 3693398.532
B40: =Prop2019DistTar!B40 -> Large low Voltage Bulk | D40: 0 | E40: 0 | F40: 1 | G40: 0 | H40: 0 | I40: 0.62 | J40: 0 | K40: 0 | L40: 0 | M40: 31.13 | N40: 0 | O40: 0 | P40: 0 | Q40: 0 | R40: 0 | S40: 0 | T40: 0 | U40: 0 | V40: 0 | W40: 0 | X40: 0 | Z40: =Prop2019DistTar!AV40 -> 1731.166667 | AA40: =Prop2019DistTar!AW40 -> 0 | AB40: =Prop2019DistTar!AX40 -> 1101354717 | AC40: =Prop2019DistTar!AY40 -> 0 | AD40: =Prop2019DistTar!AZ40 -> 0 | AE40: =Prop2019DistTar!BA40 -> 829525555.8 | AF40: =Prop2019DistTar!BB40 -> 0 | AG40: =Prop2019DistTar!BC40 -> 0 | AH40: =Prop2019DistTar!BD40 -> 0 | AI40: =Prop2019DistTar!BE40 -> 627630.9803 | AJ40: =Prop2019DistTar!BF40 -> 0 | AK40: =Prop2019DistTar!BG40 -> 0 | AL40: =Prop2019DistTar!BH40 -> 0 | AM40: =Prop2019DistTar!BI40 -> 0 | AN40: =Prop2019DistTar!BJ40 -> 0 | AO40: =Prop2019DistTar!BK40 -> 0 | AP40: =Prop2019DistTar!BL40 -> 0 | AQ40: =Prop2019DistTar!BM40 -> 0 | AR40: =Prop2019DistTar!BN40 -> 0 | AS40: =Prop2019DistTar!BO40 -> 0 | AT40: =Prop2019DistTar!BP40 -> 0 | AV40: 0 | AW40: 0 | AX40: 11013547.17 | AY40: 0 | AZ40: 0 | BA40: 5143058.446 | BB40: 0 | BC40: 0 | BD40: 0 | BE40: 19538152.42 | BF40: 0 | BG40: 0 | BH40: 0 | BI40: 0 | BJ40: 0 | BK40: 0 | BL40: 0 | BM40: 0 | BN40: 0 | BO40: 0 | BP40: 0 | BQ40: 35694758.04
B41: =Prop2019DistTar!B41 -> High Voltage | D41: 0 | E41: 0 | F41: 1.22 | G41: 0 | H41: 0 | I41: 0.63 | J41: 0 | K41: 0 | L41: 0 | M41: 34.6 | N41: 0 | O41: 0 | P41: 0 | Q41: 0 | R41: 0 | S41: 0 | T41: 0 | U41: 0 | V41: 0 | W41: 0 | X41: 0 | Z41: =Prop2019DistTar!AV41 -> 88 | AA41: =Prop2019DistTar!AW41 -> 0 | AB41: =Prop2019DistTar!AX41 -> 345704462.1 | AC41: =Prop2019DistTar!AY41 -> 0 | AD41: =Prop2019DistTar!AZ41 -> 0 | AE41: =Prop2019DistTar!BA41 -> 319905209.4 | AF41: =Prop2019DistTar!BB41 -> 0 | AG41: =Prop2019DistTar!BC41 -> 0 | AH41: =Prop2019DistTar!BD41 -> 0 | AI41: =Prop2019DistTar!BE41 -> 191921.5767 | AJ41: =Prop2019DistTar!BF41 -> 0 | AK41: =Prop2019DistTar!BG41 -> 0 | AL41: =Prop2019DistTar!BH41 -> 0 | AM41: =Prop2019DistTar!BI41 -> 0 | AN41: =Prop2019DistTar!BJ41 -> 0 | AO41: =Prop2019DistTar!BK41 -> 0 | AP41: =Prop2019DistTar!BL41 -> 0 | AQ41: =Prop2019DistTar!BM41 -> 0 | AR41: =Prop2019DistTar!BN41 -> 0 | AS41: =Prop2019DistTar!BO41 -> 0 | AT41: =Prop2019DistTar!BP41 -> 0 | AV41: 0 | AW41: 0 | AX41: 4217594.438 | AY41: 0 | AZ41: 0 | BA41: 2015402.819 | BB41: 0 | BC41: 0 | BD41: 0 | BE41: 6640486.556 | BF41: 0 | BG41: 0 | BH41: 0 | BI41: 0 | BJ41: 0 | BK41: 0 | BL41: 0 | BM41: 0 | BN41: 0 | BO41: 0 | BP41: 0 | BQ41: 12873483.81
B42: =Prop2019DistTar!B42 -> Subtransmission | D42: 0 | E42: 0 | F42: 2 | G42: 0 | H42: 0 | I42: 0.83 | J42: 0 | K42: 0 | L42: 0 | M42: 16.25 | N42: 0 | O42: 0 | P42: 0 | Q42: 0 | R42: 0 | S42: 0 | T42: 0 | U42: 0 | V42: 0 | W42: 0 | X42: 0 | Z42: =Prop2019DistTar!AV42 -> 6 | AA42: =Prop2019DistTar!AW42 -> 0 | AB42: =Prop2019DistTar!AX42 -> 63161450.7 | AC42: =Prop2019DistTar!AY42 -> 0 | AD42: =Prop2019DistTar!AZ42 -> 0 | AE42: =Prop2019DistTar!BA42 -> 37546309.72 | AF42: =Prop2019DistTar!BB42 -> 0 | AG42: =Prop2019DistTar!BC42 -> 0 | AH42: =Prop2019DistTar!BD42 -> 0 | AI42: =Prop2019DistTar!BE42 -> 35559.26992 | AJ42: =Prop2019DistTar!BF42 -> 0 | AK42: =Prop2019DistTar!BG42 -> 0 | AL42: =Prop2019DistTar!BH42 -> 0 | AM42: =Prop2019DistTar!BI42 -> 0 | AN42: =Prop2019DistTar!BJ42 -> 0 | AO42: =Prop2019DistTar!BK42 -> 0 | AP42: =Prop2019DistTar!BL42 -> 0 | AQ42: =Prop2019DistTar!BM42 -> 0 | AR42: =Prop2019DistTar!BN42 -> 0 | AS42: =Prop2019DistTar!BO42 -> 0 | AT42: =Prop2019DistTar!BP42 -> 0 | AV42: 0 | AW42: 0 | AX42: 1263229.014 | AY42: 0 | AZ42: 0 | BA42: 311634.3707 | BB42: 0 | BC42: 0 | BD42: 0 | BE42: 577838.1361 | BF42: 0 | BG42: 0 | BH42: 0 | BI42: 0 | BJ42: 0 | BK42: 0 | BL42: 0 | BM42: 0 | BN42: 0 | BO42: 0 | BP42: 0 | BQ42: 2152701.521
AV43: 0 | AW43: 0 | AX43: 0 | AY43: 0 | AZ43: 0 | BA43: 0 | BB43: 0 | BC43: 0 | BD43: 0 | BE43: 0 | BF43: 0 | BG43: 0 | BH43: 0 | BI43: 0 | BJ43: 0 | BK43: 0 | BL43: 0 | BM43: 0 | BN43: 0 | BO43: 0 | BP43: 0 | BQ43: 0
AV44: 0 | AW44: 0 | AX44: 0 | AY44: 0 | AZ44: 0 | BA44: 0 | BB44: 0 | BC44: 0 | BD44: 0 | BE44: 0 | BF44: 0 | BG44: 0 | BH44: 0 | BI44: 0 | BJ44: 0 | BK44: 0 | BL44: 0 | BM44: 0 | BN44: 0 | BO44: 0 | BP44: 0 | BQ44: 0
AV45: 0 | AW45: 0 | AX45: 0 | AY45: 0 | AZ45: 0 | BA45: 0 | BB45: 0 | BC45: 0 | BD45: 0 | BE45: 0 | BF45: 0 | BG45: 0 | BH45: 0 | BI45: 0 | BJ45: 0 | BK45: 0 | BL45: 0 | BM45: 0 | BN45: 0 | BO45: 0 | BP45: 0 | BQ45: 0
AV46: 0 | AW46: 0 | AX46: 0 | AY46: 0 | AZ46: 0 | BA46: 0 | BB46: 0 | BC46: 0 | BD46: 0 | BE46: 0 | BF46: 0 | BG46: 0 | BH46: 0 | BI46: 0 | BJ46: 0 | BK46: 0 | BL46: 0 | BM46: 0 | BN46: 0 | BO46: 0 | BP46: 0 | BQ46: 0
AV47: 0 | AW47: 0 | AX47: 0 | AY47: 0 | AZ47: 0 | BA47: 0 | BB47: 0 | BC47: 0 | BD47: 0 | BE47: 0 | BF47: 0 | BG47: 0 | BH47: 0 | BI47: 0 | BJ47: 0 | BK47: 0 | BL47: 0 | BM47: 0 | BN47: 0 | BO47: 0 | BP47: 0 | BQ47: 0
AV48: 0 | AW48: 0 | AX48: 0 | AY48: 0 | AZ48: 0 | BA48: 0 | BB48: 0 | BC48: 0 | BD48: 0 | BE48: 0 | BF48: 0 | BG48: 0 | BH48: 0 | BI48: 0 | BJ48: 0 | BK48: 0 | BL48: 0 | BM48: 0 | BN48: 0 | BO48: 0 | BP48: 0 | BQ48: 0
AV49: 0 | AW49: 0 | AX49: 0 | AY49: 0 | AZ49: 0 | BA49: 0 | BB49: 0 | BC49: 0 | BD49: 0 | BE49: 0 | BF49: 0 | BG49: 0 | BH49: 0 | BI49: 0 | BJ49: 0 | BK49: 0 | BL49: 0 | BM49: 0 | BN49: 0 | BO49: 0 | BP49: 0 | BQ49: 0
AV50: 0 | AW50: 0 | AX50: 0 | AY50: 0 | AZ50: 0 | BA50: 0 | BB50: 0 | BC50: 0 | BD50: 0 | BE50: 0 | BF50: 0 | BG50: 0 | BH50: 0 | BI50: 0 | BJ50: 0 | BK50: 0 | BL50: 0 | BM50: 0 | BN50: 0 | BO50: 0 | BP50: 0 | BQ50: 0
AV51: 0 | AW51: 0 | AX51: 0 | AY51: 0 | AZ51: 0 | BA51: 0 | BB51: 0 | BC51: 0 | BD51: 0 | BE51: 0 | BF51: 0 | BG51: 0 | BH51: 0 | BI51: 0 | BJ51: 0 | BK51: 0 | BL51: 0 | BM51: 0 | BN51: 0 | BO51: 0 | BP51: 0 | BQ51: 0
AV52: 0 | AW52: 0 | AX52: 0 | AY52: 0 | AZ52: 0 | BA52: 0 | BB52: 0 | BC52: 0 | BD52: 0 | BE52: 0 | BF52: 0 | BG52: 0 | BH52: 0 | BI52: 0 | BJ52: 0 | BK52: 0 | BL52: 0 | BM52: 0 | BN52: 0 | BO52: 0 | BP52: 0 | BQ52: 0
AV53: 0 | AW53: 0 | AX53: 0 | AY53: 0 | AZ53: 0 | BA53: 0 | BB53: 0 | BC53: 0 | BD53: 0 | BE53: 0 | BF53: 0 | BG53: 0 | BH53: 0 | BI53: 0 | BJ53: 0 | BK53: 0 | BL53: 0 | BM53: 0 | BN53: 0 | BO53: 0 | BP53: 0 | BQ53: 0
AV54: 0 | AW54: 0 | AX54: 0 | AY54: 0 | AZ54: 0 | BA54: 0 | BB54: 0 | BC54: 0 | BD54: 0 | BE54: 0 | BF54: 0 | BG54: 0 | BH54: 0 | BI54: 0 | BJ54: 0 | BK54: 0 | BL54: 0 | BM54: 0 | BN54: 0 | BO54: 0 | BP54: 0 | BQ54: 0
AV55: 0 | AW55: 0 | AX55: 0 | AY55: 0 | AZ55: 0 | BA55: 0 | BB55: 0 | BC55: 0 | BD55: 0 | BE55: 0 | BF55: 0 | BG55: 0 | BH55: 0 | BI55: 0 | BJ55: 0 | BK55: 0 | BL55: 0 | BM55: 0 | BN55: 0 | BO55: 0 | BP55: 0 | BQ55: 0
AV56: 0 | AW56: 0 | AX56: 0 | AY56: 0 | AZ56: 0 | BA56: 0 | BB56: 0 | BC56: 0 | BD56: 0 | BE56: 0 | BF56: 0 | BG56: 0 | BH56: 0 | BI56: 0 | BJ56: 0 | BK56: 0 | BL56: 0 | BM56: 0 | BN56: 0 | BO56: 0 | BP56: 0 | BQ56: 0
AV57: 0 | AW57: 0 | AX57: 0 | AY57: 0 | AZ57: 0 | BA57: 0 | BB57: 0 | BC57: 0 | BD57: 0 | BE57: 0 | BF57: 0 | BG57: 0 | BH57: 0 | BI57: 0 | BJ57: 0 | BK57: 0 | BL57: 0 | BM57: 0 | BN57: 0 | BO57: 0 | BP57: 0 | BQ57: 0
AV58: 0 | AW58: 0 | AX58: 0 | AY58: 0 | AZ58: 0 | BA58: 0 | BB58: 0 | BC58: 0 | BD58: 0 | BE58: 0 | BF58: 0 | BG58: 0 | BH58: 0 | BI58: 0 | BJ58: 0 | BK58: 0 | BL58: 0 | BM58: 0 | BN58: 0 | BO58: 0 | BP58: 0 | BQ58: 0
AV59: 0 | AW59: 0 | AX59: 0 | AY59: 0 | AZ59: 0 | BA59: 0 | BB59: 0 | BC59: 0 | BD59: 0 | BE59: 0 | BF59: 0 | BG59: 0 | BH59: 0 | BI59: 0 | BJ59: 0 | BK59: 0 | BL59: 0 | BM59: 0 | BN59: 0 | BO59: 0 | BP59: 0 | BQ59: 0
AV60: 0 | AW60: 0 | AX60: 0 | AY60: 0 | AZ60: 0 | BA60: 0 | BB60: 0 | BC60: 0 | BD60: 0 | BE60: 0 | BF60: 0 | BG60: 0 | BH60: 0 | BI60: 0 | BJ60: 0 | BK60: 0 | BL60: 0 | BM60: 0 | BN60: 0 | BO60: 0 | BP60: 0 | BQ60: 0
AV61: 0 | AW61: 0 | AX61: 0 | AY61: 0 | AZ61: 0 | BA61: 0 | BB61: 0 | BC61: 0 | BD61: 0 | BE61: 0 | BF61: 0 | BG61: 0 | BH61: 0 | BI61: 0 | BJ61: 0 | BK61: 0 | BL61: 0 | BM61: 0 | BN61: 0 | BO61: 0 | BP61: 0 | BQ61: 0
AV62: 0 | AW62: 0 | AX62: 0 | AY62: 0 | AZ62: 0 | BA62: 0 | BB62: 0 | BC62: 0 | BD62: 0 | BE62: 0 | BF62: 0 | BG62: 0 | BH62: 0 | BI62: 0 | BJ62: 0 | BK62: 0 | BL62: 0 | BM62: 0 | BN62: 0 | BO62: 0 | BP62: 0 | BQ62: 0
AV63: 0 | AW63: 0 | AX63: 0 | AY63: 0 | AZ63: 0 | BA63: 0 | BB63: 0 | BC63: 0 | BD63: 0 | BE63: 0 | BF63: 0 | BG63: 0 | BH63: 0 | BI63: 0 | BJ63: 0 | BK63: 0 | BL63: 0 | BM63: 0 | BN63: 0 | BO63: 0 | BP63: 0 | BQ63: 0
AV64: 0 | AW64: 0 | AX64: 0 | AY64: 0 | AZ64: 0 | BA64: 0 | BB64: 0 | BC64: 0 | BD64: 0 | BE64: 0 | BF64: 0 | BG64: 0 | BH64: 0 | BI64: 0 | BJ64: 0 | BK64: 0 | BL64: 0 | BM64: 0 | BN64: 0 | BO64: 0 | BP64: 0 | BQ64: 0
AV65: 0 | AW65: 0 | AX65: 0 | AY65: 0 | AZ65: 0 | BA65: 0 | BB65: 0 | BC65: 0 | BD65: 0 | BE65: 0 | BF65: 0 | BG65: 0 | BH65: 0 | BI65: 0 | BJ65: 0 | BK65: 0 | BL65: 0 | BM65: 0 | BN65: 0 | BO65: 0 | BP65: 0 | BQ65: 0
Z66: =SUM(Z6:Z65) -> 373143.8333 | AA66: 1272086461 | AB66: 2597281822 | AC66: 0 | AD66: 0 | AE66: 2012408976 | AF66: 0 | AG66: 0 | AH66: 0 | AI66: 914893.2311 | AJ66: 0 | AK66: 1252129.448 | AL66: 2174517.995 | AM66: =SUM(AM6:AM65) -> 414808.5659 | AN66: 515541.7504 | AO66: 510185.1308 | AP66: 0 | AQ66: 1382965.645 | AR66: 1828108.288 | AS66: 1739470.868 | AT66: 0 | AV66: =SUM(AV6:AV65) -> 0 | AW66: 22331855.26 | AX66: 35015734.69 | AY66: 0 | AZ66: 0 | BA66: 14443937.19 | BB66: 0 | BC66: 0 | BD66: 0 | BE66: 28779479.82 | BF66: 0 | BG66: 2392381.075 | BH66: 2079165.528 | BI66: 11346.35084 | BJ66: 7972.11541 | BK66: 3505.393075 | BL66: 0 | BM66: 37230.96389 | BN66: 28038.51169 | BO66: 11741.21974 | BP66: 0 | BQ66: 105142388.1

Sheet Est2018TransRev
B1: ="Tariff Approval - "&'Model update'!C3 -> Tariff Approval - CitiPower
B3: ="ESTIMATED "&'Model update'!C8&" TRANSMISSION TARIFF REVENUE" -> ESTIMATED 2018 TRANSMISSION TARIFF REVENUE
D4: ="Current Transmission Tariffs (Pt-1) for "&'Model update'!$C$8 -> Current Transmission Tariffs (Pt-1) for 2018 | Z4: ="Estimated Quantities (Qt-1) for "&'Model update'!$C$8 -> Estimated Quantities (Qt-1) for 2018 | AV4: ="Estimated Revenue (Pt-1 "&'Model update'!$C$8&")*(Qt-1 " &'Model update'!$C$8&")" -> Estimated Revenue (Pt-1 2018)*(Qt-1 2018)
B5: ="Tariffs "&'Model update'!C8 -> Tariffs 2018 | D5: =Est2018DistRev!D5 -> CurrentTar Fixed | E5: =Est2018DistRev!E5 -> CurrentTar Anytime | F5: =Est2018DistRev!F5 -> CurrentTar PkBlk | I5: =Est2018DistRev!I5 -> CurrentTar OPkBlk1 | M5: =Est2018DistRev!M5 -> CurrentTar Dem kVA | N5: =Est2018DistRev!N5 -> CurrentTar Dem kW | O5: =Est2018DistRev!O5 -> CurrentTar Dem kW Sum | P5: =Est2018DistRev!P5 -> CurrentTar Dem kW Win | Q5: =Est2018DistRev!Q5 -> CurrentTar SumBlk1 | R5: =Est2018DistRev!R5 -> CurrentTar SumBlk2 | S5: =Est2018DistRev!S5 -> CurrentTar SumBlk3 | U5: =Est2018DistRev!U5 -> CurrentTar WtrBlk1 | V5: =Est2018DistRev!V5 -> CurrentTar WtrBlk2 | W5: =Est2018DistRev!W5 -> CurrentTar WtrBlk3 | Z5: =Est2018DistRev!Z5 -> EstVol Fixed | AA5: =Est2018DistRev!AA5 -> EstVol Anytime | AB5: =Est2018DistRev!AB5 -> EstVol Pk | AE5: =Est2018DistRev!AE5 -> EstVol Opk | AI5: =Est2018DistRev!AI5 -> EstVol Dem kVA | AJ5: =Est2018DistRev!AJ5 -> EstVol Dem kW | AK5: =Est2018DistRev!AK5 -> EstVol Dem kW Sum | AL5: =Est2018DistRev!AL5 -> EstVol Dem kW Win | AM5: =Est2018DistRev!AM5 -> EstVol SumBlk1 | AN5: =Est2018DistRev!AN5 -> EstVol SumBlk2 | AO5: =Est2018DistRev!AO5 -> EstVol SumBlk3 | AQ5: =Est2018DistRev!AQ5 -> EstVol WtrBlk1 | AR5: =Est2018DistRev!AR5 -> EstVol WtrBlk2 | AS5: =Est2018DistRev!AS5 -> EstVol WtrBlk3 | AV5: =Est2018DistRev!AV5 -> EstRev Fixed | AW5: =Est2018DistRev!AW5 -> EstRev Anytime | AX5: =Est2018DistRev!AX5 -> EstRev Pk | BA5: =Est2018DistRev!BA5 -> EstRev Opk | BE5: =Est2018DistRev!BE5 -> EstRev Dem kVA | BF5: =Est2018DistRev!BF5 -> EstRev Dem kW | BG5: =Est2018DistRev!BG5 -> EstRev Dem kW Sum | BH5: =Est2018DistRev!BH5 -> EstRev Dem kW Win | BI5: =Est2018DistRev!BI5 -> EstRev SumBlk1 | BJ5: =Est2018DistRev!BJ5 -> EstRev SumBlk2 | BK5: =Est2018DistRev!BK5 -> EstRev SumBlk3 | BM5: =Est2018DistRev!BM5 -> EstRev WtrBlk1 | BN5: =Est2018DistRev!BN5 -> EstRev WtrBlk2 | BO5: =Est2018DistRev!BO5 -> EstRev WtrBlk3 | BQ5: =Est2018DistRev!BQ5 -> EstRev Total
AV6: =D6*Z6 -> 0 | AW6: =E6/100*AA6 -> 0 | AX6: 0 | AY6: 0 | AZ6: 0 | BA6: 0 | BB6: 0 | BC6: 0 | BD6: 0 | BE6: =M6*AI6 -> 0 | BF6: 0 | BG6: 0 | BH6: 0 | BI6: =Q6/100*AM6 -> 0 | BJ6: 0 | BK6: 0 | BL6: 0 | BM6: 0 | BN6: 0 | BO6: 0 | BP6: 0 | BQ6: =SUM(AV6:BP6) -> 0
B7: =Est2018DistRev!B7 -> Residential Single Rate | D7: 0 | E7: 1.75 | F7: 0 | G7: 0 | H7: 0 | I7: 0 | J7: 0 | K7: 0 | L7: 0 | M7: 0 | N7: 0 | O7: 0 | P7: 0 | Q7: 0 | R7: 0 | S7: 0 | T7: 0 | U7: 0 | V7: 0 | W7: 0 | X7: 0 | Z7: =Est2018DistRev!Z7 -> 203567.5438 | AA7: =Est2018DistRev!AA7 -> 837924196.2 | AB7: =Est2018DistRev!AB7 -> 0 | AC7: =Est2018DistRev!AC7 -> 0 | AD7: =Est2018DistRev!AD7 -> 0 | AE7: =Est2018DistRev!AE7 -> 0 | AF7: =Est2018DistRev!AF7 -> 0 | AG7: =Est2018DistRev!AG7 -> 0 | AH7: =Est2018DistRev!AH7 -> 0 | AI7: =Est2018DistRev!AI7 -> 0 | AJ7: =Est2018DistRev!AJ7 -> 0 | AK7: =Est2018DistRev!AK7 -> 0 | AL7: =Est2018DistRev!AL7 -> 0 | AM7: =Est2018DistRev!AM7 -> 0 | AN7: =Est2018DistRev!AN7 -> 0 | AO7: =Est2018DistRev!AO7 -> 0 | AP7: =Est2018DistRev!AP7 -> 0 | AQ7: =Est2018DistRev!AQ7 -> 0 | AR7: =Est2018DistRev!AR7 -> 0 | AS7: =Est2018DistRev!AS7 -> 0 | AT7: =Est2018DistRev!AT7 -> 0 | AV7: =D7*Z7 -> 0 | AW7: =E7/100*AA7 -> 14663673.43 | AX7: =F7/100*AB7 -> 0 | AY7: =G7/100*AC7 -> 0 | AZ7: =H7/100*AD7 -> 0 | BA7: =I7/100*AE7 -> 0 | BB7: =J7/100*AF7 -> 0 | BC7: =K7/100*AG7 -> 0 | BD7: =L7/100*AH7 -> 0 | BE7: =M7*AI7 -> 0 | BF7: =N7*AJ7 -> 0 | BG7: =O7*AK7 -> 0 | BH7: =P7*AL7 -> 0 | BI7: =Q7/100*AM7 -> 0 | BJ7: =R7/100*AN7 -> 0 | BK7: =S7/100*AO7 -> 0 | BL7: =T7/100*AP7 -> 0 | BM7: =U7/100*AQ7 -> 0 | BN7: =V7/100*AR7 -> 0 | BO7: =W7/100*AS7 -> 0 | BP7: =X7/100*AT7 -> 0 | BQ7: =SUM(AV7:BP7) -> 14663673.43
B8: =Est2018DistRev!B8 -> Residential Single Rate - Bulk | D8: 0 | E8: 0.78 | F8: 0 | G8: 0 | H8: 0 | I8: 0 | J8: 0 | K8: 0 | L8: 0 | M8: 0 | N8: 0 | O8: 0 | P8: 0 | Q8: 0 | R8: 0 | S8: 0 | T8: 0 | U8: 0 | V8: 0 | W8: 0 | X8: 0 | Z8: =Est2018DistRev!Z8 -> 30796.1653 | AA8: =Est2018DistRev!AA8 -> 103793921.8 | AB8: =Est2018DistRev!AB8 -> 0 | AC8: =Est2018DistRev!AC8 -> 0 | AD8: =Est2018DistRev!AD8 -> 0 | AE8: =Est2018DistRev!AE8 -> 0 | AF8: =Est2018DistRev!AF8 -> 0 | AG8: =Est2018DistRev!AG8 -> 0 | AH8: =Est2018DistRev!AH8 -> 0 | AI8: =Est2018DistRev!AI8 -> 0 | AJ8: =Est2018DistRev!AJ8 -> 0 | AK8: =Est2018DistRev!AK8 -> 0 | AL8: =Est2018DistRev!AL8 -> 0 | AM8: =Est2018DistRev!AM8 -> 0 | AN8: =Est2018DistRev!AN8 -> 0 | AO8: =Est2018DistRev!AO8 -> 0 | AP8: =Est2018DistRev!AP8 -> 0 | AQ8: =Est2018DistRev!AQ8 -> 0 | AR8: =Est2018DistRev!AR8 -> 0 | AS8: =Est2018DistRev!AS8 -> 0 | AT8: =Est2018DistRev!AT8 -> 0 | AV8: 0 | AW8: 809592.5902 | AX8: 0 | AY8: 0 | AZ8: 0 | BA8: 0 | BB8: 0 | BC8: 0 | BD8: 0 | BE8: 0 | BF8: 0 | BG8: 0 | BH8: 0 | BI8: 0 | BJ8: 0 | BK8: 0 | BL8: 0 | BM8: 0 | BN8: 0 | BO8: 0 | BP8: 0 | BQ8: 809592.5902
B9: =Est2018DistRev!B9 -> Residential - flexible pricing | D9: 0 | E9: 0 | F9: 0 | G9: 0 | H9: 0 | I9: 0 | J9: 0 | K9: 0 | L9: 0 | M9: 0 | N9: 0 | O9: 0 | P9: 0 | Q9: 2.15 | R9: 1.45 | S9: 0.57 | T9: 0 | U9: 2.15 | V9: 1.45 | W9: 0.57 | X9: 0 | Z9: =Est2018DistRev!Z9 -> 692.1990213 | AA9: =Est2018DistRev!AA9 -> 0 | AB9: =Est2018DistRev!AB9 -> 0 | AC9: =Est2018DistRev!AC9 -> 0 | AD9: =Est2018DistRev!AD9 -> 0 | AE9: =Est2018DistRev!AE9 -> 0 | AF9: =Est2018DistRev!AF9 -> 0 | AG9: =Est2018DistRev!AG9 -> 0 | AH9: =Est2018DistRev!AH9 -> 0 | AI9: =Est2018DistRev!AI9 -> 0 | AJ9: =Est2018DistRev!AJ9 -> 0 | AK9: =Est2018DistRev!AK9 -> 0 | AL9: =Est2018DistRev!AL9 -> 0 | AM9: =Est2018DistRev!AM9 -> 209399.3886 | AN9: =Est2018DistRev!AN9 -> 421530.7094 | AO9: =Est2018DistRev!AO9 -> 295381.0238 | AP9: =Est2018DistRev!AP9 -> 0 | AQ9: =Est2018DistRev!AQ9 -> 766444.7639 | AR9: =Est2018DistRev!AR9 -> 1512235.207 | AS9: =Est2018DistRev!AS9 -> 1077906.585 | AT9: =Est2018DistRev!AT9 -> 0 | AV9: 0 | AW9: 0 | AX9: 0 | AY9: 0 | AZ9: 0 | BA9: 0 | BB9: 0 | BC9: 0 | BD9: 0 | BE9: 0 | BF9: 0 | BG9: 0 | BH9: 0 | BI9: 4502.086855 | BJ9: 6112.195286 | BK9: 1683.671836 | BL9: 0 | BM9: 16478.56242 | BN9: 21927.41051 | BO9: 6144.067535 | BP9: 0 | BQ9: 56847.99444
B10: =Est2018DistRev!B10 -> Residential - flexible pricing bulk | D10: 0 | E10: 0 | F10: 0 | G10: 0 | H10: 0 | I10: 0 | J10: 0 | K10: 0 | L10: 0 | M10: 0 | N10: 0 | O10: 0 | P10: 0 | Q10: 1.72 | R10: 1.16 | S10: 0.45 | T10: 0 | U10: 1.72 | V10: 1.16 | W10: 0.45 | X10: 0 | Z10: =Est2018DistRev!Z10 -> 86 | AA10: =Est2018DistRev!AA10 -> 0 | AB10: =Est2018DistRev!AB10 -> 0 | AC10: =Est2018DistRev!AC10 -> 0 | AD10: =Est2018DistRev!AD10 -> 0 | AE10: =Est2018DistRev!AE10 -> 0 | AF10: =Est2018DistRev!AF10 -> 0 | AG10: =Est2018DistRev!AG10 -> 0 | AH10: =Est2018DistRev!AH10 -> 0 | AI10: =Est2018DistRev!AI10 -> 0 | AJ10: =Est2018DistRev!AJ10 -> 0 | AK10: =Est2018DistRev!AK10 -> 0 | AL10: =Est2018DistRev!AL10 -> 0 | AM10: =Est2018DistRev!AM10 -> 14822.46394 | AN10: =Est2018DistRev!AN10 -> 30911.09407 | AO10: =Est2018DistRev!AO10 -> 25018.29177 | AP10: =Est2018DistRev!AP10 -> 0 | AQ10: =Est2018DistRev!AQ10 -> 55723.87165 | AR10: =Est2018DistRev!AR10 -> 110586.6363 | AS10: =Est2018DistRev!AS10 -> 89504.20804 | AT10: =Est2018DistRev!AT10 -> 0 | AV10: 0 | AW10: 0 | AX10: 0 | AY10: 0 | AZ10: 0 | BA10: 0 | BB10: 0 | BC10: 0 | BD10: 0 | BE10: 0 | BF10: 0 | BG10: 0 | BH10: 0 | BI10: 254.9463797 | BJ10: 358.5686912 | BK10: 112.582313 | BL10: 0 | BM10: 958.4505924 | BN10: 1282.804982 | BO10: 402.7689362 | BP10: 0 | BQ10: 3370.121894
B11: =Est2018DistRev!B11 -> Residential Two Rate 5d | D11: 0 | E11: 0 | F11: 1.94 | G11: 0 | H11: 0 | I11: 0.41 | J11: 0 | K11: 0 | L11: 0 | M11: 0 | N11: 0 | O11: 0 | P11: 0 | Q11: 0 | R11: 0 | S11: 0 | T11: 0 | U11: 0 | V11: 0 | W11: 0 | X11: 0 | Z11: =Est2018DistRev!Z11 -> 10844.91892 | AA11: =Est2018DistRev!AA11 -> 0 | AB11: =Est2018DistRev!AB11 -> 34303841.22 | AC11: =Est2018DistRev!AC11 -> 0 | AD11: =Est2018DistRev!AD11 -> 0 | AE11: =Est2018DistRev!AE11 -> 29910228.53 | AF11: =Est2018DistRev!AF11 -> 0 | AG11: =Est2018DistRev!AG11 -> 0 | AH11: =Est2018DistRev!AH11 -> 0 | AI11: =Est2018DistRev!AI11 -> 0 | AJ11: =Est2018DistRev!AJ11 -> 0 | AK11: =Est2018DistRev!AK11 -> 0 | AL11: =Est2018DistRev!AL11 -> 0 | AM11: =Est2018DistRev!AM11 -> 0 | AN11: =Est2018DistRev!AN11 -> 0 | AO11: =Est2018DistRev!AO11 -> 0 | AP11: =Est2018DistRev!AP11 -> 0 | AQ11: =Est2018DistRev!AQ11 -> 0 | AR11: =Est2018DistRev!AR11 -> 0 | AS11: =Est2018DistRev!AS11 -> 0 | AT11: =Est2018DistRev!AT11 -> 0 | AV11: 0 | AW11: 0 | AX11: 665494.5196 | AY11: 0 | AZ11: 0 | BA11: 122631.937 | BB11: 0 | BC11: 0 | BD11: 0 | BE11: 0 | BF11: 0 | BG11: 0 | BH11: 0 | BI11: 0 | BJ11: 0 | BK11: 0 | BL11: 0 | BM11: 0 | BN11: 0 | BO11: 0 | BP11: 0 | BQ11: 788126.4566
B12: =Est2018DistRev!B12 -> Residential Two Rate 5d - Bulk | D12: 0 | E12: 0 | F12: 1.65 | G12: 0 | H12: 0 | I12: 0.38 | J12: 0 | K12: 0 | L12: 0 | M12: 0 | N12: 0 | O12: 0 | P12: 0 | Q12: 0 | R12: 0 | S12: 0 | T12: 0 | U12: 0 | V12: 0 | W12: 0 | X12: 0 | Z12: =Est2018DistRev!Z12 -> 4325.479896 | AA12: =Est2018DistRev!AA12 -> 0 | AB12: =Est2018DistRev!AB12 -> 11937966.33 | AC12: =Est2018DistRev!AC12 -> 0 | AD12: =Est2018DistRev!AD12 -> 0 | AE12: =Est2018DistRev!AE12 -> 10332699.16 | AF12: =Est2018DistRev!AF12 -> 0 | AG12: =Est2018DistRev!AG12 -> 0 | AH12: =Est2018DistRev!AH12 -> 0 | AI12: =Est2018DistRev!AI12 -> 0 | AJ12: =Est2018DistRev!AJ12 -> 0 | AK12: =Est2018DistRev!AK12 -> 0 | AL12: =Est2018DistRev!AL12 -> 0 | AM12: =Est2018DistRev!AM12 -> 0 | AN12: =Est2018DistRev!AN12 -> 0 | AO12: =Est2018DistRev!AO12 -> 0 | AP12: =Est2018DistRev!AP12 -> 0 | AQ12: =Est2018DistRev!AQ12 -> 0 | AR12: =Est2018DistRev!AR12 -> 0 | AS12: =Est2018DistRev!AS12 -> 0 | AT12: =Est2018DistRev!AT12 -> 0 | AV12: 0 | AW12: 0 | AX12: 196976.4445 | AY12: 0 | AZ12: 0 | BA12: 39264.2568 | BB12: 0 | BC12: 0 | BD12: 0 | BE12: 0 | BF12: 0 | BG12: 0 | BH12: 0 | BI12: 0 | BJ12: 0 | BK12: 0 | BL12: 0 | BM12: 0 | BN12: 0 | BO12: 0 | BP12: 0 | BQ12: 236240.7013
B13: =Est2018DistRev!B13 -> Residential Interval | D13: 0 | E13: 0 | F13: 1.94 | G13: 0 | H13: 0 | I13: 0.41 | J13: 0 | K13: 0 | L13: 0 | M13: 0 | N13: 0 | O13: 0 | P13: 0 | Q13: 0 | R13: 0 | S13: 0 | T13: 0 | U13: 0 | V13: 0 | W13: 0 | X13: 0 | Z13: =Est2018DistRev!Z13 -> 17220.89451 | AA13: =Est2018DistRev!AA13 -> 0 | AB13: =Est2018DistRev!AB13 -> 60059088.86 | AC13: =Est2018DistRev!AC13 -> 0 | AD13: =Est2018DistRev!AD13 -> 0 | AE13: =Est2018DistRev!AE13 -> 52811678.16 | AF13: =Est2018DistRev!AF13 -> 0 | AG13: =Est2018DistRev!AG13 -> 0 | AH13: =Est2018DistRev!AH13 -> 0 | AI13: =Est2018DistRev!AI13 -> 0 | AJ13: =Est2018DistRev!AJ13 -> 0 | AK13: =Est2018DistRev!AK13 -> 0 | AL13: =Est2018DistRev!AL13 -> 0 | AM13: =Est2018DistRev!AM13 -> 0 | AN13: =Est2018DistRev!AN13 -> 0 | AO13: =Est2018DistRev!AO13 -> 0 | AP13: =Est2018DistRev!AP13 -> 0 | AQ13: =Est2018DistRev!AQ13 -> 0 | AR13: =Est2018DistRev!AR13 -> 0 | AS13: =Est2018DistRev!AS13 -> 0 | AT13: =Est2018DistRev!AT13 -> 0 | AV13: 0 | AW13: 0 | AX13: 1165146.324 | AY13: 0 | AZ13: 0 | BA13: 216527.8805 | BB13: 0 | BC13: 0 | BD13: 0 | BE13: 0 | BF13: 0 | BG13: 0 | BH13: 0 | BI13: 0 | BJ13: 0 | BK13: 0 | BL13: 0 | BM13: 0 | BN13: 0 | BO13: 0 | BP13: 0 | BQ13: 1381674.204
B14: =Est2018DistRev!B14 -> Residential Interval - Bulk | D14: 0 | E14: 0 | F14: 1.65 | G14: 0 | H14: 0 | I14: 0.38 | J14: 0 | K14: 0 | L14: 0 | M14: 0 | N14: 0 | O14: 0 | P14: 0 | Q14: 0 | R14: 0 | S14: 0 | T14: 0 | U14: 0 | V14: 0 | W14: 0 | X14: 0 | Z14: =Est2018DistRev!Z14 -> 8720.076186 | AA14: =Est2018DistRev!AA14 -> 0 | AB14: =Est2018DistRev!AB14 -> 14985083.09 | AC14: =Est2018DistRev!AC14 -> 0 | AD14: =Est2018DistRev!AD14 -> 0 | AE14: =Est2018DistRev!AE14 -> 14138212.66 | AF14: =Est2018DistRev!AF14 -> 0 | AG14: =Est2018DistRev!AG14 -> 0 | AH14: =Est2018DistRev!AH14 -> 0 | AI14: =Est2018DistRev!AI14 -> 0 | AJ14: =Est2018DistRev!AJ14 -> 0 | AK14: =Est2018DistRev!AK14 -> 0 | AL14: =Est2018DistRev!AL14 -> 0 | AM14: =Est2018DistRev!AM14 -> 0 | AN14: =Est2018DistRev!AN14 -> 0 | AO14: =Est2018DistRev!AO14 -> 0 | AP14: =Est2018DistRev!AP14 -> 0 | AQ14: =Est2018DistRev!AQ14 -> 0 | AR14: =Est2018DistRev!AR14 -> 0 | AS14: =Est2018DistRev!AS14 -> 0 | AT14: =Est2018DistRev!AT14 -> 0 | AV14: 0 | AW14: 0 | AX14: 247253.871 | AY14: 0 | AZ14: 0 | BA14: 53725.20812 | BB14: 0 | BC14: 0 | BD14: 0 | BE14: 0 | BF14: 0 | BG14: 0 | BH14: 0 | BI14: 0 | BJ14: 0 | BK14: 0 | BL14: 0 | BM14: 0 | BN14: 0 | BO14: 0 | BP14: 0 | BQ14: 300979.0791
B15: =Est2018DistRev!B15 -> Residential Two Rate 5d - Controlled Load | D15: 0 | E15: 0 | F15: 0 | G15: 0 | H15: 0 | I15: 0.35 | J15: 0 | K15: 0 | L15: 0 | M15: 0 | N15: 0 | O15: 0 | P15: 0 | Q15: 0 | R15: 0 | S15: 0 | T15: 0 | U15: 0 | V15: 0 | W15: 0 | X15: 0 | Z15: =Est2018DistRev!Z15 -> 9721.635616 | AA15: =Est2018DistRev!AA15 -> 0 | AB15: =Est2018DistRev!AB15 -> 0 | AC15: =Est2018DistRev!AC15 -> 0 | AD15: =Est2018DistRev!AD15 -> 0 | AE15: =Est2018DistRev!AE15 -> 19909930.71 | AF15: =Est2018DistRev!AF15 -> 0 | AG15: =Est2018DistRev!AG15 -> 0 | AH15: =Est2018DistRev!AH15 -> 0 | AI15: =Est2018DistRev!AI15 -> 0 | AJ15: =Est2018DistRev!AJ15 -> 0 | AK15: =Est2018DistRev!AK15 -> 0 | AL15: =Est2018DistRev!AL15 -> 0 | AM15: =Est2018DistRev!AM15 -> 0 | AN15: =Est2018DistRev!AN15 -> 0 | AO15: =Est2018DistRev!AO15 -> 0 | AP15: =Est2018DistRev!AP15 -> 0 | AQ15: =Est2018DistRev!AQ15 -> 0 | AR15: =Est2018DistRev!AR15 -> 0 | AS15: =Est2018DistRev!AS15 -> 0 | AT15: =Est2018DistRev!AT15 -> 0 | AV15: 0 | AW15: 0 | AX15: 0 | AY15: 0 | AZ15: 0 | BA15: 69684.75748 | BB15: 0 | BC15: 0 | BD15: 0 | BE15: 0 | BF15: 0 | BG15: 0 | BH15: 0 | BI15: 0 | BJ15: 0 | BK15: 0 | BL15: 0 | BM15: 0 | BN15: 0 | BO15: 0 | BP15: 0 | BQ15: 69684.75748
B16: =Est2018DistRev!B16 -> Residential Two Rate 5d - Bulk - Controlled Load | D16: 0 | E16: 0 | F16: 0 | G16: 0 | H16: 0 | I16: 0.27 | J16: 0 | K16: 0 | L16: 0 | M16: 0 | N16: 0 | O16: 0 | P16: 0 | Q16: 0 | R16: 0 | S16: 0 | T16: 0 | U16: 0 | V16: 0 | W16: 0 | X16: 0 | Z16: =Est2018DistRev!Z16 -> 3658.606663 | AA16: =Est2018DistRev!AA16 -> 0 | AB16: =Est2018DistRev!AB16 -> 0 | AC16: =Est2018DistRev!AC16 -> 0 | AD16: =Est2018DistRev!AD16 -> 0 | AE16: =Est2018DistRev!AE16 -> 7350471.826 | AF16: =Est2018DistRev!AF16 -> 0 | AG16: =Est2018DistRev!AG16 -> 0 | AH16: =Est2018DistRev!AH16 -> 0 | AI16: =Est2018DistRev!AI16 -> 0 | AJ16: =Est2018DistRev!AJ16 -> 0 | AK16: =Est2018DistRev!AK16 -> 0 | AL16: =Est2018DistRev!AL16 -> 0 | AM16: =Est2018DistRev!AM16 -> 0 | AN16: =Est2018DistRev!AN16 -> 0 | AO16: =Est2018DistRev!AO16 -> 0 | AP16: =Est2018DistRev!AP16 -> 0 | AQ16: =Est2018DistRev!AQ16 -> 0 | AR16: =Est2018DistRev!AR16 -> 0 | AS16: =Est2018DistRev!AS16 -> 0 | AT16: =Est2018DistRev!AT16 -> 0 | AV16: 0 | AW16: 0 | AX16: 0 | AY16: 0 | AZ16: 0 | BA16: 19846.27393 | BB16: 0 | BC16: 0 | BD16: 0 | BE16: 0 | BF16: 0 | BG16: 0 | BH16: 0 | BI16: 0 | BJ16: 0 | BK16: 0 | BL16: 0 | BM16: 0 | BN16: 0 | BO16: 0 | BP16: 0 | BQ16: 19846.27393
B17: =Est2018DistRev!B17 -> Dedicated Circuit | D17: 0 | E17: 0 | F17: 0 | G17: 0 | H17: 0 | I17: 0.35 | J17: 0 | K17: 0 | L17: 0 | M17: 0 | N17: 0 | O17: 0 | P17: 0 | Q17: 0 | R17: 0 | S17: 0 | T17: 0 | U17: 0 | V17: 0 | W17: 0 | X17: 0 | Z17: =Est2018DistRev!Z17 -> 22642.03058 | AA17: =Est2018DistRev!AA17 -> 0 | AB17: =Est2018DistRev!AB17 -> 0 | AC17: =Est2018DistRev!AC17 -> 0 | AD17: =Est2018DistRev!AD17 -> 0 | AE17: =Est2018DistRev!AE17 -> 33890069.86 | AF17: =Est2018DistRev!AF17 -> 0 | AG17: =Est2018DistRev!AG17 -> 0 | AH17: =Est2018DistRev!AH17 -> 0 | AI17: =Est2018DistRev!AI17 -> 0 | AJ17: =Est2018DistRev!AJ17 -> 0 | AK17: =Est2018DistRev!AK17 -> 0 | AL17: =Est2018DistRev!AL17 -> 0 | AM17: =Est2018DistRev!AM17 -> 0 | AN17: =Est2018DistRev!AN17 -> 0 | AO17: =Est2018DistRev!AO17 -> 0 | AP17: =Est2018DistRev!AP17 -> 0 | AQ17: =Est2018DistRev!AQ17 -> 0 | AR17: =Est2018DistRev!AR17 -> 0 | AS17: =Est2018DistRev!AS17 -> 0 | AT17: =Est2018DistRev!AT17 -> 0 | AV17: 0 | AW17: 0 | AX17: 0 | AY17: 0 | AZ17: 0 | BA17: 118615.2445 | BB17: 0 | BC17: 0 | BD17: 0 | BE17: 0 | BF17: 0 | BG17: 0 | BH17: 0 | BI17: 0 | BJ17: 0 | BK17: 0 | BL17: 0 | BM17: 0 | BN17: 0 | BO17: 0 | BP17: 0 | BQ17: 118615.2445
B18: =Est2018DistRev!B18 -> Dedicated Circuit - Bulk | D18: 0 | E18: 0 | F18: 0 | G18: 0 | H18: 0 | I18: 0.27 | J18: 0 | K18: 0 | L18: 0 | M18: 0 | N18: 0 | O18: 0 | P18: 0 | Q18: 0 | R18: 0 | S18: 0 | T18: 0 | U18: 0 | V18: 0 | W18: 0 | X18: 0 | Z18: =Est2018DistRev!Z18 -> 1081.479218 | AA18: =Est2018DistRev!AA18 -> 0 | AB18: =Est2018DistRev!AB18 -> 0 | AC18: =Est2018DistRev!AC18 -> 0 | AD18: =Est2018DistRev!AD18 -> 0 | AE18: =Est2018DistRev!AE18 -> 2219211.192 | AF18: =Est2018DistRev!AF18 -> 0 | AG18: =Est2018DistRev!AG18 -> 0 | AH18: =Est2018DistRev!AH18 -> 0 | AI18: =Est2018DistRev!AI18 -> 0 | AJ18: =Est2018DistRev!AJ18 -> 0 | AK18: =Est2018DistRev!AK18 -> 0 | AL18: =Est2018DistRev!AL18 -> 0 | AM18: =Est2018DistRev!AM18 -> 0 | AN18: =Est2018DistRev!AN18 -> 0 | AO18: =Est2018DistRev!AO18 -> 0 | AP18: =Est2018DistRev!AP18 -> 0 | AQ18: =Est2018DistRev!AQ18 -> 0 | AR18: =Est2018DistRev!AR18 -> 0 | AS18: =Est2018DistRev!AS18 -> 0 | AT18: =Est2018DistRev!AT18 -> 0 | AV18: 0 | AW18: 0 | AX18: 0 | AY18: 0 | AZ18: 0 | BA18: 5991.870219 | BB18: 0 | BC18: 0 | BD18: 0 | BE18: 0 | BF18: 0 | BG18: 0 | BH18: 0 | BI18: 0 | BJ18: 0 | BK18: 0 | BL18: 0 | BM18: 0 | BN18: 0 | BO18: 0 | BP18: 0 | BQ18: 5991.870219
B19: =Est2018DistRev!B19 -> Residential Demand | D19: 0 | E19: 0.58 | F19: 0 | G19: 0 | H19: 0 | I19: 0 | J19: 0 | K19: 0 | L19: 0 | M19: 0 | N19: 0 | O19: 1.41 | P19: 0.48 | Q19: 0 | R19: 0 | S19: 0 | T19: 0 | U19: 0 | V19: 0 | W19: 0 | X19: 0 | Z19: =Est2018DistRev!Z19 -> 5 | AA19: =Est2018DistRev!AA19 -> 27500 | AB19: =Est2018DistRev!AB19 -> 0 | AC19: =Est2018DistRev!AC19 -> 0 | AD19: =Est2018DistRev!AD19 -> 0 | AE19: =Est2018DistRev!AE19 -> 0 | AF19: =Est2018DistRev!AF19 -> 0 | AG19: =Est2018DistRev!AG19 -> 0 | AH19: =Est2018DistRev!AH19 -> 0 | AI19: =Est2018DistRev!AI19 -> 0 | AJ19: =Est2018DistRev!AJ19 -> 0 | AK19: =Est2018DistRev!AK19 -> 62.78538813 | AL19: =Est2018DistRev!AL19 -> 100.456621 | AM19: =Est2018DistRev!AM19 -> 0 | AN19: =Est2018DistRev!AN19 -> 0 | AO19: =Est2018DistRev!AO19 -> 0 | AP19: =Est2018DistRev!AP19 -> 0 | AQ19: =Est2018DistRev!AQ19 -> 0 | AR19: =Est2018DistRev!AR19 -> 0 | AS19: =Est2018DistRev!AS19 -> 0 | AT19: =Est2018DistRev!AT19 -> 0 | AV19: 0 | AW19: 159.5 | AX19: 0 | AY19: 0 | AZ19: 0 | BA19: 0 | BB19: 0 | BC19: 0 | BD19: 0 | BE19: 0 | BF19: 0 | BG19: 88.52739726 | BH19: 48.21917808 | BI19: 0 | BJ19: 0 | BK19: 0 | BL19: 0 | BM19: 0 | BN19: 0 | BO19: 0 | BP19: 0 | BQ19: 296.2465753
B20: =Est2018DistRev!B20 -> Residential Bulk Demand | D20: 0 | E20: 0.36 | F20: 0 | G20: 0 | H20: 0 | I20: 0 | J20: 0 | K20: 0 | L20: 0 | M20: 0 | N20: 0 | O20: 1.03 | P20: 0.34 | Q20: 0 | R20: 0 | S20: 0 | T20: 0 | U20: 0 | V20: 0 | W20: 0 | X20: 0 | Z20: =Est2018DistRev!Z20 -> 1 | AA20: =Est2018DistRev!AA20 -> 5500 | AB20: =Est2018DistRev!AB20 -> 0 | AC20: =Est2018DistRev!AC20 -> 0 | AD20: =Est2018DistRev!AD20 -> 0 | AE20: =Est2018DistRev!AE20 -> 0 | AF20: =Est2018DistRev!AF20 -> 0 | AG20: =Est2018DistRev!AG20 -> 0 | AH20: =Est2018DistRev!AH20 -> 0 | AI20: =Est2018DistRev!AI20 -> 0 | AJ20: =Est2018DistRev!AJ20 -> 0 | AK20: =Est2018DistRev!AK20 -> 12.55707763 | AL20: =Est2018DistRev!AL20 -> 20.0913242 | AM20: =Est2018DistRev!AM20 -> 0 | AN20: =Est2018DistRev!AN20 -> 0 | AO20: =Est2018DistRev!AO20 -> 0 | AP20: =Est2018DistRev!AP20 -> 0 | AQ20: =Est2018DistRev!AQ20 -> 0 | AR20: =Est2018DistRev!AR20 -> 0 | AS20: =Est2018DistRev!AS20 -> 0 | AT20: =Est2018DistRev!AT20 -> 0 | AV20: 0 | AW20: 19.8 | AX20: 0 | AY20: 0 | AZ20: 0 | BA20: 0 | BB20: 0 | BC20: 0 | BD20: 0 | BE20: 0 | BF20: 0 | BG20: 12.93378995 | BH20: 6.831050228 | BI20: 0 | BJ20: 0 | BK20: 0 | BL20: 0 | BM20: 0 | BN20: 0 | BO20: 0 | BP20: 0 | BQ20: 39.56484018
B21: =Est2018DistRev!B21 -> Non-Residential Single Rate | D21: 0 | E21: 1.91 | F21: 0 | G21: 0 | H21: 0 | I21: 0 | J21: 0 | K21: 0 | L21: 0 | M21: 0 | N21: 0 | O21: 0 | P21: 0 | Q21: 0 | R21: 0 | S21: 0 | T21: 0 | U21: 0 | V21: 0 | W21: 0 | X21: 0 | Z21: =Est2018DistRev!Z21 -> 18214.93199 | AA21: =Est2018DistRev!AA21 -> 220224547 | AB21: =Est2018DistRev!AB21 -> 0 | AC21: =Est2018DistRev!AC21 -> 0 | AD21: =Est2018DistRev!AD21 -> 0 | AE21: =Est2018DistRev!AE21 -> 0 | AF21: =Est2018DistRev!AF21 -> 0 | AG21: =Est2018DistRev!AG21 -> 0 | AH21: =Est2018DistRev!AH21 -> 0 | AI21: =Est2018DistRev!AI21 -> 0 | AJ21: =Est2018DistRev!AJ21 -> 0 | AK21: =Est2018DistRev!AK21 -> 0 | AL21: =Est2018DistRev!AL21 -> 0 | AM21: =Est2018DistRev!AM21 -> 0 | AN21: =Est2018DistRev!AN21 -> 0 | AO21: =Est2018DistRev!AO21 -> 0 | AP21: =Est2018DistRev!AP21 -> 0 | AQ21: =Est2018DistRev!AQ21 -> 0 | AR21: =Est2018DistRev!AR21 -> 0 | AS21: =Est2018DistRev!AS21 -> 0 | AT21: =Est2018DistRev!AT21 -> 0 | AV21: 0 | AW21: 4206288.847 | AX21: 0 | AY21: 0 | AZ21: 0 | BA21: 0 | BB21: 0 | BC21: 0 | BD21: 0 | BE21: 0 | BF21: 0 | BG21: 0 | BH21: 0 | BI21: 0 | BJ21: 0 | BK21: 0 | BL21: 0 | BM21: 0 | BN21: 0 | BO21: 0 | BP21: 0 | BQ21: 4206288.847
B22: =Est2018DistRev!B22 -> Non-Residential Single Rate - Bulk | D22: 0 | E22: 1.46 | F22: 0 | G22: 0 | H22: 0 | I22: 0 | J22: 0 | K22: 0 | L22: 0 | M22: 0 | N22: 0 | O22: 0 | P22: 0 | Q22: 0 | R22: 0 | S22: 0 | T22: 0 | U22: 0 | V22: 0 | W22: 0 | X22: 0 | Z22: =Est2018DistRev!Z22 -> 5599.005158 | AA22: =Est2018DistRev!AA22 -> 73848559.18 | AB22: =Est2018DistRev!AB22 -> 0 | AC22: =Est2018DistRev!AC22 -> 0 | AD22: =Est2018DistRev!AD22 -> 0 | AE22: =Est2018DistRev!AE22 -> 0 | AF22: =Est2018DistRev!AF22 -> 0 | AG22: =Est2018DistRev!AG22 -> 0 | AH22: =Est2018DistRev!AH22 -> 0 | AI22: =Est2018DistRev!AI22 -> 0 | AJ22: =Est2018DistRev!AJ22 -> 0 | AK22: =Est2018DistRev!AK22 -> 0 | AL22: =Est2018DistRev!AL22 -> 0 | AM22: =Est2018DistRev!AM22 -> 0 | AN22: =Est2018DistRev!AN22 -> 0 | AO22: =Est2018DistRev!AO22 -> 0 | AP22: =Est2018DistRev!AP22 -> 0 | AQ22: =Est2018DistRev!AQ22 -> 0 | AR22: =Est2018DistRev!AR22 -> 0 | AS22: =Est2018DistRev!AS22 -> 0 | AT22: =Est2018DistRev!AT22 -> 0 | AV22: 0 | AW22: 1078188.964 | AX22: 0 | AY22: 0 | AZ22: 0 | BA22: 0 | BB22: 0 | BC22: 0 | BD22: 0 | BE22: 0 | BF22: 0 | BG22: 0 | BH22: 0 | BI22: 0 | BJ22: 0 | BK22: 0 | BL22: 0 | BM22: 0 | BN22: 0 | BO22: 0 | BP22: 0 | BQ22: 1078188.964
B23: =Est2018DistRev!B23 -> Non-Residential Two Rate 5d | D23: 0 | E23: 0 | F23: 2.87 | G23: 0 | H23: 0 | I23: 0.76 | J23: 0 | K23: 0 | L23: 0 | M23: 0 | N23: 0 | O23: 0 | P23: 0 | Q23: 0 | R23: 0 | S23: 0 | T23: 0 | U23: 0 | V23: 0 | W23: 0 | X23: 0 | Z23: =Est2018DistRev!Z23 -> 6325.91212 | AA23: =Est2018DistRev!AA23 -> 0 | AB23: =Est2018DistRev!AB23 -> 90006939.07 | AC23: =Est2018DistRev!AC23 -> 0 | AD23: =Est2018DistRev!AD23 -> 0 | AE23: =Est2018DistRev!AE23 -> 56232415.07 | AF23: =Est2018DistRev!AF23 -> 0 | AG23: =Est2018DistRev!AG23 -> 0 | AH23: =Est2018DistRev!AH23 -> 0 | AI23: =Est2018DistRev!AI23 -> 0 | AJ23: =Est2018DistRev!AJ23 -> 0 | AK23: =Est2018DistRev!AK23 -> 0 | AL23: =Est2018DistRev!AL23 -> 0 | AM23: =Est2018DistRev!AM23 -> 0 | AN23: =Est2018DistRev!AN23 -> 0 | AO23: =Est2018DistRev!AO23 -> 0 | AP23: =Est2018DistRev!AP23 -> 0 | AQ23: =Est2018DistRev!AQ23 -> 0 | AR23: =Est2018DistRev!AR23 -> 0 | AS23: =Est2018DistRev!AS23 -> 0 | AT23: =Est2018DistRev!AT23 -> 0 | AV23: 0 | AW23: 0 | AX23: 2583199.151 | AY23: 0 | AZ23: 0 | BA23: 427366.3545 | BB23: 0 | BC23: 0 | BD23: 0 | BE23: 0 | BF23: 0 | BG23: 0 | BH23: 0 | BI23: 0 | BJ23: 0 | BK23: 0 | BL23: 0 | BM23: 0 | BN23: 0 | BO23: 0 | BP23: 0 | BQ23: 3010565.506
B24: =Est2018DistRev!B24 -> Non-Residential Two Rate 5d - Bulk | D24: 0 | E24: 0 | F24: 2.09 | G24: 0 | H24: 0 | I24: 0.57 | J24: 0 | K24: 0 | L24: 0 | M24: 0 | N24: 0 | O24: 0 | P24: 0 | Q24: 0 | R24: 0 | S24: 0 | T24: 0 | U24: 0 | V24: 0 | W24: 0 | X24: 0 | Z24: =Est2018DistRev!Z24 -> 1106.535597 | AA24: =Est2018DistRev!AA24 -> 0 | AB24: =Est2018DistRev!AB24 -> 16887632.07 | AC24: =Est2018DistRev!AC24 -> 0 | AD24: =Est2018DistRev!AD24 -> 0 | AE24: =Est2018DistRev!AE24 -> 9694170.346 | AF24: =Est2018DistRev!AF24 -> 0 | AG24: =Est2018DistRev!AG24 -> 0 | AH24: =Est2018DistRev!AH24 -> 0 | AI24: =Est2018DistRev!AI24 -> 0 | AJ24: =Est2018DistRev!AJ24 -> 0 | AK24: =Est2018DistRev!AK24 -> 0 | AL24: =Est2018DistRev!AL24 -> 0 | AM24: =Est2018DistRev!AM24 -> 0 | AN24: =Est2018DistRev!AN24 -> 0 | AO24: =Est2018DistRev!AO24 -> 0 | AP24: =Est2018DistRev!AP24 -> 0 | AQ24: =Est2018DistRev!AQ24 -> 0 | AR24: =Est2018DistRev!AR24 -> 0 | AS24: =Est2018DistRev!AS24 -> 0 | AT24: =Est2018DistRev!AT24 -> 0 | AV24: 0 | AW24: 0 | AX24: 352951.5102 | AY24: 0 | AZ24: 0 | BA24: 55256.77097 | BB24: 0 | BC24: 0 | BD24: 0 | BE24: 0 | BF24: 0 | BG24: 0 | BH24: 0 | BI24: 0 | BJ24: 0 | BK24: 0 | BL24: 0 | BM24: 0 | BN24: 0 | BO24: 0 | BP24: 0 | BQ24: 408208.2812
B25: =Est2018DistRev!B25 -> Non-Residential Interval | D25: 0 | E25: 0 | F25: 2.87 | G25: 0 | H25: 0 | I25: 0.76 | J25: 0 | K25: 0 | L25: 0 | M25: 0 | N25: 0 | O25: 0 | P25: 0 | Q25: 0 | R25: 0 | S25: 0 | T25: 0 | U25: 0 | V25: 0 | W25: 0 | X25: 0 | Z25: =Est2018DistRev!Z25 -> 4011.792454 | AA25: =Est2018DistRev!AA25 -> 0 | AB25: =Est2018DistRev!AB25 -> 44315700.54 | AC25: =Est2018DistRev!AC25 -> 0 | AD25: =Est2018DistRev!AD25 -> 0 | AE25: =Est2018DistRev!AE25 -> 25142157.46 | AF25: =Est2018DistRev!AF25 -> 0 | AG25: =Est2018DistRev!AG25 -> 0 | AH25: =Est2018DistRev!AH25 -> 0 | AI25: =Est2018DistRev!AI25 -> 0 | AJ25: =Est2018DistRev!AJ25 -> 0 | AK25: =Est2018DistRev!AK25 -> 0 | AL25: =Est2018DistRev!AL25 -> 0 | AM25: =Est2018DistRev!AM25 -> 0 | AN25: =Est2018DistRev!AN25 -> 0 | AO25: =Est2018DistRev!AO25 -> 0 | AP25: =Est2018DistRev!AP25 -> 0 | AQ25: =Est2018DistRev!AQ25 -> 0 | AR25: =Est2018DistRev!AR25 -> 0 | AS25: =Est2018DistRev!AS25 -> 0 | AT25: =Est2018DistRev!AT25 -> 0 | AV25: 0 | AW25: 0 | AX25: 1271860.605 | AY25: 0 | AZ25: 0 | BA25: 191080.3967 | BB25: 0 | BC25: 0 | BD25: 0 | BE25: 0 | BF25: 0 | BG25: 0 | BH25: 0 | BI25: 0 | BJ25: 0 | BK25: 0 | BL25: 0 | BM25: 0 | BN25: 0 | BO25: 0 | BP25: 0 | BQ25: 1462941.002
B26: =Est2018DistRev!B26 -> Non-Residential Interval - Bulk | D26: 0 | E26: 0 | F26: 2.09 | G26: 0 | H26: 0 | I26: 0.57 | J26: 0 | K26: 0 | L26: 0 | M26: 0 | N26: 0 | O26: 0 | P26: 0 | Q26: 0 | R26: 0 | S26: 0 | T26: 0 | U26: 0 | V26: 0 | W26: 0 | X26: 0 | Z26: =Est2018DistRev!Z26 -> 1947.172824 | AA26: =Est2018DistRev!AA26 -> 0 | AB26: =Est2018DistRev!AB26 -> 28963727.79 | AC26: =Est2018DistRev!AC26 -> 0 | AD26: =Est2018DistRev!AD26 -> 0 | AE26: =Est2018DistRev!AE26 -> 15296835.41 | AF26: =Est2018DistRev!AF26 -> 0 | AG26: =Est2018DistRev!AG26 -> 0 | AH26: =Est2018DistRev!AH26 -> 0 | AI26: =Est2018DistRev!AI26 -> 0 | AJ26: =Est2018DistRev!AJ26 -> 0 | AK26: =Est2018DistRev!AK26 -> 0 | AL26: =Est2018DistRev!AL26 -> 0 | AM26: =Est2018DistRev!AM26 -> 0 | AN26: =Est2018DistRev!AN26 -> 0 | AO26: =Est2018DistRev!AO26 -> 0 | AP26: =Est2018DistRev!AP26 -> 0 | AQ26: =Est2018DistRev!AQ26 -> 0 | AR26: =Est2018DistRev!AR26 -> 0 | AS26: =Est2018DistRev!AS26 -> 0 | AT26: =Est2018DistRev!AT26 -> 0 | AV26: 0 | AW26: 0 | AX26: 605341.9109 | AY26: 0 | AZ26: 0 | BA26: 87191.96184 | BB26: 0 | BC26: 0 | BD26: 0 | BE26: 0 | BF26: 0 | BG26: 0 | BH26: 0 | BI26: 0 | BJ26: 0 | BK26: 0 | BL26: 0 | BM26: 0 | BN26: 0 | BO26: 0 | BP26: 0 | BQ26: 692533.8727
B27: =Est2018DistRev!B27 -> Non-Residential Flexible Pricing | D27: 0 | E27: 0 | F27: 0 | G27: 0 | H27: 0 | I27: 0 | J27: 0 | K27: 0 | L27: 0 | M27: 0 | N27: 0 | O27: 0 | P27: 0 | Q27: 3.5 | R27: 2.45 | S27: 0.96 | T27: 0 | U27: 3.5 | V27: 2.45 | W27: 0.96 | X27: 0 | Z27: =Est2018DistRev!Z27 -> 21.10222788 | AA27: =Est2018DistRev!AA27 -> 0 | AB27: =Est2018DistRev!AB27 -> 0 | AC27: =Est2018DistRev!AC27 -> 0 | AD27: =Est2018DistRev!AD27 -> 0 | AE27: =Est2018DistRev!AE27 -> 0 | AF27: =Est2018DistRev!AF27 -> 0 | AG27: =Est2018DistRev!AG27 -> 0 | AH27: =Est2018DistRev!AH27 -> 0 | AI27: =Est2018DistRev!AI27 -> 0 | AJ27: =Est2018DistRev!AJ27 -> 0 | AK27: =Est2018DistRev!AK27 -> 0 | AL27: =Est2018DistRev!AL27 -> 0 | AM27: =Est2018DistRev!AM27 -> 43821.56936 | AN27: =Est2018DistRev!AN27 -> 12365.14554 | AO27: =Est2018DistRev!AO27 -> 36868.09714 | AP27: =Est2018DistRev!AP27 -> 0 | AQ27: =Est2018DistRev!AQ27 -> 161494.8713 | AR27: =Est2018DistRev!AR27 -> 41032.76051 | AS27: =Est2018DistRev!AS27 -> 110833.915 | AT27: =Est2018DistRev!AT27 -> 0 | AV27: 0 | AW27: 0 | AX27: 0 | AY27: 0 | AZ27: 0 | BA27: 0 | BB27: 0 | BC27: 0 | BD27: 0 | BE27: 0 | BF27: 0 | BG27: 0 | BH27: 0 | BI27: 1533.754928 | BJ27: 302.9460657 | BK27: 353.9337325 | BL27: 0 | BM27: 5652.320495 | BN27: 1005.302633 | BO27: 1064.005584 | BP27: 0 | BQ27: 9912.263437
B28: =Est2018DistRev!B28 -> Non-Residential - Flexible Pricing Bulk | D28: 0 | E28: 0 | F28: 0 | G28: 0 | H28: 0 | I28: 0 | J28: 0 | K28: 0 | L28: 0 | M28: 0 | N28: 0 | O28: 0 | P28: 0 | Q28: 2.97 | R28: 2.08 | S28: 0.82 | T28: 0 | U28: 2.97 | V28: 2.08 | W28: 0.82 | X28: 0 | Z28: =Est2018DistRev!Z28 -> 5 | AA28: =Est2018DistRev!AA28 -> 0 | AB28: =Est2018DistRev!AB28 -> 0 | AC28: =Est2018DistRev!AC28 -> 0 | AD28: =Est2018DistRev!AD28 -> 0 | AE28: =Est2018DistRev!AE28 -> 0 | AF28: =Est2018DistRev!AF28 -> 0 | AG28: =Est2018DistRev!AG28 -> 0 | AH28: =Est2018DistRev!AH28 -> 0 | AI28: =Est2018DistRev!AI28 -> 0 | AJ28: =Est2018DistRev!AJ28 -> 0 | AK28: =Est2018DistRev!AK28 -> 0 | AL28: =Est2018DistRev!AL28 -> 0 | AM28: =Est2018DistRev!AM28 -> 10467.50047 | AN28: =Est2018DistRev!AN28 -> 2361.846711 | AO28: =Est2018DistRev!AO28 -> 7699.32017 | AP28: =Est2018DistRev!AP28 -> 0 | AQ28: =Est2018DistRev!AQ28 -> 30024.78157 | AR28: =Est2018DistRev!AR28 -> 6386.584144 | AS28: =Est2018DistRev!AS28 -> 20918.50232 | AT28: =Est2018DistRev!AT28 -> 0 | AV28: 0 | AW28: 0 | AX28: 0 | AY28: 0 | AZ28: 0 | BA28: 0 | BB28: 0 | BC28: 0 | BD28: 0 | BE28: 0 | BF28: 0 | BG28: 0 | BH28: 0 | BI28: 310.8847639 | BJ28: 49.12641158 | BK28: 63.13442539 | BL28: 0 | BM28: 891.7360127 | BN28: 132.8409502 | BO28: 171.531719 | BP28: 0 | BQ28: 1619.254283
B29: =Est2018DistRev!B29 -> Non-Residential Two Rate 7d | D29: 0 | E29: 0 | F29: 2.26 | G29: 0 | H29: 0 | I29: 0.76 | J29: 0 | K29: 0 | L29: 0 | M29: 0 | N29: 0 | O29: 0 | P29: 0 | Q29: 0 | R29: 0 | S29: 0 | T29: 0 | U29: 0 | V29: 0 | W29: 0 | X29: 0 | Z29: =Est2018DistRev!Z29 -> 2322.444207 | AA29: =Est2018DistRev!AA29 -> 0 | AB29: =Est2018DistRev!AB29 -> 37314656.19 | AC29: =Est2018DistRev!AC29 -> 0 | AD29: =Est2018DistRev!AD29 -> 0 | AE29: =Est2018DistRev!AE29 -> 8982959.302 | AF29: =Est2018DistRev!AF29 -> 0 | AG29: =Est2018DistRev!AG29 -> 0 | AH29: =Est2018DistRev!AH29 -> 0 | AI29: =Est2018DistRev!AI29 -> 0 | AJ29: =Est2018DistRev!AJ29 -> 0 | AK29: =Est2018DistRev!AK29 -> 0 | AL29: =Est2018DistRev!AL29 -> 0 | AM29: =Est2018DistRev!AM29 -> 0 | AN29: =Est2018DistRev!AN29 -> 0 | AO29: =Est2018DistRev!AO29 -> 0 | AP29: =Est2018DistRev!AP29 -> 0 | AQ29: =Est2018DistRev!AQ29 -> 0 | AR29: =Est2018DistRev!AR29 -> 0 | AS29: =Est2018DistRev!AS29 -> 0 | AT29: =Est2018DistRev!AT29 -> 0 | AV29: 0 | AW29: 0 | AX29: 843311.2298 | AY29: 0 | AZ29: 0 | BA29: 68270.49069 | BB29: 0 | BC29: 0 | BD29: 0 | BE29: 0 | BF29: 0 | BG29: 0 | BH29: 0 | BI29: 0 | BJ29: 0 | BK29: 0 | BL29: 0 | BM29: 0 | BN29: 0 | BO29: 0 | BP29: 0 | BQ29: 911581.7205
B30: =Est2018DistRev!B30 -> Non-Residential Two Rate 7d - Bulk | D30: 0 | E30: 0 | F30: 1.95 | G30: 0 | H30: 0 | I30: 0.57 | J30: 0 | K30: 0 | L30: 0 | M30: 0 | N30: 0 | O30: 0 | P30: 0 | Q30: 0 | R30: 0 | S30: 0 | T30: 0 | U30: 0 | V30: 0 | W30: 0 | X30: 0 | Z30: =Est2018DistRev!Z30 -> 251.5269155 | AA30: =Est2018DistRev!AA30 -> 0 | AB30: =Est2018DistRev!AB30 -> 5172333.901 | AC30: =Est2018DistRev!AC30 -> 0 | AD30: =Est2018DistRev!AD30 -> 0 | AE30: =Est2018DistRev!AE30 -> 1298680.775 | AF30: =Est2018DistRev!AF30 -> 0 | AG30: =Est2018DistRev!AG30 -> 0 | AH30: =Est2018DistRev!AH30 -> 0 | AI30: =Est2018DistRev!AI30 -> 0 | AJ30: =Est2018DistRev!AJ30 -> 0 | AK30: =Est2018DistRev!AK30 -> 0 | AL30: =Est2018DistRev!AL30 -> 0 | AM30: =Est2018DistRev!AM30 -> 0 | AN30: =Est2018DistRev!AN30 -> 0 | AO30: =Est2018DistRev!AO30 -> 0 | AP30: =Est2018DistRev!AP30 -> 0 | AQ30: =Est2018DistRev!AQ30 -> 0 | AR30: =Est2018DistRev!AR30 -> 0 | AS30: =Est2018DistRev!AS30 -> 0 | AT30: =Est2018DistRev!AT30 -> 0 | AV30: 0 | AW30: 0 | AX30: 100860.5111 | AY30: 0 | AZ30: 0 | BA30: 7402.48042 | BB30: 0 | BC30: 0 | BD30: 0 | BE30: 0 | BF30: 0 | BG30: 0 | BH30: 0 | BI30: 0 | BJ30: 0 | BK30: 0 | BL30: 0 | BM30: 0 | BN30: 0 | BO30: 0 | BP30: 0 | BQ30: 108262.9915
B31: =Est2018DistRev!B31 -> Large Two Rate 7d | D31: 0 | E31: 0 | F31: 2.87 | G31: 0 | H31: 0 | I31: 0.76 | J31: 0 | K31: 0 | L31: 0 | M31: 0 | N31: 0 | O31: 0 | P31: 0 | Q31: 0 | R31: 0 | S31: 0 | T31: 0 | U31: 0 | V31: 0 | W31: 0 | X31: 0 | Z31: =Est2018DistRev!Z31 -> 4 | AA31: =Est2018DistRev!AA31 -> 0 | AB31: =Est2018DistRev!AB31 -> 224820.2679 | AC31: =Est2018DistRev!AC31 -> 0 | AD31: =Est2018DistRev!AD31 -> 0 | AE31: =Est2018DistRev!AE31 -> 61632.40762 | AF31: =Est2018DistRev!AF31 -> 0 | AG31: =Est2018DistRev!AG31 -> 0 | AH31: =Est2018DistRev!AH31 -> 0 | AI31: =Est2018DistRev!AI31 -> 0 | AJ31: =Est2018DistRev!AJ31 -> 0 | AK31: =Est2018DistRev!AK31 -> 0 | AL31: =Est2018DistRev!AL31 -> 0 | AM31: =Est2018DistRev!AM31 -> 0 | AN31: =Est2018DistRev!AN31 -> 0 | AO31: =Est2018DistRev!AO31 -> 0 | AP31: =Est2018DistRev!AP31 -> 0 | AQ31: =Est2018DistRev!AQ31 -> 0 | AR31: =Est2018DistRev!AR31 -> 0 | AS31: =Est2018DistRev!AS31 -> 0 | AT31: =Est2018DistRev!AT31 -> 0 | AV31: 0 | AW31: 0 | AX31: 6452.341689 | AY31: 0 | AZ31: 0 | BA31: 468.4062979 | BB31: 0 | BC31: 0 | BD31: 0 | BE31: 0 | BF31: 0 | BG31: 0 | BH31: 0 | BI31: 0 | BJ31: 0 | BK31: 0 | BL31: 0 | BM31: 0 | BN31: 0 | BO31: 0 | BP31: 0 | BQ31: 6920.747987
B32: =Est2018DistRev!B32 -> Non-Residential Demand Tariff | D32: 0 | E32: 1.05 | F32: 0 | G32: 0 | H32: 0 | I32: 0 | J32: 0 | K32: 0 | L32: 0 | M32: 0 | N32: 0 | O32: 3.34 | P32: 1.11 | Q32: 0 | R32: 0 | S32: 0 | T32: 0 | U32: 0 | V32: 0 | W32: 0 | X32: 0 | Z32: =Est2018DistRev!Z32 -> 5 | AA32: =Est2018DistRev!AA32 -> 100000 | AB32: =Est2018DistRev!AB32 -> 0 | AC32: =Est2018DistRev!AC32 -> 0 | AD32: =Est2018DistRev!AD32 -> 0 | AE32: =Est2018DistRev!AE32 -> 0 | AF32: =Est2018DistRev!AF32 -> 0 | AG32: =Est2018DistRev!AG32 -> 0 | AH32: =Est2018DistRev!AH32 -> 0 | AI32: =Est2018DistRev!AI32 -> 0 | AJ32: =Est2018DistRev!AJ32 -> 0 | AK32: =Est2018DistRev!AK32 -> 130.4631442 | AL32: =Est2018DistRev!AL32 -> 228.3105023 | AM32: =Est2018DistRev!AM32 -> 0 | AN32: =Est2018DistRev!AN32 -> 0 | AO32: =Est2018DistRev!AO32 -> 0 | AP32: =Est2018DistRev!AP32 -> 0 | AQ32: =Est2018DistRev!AQ32 -> 0 | AR32: =Est2018DistRev!AR32 -> 0 | AS32: =Est2018DistRev!AS32 -> 0 | AT32: =Est2018DistRev!AT32 -> 0 | AV32: 0 | AW32: 1050 | AX32: 0 | AY32: 0 | AZ32: 0 | BA32: 0 | BB32: 0 | BC32: 0 | BD32: 0 | BE32: 0 | BF32: 0 | BG32: 435.7469015 | BH32: 253.4246575 | BI32: 0 | BJ32: 0 | BK32: 0 | BL32: 0 | BM32: 0 | BN32: 0 | BO32: 0 | BP32: 0 | BQ32: 1739.171559
B33: =Est2018DistRev!B33 -> Non-Residential Bulk Demand Tariff | D33: 0 | E33: 0.94 | F33: 0 | G33: 0 | H33: 0 | I33: 0 | J33: 0 | K33: 0 | L33: 0 | M33: 0 | N33: 0 | O33: 2.51 | P33: 0.84 | Q33: 0 | R33: 0 | S33: 0 | T33: 0 | U33: 0 | V33: 0 | W33: 0 | X33: 0 | Z33: =Est2018DistRev!Z33 -> 1 | AA33: =Est2018DistRev!AA33 -> 16000 | AB33: =Est2018DistRev!AB33 -> 0 | AC33: =Est2018DistRev!AC33 -> 0 | AD33: =Est2018DistRev!AD33 -> 0 | AE33: =Est2018DistRev!AE33 -> 0 | AF33: =Est2018DistRev!AF33 -> 0 | AG33: =Est2018DistRev!AG33 -> 0 | AH33: =Est2018DistRev!AH33 -> 0 | AI33: =Est2018DistRev!AI33 -> 0 | AJ33: =Est2018DistRev!AJ33 -> 0 | AK33: =Est2018DistRev!AK33 -> 20.87410307 | AL33: =Est2018DistRev!AL33 -> 36.52968037 | AM33: =Est2018DistRev!AM33 -> 0 | AN33: =Est2018DistRev!AN33 -> 0 | AO33: =Est2018DistRev!AO33 -> 0 | AP33: =Est2018DistRev!AP33 -> 0 | AQ33: =Est2018DistRev!AQ33 -> 0 | AR33: =Est2018DistRev!AR33 -> 0 | AS33: =Est2018DistRev!AS33 -> 0 | AT33: =Est2018DistRev!AT33 -> 0 | AV33: 0 | AW33: 150.4 | AX33: 0 | AY33: 0 | AZ33: 0 | BA33: 0 | BB33: 0 | BC33: 0 | BD33: 0 | BE33: 0 | BF33: 0 | BG33: 52.3939987 | BH33: 30.68493151 | BI33: 0 | BJ33: 0 | BK33: 0 | BL33: 0 | BM33: 0 | BN33: 0 | BO33: 0 | BP33: 0 | BQ33: 233.4789302
B34: =Est2018DistRev!B34 -> Medium Business Demand | D34: 0 | E34: 0 | F34: 1.96 | G34: 0 | H34: 0 | I34: 1.16 | J34: 0 | K34: 0 | L34: 0 | M34: 0 | N34: 0 | O34: 0.99 | P34: 0.49 | Q34: 0 | R34: 0 | S34: 0 | T34: 0 | U34: 0 | V34: 0 | W34: 0 | X34: 0 | Z34: =Est2018DistRev!Z34 -> 4454.758429 | AA34: =Est2018DistRev!AA34 -> 0 | AB34: =Est2018DistRev!AB34 -> 385749824.5 | AC34: =Est2018DistRev!AC34 -> 0 | AD34: =Est2018DistRev!AD34 -> 0 | AE34: =Est2018DistRev!AE34 -> 237077602.3 | AF34: =Est2018DistRev!AF34 -> 0 | AG34: =Est2018DistRev!AG34 -> 0 | AH34: =Est2018DistRev!AH34 -> 0 | AI34: =Est2018DistRev!AI34 -> 0 | AJ34: =Est2018DistRev!AJ34 -> 0 | AK34: =Est2018DistRev!AK34 -> 764494.4395 | AL34: =Est2018DistRev!AL34 -> 1326085.146 | AM34: =Est2018DistRev!AM34 -> 0 | AN34: =Est2018DistRev!AN34 -> 0 | AO34: =Est2018DistRev!AO34 -> 0 | AP34: =Est2018DistRev!AP34 -> 0 | AQ34: =Est2018DistRev!AQ34 -> 0 | AR34: =Est2018DistRev!AR34 -> 0 | AS34: =Est2018DistRev!AS34 -> 0 | AT34: =Est2018DistRev!AT34 -> 0 | AV34: 0 | AW34: 0 | AX34: 7560696.56 | AY34: 0 | AZ34: 0 | BA34: 2750100.186 | BB34: 0 | BC34: 0 | BD34: 0 | BE34: 0 | BF34: 0 | BG34: 756849.4951 | BH34: 649781.7217 | BI34: 0 | BJ34: 0 | BK34: 0 | BL34: 0 | BM34: 0 | BN34: 0 | BO34: 0 | BP34: 0 | BQ34: 11717427.96
B35: =Est2018DistRev!B35 -> Medium Business Bulk Demand | D35: 0 | E35: 0 | F35: 1.44 | G35: 0 | H35: 0 | I35: 0.91 | J35: 0 | K35: 0 | L35: 0 | M35: 0 | N35: 0 | O35: 0.74 | P35: 0.37 | Q35: 0 | R35: 0 | S35: 0 | T35: 0 | U35: 0 | V35: 0 | W35: 0 | X35: 0 | Z35: =Est2018DistRev!Z35 -> 2142.068209 | AA35: =Est2018DistRev!AA35 -> 0 | AB35: =Est2018DistRev!AB35 -> 263482333.8 | AC35: =Est2018DistRev!AC35 -> 0 | AD35: =Est2018DistRev!AD35 -> 0 | AE35: =Est2018DistRev!AE35 -> 158002594.6 | AF35: =Est2018DistRev!AF35 -> 0 | AG35: =Est2018DistRev!AG35 -> 0 | AH35: =Est2018DistRev!AH35 -> 0 | AI35: =Est2018DistRev!AI35 -> 0 | AJ35: =Est2018DistRev!AJ35 -> 0 | AK35: =Est2018DistRev!AK35 -> 523965.0885 | AL35: =Est2018DistRev!AL35 -> 850358.3194 | AM35: =Est2018DistRev!AM35 -> 0 | AN35: =Est2018DistRev!AN35 -> 0 | AO35: =Est2018DistRev!AO35 -> 0 | AP35: =Est2018DistRev!AP35 -> 0 | AQ35: =Est2018DistRev!AQ35 -> 0 | AR35: =Est2018DistRev!AR35 -> 0 | AS35: =Est2018DistRev!AS35 -> 0 | AT35: =Est2018DistRev!AT35 -> 0 | AV35: 0 | AW35: 0 | AX35: 3794145.607 | AY35: 0 | AZ35: 0 | BA35: 1437823.611 | BB35: 0 | BC35: 0 | BD35: 0 | BE35: 0 | BF35: 0 | BG35: 387734.1655 | BH35: 314632.5782 | BI35: 0 | BJ35: 0 | BK35: 0 | BL35: 0 | BM35: 0 | BN35: 0 | BO35: 0 | BP35: 0 | BQ35: 5934335.961
B36: =Est2018DistRev!B36 -> Medium Business Opt-out | D36: 0 | E36: 0 | F36: 3 | G36: 0 | H36: 0 | I36: 1.2 | J36: 0 | K36: 0 | L36: 0 | M36: 0 | N36: 0 | O36: 0 | P36: 0 | Q36: 0 | R36: 0 | S36: 0 | T36: 0 | U36: 0 | V36: 0 | W36: 0 | X36: 0 | Z36: =Est2018DistRev!Z36 -> 9 | AA36: =Est2018DistRev!AA36 -> 0 | AB36: =Est2018DistRev!AB36 -> 502552.9057 | AC36: =Est2018DistRev!AC36 -> 0 | AD36: =Est2018DistRev!AD36 -> 0 | AE36: =Est2018DistRev!AE36 -> 301011.2823 | AF36: =Est2018DistRev!AF36 -> 0 | AG36: =Est2018DistRev!AG36 -> 0 | AH36: =Est2018DistRev!AH36 -> 0 | AI36: =Est2018DistRev!AI36 -> 0 | AJ36: =Est2018DistRev!AJ36 -> 0 | AK36: =Est2018DistRev!AK36 -> 0 | AL36: =Est2018DistRev!AL36 -> 0 | AM36: =Est2018DistRev!AM36 -> 0 | AN36: =Est2018DistRev!AN36 -> 0 | AO36: =Est2018DistRev!AO36 -> 0 | AP36: =Est2018DistRev!AP36 -> 0 | AQ36: =Est2018DistRev!AQ36 -> 0 | AR36: =Est2018DistRev!AR36 -> 0 | AS36: =Est2018DistRev!AS36 -> 0 | AT36: =Est2018DistRev!AT36 -> 0 | AV36: 0 | AW36: 0 | AX36: 15076.58717 | AY36: 0 | AZ36: 0 | BA36: 3612.135388 | BB36: 0 | BC36: 0 | BD36: 0 | BE36: 0 | BF36: 0 | BG36: 0 | BH36: 0 | BI36: 0 | BJ36: 0 | BK36: 0 | BL36: 0 | BM36: 0 | BN36: 0 | BO36: 0 | BP36: 0 | BQ36: 18688.72256
B37: =Est2018DistRev!B37 -> Medium Business Bulk Opt-out | D37: 0 | E37: 0 | F37: 2.2 | G37: 0 | H37: 0 | I37: 0.95 | J37: 0 | K37: 0 | L37: 0 | M37: 0 | N37: 0 | O37: 0 | P37: 0 | Q37: 0 | R37: 0 | S37: 0 | T37: 0 | U37: 0 | V37: 0 | W37: 0 | X37: 0 | Z37: =Est2018DistRev!Z37 -> 9 | AA37: =Est2018DistRev!AA37 -> 0 | AB37: =Est2018DistRev!AB37 -> 560828.8423 | AC37: =Est2018DistRev!AC37 -> 0 | AD37: =Est2018DistRev!AD37 -> 0 | AE37: =Est2018DistRev!AE37 -> 293112.8114 | AF37: =Est2018DistRev!AF37 -> 0 | AG37: =Est2018DistRev!AG37 -> 0 | AH37: =Est2018DistRev!AH37 -> 0 | AI37: =Est2018DistRev!AI37 -> 0 | AJ37: =Est2018DistRev!AJ37 -> 0 | AK37: =Est2018DistRev!AK37 -> 0 | AL37: =Est2018DistRev!AL37 -> 0 | AM37: =Est2018DistRev!AM37 -> 0 | AN37: =Est2018DistRev!AN37 -> 0 | AO37: =Est2018DistRev!AO37 -> 0 | AP37: =Est2018DistRev!AP37 -> 0 | AQ37: =Est2018DistRev!AQ37 -> 0 | AR37: =Est2018DistRev!AR37 -> 0 | AS37: =Est2018DistRev!AS37 -> 0 | AT37: =Est2018DistRev!AT37 -> 0 | AV37: 0 | AW37: 0 | AX37: 12338.23453 | AY37: 0 | AZ37: 0 | BA37: 2784.571708 | BB37: 0 | BC37: 0 | BD37: 0 | BE37: 0 | BF37: 0 | BG37: 0 | BH37: 0 | BI37: 0 | BJ37: 0 | BK37: 0 | BL37: 0 | BM37: 0 | BN37: 0 | BO37: 0 | BP37: 0 | BQ37: 15122.80624
B38: =Est2018DistRev!B38 -> Unmetered Supplies / Public Lighting | D38: 0 | E38: 0 | F38: 2.69 | G38: 0 | H38: 0 | I38: 0.75 | J38: 0 | K38: 0 | L38: 0 | M38: 0 | N38: 0 | O38: 0 | P38: 0 | Q38: 0 | R38: 0 | S38: 0 | T38: 0 | U38: 0 | V38: 0 | W38: 0 | X38: 0 | Z38: =Est2018DistRev!Z38 -> 4063 | AA38: =Est2018DistRev!AA38 -> 0 | AB38: =Est2018DistRev!AB38 -> 14704755.16 | AC38: =Est2018DistRev!AC38 -> 0 | AD38: =Est2018DistRev!AD38 -> 0 | AE38: =Est2018DistRev!AE38 -> 24328971.64 | AF38: =Est2018DistRev!AF38 -> 0 | AG38: =Est2018DistRev!AG38 -> 0 | AH38: =Est2018DistRev!AH38 -> 0 | AI38: =Est2018DistRev!AI38 -> 0 | AJ38: =Est2018DistRev!AJ38 -> 0 | AK38: =Est2018DistRev!AK38 -> 0 | AL38: =Est2018DistRev!AL38 -> 0 | AM38: =Est2018DistRev!AM38 -> 0 | AN38: =Est2018DistRev!AN38 -> 0 | AO38: =Est2018DistRev!AO38 -> 0 | AP38: =Est2018DistRev!AP38 -> 0 | AQ38: =Est2018DistRev!AQ38 -> 0 | AR38: =Est2018DistRev!AR38 -> 0 | AS38: =Est2018DistRev!AS38 -> 0 | AT38: =Est2018DistRev!AT38 -> 0 | AV38: 0 | AW38: 0 | AX38: 395557.9138 | AY38: 0 | AZ38: 0 | BA38: 182467.2873 | BB38: 0 | BC38: 0 | BD38: 0 | BE38: 0 | BF38: 0 | BG38: 0 | BH38: 0 | BI38: 0 | BJ38: 0 | BK38: 0 | BL38: 0 | BM38: 0 | BN38: 0 | BO38: 0 | BP38: 0 | BQ38: 578025.2011
B39: =Est2018DistRev!B39 -> Large low Voltage | D39: 0 | E39: 0 | F39: 1.13 | G39: 0 | H39: 0 | I39: 0.69 | J39: 0 | K39: 0 | L39: 0 | M39: 35 | N39: 0 | O39: 0 | P39: 0 | Q39: 0 | R39: 0 | S39: 0 | T39: 0 | U39: 0 | V39: 0 | W39: 0 | X39: 0 | Z39: =Est2018DistRev!Z39 -> 330.0289578 | AA39: =Est2018DistRev!AA39 -> 0 | AB39: =Est2018DistRev!AB39 -> 112861608.3 | AC39: =Est2018DistRev!AC39 -> 0 | AD39: =Est2018DistRev!AD39 -> 0 | AE39: =Est2018DistRev!AE39 -> 88751320.91 | AF39: =Est2018DistRev!AF39 -> 0 | AG39: =Est2018DistRev!AG39 -> 0 | AH39: =Est2018DistRev!AH39 -> 0 | AI39: =Est2018DistRev!AI39 -> 64648.71038 | AJ39: =Est2018DistRev!AJ39 -> 0 | AK39: =Est2018DistRev!AK39 -> 0 | AL39: =Est2018DistRev!AL39 -> 0 | AM39: =Est2018DistRev!AM39 -> 0 | AN39: =Est2018DistRev!AN39 -> 0 | AO39: =Est2018DistRev!AO39 -> 0 | AP39: =Est2018DistRev!AP39 -> 0 | AQ39: =Est2018DistRev!AQ39 -> 0 | AR39: =Est2018DistRev!AR39 -> 0 | AS39: =Est2018DistRev!AS39 -> 0 | AT39: =Est2018DistRev!AT39 -> 0 | AV39: 0 | AW39: 0 | AX39: 1275336.174 | AY39: 0 | AZ39: 0 | BA39: 612384.1143 | BB39: 0 | BC39: 0 | BD39: 0 | BE39: 2262704.863 | BF39: 0 | BG39: 0 | BH39: 0 | BI39: 0 | BJ39: 0 | BK39: 0 | BL39: 0 | BM39: 0 | BN39: 0 | BO39: 0 | BP39: 0 | BQ39: 4150425.152
B40: =Est2018DistRev!B40 -> Large low Voltage Bulk | D40: 0 | E40: 0 | F40: 1.01 | G40: 0 | H40: 0 | I40: 0.62 | J40: 0 | K40: 0 | L40: 0 | M40: 31.49 | N40: 0 | O40: 0 | P40: 0 | Q40: 0 | R40: 0 | S40: 0 | T40: 0 | U40: 0 | V40: 0 | W40: 0 | X40: 0 | Z40: =Est2018DistRev!Z40 -> 1655.625824 | AA40: =Est2018DistRev!AA40 -> 0 | AB40: =Est2018DistRev!AB40 -> 1130104579 | AC40: =Est2018DistRev!AC40 -> 0 | AD40: =Est2018DistRev!AD40 -> 0 | AE40: =Est2018DistRev!AE40 -> 843930303.7 | AF40: =Est2018DistRev!AF40 -> 0 | AG40: =Est2018DistRev!AG40 -> 0 | AH40: =Est2018DistRev!AH40 -> 0 | AI40: =Est2018DistRev!AI40 -> 645709.6081 | AJ40: =Est2018DistRev!AJ40 -> 0 | AK40: =Est2018DistRev!AK40 -> 0 | AL40: =Est2018DistRev!AL40 -> 0 | AM40: =Est2018DistRev!AM40 -> 0 | AN40: =Est2018DistRev!AN40 -> 0 | AO40: =Est2018DistRev!AO40 -> 0 | AP40: =Est2018DistRev!AP40 -> 0 | AQ40: =Est2018DistRev!AQ40 -> 0 | AR40: =Est2018DistRev!AR40 -> 0 | AS40: =Est2018DistRev!AS40 -> 0 | AT40: =Est2018DistRev!AT40 -> 0 | AV40: 0 | AW40: 0 | AX40: 11414056.24 | AY40: 0 | AZ40: 0 | BA40: 5232367.883 | BB40: 0 | BC40: 0 | BD40: 0 | BE40: 20333395.56 | BF40: 0 | BG40: 0 | BH40: 0 | BI40: 0 | BJ40: 0 | BK40: 0 | BL40: 0 | BM40: 0 | BN40: 0 | BO40: 0 | BP40: 0 | BQ40: 36979819.68
B41: =Est2018DistRev!B41 -> High Voltage | D41: 0 | E41: 0 | F41: 1.22 | G41: 0 | H41: 0 | I41: 0.63 | J41: 0 | K41: 0 | L41: 0 | M41: 34.66 | N41: 0 | O41: 0 | P41: 0 | Q41: 0 | R41: 0 | S41: 0 | T41: 0 | U41: 0 | V41: 0 | W41: 0 | X41: 0 | Z41: =Est2018DistRev!Z41 -> 90.98255371 | AA41: =Est2018DistRev!AA41 -> 0 | AB41: =Est2018DistRev!AB41 -> 343486676.7 | AC41: =Est2018DistRev!AC41 -> 0 | AD41: =Est2018DistRev!AD41 -> 0 | AE41: =Est2018DistRev!AE41 -> 320752044.2 | AF41: =Est2018DistRev!AF41 -> 0 | AG41: =Est2018DistRev!AG41 -> 0 | AH41: =Est2018DistRev!AH41 -> 0 | AI41: =Est2018DistRev!AI41 -> 198974.4461 | AJ41: =Est2018DistRev!AJ41 -> 0 | AK41: =Est2018DistRev!AK41 -> 0 | AL41: =Est2018DistRev!AL41 -> 0 | AM41: =Est2018DistRev!AM41 -> 0 | AN41: =Est2018DistRev!AN41 -> 0 | AO41: =Est2018DistRev!AO41 -> 0 | AP41: =Est2018DistRev!AP41 -> 0 | AQ41: =Est2018DistRev!AQ41 -> 0 | AR41: =Est2018DistRev!AR41 -> 0 | AS41: =Est2018DistRev!AS41 -> 0 | AT41: =Est2018DistRev!AT41 -> 0 | AV41: 0 | AW41: 0 | AX41: 4190537.456 | AY41: 0 | AZ41: 0 | BA41: 2020737.879 | BB41: 0 | BC41: 0 | BD41: 0 | BE41: 6896454.303 | BF41: 0 | BG41: 0 | BH41: 0 | BI41: 0 | BJ41: 0 | BK41: 0 | BL41: 0 | BM41: 0 | BN41: 0 | BO41: 0 | BP41: 0 | BQ41: 13107729.64
B42: =Est2018DistRev!B42 -> Subtransmission | D42: 0 | E42: 0 | F42: 1.96 | G42: 0 | H42: 0 | I42: 0.82 | J42: 0 | K42: 0 | L42: 0 | M42: 15.95 | N42: 0 | O42: 0 | P42: 0 | Q42: 0 | R42: 0 | S42: 0 | T42: 0 | U42: 0 | V42: 0 | W42: 0 | X42: 0 | Z42: =Est2018DistRev!Z42 -> 6 | AA42: =Est2018DistRev!AA42 -> 0 | AB42: =Est2018DistRev!AB42 -> 65598744.88 | AC42: =Est2018DistRev!AC42 -> 0 | AD42: =Est2018DistRev!AD42 -> 0 | AE42: =Est2018DistRev!AE42 -> 37964642.61 | AF42: =Est2018DistRev!AF42 -> 0 | AG42: =Est2018DistRev!AG42 -> 0 | AH42: =Est2018DistRev!AH42 -> 0 | AI42: =Est2018DistRev!AI42 -> 37371.68517 | AJ42: =Est2018DistRev!AJ42 -> 0 | AK42: =Est2018DistRev!AK42 -> 0 | AL42: =Est2018DistRev!AL42 -> 0 | AM42: =Est2018DistRev!AM42 -> 0 | AN42: =Est2018DistRev!AN42 -> 0 | AO42: =Est2018DistRev!AO42 -> 0 | AP42: =Est2018DistRev!AP42 -> 0 | AQ42: =Est2018DistRev!AQ42 -> 0 | AR42: =Est2018DistRev!AR42 -> 0 | AS42: =Est2018DistRev!AS42 -> 0 | AT42: =Est2018DistRev!AT42 -> 0 | AV42: 0 | AW42: 0 | AX42: 1285735.4 | AY42: 0 | AZ42: 0 | BA42: 311310.0694 | BB42: 0 | BC42: 0 | BD42: 0 | BE42: 596078.3784 | BF42: 0 | BG42: 0 | BH42: 0 | BI42: 0 | BJ42: 0 | BK42: 0 | BL42: 0 | BM42: 0 | BN42: 0 | BO42: 0 | BP42: 0 | BQ42: 2193123.847
AV43: 0 | AW43: 0 | AX43: 0 | AY43: 0 | AZ43: 0 | BA43: 0 | BB43: 0 | BC43: 0 | BD43: 0 | BE43: 0 | BF43: 0 | BG43: 0 | BH43: 0 | BI43: 0 | BJ43: 0 | BK43: 0 | BL43: 0 | BM43: 0 | BN43: 0 | BO43: 0 | BP43: 0 | BQ43: 0
AV44: 0 | AW44: 0 | AX44: 0 | AY44: 0 | AZ44: 0 | BA44: 0 | BB44: 0 | BC44: 0 | BD44: 0 | BE44: 0 | BF44: 0 | BG44: 0 | BH44: 0 | BI44: 0 | BJ44: 0 | BK44: 0 | BL44: 0 | BM44: 0 | BN44: 0 | BO44: 0 | BP44: 0 | BQ44: 0
AV45: 0 | AW45: 0 | AX45: 0 | AY45: 0 | AZ45: 0 | BA45: 0 | BB45: 0 | BC45: 0 | BD45: 0 | BE45: 0 | BF45: 0 | BG45: 0 | BH45: 0 | BI45: 0 | BJ45: 0 | BK45: 0 | BL45: 0 | BM45: 0 | BN45: 0 | BO45: 0 | BP45: 0 | BQ45: 0
AV46: 0 | AW46: 0 | AX46: 0 | AY46: 0 | AZ46: 0 | BA46: 0 | BB46: 0 | BC46: 0 | BD46: 0 | BE46: 0 | BF46: 0 | BG46: 0 | BH46: 0 | BI46: 0 | BJ46: 0 | BK46: 0 | BL46: 0 | BM46: 0 | BN46: 0 | BO46: 0 | BP46: 0 | BQ46: 0
AV47: 0 | AW47: 0 | AX47: 0 | AY47: 0 | AZ47: 0 | BA47: 0 | BB47: 0 | BC47: 0 | BD47: 0 | BE47: 0 | BF47: 0 | BG47: 0 | BH47: 0 | BI47: 0 | BJ47: 0 | BK47: 0 | BL47: 0 | BM47: 0 | BN47: 0 | BO47: 0 | BP47: 0 | BQ47: 0
AV48: 0 | AW48: 0 | AX48: 0 | AY48: 0 | AZ48: 0 | BA48: 0 | BB48: 0 | BC48: 0 | BD48: 0 | BE48: 0 | BF48: 0 | BG48: 0 | BH48: 0 | BI48: 0 | BJ48: 0 | BK48: 0 | BL48: 0 | BM48: 0 | BN48: 0 | BO48: 0 | BP48: 0 | BQ48: 0
AV49: 0 | AW49: 0 | AX49: 0 | AY49: 0 | AZ49: 0 | BA49: 0 | BB49: 0 | BC49: 0 | BD49: 0 | BE49: 0 | BF49: 0 | BG49: 0 | BH49: 0 | BI49: 0 | BJ49: 0 | BK49: 0 | BL49: 0 | BM49: 0 | BN49: 0 | BO49: 0 | BP49: 0 | BQ49: 0
AV50: 0 | AW50: 0 | AX50: 0 | AY50: 0 | AZ50: 0 | BA50: 0 | BB50: 0 | BC50: 0 | BD50: 0 | BE50: 0 | BF50: 0 | BG50: 0 | BH50: 0 | BI50: 0 | BJ50: 0 | BK50: 0 | BL50: 0 | BM50: 0 | BN50: 0 | BO50: 0 | BP50: 0 | BQ50: 0
AV51: 0 | AW51: 0 | AX51: 0 | AY51: 0 | AZ51: 0 | BA51: 0 | BB51: 0 | BC51: 0 | BD51: 0 | BE51: 0 | BF51: 0 | BG51: 0 | BH51: 0 | BI51: 0 | BJ51: 0 | BK51: 0 | BL51: 0 | BM51: 0 | BN51: 0 | BO51: 0 | BP51: 0 | BQ51: 0
AV52: 0 | AW52: 0 | AX52: 0 | AY52: 0 | AZ52: 0 | BA52: 0 | BB52: 0 | BC52: 0 | BD52: 0 | BE52: 0 | BF52: 0 | BG52: 0 | BH52: 0 | BI52: 0 | BJ52: 0 | BK52: 0 | BL52: 0 | BM52: 0 | BN52: 0 | BO52: 0 | BP52: 0 | BQ52: 0
AV53: 0 | AW53: 0 | AX53: 0 | AY53: 0 | AZ53: 0 | BA53: 0 | BB53: 0 | BC53: 0 | BD53: 0 | BE53: 0 | BF53: 0 | BG53: 0 | BH53: 0 | BI53: 0 | BJ53: 0 | BK53: 0 | BL53: 0 | BM53: 0 | BN53: 0 | BO53: 0 | BP53: 0 | BQ53: 0
AV54: 0 | AW54: 0 | AX54: 0 | AY54: 0 | AZ54: 0 | BA54: 0 | BB54: 0 | BC54: 0 | BD54: 0 | BE54: 0 | BF54: 0 | BG54: 0 | BH54: 0 | BI54: 0 | BJ54: 0 | BK54: 0 | BL54: 0 | BM54: 0 | BN54: 0 | BO54: 0 | BP54: 0 | BQ54: 0
AV55: 0 | AW55: 0 | AX55: 0 | AY55: 0 | AZ55: 0 | BA55: 0 | BB55: 0 | BC55: 0 | BD55: 0 | BE55: 0 | BF55: 0 | BG55: 0 | BH55: 0 | BI55: 0 | BJ55: 0 | BK55: 0 | BL55: 0 | BM55: 0 | BN55: 0 | BO55: 0 | BP55: 0 | BQ55: 0
AV56: 0 | AW56: 0 | AX56: 0 | AY56: 0 | AZ56: 0 | BA56: 0 | BB56: 0 | BC56: 0 | BD56: 0 | BE56: 0 | BF56: 0 | BG56: 0 | BH56: 0 | BI56: 0 | BJ56: 0 | BK56: 0 | BL56: 0 | BM56: 0 | BN56: 0 | BO56: 0 | BP56: 0 | BQ56: 0
AV57: 0 | AW57: 0 | AX57: 0 | AY57: 0 | AZ57: 0 | BA57: 0 | BB57: 0 | BC57: 0 | BD57: 0 | BE57: 0 | BF57: 0 | BG57: 0 | BH57: 0 | BI57: 0 | BJ57: 0 | BK57: 0 | BL57: 0 | BM57: 0 | BN57: 0 | BO57: 0 | BP57: 0 | BQ57: 0
AV58: 0 | AW58: 0 | AX58: 0 | AY58: 0 | AZ58: 0 | BA58: 0 | BB58: 0 | BC58: 0 | BD58: 0 | BE58: 0 | BF58: 0 | BG58: 0 | BH58: 0 | BI58: 0 | BJ58: 0 | BK58: 0 | BL58: 0 | BM58: 0 | BN58: 0 | BO58: 0 | BP58: 0 | BQ58: 0
AV59: 0 | AW59: 0 | AX59: 0 | AY59: 0 | AZ59: 0 | BA59: 0 | BB59: 0 | BC59: 0 | BD59: 0 | BE59: 0 | BF59: 0 | BG59: 0 | BH59: 0 | BI59: 0 | BJ59: 0 | BK59: 0 | BL59: 0 | BM59: 0 | BN59: 0 | BO59: 0 | BP59: 0 | BQ59: 0
AV60: 0 | AW60: 0 | AX60: 0 | AY60: 0 | AZ60: 0 | BA60: 0 | BB60: 0 | BC60: 0 | BD60: 0 | BE60: 0 | BF60: 0 | BG60: 0 | BH60: 0 | BI60: 0 | BJ60: 0 | BK60: 0 | BL60: 0 | BM60: 0 | BN60: 0 | BO60: 0 | BP60: 0 | BQ60: 0
AV61: 0 | AW61: 0 | AX61: 0 | AY61: 0 | AZ61: 0 | BA61: 0 | BB61: 0 | BC61: 0 | BD61: 0 | BE61: 0 | BF61: 0 | BG61: 0 | BH61: 0 | BI61: 0 | BJ61: 0 | BK61: 0 | BL61: 0 | BM61: 0 | BN61: 0 | BO61: 0 | BP61: 0 | BQ61: 0
AV62: 0 | AW62: 0 | AX62: 0 | AY62: 0 | AZ62: 0 | BA62: 0 | BB62: 0 | BC62: 0 | BD62: 0 | BE62: 0 | BF62: 0 | BG62: 0 | BH62: 0 | BI62: 0 | BJ62: 0 | BK62: 0 | BL62: 0 | BM62: 0 | BN62: 0 | BO62: 0 | BP62: 0 | BQ62: 0
AV63: 0 | AW63: 0 | AX63: 0 | AY63: 0 | AZ63: 0 | BA63: 0 | BB63: 0 | BC63: 0 | BD63: 0 | BE63: 0 | BF63: 0 | BG63: 0 | BH63: 0 | BI63: 0 | BJ63: 0 | BK63: 0 | BL63: 0 | BM63: 0 | BN63: 0 | BO63: 0 | BP63: 0 | BQ63: 0
AV64: 0 | AW64: 0 | AX64: 0 | AY64: 0 | AZ64: 0 | BA64: 0 | BB64: 0 | BC64: 0 | BD64: 0 | BE64: 0 | BF64: 0 | BG64: 0 | BH64: 0 | BI64: 0 | BJ64: 0 | BK64: 0 | BL64: 0 | BM64: 0 | BN64: 0 | BO64: 0 | BP64: 0 | BQ64: 0
AV65: 0 | AW65: 0 | AX65: 0 | AY65: 0 | AZ65: 0 | BA65: 0 | BB65: 0 | BC65: 0 | BD65: 0 | BE65: 0 | BF65: 0 | BG65: 0 | BH65: 0 | BI65: 0 | BJ65: 0 | BK65: 0 | BL65: 0 | BM65: 0 | BN65: 0 | BO65: 0 | BP65: 0 | BQ65: 0
